Workbook

Sheet Instructions
B4: INSTRUCTIONS
B6: In order for the dashboards to function, you must enable macros.
B8: (1) In Excel 2010 and 2013, if you have the Developper tab visible, select "Macro security". If you do not have the Developper tab visible,
B9: navigate under, File / Options / Trust Center / Trust Center Settings / Macro Settings. You should have four options available.
B10: Select either Enable all macros or Disable macros with notification. If you have a different version of Excel, the steps needed to
B11: navigate to the Macro Security menu may be slighly different.
B13: (2) Close down Excel completely. This allows the settings to take effect next time Excel is opened.
B15: (3) Open this document. If you selected "Disable macros with notification", select "enable content" on opening this document.
B17: The Dashboards will become visible once these steps are completed.

Sheet Intro (hidden)
A1: In this file:
A3: Tab | B3: Dashboards
A4: DB1 | B4: Dashboard 1: Major trading partner dashboard
B6: Details:
B7: • 6-digit HTS subheading product level detail
B8: • Major partner country detail (small partners aggregated into "All other sources" or "AOS")
B9: • Five years of data: 2010 to 2014
B10: • Imports = U.S. general imports
B11: • Exports = U.S. total exports
A13: DB2 | B13: Dashboard 2: Partner-sector dashboard
B15: Details:
B16: • High level product sector details
B17: • All partner country details
B18: • Eighteen years of data: 1997 to 2014
B19: • Imports = U.S. general imports
B20: • Exports = U.S. total exports
A22: DB3 | B22: Dashboard 3: Shifts in trade digest dashboard
B24: Details:
B25: • Medium level product digest details
B26: • U.S. trade with the world
B27: • Eighteen years of data: 1997 to 2014
B28: • Imports = U.S. general imports
B29: • Exports = U.S. total exports
B30: • Analysis of Shifts in Merchandise trade
A32: DB4 | B32: Dashboard 4: Domestic and foreign exports dashboard
B34: Details:
B35: • Medium level product digest details
B36: • U.S. trade with major partner countries
B37: • Eighteen years of data: 1997 to 2014
B38: • Exports = Domestic, Foreign, and Total exports
B39: • Comparison of subsets to overall U.S. benchmark
A41: DB5 | B41: Dashboard 5: Major unilateral preference programs dashboard
B43: Details:
B44: • 6-digit HTS subheading product level detail
B45: • U.S. trade with preference program partners
B46: • Eighteen years of data: 1997 to 2014
B47: • Imports = U.S. imports for consumption
B48: • Preferential treatment data only

Sheet DB1 (hidden)
B2: 2 | C2: Korea | D2: 1
B12: ="U.S. merchandise trade with "&IF(DB1_countryselectedcount=25,"all countries ",DB1_countryselections)&" on a "&IF(DB1_presentationbasis=1,"total trade","trade balance")&" basis, 2010-2014" -> U.S. merchandise trade with Korea on a trade balance basis, 2010-2014
C13: B | D13: C | E13: D | F13: E | G13: F
B14: Item | C14: 2010 | D14: 2011 | E14: 2012 | F14: 2013 | G14: 2014
C15: Value (millions) | I15: Geometric average annual period percentage changes:
B16: U.S. exports | C16: =INDIRECT("DB1_PIVOT!"&C$13&$H16)/1000000 -> 38820.6373 | D16: =INDIRECT("DB1_PIVOT!"&D$13&$H16)/1000000 -> 43461.63604 | E16: 42265.17978 | F16: 41714.71542 | G16: 44543.96227 | H16: 5 | I16: =IF(OR(AND(G16>0,C16>0),AND(G16<0,C16<0)),TEXT(((ABS(G16)/ABS(C16))^(1/(G$14-C$14))-1)*100,"0.0")&" average annual percentage change 2010-14","Cannot be calculated due to a change in sign") -> 3.5 average annual percentage change 2010-14
B17: U.S. imports | C17: =INDIRECT("DB1_PIVOT!"&C$13&$H17)/1000000 -> -48875.17095 | D17: -56661.35946 | E17: -58901.50121 | F17: -62386.35555 | G17: -69605.69918 | H17: 6 | I17: =IF(OR(AND(G17>0,C17>0),AND(G17<0,C17<0)),TEXT(((ABS(G17)/ABS(C17))^(1/(G$14-C$14))-1)*100,"0.0")&" average annual percentage change 2010-14","Cannot be calculated due to a change in sign") -> 9.2 average annual percentage change 2010-14
B18: =IF(DB1_presentationbasis=1,"Total U.S. trade","U.S. merchandise trade balance") -> U.S. merchandise trade balance | C18: -10054.53365 | D18: -13199.72343 | E18: -16636.32142 | F18: -20671.64014 | G18: -25061.73691 | H18: 7 | I18: =IF(OR(AND(G18>0,C18>0),AND(G18<0,C18<0)),TEXT(((ABS(G18)/ABS(C18))^(1/(G$14-C$14))-1)*100,"0.0")&" average annual percentage change 2010-14","Cannot be calculated due to a change in sign") -> 25.6 average annual percentage change 2010-14
A21: 1 | B21: U.S. exports to | C21: 2014 | D21: DESC | E21: $C$17
B22: =DB1_datatypedescription&" "&IF(DB1_countryselectedcount=25,"all countries ",DB1_countryselections)&IF(AND(DB1_datatype=3,DB1_sortdirection="ASC")," largest deficit-contributing HTS 6 subheadings",IF(AND(DB1_datatype=3,DB1_sortdirection="ASC")," largest surplus-contributing HTS 6 subheadings"," largest HTS 6 subheadings"))&", "&DB1_yearsnapshot -> U.S. exports to Korea largest HTS 6 subheadings, 2014
B24: Top HTS subheadings, 2010 | C24: Rank | D24: Value (thousands of dollars) | E24: Share of value (percent)
B25: =LEFT(TEXT(Q25,"000000"),4)&"."&RIGHT(TEXT(Q25,"000000"),2)&" -- "&S25 -> 8542.31 -- Processors or controlers | C25: 1 | D25: =IF(AND(DB1_datatype=1,DB1_presentationbasis=2),ABS(R25)/1000,R25/1000) -> 2582491.461 | E25: =IF(AND(DB1_datatype=3,DB1_presentationbasis=2),"fn1",IF(ABS(D$52)>0,ABS(D25)/ABS(D$52)*100,0)) -> 5.283851516 | G25: =ABS(D25) -> 2582491.461 | H25: 29069169.9 | Q25: =INDIRECT("DB1_PIVOT!A"&(C25+16)) -> 854231 | R25: =INDIRECT("DB1_PIVOT!B"&(C25+16)) -> 2582491461 | S25: =VLOOKUP(TEXT(Q25,"000000"),HTS6_desc,2) -> Processors or controlers
B26: =LEFT(TEXT(Q26,"000000"),4)&"."&RIGHT(TEXT(Q26,"000000"),2)&" -- "&S26 -> 8486.20 -- Machines and apparatus for the manufacture of semiconductor devices or electronic integrated circuits | C26: 2 | D26: 2181623.42 | E26: 4.463664019 | G26: =ABS(D26) -> 2181623.42 | Q26: =INDIRECT("DB1_PIVOT!A"&(C26+16)) -> 848620 | R26: =INDIRECT("DB1_PIVOT!B"&(C26+16)) -> 2181623420 | S26: Machines and apparatus for the manufacture of semiconductor devices or electronic integrated circuits
B27: 8800.00 -- Aircraft, spacecraft, and parts thereof | C27: 3 | D27: 2001146.393 | E27: 4.094402852 | G27: 2001146.393 | Q27: 880000 | R27: 2001146393 | S27: Aircraft, spacecraft, and parts thereof
B28: 1005.90 -- Corn (maize), other than seed corn | C28: 4 | D28: 1058077.912 | E28: 2.164857721 | G28: 1058077.912 | Q28: 100590 | R28: 1058077912 | S28: Corn (maize), other than seed corn
B29: 3004.90 -- Medicaments, in measured doses, etc. (excluding vaccines, etc., coated bandages etc. and pharmaceutical goods), nesoi | C29: 5 | D29: 701079.319 | E29: 1.434428372 | G29: 701079.319 | Q29: 300490 | R29: 701079319 | S29: Medicaments, in measured doses, etc. (excluding vaccines, etc., coated bandages etc. and pharmaceutical goods), nesoi
B30: 2710.12 -- Light oils and preparations | C30: 6 | D30: 670197.592 | E30: 1.371243474 | G30: 670197.592 | Q30: 271012 | R30: 670197592 | S30: Light oils and preparations
B31: 8431.43 -- Parts for boring or sinking machinery, nesoi | C31: 7 | D31: 476983.782 | E31: 0.9759224832 | G31: 476983.782 | Q31: 843143 | R31: 476983782 | S31: Parts for boring or sinking machinery, nesoi
B32: 7204.49 -- Ferrous waste and scrap, nesoi | C32: 8 | D32: 474206.049 | E32: 0.9702391619 | G32: 474206.049 | Q32: 720449 | R32: 474206049 | S32: Ferrous waste and scrap, nesoi
B33: 8486.90 -- Parts and accessories | C33: 9 | D33: 462527.662 | E33: 0.9463448476 | G33: 462527.662 | Q33: 848690 | R33: 462527662 | S33: Parts and accessories
B34: 8542.32 -- Memories | C34: 10 | D34: 436362.286 | E34: 0.8928097386 | G34: 436362.286 | Q34: 854232 | R34: 436362286 | S34: Memories
B35: 8803.30 -- Parts of airplanes or helicopters, nesoi | C35: 11 | D35: 417719.458 | E35: 0.8546659784 | G35: 417719.458 | Q35: 880330 | R35: 417719458 | S35: Parts of airplanes or helicopters, nesoi
B36: 1001.99 -- Wheat & meslin other than durum or seed wheat | C36: 12 | D36: 414207.718 | E36: 0.8474808578 | G36: 414207.718 | Q36: 100199 | R36: 414207718 | S36: Wheat & meslin other than durum or seed wheat
B37: 2701.12 -- Bituminous coal, whether or not pulverized, but not agglomerated | C37: 13 | D37: 409168.756 | E37: 0.8371709972 | G37: 409168.756 | Q37: 270112 | R37: 409168756 | S37: Bituminous coal, whether or not pulverized, but not agglomerated
B38: 8703.23 -- Passenger motor vehicles with spark-ignition internal combustion reciprocating piston engine, cylinder capacity over 1,500 cc but not over 3,000 cc | C38: 14 | D38: 401898.236 | E38: 0.822295305 | G38: 401898.236 | Q38: 870323 | R38: 401898236 | S38: Passenger motor vehicles with spark-ignition internal combustion reciprocating piston engine, cylinder capacity over 1,500 cc but not over 3,000 cc
B39: 0202.20 -- Meat of bovine animals, cuts with bone in (other than half or whole carcasses), frozen | C39: 15 | D39: 365032.576 | E39: 0.7468671084 | G39: 365032.576 | Q39: 20220 | R39: 365032576 | S39: Meat of bovine animals, cuts with bone in (other than half or whole carcasses), frozen
B40: 1201.90 -- Soybeans, whether or not broken, other than seed | C40: 16 | D40: 361012.91 | E40: 0.7386427566 | G40: 361012.91 | Q40: 120190 | R40: 361012910 | S40: Soybeans, whether or not broken, other than seed
B41: 2926.10 -- Acrylonitrile | C41: 17 | D41: 350954.257 | E41: 0.7180624644 | G41: 350954.257 | Q41: 292610 | R41: 350954257 | S41: Acrylonitrile
B42: 0203.29 -- Meat of swine, nesoi, frozen | C42: 18 | D42: 346126.929 | E42: 0.708185613 | G42: 346126.929 | Q42: 20329 | R42: 346126929 | S42: Meat of swine, nesoi, frozen
B43: 8542.39 -- Electronic integrated circuits, nesoi | C43: 19 | D43: 345488.469 | E43: 0.7068793056 | G43: 345488.469 | Q43: 854239 | R43: 345488469 | S43: Electronic integrated circuits, nesoi
B44: 0202.30 -- Meat of bovine animals, boneless, frozen | C44: 20 | D44: 335324.978 | E44: 0.6860845118 | G44: 335324.978 | Q44: 20230 | R44: 335324978 | S44: Meat of bovine animals, boneless, frozen
B45: 8802.40 -- Airplanes and other aircraft nesoi, of an unladen weight exceeding 15,000 kg | C45: 21 | D45: 313300 | E45: 0.6410207758 | G45: 313300 | Q45: 880240 | R45: 313300000 | S45: Airplanes and other aircraft nesoi, of an unladen weight exceeding 15,000 kg
B46: 8703.33 -- Passenger motor vehicles with compression-ignition internal combustion piston engine (diesel), cylinder capacity over 2,500 cc | C46: 22 | D46: 285037.398 | E46: 0.5831946824 | G46: 285037.398 | Q46: 870333 | R46: 285037398 | S46: Passenger motor vehicles with compression-ignition internal combustion piston engine (diesel), cylinder capacity over 2,500 cc
B47: 7110.21 -- Palladium, unwrought or in powder form | C47: 23 | D47: 275535.772 | E47: 0.5637540834 | G47: 275535.772 | Q47: 711021 | R47: 275535772 | S47: Palladium, unwrought or in powder form
B48: 2902.50 -- Styrene (vinylbenzene; phenylethylene) | C48: 24 | D48: 274582.251 | E48: 0.5618031521 | G48: 274582.251 | Q48: 290250 | R48: 274582251 | S48: Styrene (vinylbenzene; phenylethylene)
B49: 4101.50 -- Whole raw bovine or equine hides and skins, of weight exceed 16 kg, fresh, pickled or otherwise preserved but not tanned or further prepared | C49: 25 | D49: 270051.167 | E49: 0.5525324245 | G49: 270051.167 | Q49: 410150 | R49: 270051167 | S49: Whole raw bovine or equine hides and skins, of weight exceed 16 kg, fresh, pickled or otherwise preserved but not tanned or further prepared
B50: Subtotal, top 25 | D50: =SUM(D25:D49) -> 16210136.75 | E50: 33.1664042
B51: All other subheadings | D51: =D52-D50 -> 32665034.2 | E51: 66.8335958
B52: =DB1_datatypedescription&" "&DB1_countryselections -> U.S. exports to Korea | D52: =IF(AND(DB1_datatype=1,DB1_presentationbasis=2),ABS(INDIRECT(DB1_breakouttotal))*1000,INDIRECT(DB1_breakouttotal)*1000) -> 48875170.95 | E52: 100
B54: =IF(AND(DB1_datatype=3,DB1_presentationbasis=2),"Fn1--Share of HTS-6 subheading is not calculated for trade balance data as the denominator in that calculation is a net number","") -> 

Sheet DB1_PIVOT (hidden)
A1: country | B1: Korea
A3: Sum of value_bop | B3: Column Labels
A4: Row Labels | B4: 2010 | C4: 2011 | D4: 2012 | E4: 2013 | F4: 2014 | G4: Grand Total
A5: export | B5: 38820637297 | C5: 43461636035 | D5: 42265179781 | E5: 41714715418 | F5: 44543962270 | G5: 210806130801
A6: import | B6: -48875170948 | C6: -56661359461 | D6: -58901501205 | E6: -62386355553 | F6: -69605699181 | G6: -296430086348
A7: Grand Total | B7: -10054533651 | C7: -13199723426 | D7: -16636321424 | E7: -20671640135 | F7: -25061736911 | G7: -85623955547
A11: year | B11: 2014
A12: country | B12: Korea
A13: type | B13: export
A14: 9899_exclusion | B14: 0
A16: Row Labels | B16: Sum of value_bop
A17: 854231 | B17: 2582491461
A18: 848620 | B18: 2181623420
A19: 880000 | B19: 2001146393
A20: 100590 | B20: 1058077912
A21: 300490 | B21: 701079319
A22: 271012 | B22: 670197592
A23: 843143 | B23: 476983782
A24: 720449 | B24: 474206049
A25: 848690 | B25: 462527662
A26: 854232 | B26: 436362286
A27: 880330 | B27: 417719458
A28: 100199 | B28: 414207718
A29: 270112 | B29: 409168756
A30: 870323 | B30: 401898236
A31: 20220 | B31: 365032576
A32: 120190 | B32: 361012910
A33: 292610 | B33: 350954257
A34: 20329 | B34: 346126929
A35: 854239 | B35: 345488469
A36: 20230 | B36: 335324978
A37: 880240 | B37: 313300000
A38: 870333 | B38: 285037398
A39: 711021 | B39: 275535772
A40: 290250 | B40: 274582251
A41: 410150 | B41: 270051167
A42: 848180 | B42: 269739271
A43: 760200 | B43: 258149587
A44: 848140 | B44: 257306950
A45: 210690 | B45: 255037265
A46: 851762 | B46: 247822828
A47: 121490 | B47: 234395159
A48: 841191 | B48: 222510693
A49: 390810 | B49: 219013233
A50: 848190 | B50: 216777105
A51: 520100 | B51: 208230917
A52: 330499 | B52: 207993050
A53: 80212 | B53: 204397458
A54: 40610 | B54: 199440752
A55: 901890 | B55: 196091173
A56: 740400 | B56: 181634672
A57: 230330 | B57: 179036056
A58: 870324 | B58: 175710415
A59: 381519 | B59: 171803741
A60: 930690 | B60: 170541302
A61: 382200 | B61: 167924162
A62: 760612 | B62: 165819189
A63: 903141 | B63: 162717587
A64: 260800 | B64: 161170403
A65: 853710 | B65: 156272938
A66: 870899 | B66: 156168922
A67: 841199 | B67: 155076973
A68: 300210 | B68: 155008584
A69: 903082 | B69: 153724720
A70: 271019 | B70: 151978852
A71: 382490 | B71: 151368451
A72: 841350 | B72: 150865447
A73: 30499 | B73: 145357258
A74: 292122 | B74: 144891162
A75: 842139 | B75: 144515008
A76: 310420 | B76: 141741040
A77: 847989 | B77: 136118701
A78: 711011 | B78: 134945656
A79: 280461 | B79: 131109838
A80: 80510 | B80: 131060161
A81: 880390 | B81: 126449607
A82: 901390 | B82: 124897202
A83: 854390 | B83: 122301685
A84: 392690 | B84: 122239470
A85: 80232 | B85: 120950104
A86: 900120 | B86: 120047404
A87: 270119 | B87: 118425483
A88: 80929 | B88: 116367828
A89: 847150 | B89: 116151145
A90: 870332 | B90: 116002928
A91: 320490 | B91: 115862282
A92: 271112 | B92: 114146424
A93: 903090 | B93: 113075623
A94: 381121 | B94: 112229849
A95: 903180 | B95: 111478657
A96: 270730 | B96: 109361739
A97: 410120 | B97: 108829184
A98: 320611 | B98: 106557547
A99: 840890 | B99: 103266180
A100: 854370 | B100: 98702041
A101: 271113 | B101: 98238352
A102: 440320 | B102: 97117241
A103: 20130 | B103: 97024782
A104: 901320 | B104: 96082490
A105: 854150 | B105: 95461640
A106: 20714 | B106: 94654581
A107: 902780 | B107: 94643925
A108: 391211 | B108: 93596935
A109: 902750 | B109: 91698063
A110: 900190 | B110: 90864108
A111: 848790 | B111: 90337517
A112: 870829 | B112: 89833915
A113: 200410 | B113: 88153953
A114: 850300 | B114: 87249054
A115: 470321 | B115: 86902792
A116: 842121 | B116: 86692750
A117: 30390 | B117: 86202944
A118: 380110 | B118: 86145009
A119: 220710 | B119: 86022509
A120: 903190 | B120: 85219256
A121: 270900 | B121: 85000000
A122: 285000 | B122: 84608229
A123: 391000 | B123: 83733942
A124: 230400 | B124: 82752386
A125: 901839 | B125: 81845196
A126: 290315 | B126: 80715310
A127: 481151 | B127: 79520699
A128: 390740 | B128: 78957929
A129: 390730 | B129: 76583647
A130: 847990 | B130: 74500720
A131: 970300 | B131: 73820824
A132: 970110 | B132: 73454071
A133: 854233 | B133: 73402509
A134: 280429 | B134: 73028419
A135: 850440 | B135: 72671709
A136: 847330 | B136: 71898789
A137: 720441 | B137: 71678988
A138: 290129 | B138: 69685521
A139: 810890 | B139: 68983030
A140: 901819 | B140: 67978714
A141: 853690 | B141: 67607050
A142: 711319 | B142: 67128684
A143: 902620 | B143: 66594318
A144: 903289 | B144: 65737947
A145: 700910 | B145: 64803512
A146: 903040 | B146: 64636880
A147: 260700 | B147: 63834257
A148: 841370 | B148: 63816564
A149: 470710 | B149: 63711430
A150: 290943 | B150: 63637341
A151: 871000 | B151: 63060230
A152: 470730 | B152: 63040710
A153: 40690 | B153: 62143020
A154: 540333 | B154: 62024208
A155: 902110 | B155: 61674865
A156: 841480 | B156: 60556069
A157: 902710 | B157: 60198607
A158: 851770 | B158: 59706861
A159: 842890 | B159: 58499896
A160: 381590 | B160: 58206720
A161: 841182 | B161: 58160429
A162: 842531 | B162: 57531314
A163: 852349 | B163: 57260437
A164: 853669 | B164: 56958016
A165: 841950 | B165: 56035590
A166: 847590 | B166: 56031097
A167: 340290 | B167: 55607002
A168: 870895 | B168: 54977698
A169: 732690 | B169: 54610279
A170: 293190 | B170: 54311273
A171: 847170 | B171: 54192888
A172: 853890 | B172: 53646359
A173: 271311 | B173: 51888208
A174: 391990 | B174: 51845713
A175: 841391 | B175: 50655284
A176: 410411 | B176: 50237700
A177: 381800 | B177: 49110358
A178: 470790 | B178: 48764586
A179: 390190 | B179: 48346923
A180: 842199 | B180: 48337135
A181: 710610 | B181: 46826438
A182: 840991 | B182: 46258906
A183: 390599 | B183: 46154003
A184: 200911 | B184: 46025214
A185: 470311 | B185: 45325790
A186: 391190 | B186: 44996348
A187: 854129 | B187: 44908643
A188: 710691 | B188: 44574334
A189: 392119 | B189: 44292606
A190: 740921 | B190: 43847110
A191: 841869 | B191: 43819109
A192: 180690 | B192: 43674112
A193: 890690 | B193: 43636875
A194: 848640 | B194: 43232620
A195: 190590 | B195: 43138558
A196: 720421 | B196: 42484790
A197: 283620 | B197: 42210426
A198: 300230 | B198: 42164976
A199: 390799 | B199: 41673117
A200: 730419 | B200: 41545210
A201: 430110 | B201: 40723539
A202: 730890 | B202: 40583423
A203: 400239 | B203: 40505573
A204: 390690 | B204: 40140614
A205: 210610 | B205: 39427146
... 3800 more rows

Sheet DB1_RAWHTS6 (hidden)
A1: type | B1: hts6 | C1: year | D1: country | E1: value | F1: value_bop | G1: 9899_exclusion | N1: hts6 | O1: hts6_desc
A2: export | B2: 010110 | C2: 2010 | D2: AOS | E2: 15832295 | F2: =IF(A2="import",E2*-1,E2) -> 15832295 | G2: =IF(OR(LEFT(TEXT(B2,"000000"),2)="99",LEFT(TEXT(B2,"000000"),2)="98"),1,0) -> 0 | N2: 010110 | O2: Live purebred breeding horses and asses
A3: export | B3: 010190 | C3: 2010 | D3: AOS | E3: 102460621 | F3: 102460621 | G3: 0 | N3: 010111 | O3: Horses, live, purebred breeding
A4: export | B4: 010210 | C4: 2010 | D4: AOS | E4: 71003356 | F4: 71003356 | G4: 0 | N4: 010119 | O4: Horses, live, except purebred breeding animals
A5: export | B5: 010290 | C5: 2010 | D5: AOS | E5: 1076042 | F5: 1076042 | G5: 0 | N5: 010120 | O5: Asses, mules and hinnies, live
A6: export | B6: 010310 | C6: 2010 | D6: AOS | E6: 835241 | F6: 835241 | G6: 0 | N6: 010121 | O6: Live purebred breeding horses
A7: export | B7: 010391 | C7: 2010 | D7: AOS | E7: 5727 | F7: 5727 | G7: 0 | N7: 010129 | O7: Horses, live, except purebred breeding animals
A8: export | B8: 010410 | C8: 2010 | D8: AOS | E8: 6500 | F8: 6500 | G8: 0 | N8: 010130 | O8: Live asses
A9: export | B9: 010420 | C9: 2010 | D9: AOS | E9: 5500 | F9: 5500 | G9: 0 | N9: 010190 | O9: Live horses, asses, mules and hinnies, other than purebred
A10: export | B10: 010511 | C10: 2010 | D10: AOS | E10: 57579041 | F10: 57579041 | G10: 0 | N10: 010210 | O10: Bovine animals, live, purebred breeding
A11: export | B11: 010512 | C11: 2010 | D11: AOS | E11: 1004276 | F11: 1004276 | G11: 0 | N11: 010221 | O11: Live purebred breeding cattle
A12: export | B12: 010519 | C12: 2010 | D12: AOS | E12: 401838 | F12: 401838 | G12: 0 | N12: 010229 | O12: Live cattle other than purebred breeding
A13: export | B13: 010594 | C13: 2010 | D13: AOS | E13: 474113 | F13: 474113 | G13: 0 | N13: 010231 | O13: Live purebred breeding buffalo
A14: export | B14: 010599 | C14: 2010 | D14: AOS | E14: 1535311 | F14: 1535311 | G14: 0 | N14: 010239 | O14: Live buffalo other than purebred breeding
A15: export | B15: 010619 | C15: 2010 | D15: AOS | E15: 3396321 | F15: 3396321 | G15: 0 | N15: 010290 | O15: Bovine animals, live, nesoi
A16: export | B16: 010620 | C16: 2010 | D16: AOS | E16: 3939548 | F16: 3939548 | G16: 0 | N16: 010310 | O16: Swine, live, purebred breeding animals
A17: export | B17: 010631 | C17: 2010 | D17: AOS | E17: 5000 | F17: 5000 | G17: 0 | N17: 010391 | O17: Swine, live, nesoi, weighing less than 50 kg (110.23 lb.) each
A18: export | B18: 010632 | C18: 2010 | D18: AOS | E18: 20662 | F18: 20662 | G18: 0 | N18: 010392 | O18: Swine, live, nesoi, weighing 50 kg (110.23 lb.) or more each
A19: export | B19: 010639 | C19: 2010 | D19: AOS | E19: 437866 | F19: 437866 | G19: 0 | N19: 010410 | O19: Sheep, live
A20: export | B20: 010690 | C20: 2010 | D20: AOS | E20: 1164955 | F20: 1164955 | G20: 0 | N20: 010420 | O20: Goats, live
A21: export | B21: 020110 | C21: 2010 | D21: AOS | E21: 2970095 | F21: 2970095 | G21: 0 | N21: 010511 | O21: Chickens, live, not weighing more than 185 g (6.53 oz.) each
A22: export | B22: 020120 | C22: 2010 | D22: AOS | E22: 8825833 | F22: 8825833 | G22: 0 | N22: 010512 | O22: Turkeys, live, weighing not over 185 g each
A23: export | B23: 020130 | C23: 2010 | D23: AOS | E23: 94045460 | F23: 94045460 | G23: 0 | N23: 010513 | O23: Live ducks weighing < 185 grams
A24: export | B24: 020210 | C24: 2010 | D24: AOS | E24: 3404461 | F24: 3404461 | G24: 0 | N24: 010514 | O24: Live geese weighing < 185 grams
A25: export | B25: 020220 | C25: 2010 | D25: AOS | E25: 95280406 | F25: 95280406 | G25: 0 | N25: 010515 | O25: Live guinea fowls, weighing not more than 185 g each
A26: export | B26: 020230 | C26: 2010 | D26: AOS | E26: 399092138 | F26: 399092138 | G26: 0 | N26: 010519 | O26: Ducks, geese, turkeys and guineas, live, weighing not more than 185 g (6.53 oz.) each
A27: export | B27: 020311 | C27: 2010 | D27: AOS | E27: 448041 | F27: 448041 | G27: 0 | N27: 010591 | O27: Chickens, live, weighing more than 185 g (6.53 oz.) each
A28: export | B28: 020312 | C28: 2010 | D28: AOS | E28: 21613665 | F28: 21613665 | G28: 0 | N28: 010592 | O28: Chickens, weighing not more than 2,000 g each
A29: export | B29: 020319 | C29: 2010 | D29: AOS | E29: 8977097 | F29: 8977097 | G29: 0 | N29: 010593 | O29: Chickens, weighing more than 2,000 g each
A30: export | B30: 020321 | C30: 2010 | D30: AOS | E30: 2736946 | F30: 2736946 | G30: 0 | N30: 010594 | O30: Fowls of the species gallus domesitcus, weighing more than 185g
A31: export | B31: 020322 | C31: 2010 | D31: AOS | E31: 56463036 | F31: 56463036 | G31: 0 | N31: 010599 | O31: Turkeys, ducks, geese and guinea fowls, live, weighing over 185 g (6.53 oz.) each
A32: export | B32: 020329 | C32: 2010 | D32: AOS | E32: 364133355 | F32: 364133355 | G32: 0 | N32: 010600 | O32: Animals, live, nesoi
A33: export | B33: 020410 | C33: 2010 | D33: AOS | E33: 348646 | F33: 348646 | G33: 0 | N33: 010611 | O33: Live primates
A34: export | B34: 020421 | C34: 2010 | D34: AOS | E34: 52326 | F34: 52326 | G34: 0 | N34: 010612 | O34: Live whales, dolphins and porpoises (mammals of the order cetacea); manatees and dugongs (mammals of the order sirenia)
A35: export | B35: 020422 | C35: 2010 | D35: AOS | E35: 1566620 | F35: 1566620 | G35: 0 | N35: 010613 | O35: Live camels and other camelids (camelidae)
A36: export | B36: 020423 | C36: 2010 | D36: AOS | E36: 344740 | F36: 344740 | G36: 0 | N36: 010614 | O36: Live rabbits and hares
A37: export | B37: 020430 | C37: 2010 | D37: AOS | E37: 2013968 | F37: 2013968 | G37: 0 | N37: 010619 | O37: Live mammals, other than primates, whales, dolphins, porpoises, manatees and dugongs
A38: export | B38: 020441 | C38: 2010 | D38: AOS | E38: 95797 | F38: 95797 | G38: 0 | N38: 010620 | O38: Live reptiles (including snakes and turtles)
A39: export | B39: 020442 | C39: 2010 | D39: AOS | E39: 2813456 | F39: 2813456 | G39: 0 | N39: 010631 | O39: Live birds of prey
A40: export | B40: 020443 | C40: 2010 | D40: AOS | E40: 714645 | F40: 714645 | G40: 0 | N40: 010632 | O40: Live psittaciforme birds (including parrots, parakeets, macaws and cockatoos)
A41: export | B41: 020450 | C41: 2010 | D41: AOS | E41: 857646 | F41: 857646 | G41: 0 | N41: 010633 | O41: Ostriches; emus
A42: export | B42: 020610 | C42: 2010 | D42: AOS | E42: 981311 | F42: 981311 | G42: 0 | N42: 010639 | O42: Live birds, other than poultry, birds of prey or psittaciforme birds
A43: export | B43: 020621 | C43: 2010 | D43: AOS | E43: 619187 | F43: 619187 | G43: 0 | N43: 010641 | O43: Bees
A44: export | B44: 020622 | C44: 2010 | D44: AOS | E44: 89011385 | F44: 89011385 | G44: 0 | N44: 010649 | O44: Live insects other than bees
A45: export | B45: 020629 | C45: 2010 | D45: AOS | E45: 56246531 | F45: 56246531 | G45: 0 | N45: 010690 | O45: Live animals other than mammals, reptiles and birds
A46: export | B46: 020630 | C46: 2010 | D46: AOS | E46: 2276790 | F46: 2276790 | G46: 0 | N46: 020110 | O46: Carcasses and half-carcasses of bovine animals, fresh or chilled
A47: export | B47: 020641 | C47: 2010 | D47: AOS | E47: 251469 | F47: 251469 | G47: 0 | N47: 020120 | O47: Meat of bovine animals, cuts with bone in (other than half or whole carcasses), fresh or chilled
A48: export | B48: 020649 | C48: 2010 | D48: AOS | E48: 118541514 | F48: 118541514 | G48: 0 | N48: 020130 | O48: Meat of bovine animals, boneless, fresh or chilled
A49: export | B49: 020680 | C49: 2010 | D49: AOS | E49: 9972 | F49: 9972 | G49: 0 | N49: 020210 | O49: Carcasses and half-carcasses of bovine animals, frozen
A50: export | B50: 020690 | C50: 2010 | D50: AOS | E50: 897313 | F50: 897313 | G50: 0 | N50: 020220 | O50: Meat of bovine animals, cuts with bone in (other than half or whole carcasses), frozen
A51: export | B51: 020711 | C51: 2010 | D51: AOS | E51: 101069911 | F51: 101069911 | G51: 0 | N51: 020230 | O51: Meat of bovine animals, boneless, frozen
A52: export | B52: 020712 | C52: 2010 | D52: AOS | E52: 14019456 | F52: 14019456 | G52: 0 | N52: 020311 | O52: Carcasses and half-carcasses of swine, fresh or chilled
A53: export | B53: 020713 | C53: 2010 | D53: AOS | E53: 7530616 | F53: 7530616 | G53: 0 | N53: 020312 | O53: Meat of swine, hams, shoulders and cuts thereof, with bone in, fresh or chilled
A54: export | B54: 020714 | C54: 2010 | D54: AOS | E54: 1883775727 | F54: 1883775727 | G54: 0 | N54: 020319 | O54: Meat of swine, nesoi, fresh or chilled
A55: export | B55: 020724 | C55: 2010 | D55: AOS | E55: 2648953 | F55: 2648953 | G55: 0 | N55: 020321 | O55: Carcasses and half-carcasses of swine, frozen
A56: export | B56: 020725 | C56: 2010 | D56: AOS | E56: 12961475 | F56: 12961475 | G56: 0 | N56: 020322 | O56: Meat of swine, hams, shoulders and cuts thereof with bone in, frozen
A57: export | B57: 020726 | C57: 2010 | D57: AOS | E57: 1391457 | F57: 1391457 | G57: 0 | N57: 020329 | O57: Meat of swine, nesoi, frozen
A58: export | B58: 020727 | C58: 2010 | D58: AOS | E58: 61759276 | F58: 61759276 | G58: 0 | N58: 020410 | O58: Carcasses and half-carcasses of lamb, fresh or chilled
A59: export | B59: 020732 | C59: 2010 | D59: AOS | E59: 26309 | F59: 26309 | G59: 0 | N59: 020421 | O59: Carcasses and half-carcasses of sheep, fresh or chilled
A60: export | B60: 020733 | C60: 2010 | D60: AOS | E60: 2270218 | F60: 2270218 | G60: 0 | N60: 020422 | O60: Meat of sheep, cuts with bone in, nesoi, fresh or chilled
A61: export | B61: 020734 | C61: 2010 | D61: AOS | E61: 25559 | F61: 25559 | G61: 0 | N61: 020423 | O61: Meat of sheep, boneless, fresh or chilled
A62: export | B62: 020735 | C62: 2010 | D62: AOS | E62: 264281 | F62: 264281 | G62: 0 | N62: 020430 | O62: Carcasses and half-carcasses of lamb, frozen
A63: export | B63: 020736 | C63: 2010 | D63: AOS | E63: 1921670 | F63: 1921670 | G63: 0 | N63: 020441 | O63: Carcasses and half-carcasses of sheep, frozen
A64: export | B64: 020810 | C64: 2010 | D64: AOS | E64: 43827 | F64: 43827 | G64: 0 | N64: 020442 | O64: Meat of sheep, cuts with bone in, nesoi, frozen
A65: export | B65: 020850 | C65: 2010 | D65: AOS | E65: 451760 | F65: 451760 | G65: 0 | N65: 020443 | O65: Meat of sheep, boneless, frozen
A66: export | B66: 020890 | C66: 2010 | D66: AOS | E66: 2221502 | F66: =IF(A66="import",E66*-1,E66) -> 2221502 | G66: =IF(OR(LEFT(TEXT(B66,"000000"),2)="99",LEFT(TEXT(B66,"000000"),2)="98"),1,0) -> 0 | N66: 020450 | O66: Meat of goats, fresh, chilled or frozen
A67: export | B67: 020900 | C67: 2010 | D67: AOS | E67: 3193692 | F67: 3193692 | G67: 0 | N67: 020500 | O67: Meat of horses, asses, mules or hinnies, fresh, chilled or frozen
A68: export | B68: 021011 | C68: 2010 | D68: AOS | E68: 1629723 | F68: 1629723 | G68: 0 | N68: 020610 | O68: Offal of bovine animals, edible, fresh or chilled
A69: export | B69: 021012 | C69: 2010 | D69: AOS | E69: 14476998 | F69: 14476998 | G69: 0 | N69: 020621 | O69: Tongues of bovine animals, edible, frozen
A70: export | B70: 021019 | C70: 2010 | D70: AOS | E70: 9891246 | F70: 9891246 | G70: 0 | N70: 020622 | O70: Livers of bovine animals, edible, frozen
A71: export | B71: 021020 | C71: 2010 | D71: AOS | E71: 7036166 | F71: 7036166 | G71: 0 | N71: 020629 | O71: Offal of bovine animals, edible, nesoi, frozen
A72: export | B72: 021091 | C72: 2010 | D72: AOS | E72: 7994 | F72: 7994 | G72: 0 | N72: 020630 | O72: Offal of swine, edible, fresh or chilled
A73: export | B73: 021099 | C73: 2010 | D73: AOS | E73: 1720386 | F73: 1720386 | G73: 0 | N73: 020641 | O73: Livers of swine, edible, frozen
A74: export | B74: 030110 | C74: 2010 | D74: AOS | E74: 2267285 | F74: 2267285 | G74: 0 | N74: 020649 | O74: Offal of swine except livers, edible, frozen
A75: export | B75: 030191 | C75: 2010 | D75: AOS | E75: 119990 | F75: 119990 | G75: 0 | N75: 020680 | O75: Offal of sheep, goats, horses, asses, mules or hinnies, edible, fresh or chilled
A76: export | B76: 030192 | C76: 2010 | D76: AOS | E76: 1553634 | F76: 1553634 | G76: 0 | N76: 020690 | O76: Offal of sheep, goats, horses, asses, mules or hinnies, edible, frozen
A77: export | B77: 030199 | C77: 2010 | D77: AOS | E77: 409874 | F77: 409874 | G77: 0 | N77: 020710 | O77: Meat of chickens, ducks, geese, turkeys and guineas, not cut in pieces, fresh or chilled
A78: export | B78: 030211 | C78: 2010 | D78: AOS | E78: 242077 | F78: 242077 | G78: 0 | N78: 020711 | O78: Meat and edible offal of chickens, not cut in pieces, fresh or chilled
A79: export | B79: 030212 | C79: 2010 | D79: AOS | E79: 2001521 | F79: 2001521 | G79: 0 | N79: 020712 | O79: Meat and edible offal of chickens, not cut in pieces, frozen
A80: export | B80: 030219 | C80: 2010 | D80: AOS | E80: 354211 | F80: 354211 | G80: 0 | N80: 020713 | O80: Chicken cuts and edible offal (including livers) fresh or chilled
A81: export | B81: 030221 | C81: 2010 | D81: AOS | E81: 701747 | F81: 701747 | G81: 0 | N81: 020714 | O81: Chicken cuts and edible offal (including livers) frozen
A82: export | B82: 030222 | C82: 2010 | D82: AOS | E82: 83034 | F82: 83034 | G82: 0 | N82: 020721 | O82: Meat of chickens, not cut in pieces, frozen
A83: export | B83: 030223 | C83: 2010 | D83: AOS | E83: 165486 | F83: 165486 | G83: 0 | N83: 020722 | O83: Meat of turkeys, not cut in pieces, frozen
A84: export | B84: 030229 | C84: 2010 | D84: AOS | E84: 122988 | F84: 122988 | G84: 0 | N84: 020723 | O84: Meat of ducks, geese and guineas, not cut in pieces, frozen
A85: export | B85: 030231 | C85: 2010 | D85: AOS | E85: 2578913 | F85: 2578913 | G85: 0 | N85: 020724 | O85: Turkeys, not cut in pieces, fresh or chilled
A86: export | B86: 030232 | C86: 2010 | D86: AOS | E86: 109590 | F86: 109590 | G86: 0 | N86: 020725 | O86: Turkeys, not cut in pieces, frozen
A87: export | B87: 030233 | C87: 2010 | D87: AOS | E87: 58206 | F87: 58206 | G87: 0 | N87: 020726 | O87: Turkey cuts and edible offal (including livers), fresh or chilled
A88: export | B88: 030234 | C88: 2010 | D88: AOS | E88: 2684 | F88: 2684 | G88: 0 | N88: 020727 | O88: Turkey cuts and edible offal (including liver) frozen
A89: export | B89: 030236 | C89: 2010 | D89: AOS | E89: 5325 | F89: 5325 | G89: 0 | N89: 020731 | O89: Fatty livers of geese or ducks, fresh or chilled
A90: export | B90: 030239 | C90: 2010 | D90: AOS | E90: 789271 | F90: 789271 | G90: 0 | N90: 020732 | O90: Ducks, geese and guineas, not cut in pieces, fresh or chilled
A91: export | B91: 030240 | C91: 2010 | D91: AOS | E91: 2084061 | F91: 2084061 | G91: 0 | N91: 020733 | O91: Ducks, geese and guineas, not cut in pieces, frozen
A92: export | B92: 030250 | C92: 2010 | D92: AOS | E92: 3302160 | F92: 3302160 | G92: 0 | N92: 020734 | O92: Livers, fatty, of geese, ducks, or guinea fowls edible, fresh or chilled
A93: export | B93: 030261 | C93: 2010 | D93: AOS | E93: 1727939 | F93: 1727939 | G93: 0 | N93: 020735 | O93: Ducks, geese or guineas cuts and edible offal, nesoi, (except fatty livers) fresh or chilled
A94: export | B94: 030262 | C94: 2010 | D94: AOS | E94: 2603035 | F94: 2603035 | G94: 0 | N94: 020736 | O94: Duck, geese or guinea cuts and edible offals (including livers), frozen
A95: export | B95: 030263 | C95: 2010 | D95: AOS | E95: 236699 | F95: 236699 | G95: 0 | N95: 020739 | O95: Poultry cuts of chickens, ducks, geese, turkeys and guineas and edible offal (except fatty livers of geese or ducks), fresh or chilled
A96: export | B96: 030264 | C96: 2010 | D96: AOS | E96: 2247747 | F96: 2247747 | G96: 0 | N96: 020741 | O96: Chicken cuts and edible offal (except livers), frozen
A97: export | B97: 030265 | C97: 2010 | D97: AOS | E97: 181175 | F97: 181175 | G97: 0 | N97: 020742 | O97: Turkey cuts and edible offal (except livers), frozen
A98: export | B98: 030266 | C98: 2010 | D98: AOS | E98: 100040 | F98: 100040 | G98: 0 | N98: 020743 | O98: Duck, goose or guinea cuts and edible offal (except livers), frozen
A99: export | B99: 030268 | C99: 2010 | D99: AOS | E99: 257790 | F99: 257790 | G99: 0 | N99: 020744 | O99: Cuts and offal, other than fatty livers, of ducks, fresh or chilled
A100: export | B100: 030269 | C100: 2010 | D100: AOS | E100: 4204003 | F100: 4204003 | G100: 0 | N100: 020745 | O100: Cuts and offal of ducks, frozen
A101: export | B101: 030270 | C101: 2010 | D101: AOS | E101: 2377393 | F101: 2377393 | G101: 0 | N101: 020750 | O101: Poultry livers, frozen
A102: export | B102: 030311 | C102: 2010 | D102: AOS | E102: 11522623 | F102: 11522623 | G102: 0 | N102: 020751 | O102: Geese, not cut in pieces, fresh or chilled
A103: export | B103: 030319 | C103: 2010 | D103: AOS | E103: 31048478 | F103: 31048478 | G103: 0 | N103: 020752 | O103: Geese, not cut in pieces, frozen
A104: export | B104: 030321 | C104: 2010 | D104: AOS | E104: 141943 | F104: 141943 | G104: 0 | N104: 020753 | O104: Fatty livers of geese, fresh or chilled
A105: export | B105: 030322 | C105: 2010 | D105: AOS | E105: 283002 | F105: 283002 | G105: 0 | N105: 020754 | O105: Cuts and offal, other than fatty livers, of geese, fresh or chilled
A106: export | B106: 030329 | C106: 2010 | D106: AOS | E106: 1771025 | F106: 1771025 | G106: 0 | N106: 020755 | O106: Cuts and offal of geese, frozen
A107: export | B107: 030331 | C107: 2010 | D107: AOS | E107: 1434974 | F107: 1434974 | G107: 0 | N107: 020760 | O107: Meat & edible meat offal of guinea fowls, frozen, fresh or chilled
A108: export | B108: 030333 | C108: 2010 | D108: AOS | E108: 1706157 | F108: 1706157 | G108: 0 | N108: 020810 | O108: Rabbit or hare meat and edible offal, fresh, chilled or frozen
A109: export | B109: 030339 | C109: 2010 | D109: AOS | E109: 2543168 | F109: 2543168 | G109: 0 | N109: 020820 | O109: Frogs' legs, fresh, chilled or frozen
A110: export | B110: 030341 | C110: 2010 | D110: AOS | E110: 9264590 | F110: 9264590 | G110: 0 | N110: 020830 | O110: Meat and edible meat offal of primates, fresh, chilled or frozen
A111: export | B111: 030342 | C111: 2010 | D111: AOS | E111: 720459 | F111: 720459 | G111: 0 | N111: 020840 | O111: Meat and edible meat offal of whales, dolphins and porpoises or of manatees and dugongs, fresh, chilled or frozen
A112: export | B112: 030343 | C112: 2010 | D112: AOS | E112: 146195 | F112: 146195 | G112: 0 | N112: 020850 | O112: Meat and edible meat offal of reptiles, fresh, chilled or frozen
A113: export | B113: 030345 | C113: 2010 | D113: AOS | E113: 10641 | F113: 10641 | G113: 0 | N113: 020860 | O113: Meat & edible meat offal of camels, fresh, chilled or frozen
A114: export | B114: 030346 | C114: 2010 | D114: AOS | E114: 7851 | F114: 7851 | G114: 0 | N114: 020890 | O114: Meat and edible meat offal, nesoi, fresh, chilled or frozen
A115: export | B115: 030349 | C115: 2010 | D115: AOS | E115: 10669320 | F115: 10669320 | G115: 0 | N115: 020900 | O115: Pig fat free of lean meat and poultry fat (not rendered or otherwise extracted), fresh, chilled, frozen, salted, in brine, dried or smoked
A116: export | B116: 030351 | C116: 2010 | D116: AOS | E116: 1276546 | F116: 1276546 | G116: 0 | N116: 020910 | O116: Pig fat, free of lean meat, fresh, chilled, frozen, salted, in brine, dried or smoked
A117: export | B117: 030352 | C117: 2010 | D117: AOS | E117: 58416184 | F117: 58416184 | G117: 0 | N117: 020990 | O117: Poultry fat, not rendered or otherwise extracted, fresh, chilled, frozen, salted, in brine, dried or smoked
A118: export | B118: 030361 | C118: 2010 | D118: AOS | E118: 111600 | F118: 111600 | G118: 0 | N118: 021011 | O118: Hams, shoulders and cuts thereof, of swine, bone in, salted, in brine, dried or smoked
A119: export | B119: 030362 | C119: 2010 | D119: AOS | E119: 236746 | F119: 236746 | G119: 0 | N119: 021012 | O119: Meat of swine, bellies (bacon etc.) and cuts thereof, salted, in brine, dried or smoked
A120: export | B120: 030371 | C120: 2010 | D120: AOS | E120: 6265168 | F120: 6265168 | G120: 0 | N120: 021019 | O120: Meat of swine, nesoi, salted, in brine, dried or smoked
A121: export | B121: 030372 | C121: 2010 | D121: AOS | E121: 2847 | F121: 2847 | G121: 0 | N121: 021020 | O121: Meat of bovine animals, salted, in brine, dried or smoked
A122: export | B122: 030373 | C122: 2010 | D122: AOS | E122: 385603 | F122: 385603 | G122: 0 | N122: 021090 | O122: Meat, nesoi, and edible meat offal, salted, in brine, dried, or smoked, including edible flours and meals of meat or meat offal
A123: export | B123: 030374 | C123: 2010 | D123: AOS | E123: 5116227 | F123: 5116227 | G123: 0 | N123: 021091 | O123: Meat and edible offal of primates, salted, in brine, dried or smoked; edible flours and meals thereof
A124: export | B124: 030375 | C124: 2010 | D124: AOS | E124: 2928491 | F124: 2928491 | G124: 0 | N124: 021092 | O124: Meat and edible offal of whales, dolphins, porpoises, manatees and dugongs, salted, in brine, dried or smoked; edible flour & meals thereof
A125: export | B125: 030376 | C125: 2010 | D125: AOS | E125: 51201 | F125: 51201 | G125: 0 | N125: 021093 | O125: Meat and edible offal of reptiles, salted, in brine, dried or smoked; edible flours and meals thereof
A126: export | B126: 030377 | C126: 2010 | D126: AOS | E126: 318409 | F126: 318409 | G126: 0 | N126: 021099 | O126: Meat and edible offal not elsewhere specified or included, salted, in brine, dried or smoked; edible flours and meals thereof
A127: export | B127: 030378 | C127: 2010 | D127: AOS | E127: 31294296 | F127: 31294296 | G127: 0 | N127: 030110 | O127: Fish, ornamental, live
A128: export | B128: 030379 | C128: 2010 | D128: AOS | E128: 16275352 | F128: 16275352 | G128: 0 | N128: 030111 | O128: Live ornamental freshwater fish
A129: export | B129: 030380 | C129: 2010 | D129: AOS | E129: 27187728 | F129: 27187728 | G129: 0 | N129: 030119 | O129: Live ornamental fish, other than freshwater
A130: export | B130: 030419 | C130: 2010 | D130: AOS | E130: 2216046 | F130: =IF(A130="import",E130*-1,E130) -> 2216046 | G130: =IF(OR(LEFT(TEXT(B130,"000000"),2)="99",LEFT(TEXT(B130,"000000"),2)="98"),1,0) -> 0 | N130: 030191 | O130: Trout (salmo trutta, salmo gairdneri, salmo clarki, salmo aguabonita, salmo gilae), live
A131: export | B131: 030421 | C131: 2010 | D131: AOS | E131: 75387 | F131: 75387 | G131: 0 | N131: 030192 | O131: Eels (anguilla spp.), live
A132: export | B132: 030422 | C132: 2010 | D132: AOS | E132: 22228 | F132: 22228 | G132: 0 | N132: 030193 | O132: Carp, live
A133: export | B133: 030429 | C133: 2010 | D133: AOS | E133: 46154821 | F133: 46154821 | G133: 0 | N133: 030194 | O133: Live bluefin tunas (thunnus thynnus)
A134: export | B134: 030491 | C134: 2010 | D134: AOS | E134: 18148 | F134: 18148 | G134: 0 | N134: 030195 | O134: Live southern bluefin tunas (thunnus maccoyii)
A135: export | B135: 030499 | C135: 2010 | D135: AOS | E135: 20545195 | F135: 20545195 | G135: 0 | N135: 030199 | O135: Fish, live, nesoi
A136: export | B136: 030510 | C136: 2010 | D136: AOS | E136: 247515 | F136: 247515 | G136: 0 | N136: 030211 | O136: Trout (salmo trutta, oncorhynchus-mykiss,-clarki,-aquabonita,-gilae,-apache,-chrysogaster), fresh or chilled, exc fillets, liver, roe & meat of 0304
A137: export | B137: 030520 | C137: 2010 | D137: AOS | E137: 1628361 | F137: 1628361 | G137: 0 | N137: 030212 | O137: Pacific salmon (oncorhynchus spp.), atlantic salmon (salmo salar) and danube salmon (hucho hucho), excluding fillets, liver and roe, fresh or chilled
A138: export | B138: 030530 | C138: 2010 | D138: AOS | E138: 884929 | F138: 884929 | G138: 0 | N138: 030213 | O138: Pacific salmon, fresh or chilled, excluding fillets, other meat portions, livers and roes
A139: export | B139: 030541 | C139: 2010 | D139: AOS | E139: 546817 | F139: 546817 | G139: 0 | N139: 030214 | O139: Atlantic and danube salmon, fresh or chilled, excluding fillets, other meat portions, livers and roes
A140: export | B140: 030542 | C140: 2010 | D140: AOS | E140: 34866 | F140: 34866 | G140: 0 | N140: 030219 | O140: Salmonidae, excluding fillets, livers and roes, nesoi, fresh or chilled
A141: export | B141: 030549 | C141: 2010 | D141: AOS | E141: 2021659 | F141: 2021659 | G141: 0 | N141: 030221 | O141: Halibut and greenland turbot (reinhardtius hippoglossoides, hippoglossus hippoglossus, hippoglossus stenolepis), no fillet, liver or roe, fresh, chill
A142: export | B142: 030551 | C142: 2010 | D142: AOS | E142: 274448 | F142: 274448 | G142: 0 | N142: 030222 | O142: Plaice (pleuronectes platessa), excluding fillets, livers and roes, fresh or chilled
A143: export | B143: 030559 | C143: 2010 | D143: AOS | E143: 3246944 | F143: 3246944 | G143: 0 | N143: 030223 | O143: Sole (solea spp.), excluding fillets, livers and roes, fresh or chilled
A144: export | B144: 030561 | C144: 2010 | D144: AOS | E144: 34607 | F144: 34607 | G144: 0 | N144: 030224 | O144: Turbots
A145: export | B145: 030562 | C145: 2010 | D145: AOS | E145: 306642 | F145: 306642 | G145: 0 | N145: 030229 | O145: Flatfish, nesoi, excluding fillets, livers and roes, fresh or chilled
A146: export | B146: 030563 | C146: 2010 | D146: AOS | E146: 34181 | F146: 34181 | G146: 0 | N146: 030231 | O146: Albacore or longfinned tunas (thunnus alalunga) except fillets, livers and roes, fresh or chilled
A147: export | B147: 030569 | C147: 2010 | D147: AOS | E147: 1433318 | F147: 1433318 | G147: 0 | N147: 030232 | O147: Yellowfin tunas (thunnus albacares), excluding fillets, livers and roes, fresh or chilled
A148: export | B148: 030611 | C148: 2010 | D148: AOS | E148: 16306131 | F148: 16306131 | G148: 0 | N148: 030233 | O148: Skipjack or stripe-bellied bonito tunas, excluding fillets, livers and roes, fresh or chilled
A149: export | B149: 030612 | C149: 2010 | D149: AOS | E149: 6548970 | F149: 6548970 | G149: 0 | N149: 030234 | O149: Bigeye tunas (thunnas obesus), fresh or chilled, excluding fillets, other meat portions, livers and roes
A150: export | B150: 030613 | C150: 2010 | D150: AOS | E150: 19668514 | F150: 19668514 | G150: 0 | N150: 030235 | O150: Bluefin tunas (thunnas thynnus), fresh or chilled, excluding fillets, other meat portions, livers and roes
A151: export | B151: 030614 | C151: 2010 | D151: AOS | E151: 6359530 | F151: 6359530 | G151: 0 | N151: 030236 | O151: Sourthern bluefin tunas (thunnas maccoyii), fresh or chilled, excluding fillets, other meat portions, livers and roes
A152: export | B152: 030619 | C152: 2010 | D152: AOS | E152: 331857 | F152: 331857 | G152: 0 | N152: 030239 | O152: Tunas, nesoi, excluding fillets, livers and roes, fresh or chilled
A153: export | B153: 030621 | C153: 2010 | D153: AOS | E153: 5484660 | F153: 5484660 | G153: 0 | N153: 030240 | O153: Herrings (clupea harengus, clupea pallasii), excluding fillets, livers and roes, fresh or chilled
A154: export | B154: 030622 | C154: 2010 | D154: AOS | E154: 63599375 | F154: 63599375 | G154: 0 | N154: 030241 | O154: Herrings, fresh or chilled, excluding fillets, other meat portions, livers and roes
A155: export | B155: 030623 | C155: 2010 | D155: AOS | E155: 8425311 | F155: 8425311 | G155: 0 | N155: 030242 | O155: Anchovies, excl. fillets, livers & roes, fresh or chilled, scaled, in immediate containers weighing with their contents <6.8 kg
A156: export | B156: 030624 | C156: 2010 | D156: AOS | E156: 459681 | F156: 459681 | G156: 0 | N156: 030243 | O156: Sardines, sardinella, brisling or sprats, fresh or chilled, excluding fillets, other meat portions, livers and roes
A157: export | B157: 030629 | C157: 2010 | D157: AOS | E157: 252070 | F157: 252070 | G157: 0 | N157: 030244 | O157: Mackerel, excl. fillets, livers & roes, fresh or chilled
A158: export | B158: 030710 | C158: 2010 | D158: AOS | E158: 7050671 | F158: 7050671 | G158: 0 | N158: 030245 | O158: Jack & horse mackerel, excl. fillets, livers & roes, fresh or chilled, scaled
A159: export | B159: 030721 | C159: 2010 | D159: AOS | E159: 5578401 | F159: 5578401 | G159: 0 | N159: 030246 | O159: Cobia, excl. fillets, livers and roes, fresh or chilled, scaled
A160: export | B160: 030729 | C160: 2010 | D160: AOS | E160: 9159944 | F160: 9159944 | G160: 0 | N160: 030247 | O160: Swordfish, fresh or chilled, excluding livers and roes
A161: export | B161: 030731 | C161: 2010 | D161: AOS | E161: 273635 | F161: 273635 | G161: 0 | N161: 030250 | O161: Cod (gadus morhua, gadus ogac, gadus macrocephalus), excluding fillets, livers and roes, fresh or chilled
A162: export | B162: 030739 | C162: 2010 | D162: AOS | E162: 565272 | F162: 565272 | G162: 0 | N162: 030251 | O162: Cod, fresh or chilled, excluding fillets, other meat portions, livers and roes
A163: export | B163: 030741 | C163: 2010 | D163: AOS | E163: 273135 | F163: 273135 | G163: 0 | N163: 030252 | O163: Haddock, fresh or chilled, excluding fillets, other meat portions, livers and roes
A164: export | B164: 030749 | C164: 2010 | D164: AOS | E164: 31838081 | F164: 31838081 | G164: 0 | N164: 030253 | O164: Coalfish, fresh or chilled, excluding fillets, other meat portions, livers and roes
A165: export | B165: 030751 | C165: 2010 | D165: AOS | E165: 10563 | F165: 10563 | G165: 0 | N165: 030254 | O165: Hake, excl. fillets, livers and roes, fresh or chilled, scaled
A166: export | B166: 030759 | C166: 2010 | D166: AOS | E166: 1342179 | F166: 1342179 | G166: 0 | N166: 030255 | O166: Alaska pollack, excl. fillets, livers,roes, fresh or chilled, scaled
A167: export | B167: 030760 | C167: 2010 | D167: AOS | E167: 44997 | F167: 44997 | G167: 0 | N167: 030256 | O167: Blue whitings, excl. fillets, livers & roes, fresh or chilled, scaled
A168: export | B168: 030791 | C168: 2010 | D168: AOS | E168: 25615940 | F168: 25615940 | G168: 0 | N168: 030259 | O168: Bregmacerotidae et al fish, nesi, excl. fillets, livers and roes, fresh or chilled, scaled
A169: export | B169: 030799 | C169: 2010 | D169: AOS | E169: 10045530 | F169: 10045530 | G169: 0 | N169: 030261 | O169: Sardines (sardina pilchardus, sardinops spp.), sardinella (sardinella spp.), brisling or sprats (sprattus sprattus) no fillet, liver, roe, fresh/chill
A170: export | B170: 040110 | C170: 2010 | D170: AOS | E170: 1638009 | F170: 1638009 | G170: 0 | N170: 030262 | O170: Haddock (melanogrammus aeglefinus), excluding fillets, livers and roes, fresh or chilled
A171: export | B171: 040120 | C171: 2010 | D171: AOS | E171: 4043231 | F171: 4043231 | G171: 0 | N171: 030263 | O171: Atlantic pollock (pollachius virens), excluding fillets, livers and roes, fresh or chilled
A172: export | B172: 040130 | C172: 2010 | D172: AOS | E172: 315660 | F172: 315660 | G172: 0 | N172: 030264 | O172: Mackerel (scomber scombrus, scomber australasicus, scomber japonicus), excluding fillets, livers and roes, fresh or chilled
A173: export | B173: 040210 | C173: 2010 | D173: AOS | E173: 418063627 | F173: 418063627 | G173: 0 | N173: 030265 | O173: Dogfish and other sharks, excluding fillets, livers and roes, fresh or chilled
A174: export | B174: 040221 | C174: 2010 | D174: AOS | E174: 34537207 | F174: 34537207 | G174: 0 | N174: 030266 | O174: Eels (anguilla spp.), excluding fillets, livers and roes, fresh or chilled
A175: export | B175: 040229 | C175: 2010 | D175: AOS | E175: 18875790 | F175: 18875790 | G175: 0 | N175: 030267 | O175: Swordfish(xiphias gladius), fresh or chilled, excluding fish fillets and other fish meat of heading 03.04.
A176: export | B176: 040291 | C176: 2010 | D176: AOS | E176: 22423275 | F176: 22423275 | G176: 0 | N176: 030268 | O176: Toothfish (dissostichus spp.), fresh or chilled, excluding fish fillets and other fish meat of heading 03.04.
A177: export | B177: 040299 | C177: 2010 | D177: AOS | E177: 3509500 | F177: 3509500 | G177: 0 | N177: 030269 | O177: Fish, nesoi, excluding fillets, livers and roes, fresh or chilled
A178: export | B178: 040310 | C178: 2010 | D178: AOS | E178: 14792056 | F178: 14792056 | G178: 0 | N178: 030270 | O178: Fish livers and roes, fresh or chilled
A179: export | B179: 040390 | C179: 2010 | D179: AOS | E179: 3986769 | F179: 3986769 | G179: 0 | N179: 030271 | O179: Tilapias, excl. fillets, livers and roes, fresh or chilled, scaled
A180: export | B180: 040410 | C180: 2010 | D180: AOS | E180: 79786125 | F180: 79786125 | G180: 0 | N180: 030272 | O180: Catfish, excl. fillets, livers and roes, fresh or chilled, scaled
A181: export | B181: 040490 | C181: 2010 | D181: AOS | E181: 46399292 | F181: 46399292 | G181: 0 | N181: 030273 | O181: Carp, excl. fillets, livers and roes, fresh or chilled, scaled
A182: export | B182: 040510 | C182: 2010 | D182: AOS | E182: 63020633 | F182: 63020633 | G182: 0 | N182: 030274 | O182: Eels, fresh or chilled, excluding fillets, other meat portions, livers and roes
A183: export | B183: 040520 | C183: 2010 | D183: AOS | E183: 794750 | F183: 794750 | G183: 0 | N183: 030279 | O183: Fish beginning 0302.7, nesi, excl. fillets, livers and roes, fresh or chilled, scaled
A184: export | B184: 040590 | C184: 2010 | D184: AOS | E184: 14407135 | F184: 14407135 | G184: 0 | N184: 030281 | O184: Dogfish and other sharks, fresh or chilled, excluding fillets, livers, roes and fish meat of 0304
A185: export | B185: 040610 | C185: 2010 | D185: AOS | E185: 40459653 | F185: 40459653 | G185: 0 | N185: 030282 | O185: Rays & skates, excl. fillets, livers & roes, fresh or chilled, not scaled, or scaled in immediate containers over 6.8 kg
A186: export | B186: 040620 | C186: 2010 | D186: AOS | E186: 47820985 | F186: 47820985 | G186: 0 | N186: 030283 | O186: Toothfish excl. fillets, livers & roes, fresh or chilled, not scaled, or scaled in immediate containers over 6.8 kg
A187: export | B187: 040630 | C187: 2010 | D187: AOS | E187: 31984376 | F187: 31984376 | G187: 0 | N187: 030284 | O187: Seabass, excl. fillets, livers and roes, fresh or chilled, scaled
A188: export | B188: 040640 | C188: 2010 | D188: AOS | E188: 131649 | F188: 131649 | G188: 0 | N188: 030285 | O188: Seabream, excl. fillets, livers and roes, fresh or chilled, scaled
A189: export | B189: 040690 | C189: 2010 | D189: AOS | E189: 91023140 | F189: 91023140 | G189: 0 | N189: 030289 | O189: Fish, nesi, excl. fillets, livers and roes, fresh or chilled, scaled
A190: export | B190: 040700 | C190: 2010 | D190: AOS | E190: 114762931 | F190: 114762931 | G190: 0 | N190: 030290 | O190: Fish roes and livers, whether or not sturgeon, fresh or chilled
A191: export | B191: 040811 | C191: 2010 | D191: AOS | E191: 4299376 | F191: 4299376 | G191: 0 | N191: 030310 | O191: Pacific salmon (oncorhynchus spp.), excluding fillets, livers and roes, frozen
A192: export | B192: 040819 | C192: 2010 | D192: AOS | E192: 2563512 | F192: 2563512 | G192: 0 | N192: 030311 | O192: Sockeye salmon (red salmon) (orncorhynchus nerka), frozen, excluding fillets, other meat portions, livers and roes
A193: export | B193: 040891 | C193: 2010 | D193: AOS | E193: 11601266 | F193: 11601266 | G193: 0 | N193: 030312 | O193: Pacific salmon, other than sockeye, frozen, excluding fillets, other meat portions, livers and roes
A194: export | B194: 040899 | C194: 2010 | D194: AOS | E194: 3736156 | F194: =IF(A194="import",E194*-1,E194) -> 3736156 | G194: =IF(OR(LEFT(TEXT(B194,"000000"),2)="99",LEFT(TEXT(B194,"000000"),2)="98"),1,0) -> 0 | N194: 030313 | O194: Atlantic salmon and danube salmon, frozen, excluding livers and roes
A195: export | B195: 040900 | C195: 2010 | D195: AOS | E195: 8925183 | F195: 8925183 | G195: 0 | N195: 030314 | O195: Trout, frozen, excluding fillets, other meat portions, livers and roes
A196: export | B196: 041000 | C196: 2010 | D196: AOS | E196: 692060 | F196: 692060 | G196: 0 | N196: 030319 | O196: Pacific salmon, other than sockeye, frozen, excluding fillets, other meat portions, livers and roes
A197: export | B197: 050100 | C197: 2010 | D197: AOS | E197: 1589319 | F197: 1589319 | G197: 0 | N197: 030321 | O197: Trout (salmo trutta, oncorhynchus-mykiss,-clarki,-clarki,-aguabonita,-gilae,-apache,-chrysogaster), frozen, exc fillets, livers, roes, & meat of 0304
A198: export | B198: 050210 | C198: 2010 | D198: AOS | E198: 96874 | F198: 96874 | G198: 0 | N198: 030322 | O198: Atlantic salmon (salmo salar) and danube salmon (hucho hucho), excluding fillets, livers and roes, frozen
A199: export | B199: 050290 | C199: 2010 | D199: AOS | E199: 619170 | F199: 619170 | G199: 0 | N199: 030323 | O199: Tilapias, frozen, excluding fillets, other meat portions, livers and roes
A200: export | B200: 050400 | C200: 2010 | D200: AOS | E200: 75240455 | F200: 75240455 | G200: 0 | N200: 030324 | O200: Catfish, frozen, excluding fillets, other meat portions, livers and roes
... 4300 more rows

Sheet DB2 (hidden)
C1: 15 | D1: =DB2_column_lookup+1999 -> 2014
B7: =IF(DB2_PIVOT!$B$1="import","U.S. imports from ",IF(DB2_PIVOT!$B$1="export","U.S. exports to ","U.S. total trade with ")) -> U.S. exports to
B8: Mexico
B9: =DB2_tradetype&DB2_ctryselection&" by product sector, "&C12&"-"&E12 -> U.S. exports to Mexico by product sector, 2012-2014
C10: =HLOOKUP($C$1+1,DB2_PIVOT!$B$96:$S$97,2,FALSE) -> Q | D10: =HLOOKUP($C$1+2,DB2_PIVOT!$B$96:$S$97,2,FALSE) -> R | E10: =HLOOKUP($C$1+3,DB2_PIVOT!$B$96:$S$97,2,FALSE) -> S
B11: Sector | C11: =CONCATENATE(B7,IF(LEN(DB2_ctryselection)>0,DB2_ctryselection,"all sources")) -> U.S. exports to Mexico | F11: =CONCATENATE("Change in ",DB2_tradetype,IF(LEN(DB2_ctryselection)>0,DB2_ctryselection,"all sources")) -> Change in U.S. exports to Mexico | I11: =CONCATENATE("Trading partner (",IF(LEN(DB2_ctryselection)>0,DB2_ctryselection,"all partners"),") relative to overall ",SUBSTITUTE(SUBSTITUTE(SUBSTITUTE(DB2_tradetype," to ","")," from ","")," with ",""),", by sector") -> Trading partner (Mexico) relative to overall U.S. exports, by sector
C12: =DB2_year-2 -> 2012 | D12: =DB2_year-1 -> 2013 | E12: =DB2_year -> 2014 | F12: =CONCATENATE(C12,"-",RIGHT(E12,2)) -> 2012-14 | G12: =CONCATENATE(C12,"-",RIGHT(D12,2)) -> 2012-13 | H12: =CONCATENATE(D12,"-",RIGHT(E12,2)) -> 2013-14 | I12: =C12 -> 2012 | J12: =D12 -> 2013 | K12: 2014
C13: =CONCATENATE("Value (",IF(SUM($C$28:$E$28)=3,"millions","thousands"),")") -> Value (millions) | F13: Percentage change (percent) | I13: Relative importance (see legend)
A14: 1 | B14: Agricultural products | C14: =INDIRECT("DB2_PIVOT!"&C$10&$A14+5)/IF(SUM($C$28:$E$28)=3,1000000,1000) -> 19496.81141 | D14: =INDIRECT("DB2_PIVOT!"&D$10&$A14+5)/IF(SUM($C$28:$E$28)=3,1000000,1000) -> 18883.54271 | E14: 20087.90904 | F14: =IF(C14>0,(E14/C14-1)*100,"---") -> 3.03176567 | G14: =IF(C14>0,(D14/C14-1)*100,"---") -> -3.145482008 | H14: =IF(D14>0,(E14/D14-1)*100,"---") -> 6.377862186 | I14: =INDIRECT("DB2_PIVOT!"&C$10&$A14+80) -> - | J14: =INDIRECT("DB2_PIVOT!"&D$10&$A14+80) -> - | K14: -
A15: 2 | B15: Forest products | C15: =INDIRECT("DB2_PIVOT!"&C$10&$A15+5)/IF(SUM($C$28:$E$28)=3,1000000,1000) -> 5528.377814 | D15: 5733.408053 | E15: 5828.526836 | F15: =IF(C15>0,(E15/C15-1)*100,"---") -> 5.429242214 | G15: =IF(C15>0,(D15/C15-1)*100,"---") -> 3.708687175 | H15: =IF(D15>0,(E15/D15-1)*100,"---") -> 1.659026919 | I15: =INDIRECT("DB2_PIVOT!"&C$10&$A15+80) -> ~/- | J15: ~/- | K15: ~/-
A16: 3 | B16: Chemicals and related products | C16: 32325.95866 | D16: 33716.6139 | E16: 35774.61698 | F16: 10.66838682 | G16: 4.301976778 | H16: 6.103824916 | I16: ~/- | J16: ~/- | K16: ~/-
A17: 4 | B17: Energy-related products | C17: 24128.42841 | D17: 23527.96137 | E17: 24116.05148 | F17: -0.05129608024 | G17: -2.488628897 | H17: 2.499537018 | I17: ++ | J17: + | K17: ~/-
A18: 5 | B18: Textiles and apparel | C18: 4972.784246 | D18: 5360.881909 | E18: 5734.551362 | F18: 15.31872445 | G18: 7.804433971 | H18: 6.970298159 | I18: +++ | J18: +++ | K18: +++
A19: 6 | B19: Footwear | C19: 97.054905 | D19: 120.956924 | E19: 120.014412 | F19: 23.6562047 | G19: 24.62731688 | H19: -0.779212937 | I19: - - | J19: - - | K19: - -
A20: 7 | B20: Minerals and metals | C20: 19599.61633 | D20: 20898.46792 | E20: 23070.24775 | F20: 17.70764979 | G20: 6.626923533 | H20: 10.39205286 | I20: - | J20: - | K20: ~/-
A21: 8 | B21: Machinery | C21: 19676.0312 | D21: 21212.23623 | E21: 23167.56101 | F21: 17.74509186 | G21: 7.807494371 | H21: 9.217909704 | I21: ~/- | J21: + | K21: +
A22: 9 | B22: Transportation equipment | C22: 35660.54251 | D22: 39145.52649 | E22: 41365.86819 | F22: 15.99898732 | G22: 9.772661126 | H22: 5.672019 | I22: - | J22: - | K22: -
A23: 10 | B23: Electronic products | C23: 45042.16645 | D23: 47931.28201 | E23: 50651.40151 | F23: 12.45329765 | G23: 6.414246436 | H23: 5.675040157 | I23: ++ | J23: ++ | K23: ++
A24: 11 | B24: Miscellaneous manufactures | C24: 2764.09579 | D24: 2654.941141 | E24: 3018.383568 | F24: 9.199673132 | G24: -3.949018324 | H24: 13.68928378 | I24: - - - | J24: - - - | K24: - - -
A25: 12 | B25: Special provisions | C25: 6615.19309 | D25: 6893.250848 | E25: =INDIRECT("DB2_PIVOT!"&E$10&$A25+5)/IF(SUM($C$28:$E$28)=3,1000000,1000) -> 7391.049239 | F25: 11.72839762 | G25: 4.20332036 | H25: 7.221533091 | I25: ++ | J25: ++ | K25: +
A26: 13 | B26: ="Total "&DB2_tradetype&IF(LEN(DB2_ctryselection)>0,DB2_ctryselection,"all sources") -> Total U.S. exports to Mexico | C26: 215907.0608 | D26: 226079.0695 | E26: 240326.1814 | F26: 11.31001481 | G26: 4.711290421 | H26: 6.301827014
C27: =INDIRECT("DB2_PIVOT!"&C$10&($A26+5)) -> 2.159070608e+11 | D27: =INDIRECT("DB2_PIVOT!"&D$10&($A26+5)) -> 226079069503 | E27: 240326181377
C28: =IF(C27>1000000000,1,0) -> 1 | D28: =IF(D27>1000000000,1,0) -> 1 | E28: 1
B30: (Change sector by selecting cells in Column B above, change year using slider)
B31: =CONCATENATE(LEFT(DB2_tradetype,FIND(CHAR(1),SUBSTITUTE(DB2_tradetype," ",CHAR(1),LEN(TRIM(DB2_tradetype))-LEN(SUBSTITUTE(TRIM(DB2_tradetype)," ",""))))),IF(LEFT(DB2_sectorfocus,5)<>"Total",CONCATENATE("of ",LOWER(DB2_sectorfocus)," "),"(all sectors) "),IF(LEFT(DB2_tradetype,6)="U.S. e","to ",IF(LEFT(DB2_tradetype,6)="U.S. i","from ","with ")),IF(LEN(DB2_ctryselection)>0,DB2_ctryselection&" and other countries close in rank, ","all sources, "),E12) -> U.S. exports of agricultural products to Mexico and other countries close in rank, 2014 | G31: =C11&", "&DB2_year -> U.S. exports to Mexico, 2014
B32: Agricultural products | C32: =MATCH(DB2_ctryselection,DB2_PIVOT!A145:A384,0) -> 3
B33: Country | C33: =CONCATENATE("Rank in ",TEXT(D1,"0000")) -> Rank in 2014 | D33: =CONCATENATE("Value (",IF(HLOOKUP($D$1,DS2_values,$C$34+1,FALSE)>100000000,"millions","thousands"),")") -> Value (millions) | E33: Change in rank from previous year
B34: =HLOOKUP($D$1,DB2_countrylabels,C34+1,FALSE) -> Canada | C34: =IF(AND($C$32>5,$C$32<237),$C$32-ROW($C$39)+ROW(),IF($C$32<=5,$C$32+(ROW()-ROW($C$34)+(1-$C$32)),$C$32+(ROW()-ROW($C$44)+(241-$C$33)))) -> 1 | D34: =IF(ISERROR(HLOOKUP($D$1,DS2_values,C34+1,FALSE)),"---",HLOOKUP($D$1,DS2_values,C34+1,FALSE)/(IF(HLOOKUP($D$1,DS2_values,$C$34+1,FALSE)>100000000,1000000,1000))) -> 27257.78835 | E34: =MATCH(B34,INDIRECT("DB2_PIVOT!"&HLOOKUP($D$1,DB2_countrylabels,243,FALSE)),0)-C34 -> 1 | I34: =IF(DB2_sectorfocus=B14,E14,0) -> 20087.90904
B35: China | C35: =IF(AND($C$32>5,$C$32<237),$C$32-ROW($C$39)+ROW(),IF($C$32<=5,$C$32+(ROW()-ROW($C$34)+(1-$C$32)),$C$32+(ROW()-ROW($C$44)+(241-$C$33)))) -> 2 | D35: =IF(ISERROR(HLOOKUP($D$1,DS2_values,C35+1,FALSE)),"---",HLOOKUP($D$1,DS2_values,C35+1,FALSE)/(IF(HLOOKUP($D$1,DS2_values,$C$34+1,FALSE)>100000000,1000000,1000))) -> 26078.48695 | E35: -1 | I35: 0
B36: Mexico | C36: 3 | D36: 20087.90904 | E36: 0 | I36: 0
B37: Japan | C37: 4 | D37: 14401.4524 | E37: 0 | I37: 0
B38: Korea | C38: 5 | D38: 7523.819567 | E38: 0 | I38: 0
B39: Hong Kong | C39: 6 | D39: 4347.03628 | E39: 0 | I39: 0
B40: Taiwan | C40: 7 | D40: 3638.952103 | E40: 0 | I40: 0
B41: Indonesia | C41: 8 | D41: 2947.319606 | E41: 0 | I41: 0
B42: Philippines | C42: 9 | D42: 2873.470158 | E42: 0 | I42: 0
B43: Netherlands | C43: 10 | D43: 2848.779181 | E43: 1 | I43: 0
B44: Vietnam | C44: 11 | D44: 2587.253051 | E44: 1 | I44: 0
B45: All other sources | D45: =D46-SUM(D34:D44) -> 50255.24473
B46: =CONCATENATE(LEFT(DB2_tradetype,FIND(CHAR(1),SUBSTITUTE(DB2_tradetype," ",CHAR(1),LEN(TRIM(DB2_tradetype))-LEN(SUBSTITUTE(TRIM(DB2_tradetype)," ",""))))),IF(LEFT(DB2_sectorfocus,5)<>"Total",CONCATENATE("of ",LOWER(DB2_sectorfocus)," "),"(all sectors) ")) -> U.S. exports of agricultural products | D46: =IF(ISERROR(HLOOKUP($D$1,DS2_values,242,FALSE)),"---",HLOOKUP($D$1,DS2_values,242,FALSE)/(IF(HLOOKUP($D$1,DS2_values,$C$34+1,FALSE)>100000000,1000000,1000))) -> 164847.5114 | E46: 237

Sheet DB2_PIVOT (hidden)
A1: Type | B1: export
A2: Country | B2: Mexico
A4: Sum of Value | B4: Column Labels
A5: Row Labels | B5: 1997 | C5: 1998 | D5: 1999 | E5: 2000 | F5: 2001 | G5: 2002 | H5: 2003 | I5: 2004 | J5: 2005 | K5: 2006 | L5: 2007 | M5: 2008 | N5: 2009 | O5: 2010 | P5: 2011 | Q5: 2012 | R5: 2013 | S5: 2014 | T5: Grand Total
A6: 1 | B6: 5445740995 | C6: 6455368563 | D6: 5975720804 | E6: 7048878347 | F6: 7838341644 | G6: 7830569344 | H6: 8392645471 | I6: 9253769104 | J6: 10006819732 | K6: 11287220576 | L6: 13154043838 | M6: 16476579435 | N6: 13163781887 | O6: 14938110764 | P6: 18880442370 | Q6: 19496811406 | R6: 18883542711 | S6: 20087909041 | T6: 214616296032
A7: 2 | B7: 2556695532 | C7: 2864927122 | D7: 3144353896 | E7: 3804863901 | F7: 3469067362 | G7: 3255434808 | H7: 3395014844 | I7: 3658097319 | J7: 4055802598 | K7: 4462152647 | L7: 4531085904 | M7: 5035761896 | N7: 4382928599 | O7: 5197505347 | P7: 5355496155 | Q7: 5528377814 | R7: 5733408053 | S7: 5828526836 | T7: 76259500633
A8: 3 | B8: 9099566464 | C8: 10051699197 | D8: 11005234526 | E8: 13687158077 | F8: 12804560291 | G8: 13031213385 | H8: 13925146189 | I8: 16585675136 | J8: 18938375011 | K8: 21353963830 | L8: 22066233292 | M8: 23743007047 | N8: 21231385563 | O8: 25099029657 | P8: 29075890951 | Q8: 32325958665 | R8: 33716613900 | S8: 35774616980 | T8: 363515328161
A9: 4 | B9: 2040571712 | C9: 1848005434 | D9: 2326191564 | E9: 4377836558 | F9: 3341164623 | G9: 3316460652 | H9: 2962325686 | I9: 3469413873 | J9: 5518527944 | K9: 5936588992 | L9: 7037563364 | M9: 11344152459 | N9: 7965402408 | O9: 14549116086 | P9: 23965078103 | Q9: 24128428415 | R9: 23527961373 | S9: 24116051477 | T9: 171770840723
A10: 5 | B10: 3921224321 | C10: 4805594925 | D10: 5634179237 | E10: 6475768424 | F10: 5534769691 | G10: 5246158649 | H10: 4982869010 | I10: 5057602499 | J10: 5097561976 | K10: 4915075873 | L10: 4270203918 | M10: 4066059795 | N10: 3528985257 | O10: 4209882659 | P10: 4753923717 | Q10: 4972784246 | R10: 5360881909 | S10: 5734551362 | T10: 88568077468
A11: 6 | B11: 105385871 | C11: 101240803 | D11: 110249906 | E11: 161728568 | F11: 129236417 | G11: 106804466 | H11: 94078016 | I11: 63004601 | J11: 52023794 | K11: 66876804 | L11: 73894797 | M11: 115828847 | N11: 79212781 | O11: 108538951 | P11: 105598602 | Q11: 97054905 | R11: 120956924 | S11: 120014412 | T11: 1811729465
A12: 7 | B12: 5571503304 | C12: 6217367586 | D12: 6730513736 | E12: 8724147991 | F12: 7325018258 | G12: 7114429893 | H12: 6913736735 | I12: 8547768494 | J12: 9954270285 | K12: 12408939872 | L12: 12716004733 | M12: 14416700439 | N12: 10490083749 | O12: 13840733621 | P12: 17479121776 | Q12: 19599616331 | R12: 20898467918 | S12: 23070247752 | T12: 212018672473
A13: 8 | B13: 8373981965 | C13: 9639481067 | D13: 1.076682456e+10 | E13: 12281287235 | F13: 1.091537759e+10 | G13: 9799550837 | H13: 9857010002 | I13: 1.101459622e+10 | J13: 1.267771692e+10 | K13: 1.386258764e+10 | L13: 1.336061061e+10 | M13: 1.464836759e+10 | N13: 1.257580846e+10 | O13: 1.444017707e+10 | P13: 1.681383074e+10 | Q13: 1.96760312e+10 | R13: 2.121223623e+10 | S13: 2.316756101e+10 | T13: 2.45083037e+11
A14: 9 | B14: 1.243834402e+10 | C14: 1.33937878e+10 | D14: 1.312060905e+10 | E14: 1.787929841e+10 | F14: 1.76093431e+10 | G14: 1.677487314e+10 | H14: 1.547394605e+10 | I14: 1.766652767e+10 | J14: 1.900767066e+10 | K14: 2.174752201e+10 | L14: 2.303846498e+10 | M14: 2.345803395e+10 | N14: 1.87787943e+10 | O14: 2.490816414e+10 | P14: 3.036172351e+10 | Q14: 3.566054251e+10 | R14: 3.914552649e+10 | S14: 4.136586819e+10 | T14: 4.0182904e+11
A15: 10 | B15: 1.784224767e+10 | C15: 1.902896481e+10 | D15: 2.300853929e+10 | E15: 3.102947735e+10 | F15: 2.726355165e+10 | G15: 2.600662899e+10 | H15: 2.645516508e+10 | I15: 3.002860949e+10 | J15: 2.90750299e+10 | K15: 3.16234697e+10 | L15: 2.886103969e+10 | M15: 3.021802028e+10 | N15: 3.030983689e+10 | O15: 3.874724953e+10 | P15: 4.278728495e+10 | Q15: 4.504216645e+10 | R15: 4.793128201e+10 | S15: 5.065140151e+10 | T15: 5.759099652e+11
A16: 11 | B16: 1140011948 | C16: 1220803398 | D16: 1383935771 | E16: 1621058423 | F16: 1269658177 | G16: 1327576456 | H16: 1448279506 | I16: 1633106638 | J16: 1671984966 | K16: 2063077752 | L16: 2710288406 | M16: 2937097364 | N16: 2531546081 | O16: 2407447440 | P16: 2580124503 | Q16: 2764095790 | R16: 2654941141 | S16: 3018383568 | T16: 3.638341733e+10
A17: 12 | B17: 2843036639 | C17: 3382846765 | D17: 3837685845 | E17: 4629374685 | F17: 4008986198 | G17: 3720912361 | H17: 3557202915 | I17: 3797113804 | J17: 3993130603 | K17: 4439607352 | L17: 4721828270 | M17: 5078982841 | N17: 3959913379 | O17: 5218690277 | P17: 6130221906 | Q17: 6615193090 | R17: 6893250848 | S17: 7391049239 | T17: 84219027017
A18: Grand Total | B18: 71378310439 | C18: 79010087472 | D18: 8.704403818e+10 | E18: 111720877976 | F18: 1.01509075e+11 | G18: 9.753061298e+10 | H18: 97457419506 | I18: 110775284845 | J18: 120048914393 | K18: 134167083053 | L18: 136541261807 | M18: 151538591944 | N18: 1.289976794e+11 | O18: 163664645537 | P18: 1.982887373e+11 | Q18: 2.159070608e+11 | R18: 226079069503 | S18: 240326181377 | T18: 2471984931487
A23: =IF($B$1="import","IMPORT ",IF($B$1="export","EXPORT ","TOTAL TRADE "))&"SHARES OVERALL BY SECTOR" -> EXPORT SHARES OVERALL BY SECTOR
A24: Sector | B24: 1997 | C24: 1998 | D24: 1999 | E24: 2000 | F24: 2001 | G24: 2002 | H24: 2003 | I24: 2004 | J24: 2005 | K24: 2006 | L24: 2007 | M24: 2008 | N24: 2009 | O24: 2010 | P24: 2011 | Q24: 2012 | R24: 2013 | S24: 2014 | Y24: IMPORTS | AT24: EXPORTS | BO24: TOTAL TRADE
A25: 1 | B25: =IF($B$1="import",Y25,IF($B$1="export",AT25,BO25)) -> 9.767016272 | C25: =IF($B$1="import",Z25,IF($B$1="export",AU25,BP25)) -> 8.979041317 | D25: 8.246242691 | E25: 7.829898687 | F25: 8.455796178 | G25: 8.69751129 | H25: 9.255400808 | I25: 8.482113496 | J25: 7.873065614 | K25: 7.678265846 | L25: 8.522483189 | M25: 9.583674424 | N25: 10.06690205 | O25: 9.816093112 | P25: 10.14907671 | Q25: 9.971489166 | R25: 9.98076624 | S25: 10.15419206 | Y25: 5.324573337 | Z25: 5.233338836 | AA25: 4.881374411 | AB25: 4.323808104 | AC25: 4.646568533 | AD25: 4.809022817 | AE25: 4.869003646 | AF25: 4.596592806 | AG25: 4.404424042 | AH25: 4.421529045 | AI25: 4.547987358 | AJ25: 4.614131441 | AK25: 5.632377263 | AL25: 5.131950393 | AM25: 5.270661969 | AN25: 5.417681236 | AO25: 5.584656689 | AP25: 5.80695007 | AT25: 9.767016272 | AU25: 8.979041317 | AV25: 8.246242691 | AW25: 7.829898687 | AX25: 8.455796178 | AY25: 8.69751129 | AZ25: 9.255400808 | BA25: 8.482113496 | BB25: 7.873065614 | BC25: 7.678265846 | BD25: 8.522483189 | BE25: 9.583674424 | BF25: 10.06690205 | BG25: 9.816093112 | BH25: 10.14907671 | BI25: 9.971489166 | BJ25: 9.98076624 | BK25: 10.15419206 | BO25: 7.285411688 | BP25: 6.832008812 | BQ25: 6.238656859 | BR25: 5.693762522 | BS25: 6.133309774 | BT25: 6.260829433 | BU25: 6.469811913 | BV25: 5.984346935 | BW25: 5.622513133 | BX25: 5.589369795 | BY25: 6.030842173 | BZ25: 6.51429435 | CA25: 7.42485714 | CB25: 7.007887782 | CC25: 7.230386114 | CD25: 7.259341505 | CE25: 7.389287216 | CF25: 7.585271347
A26: =1+A25 -> 2 | B26: =IF($B$1="import",Y26,IF($B$1="export",AT26,BO26)) -> 3.829992326 | C26: 3.576206155 | D26: 3.554012559 | E26: 3.49663619 | F26: 3.366656444 | G26: 3.419836643 | H26: 3.395411745 | I26: 3.264280588 | J26: 3.192677807 | K26: 3.011349049 | L26: 2.946195871 | M26: 2.809363657 | N26: 2.981122847 | O26: 2.948738936 | P26: 2.755386267 | Q26: 2.576949004 | R26: 2.585141289 | S26: 2.542734733 | Y26: 3.503733828 | Z26: 3.503432973 | AA26: 3.494742871 | AB26: 3.139865142 | AC26: 3.211971813 | AD26: 3.185115657 | AE26: 3.079239692 | AF26: 3.238990009 | AG26: 2.992889551 | AH26: 2.719007714 | AI26: 2.385034694 | AJ26: 2.016045559 | AK26: 2.022292891 | AL26: 1.869272202 | AM26: 1.642875452 | AN26: 1.628567537 | AO26: 1.763240585 | AP26: 1.794835017 | AT26: 3.829992326 | AU26: 3.576206155 | AV26: 3.554012559 | AW26: 3.49663619 | AX26: 3.366656444 | AY26: 3.419836643 | AZ26: 3.395411745 | BA26: 3.264280588 | BB26: 3.192677807 | BC26: 3.011349049 | BD26: 2.946195871 | BE26: 2.809363657 | BF26: 2.981122847 | BG26: 2.948738936 | BH26: 2.755386267 | BI26: 2.576949004 | BJ26: 2.585141289 | BK26: 2.542734733 | BO26: 3.647740219 | BP26: 3.534492648 | BQ26: 3.518650406 | BR26: 3.279268293 | BS26: 3.272345212 | BT26: 3.272751118 | BU26: 3.194626151 | BV26: 3.248022802 | BW26: 3.063049552 | BX26: 2.823839067 | BY26: 2.594399753 | BZ26: 2.319380016 | CA26: 2.409861679 | CB26: 2.301584394 | CC26: 2.089785857 | CD26: 2.0121139 | CE26: 2.100635976 | CF26: 2.100777492
A27: =1+A26 -> 3 | B27: 11.59910058 | C27: 11.68757034 | D27: 12.00226489 | E27: 12.26583816 | F27: 12.8818011 | G27: 13.68465342 | H27: 14.61495007 | I27: 15.3774822 | J27: 15.21950783 | K27: 14.91311073 | L27: 15.01522304 | M27: 15.07536887 | N27: 16.41690205 | O27: 16.19285728 | P27: 15.19778418 | Q27: 14.80971567 | R27: 14.64146534 | S27: 14.45611653 | Y27: 7.328856498 | Z27: 7.52799501 | AA27: 7.552126307 | AB27: 7.409711296 | AC27: 8.27784373 | AD27: 8.861849605 | AE27: 9.47810403 | AF27: 9.178262038 | AG27: 9.214355889 | AH27: 9.123993619 | AI27: 9.344317429 | AJ27: 9.83037449 | AK27: 11.18605146 | AL27: 10.71622478 | AM27: 10.77590176 | AN27: 10.42312955 | AO27: 10.43521729 | AP27: 10.72898624 | AT27: 11.59910058 | AU27: 11.68757034 | AV27: 12.00226489 | AW27: 12.26583816 | AX27: 12.8818011 | AY27: 13.68465342 | AZ27: 14.61495007 | BA27: 15.3774822 | BB27: 15.21950783 | BC27: 14.91311073 | BD27: 15.01522304 | BE27: 15.07536887 | BF27: 16.41690205 | BG27: 16.19285728 | BH27: 15.19778418 | BI27: 14.80971567 | BJ27: 14.64146534 | BK27: 14.45611653 | BO27: 9.213688442 | BP27: 9.303306377 | BQ27: 9.347172793 | BR27: 9.307172953 | BS27: 10.07476792 | BT27: 10.66249233 | BU27: 11.35278735 | BV27: 11.392378 | BW27: 11.32319588 | BX27: 11.19992646 | BY27: 11.46009011 | BZ27: 11.83585946 | CA27: 13.3004143 | CB27: 12.90954388 | CC27: 12.5522308 | CD27: 12.19716163 | CE27: 12.16190848 | CF27: 12.25363913
A28: 4 | B28: 2.261390608 | C28: 1.839116642 | D28: 1.74930539 | E28: 2.027229725 | F28: 2.112425339 | G28: 2.109593968 | H28: 2.354262639 | I28: 2.721969255 | J28: 3.323599646 | K28: 3.775430024 | L28: 4.058236385 | M28: 6.344271169 | N28: 5.699425014 | O28: 6.813404565 | P28: 9.253001944 | Q28: 9.274508749 | R28: 9.785780717 | S28: 10.01284046 | Y28: 9.158045742 | Z28: 6.495170089 | AA28: 7.53700253 | AB28: 11.17245284 | AC28: 10.95558146 | AD28: 10.26776511 | AE28: 12.59811689 | AF28: 14.21399726 | AG28: 17.34943848 | AH28: 18.22153069 | AI28: 18.7871522 | AJ28: 23.51698639 | AK28: 17.67064741 | AL28: 18.81741109 | AM28: 20.77780545 | AN28: 18.812727 | AO28: 16.93556022 | AP28: 14.92226082 | AT28: 2.261390608 | AU28: 1.839116642 | AV28: 1.74930539 | AW28: 2.027229725 | AX28: 2.112425339 | AY28: 2.109593968 | AZ28: 2.354262639 | BA28: 2.721969255 | BB28: 3.323599646 | BC28: 3.775430024 | BD28: 4.058236385 | BE28: 6.344271169 | BF28: 5.699425014 | BG28: 6.813404565 | BH28: 9.253001944 | BI28: 9.274508749 | BJ28: 9.785780717 | BK28: 10.01284046 | BO28: 6.113949042 | BP28: 4.50796131 | BQ28: 5.202426824 | BR28: 7.599088571 | BS28: 7.504098345 | BT28: 7.22182916 | BU28: 8.859639508 | BV28: 10.10949992 | BW28: 12.42395946 | BX28: 13.04127018 | BY28: 13.29190333 | BZ28: 16.95079779 | CA28: 12.83175795 | CB28: 14.00996477 | CC28: 16.14813846 | CD28: 14.95526137 | CE28: 14.00053092 | CF28: 12.91396989
A29: 5 | B29: 2.868719746 | C29: 2.893490683 | D29: 2.78858674 | E29: 2.724348917 | F29: 2.603864893 | G29: 2.636704633 | H29: 2.500811749 | I29: 2.311046875 | J29: 2.140772622 | K29: 1.905454919 | L29: 1.657068559 | M29: 1.520811506 | N29: 1.57182974 | O29: 1.542133482 | P29: 1.509096858 | Q29: 1.453828219 | R29: 1.476571026 | S29: 1.473156194 | Y29: 7.073175229 | Z29: 7.437339018 | AA29: 6.963263814 | AB29: 6.662181218 | AC29: 7.011888007 | AD29: 7.022902399 | AE29: 6.940206969 | AF29: 6.412931384 | AG29: 6.021977625 | AH29: 5.644530839 | AI29: 5.517297426 | AJ29: 4.975182826 | AK29: 5.82196384 | AL29: 5.460399237 | AM29: 5.156252198 | AN29: 5.002237829 | AO29: 5.202942154 | AP29: 5.188683005 | AT29: 2.868719746 | AU29: 2.893490683 | AV29: 2.78858674 | AW29: 2.724348917 | AX29: 2.603864893 | AY29: 2.636704633 | AZ29: 2.500811749 | BA29: 2.311046875 | BB29: 2.140772622 | BC29: 1.905454919 | BD29: 1.657068559 | BE29: 1.520811506 | BF29: 1.57182974 | BG29: 1.542133482 | BH29: 1.509096858 | BI29: 1.453828219 | BJ29: 1.476571026 | BK29: 1.473156194 | BO29: 5.217381541 | BP29: 5.498019505 | BQ29: 5.279329869 | BR29: 5.12352994 | BS29: 5.291436942 | BT29: 5.385270971 | BU29: 5.32005715 | BV29: 4.947900666 | BW29: 4.659007892 | BX29: 4.303726994 | BY29: 4.077074765 | BZ29: 3.654363532 | CA29: 4.104016549 | CB29: 3.891185473 | CC29: 3.691141345 | CD29: 3.567182794 | CE29: 3.673243448 | CF29: 3.668776731
A30: 6 | B30: 0.1338528528 | C30: 0.125022255 | D30: 0.1210983587 | E30: 0.1110788029 | F30: 0.1102586279 | G30: 0.1013443138 | H30: 0.09584157268 | I30: 0.07958165148 | J30: 0.08036753789 | K30: 0.0799658475 | L30: 0.07632373967 | M30: 0.07986828277 | N30: 0.08943801612 | O30: 0.08646530757 | P30: 0.08701732584 | Q30: 0.08619561709 | R30: 0.08807270248 | S30: 0.08927952919 | Y30: 1.610815634 | Z30: 1.518723007 | AA30: 1.372757829 | AB30: 1.220631605 | AC30: 1.334141491 | AD30: 1.322336676 | AE30: 1.238896356 | AF30: 1.12306158 | AG30: 1.073186608 | AH30: 1.032901444 | AI30: 0.9935131519 | AJ30: 0.9306451979 | AK30: 1.124789154 | AL30: 1.09217344 | AM30: 1.02599718 | AN30: 1.049383866 | AO30: 1.09378054 | AP30: 1.109230617 | AT30: 0.1338528528 | AU30: 0.125022255 | AV30: 0.1210983587 | AW30: 0.1110788029 | AX30: 0.1102586279 | AY30: 0.1013443138 | AZ30: 0.09584157268 | BA30: 0.07958165148 | BB30: 0.08036753789 | BC30: 0.0799658475 | BD30: 0.07632373967 | BE30: 0.07986828277 | BF30: 0.08943801612 | BG30: 0.08646530757 | BH30: 0.08701732584 | BI30: 0.08619561709 | BJ30: 0.08807270248 | BK30: 0.08927952919 | BO30: 0.9589028675 | BP30: 0.9238899792 | BQ30: 0.8678776115 | BR30: 0.7870898221 | BS30: 0.8564601087 | BT30: 0.8664667924 | BU30: 0.8217404356 | BV30: 0.75037187 | BW30: 0.7245365515 | BX30: 0.6911860738 | BY30: 0.6513166082 | BZ30: 0.6053406894 | CA30: 0.7062897278 | CB30: 0.6894005951 | CC30: 0.6487964726 | CD30: 0.6598493147 | CE30: 0.6809311684 | CF30: 0.6920004001
A31: 7 | B31: 6.759493168 | C31: 6.611988783 | D31: 6.454483573 | E31: 6.801076822 | F31: 6.646416629 | G31: 6.65364164 | H31: 7.01197111 | I31: 7.379960535 | J31: 8.108920206 | K31: 9.12543014 | L31: 9.736618862 | M31: 10.4335414 | N31: 9.190584059 | O31: 10.04345471 | P31: 11.13057958 | Q31: 10.61086918 | R31: 10.23277842 | S31: 9.431912749 | Y31: 8.451625474 | Z31: 8.909197125 | AA31: 8.021490896 | AB31: 7.833880962 | AC31: 7.399543802 | AD31: 7.406843935 | AE31: 7.087188543 | AF31: 8.213927735 | AG31: 8.232748272 | AH31: 9.141347441 | AI31: 8.936931476 | AJ31: 8.85314663 | AK31: 7.548022573 | AL31: 8.216169579 | AM31: 8.770627061 | AN31: 8.570045273 | AO31: 8.395399914 | AP31: 8.744814236 | AT31: 6.759493168 | AU31: 6.611988783 | AV31: 6.454483573 | AW31: 6.801076822 | AX31: 6.646416629 | AY31: 6.65364164 | AZ31: 7.01197111 | BA31: 7.379960535 | BB31: 8.108920206 | BC31: 9.12543014 | BD31: 9.736618862 | BE31: 10.4335414 | BF31: 9.190584059 | BG31: 10.04345471 | BH31: 11.13057958 | BI31: 10.61086918 | BJ31: 10.23277842 | BK31: 9.431912749 | BO31: 7.704739589 | BP31: 7.928746055 | BQ31: 7.389409234 | BR31: 7.430327614 | BS31: 7.105598327 | BT31: 7.125628218 | BU31: 7.059738068 | BV31: 7.916067675 | BW31: 8.189263348 | BX31: 9.13563962 | BY31: 9.235288888 | BZ31: 9.457429062 | CA31: 8.211962578 | CB31: 8.947973178 | CC31: 9.718651404 | CD31: 9.395399431 | CE31: 9.149655309 | CF31: 9.025884833
A32: 8 | B32: 10.60118473 | C32: 10.17410147 | D32: 9.919764936 | E32: 10.56584293 | F32: 9.931041121 | G32: 9.552467479 | H32: 9.257751068 | I32: 9.897639031 | J32: 9.637418595 | K32: 9.670999035 | L32: 9.38720633 | M32: 9.006273737 | N32: 8.995164926 | O32: 9.185508507 | P32: 8.790545859 | Q32: 8.962287889 | R32: 8.840020555 | S32: 8.964033755 | Y32: 7.501239058 | Z32: 7.700267408 | AA32: 7.214789566 | AB32: 6.880908567 | AC32: 6.975529181 | AD32: 6.825244586 | AE32: 6.931171598 | AF32: 6.955596253 | AG32: 6.969031427 | AH32: 7.077348619 | AI32: 7.120462907 | AJ32: 6.797951148 | AK32: 7.106204945 | AL32: 6.847497011 | AM32: 7.070940901 | AN32: 7.370890007 | AO32: 7.503885188 | AP32: 7.875732504 | AT32: 10.60118473 | AU32: 10.17410147 | AV32: 9.919764936 | AW32: 10.56584293 | AX32: 9.931041121 | AY32: 9.552467479 | AZ32: 9.257751068 | BA32: 9.897639031 | BB32: 9.637418595 | BC32: 9.670999035 | BD32: 9.38720633 | BE32: 9.006273737 | BF32: 8.995164926 | BG32: 9.185508507 | BH32: 8.790545859 | BI32: 8.962287889 | BJ32: 8.840020555 | BK32: 8.964033755 | BO32: 8.869516027 | BP32: 8.756102532 | BQ32: 8.305891887 | BR32: 8.320743616 | BS32: 8.129065252 | BT32: 7.843480917 | BU32: 7.780252863 | BV32: 8.006377432 | BW32: 7.906093742 | BX32: 8.007411695 | BY32: 7.966168008 | BZ32: 7.64232913 | CA32: 7.869741719 | CB32: 7.783839784 | CC32: 7.761729105 | CD32: 8.014486377 | CE32: 8.052377132 | CF32: 8.320922644
A33: 9 | B33: 20.82065017 | C33: 23.14206361 | D33: 22.48512362 | E33: 19.75306629 | F33: 21.33261523 | G33: 22.48425849 | H33: 21.23886613 | I33: 20.93103885 | J33: 21.97838896 | K33: 22.38408536 | L33: 22.93577775 | M33: 21.10677309 | N33: 19.68951 | O33: 18.87056958 | P33: 18.89123283 | Q33: 20.27846925 | R33: 20.39211499 | S33: 20.6738727 | Y33: 18.7799788 | Z33: 19.85416989 | AA33: 20.65078645 | AB33: 19.12309655 | AC33: 20.16008248 | AD33: 20.36241876 | AE33: 19.21946772 | AF33: 18.09529355 | AG33: 16.89899112 | AH33: 16.39763184 | AI33: 15.95579989 | AJ33: 13.84874053 | AK33: 12.86050356 | AL33: 14.05625224 | AM33: 14.03988107 | AN33: 15.96089255 | AO33: 16.55168832 | AP33: 17.18489064 | AT33: 20.82065017 | AU33: 23.14206361 | AV33: 22.48512362 | AW33: 19.75306629 | AX33: 21.33261523 | AY33: 22.48425849 | AZ33: 21.23886613 | BA33: 20.93103885 | BB33: 21.97838896 | BC33: 22.38408536 | BD33: 22.93577775 | BE33: 21.10677309 | BF33: 19.68951 | BG33: 18.87056958 | BH33: 18.89123283 | BI33: 20.27846925 | BJ33: 20.39211499 | BK33: 20.6738727 | BO33: 19.68070544 | BP33: 21.25744658 | BQ33: 21.3907006 | BR33: 19.36924815 | BS33: 20.61772192 | BT33: 21.15462915 | BU33: 19.95644377 | BV33: 19.10810947 | BW33: 18.68273238 | BX33: 18.54432799 | BY33: 18.55997768 | BZ33: 16.62393421 | CA33: 15.62085719 | CB33: 15.98432285 | CC33: 15.98873366 | CD33: 17.7070157 | CE33: 18.12820754 | CF33: 18.61212451
A34: 10 | B34: 25.80670407 | C34: 25.32320276 | D34: 27.11603986 | E34: 28.93644951 | F34: 26.53687188 | G34: 24.84997545 | H34: 24.62482796 | I34: 23.93714849 | J34: 22.77873892 | K34: 21.82761418 | L34: 19.79852656 | M34: 18.29727784 | N34: 19.26511826 | O34: 18.55241216 | P34: 16.97590099 | Q34: 16.67139415 | R34: 16.53734949 | S34: 16.48180334 | Y34: 22.57309667 | Z34: 22.32520549 | AA34: 22.44679914 | AB34: 22.96803428 | AC34: 20.20966119 | AD34: 19.82950053 | AE34: 19.14778297 | AF34: 19.19512912 | AG34: 18.36421956 | AH34: 17.97587456 | AI34: 17.97668689 | AJ34: 16.76794399 | AK34: 20.09487198 | AL34: 19.78340521 | AM34: 18.23149071 | AN34: 18.25223172 | AO34: 18.58959613 | AP34: 18.6836522 | AT34: 25.80670407 | AU34: 25.32320276 | AV34: 27.11603986 | AW34: 28.93644951 | AX34: 26.53687188 | AY34: 24.84997545 | AZ34: 24.62482796 | BA34: 23.93714849 | BB34: 22.77873892 | BC34: 21.82761418 | BD34: 19.79852656 | BE34: 18.29727784 | BF34: 19.26511826 | BG34: 18.55241216 | BH34: 16.97590099 | BI34: 16.67139415 | BJ34: 16.53734949 | BK34: 16.48180334 | BO34: 24.00037024 | BP34: 23.60475406 | BQ34: 24.33022457 | BR34: 25.3001066 | BS34: 22.67917101 | BT34: 21.70394577 | BU34: 21.14662133 | BV34: 20.88879066 | BW34: 19.91447425 | BX34: 19.35707874 | BY34: 18.65640171 | BZ34: 17.35270268 | CA34: 19.75947712 | CB34: 19.29040873 | CC34: 17.7271036 | CD34: 17.61290617 | CE34: 17.74713602 | CF34: 17.78294442
A35: 11 | B35: 2.551488649 | C35: 2.586504474 | D35: 2.468445929 | E35: 2.477044693 | F35: 2.683472426 | G35: 2.545028873 | H35: 2.508772074 | I35: 2.601328926 | J35: 2.69644815 | K35: 2.802719167 | L35: 2.942987555 | M35: 2.866703619 | N35: 3.124634675 | O35: 2.79043942 | P35: 2.604202917 | Q35: 2.675392751 | R35: 2.773709335 | S35: 2.953368875 | Y35: 5.358142671 | Z35: 5.666965866 | AA35: 5.608504109 | AB35: 5.284715116 | AC35: 5.556583722 | AD35: 5.897561284 | AE35: 5.620500033 | AF35: 5.365291449 | AG35: 5.196346905 | AH35: 5.087556103 | AI35: 5.327003667 | AJ35: 4.811511986 | AK35: 5.411420744 | AL35: 5.10273151 | AM35: 4.523549782 | AN35: 4.601785786 | AO35: 4.846377452 | AP35: 4.874413794 | AT35: 2.551488649 | AU35: 2.586504474 | AV35: 2.468445929 | AW35: 2.477044693 | AX35: 2.683472426 | AY35: 2.545028873 | AZ35: 2.508772074 | BA35: 2.601328926 | BB35: 2.69644815 | BC35: 2.802719167 | BD35: 2.942987555 | BE35: 2.866703619 | BF35: 3.124634675 | BG35: 2.79043942 | BH35: 2.604202917 | BI35: 2.675392751 | BJ35: 2.773709335 | BK35: 2.953368875 | BO35: 4.11932094 | BP35: 4.352221525 | BQ35: 4.341903013 | BR35: 4.18765832 | BS35: 4.435208616 | BT35: 4.645859301 | BU35: 4.484880148 | BV35: 4.378113485 | BW35: 4.318452969 | BX35: 4.268231164 | BY35: 4.437544998 | BZ35: 4.06789175 | CA35: 4.487078632 | CB35: 4.17668902 | CC35: 3.752522595 | CD35: 3.822709995 | CE35: 3.995534198 | CF35: 4.088574161
A36: 12 | B36: 3.000406833 | C36: 3.061691507 | D36: 3.094631458 | E36: 3.01148928 | F36: 3.338780128 | G36: 3.264983799 | H36: 3.141133078 | I36: 3.01641011 | J36: 2.97009411 | K36: 2.825575705 | L36: 2.923352162 | M36: 2.876072413 | N36: 2.909368359 | O36: 3.157922941 | P36: 2.656174532 | Q36: 2.628900359 | R36: 2.666229889 | S36: 2.766689069 | Y36: 3.33671706 | Z36: 3.828195281 | AA36: 4.256362076 | AB36: 3.980714326 | AC36: 4.260604581 | AD36: 4.209438641 | AE36: 3.790321563 | AF36: 3.410926825 | AG36: 3.282390528 | AH36: 3.156748093 | AI36: 3.10781291 | AJ36: 3.037339814 | AK36: 3.520854187 | AL36: 2.9065133 | AM36: 2.714016469 | AN36: 2.910427643 | AO36: 3.097655527 | AP36: 3.085550869 | AT36: 3.000406833 | AU36: 3.061691507 | AV36: 3.094631458 | AW36: 3.01148928 | AX36: 3.338780128 | AY36: 3.264983799 | AZ36: 3.141133078 | BA36: 3.01641011 | BB36: 2.97009411 | BC36: 2.825575705 | BD36: 2.923352162 | BE36: 2.876072413 | BF36: 2.909368359 | BG36: 3.157922941 | BH36: 2.656174532 | BI36: 2.628900359 | BJ36: 2.666229889 | BK36: 2.766689069 | BO36: 3.188273962 | BP36: 3.501050619 | BQ36: 3.78775634 | BR36: 3.602003593 | BS36: 3.900816572 | BT36: 3.856816845 | BU36: 3.553401317 | BV36: 3.270021077 | BW36: 3.172720834 | BX36: 3.037992224 | BY36: 3.038991978 | BZ36: 2.975677336 | CA36: 3.273685416 | CB36: 3.007199546 | CC36: 2.690780593 | CD36: 2.796571806 | CE36: 2.920552598 | CF36: 2.95511444
A37: Total | B37: 100 | C37: 100 | D37: 100 | E37: 100 | F37: 100 | G37: 100 | H37: 100 | I37: 100 | J37: 100 | K37: 100 | L37: 100 | M37: 100 | N37: 100 | O37: 100 | P37: 100 | Q37: 100 | R37: 100 | S37: 100 | Y37: 100 | Z37: 100 | AA37: 100 | AB37: 100 | AC37: 100 | AD37: 100 | AE37: 100 | AF37: 100 | AG37: 100 | AH37: 100 | AI37: 100 | AJ37: 100 | AK37: 100 | AL37: 100 | AM37: 100 | AN37: 100 | AO37: 100 | AP37: 100 | AT37: 100 | AU37: 100 | AV37: 100 | AW37: 100 | AX37: 100 | AY37: 100 | AZ37: 100 | BA37: 100 | BB37: 100 | BC37: 100 | BD37: 100 | BE37: 100 | BF37: 100 | BG37: 100 | BH37: 100 | BI37: 100 | BJ37: 100 | BK37: 100 | BO37: 100 | BP37: 100 | BQ37: 100 | BR37: 100 | BS37: 100 | BT37: 100 | BU37: 100 | BV37: 100 | BW37: 100 | BX37: 100 | BY37: 100 | BZ37: 100 | CA37: 100 | CB37: 100 | CC37: 100 | CD37: 100 | CE37: 100 | CF37: 100
A42: =IF($B$1="import","IMPORT ",IF($B$1="export","EXPORT ","TOTAL TRADE "))&"SHARES CURRENT SELECTION BY SECTOR" -> EXPORT SHARES CURRENT SELECTION BY SECTOR
A43: Sector | B43: 1997 | C43: 1998 | D43: 1999 | E43: 2000 | F43: 2001 | G43: 2002 | H43: 2003 | I43: 2004 | J43: 2005 | K43: 2006 | L43: 2007 | M43: 2008 | N43: 2009 | O43: 2010 | P43: 2011 | Q43: 2012 | R43: 2013 | S43: 2014
A44: 1 | B44: =B6/B$18*100 -> 7.629405854 | C44: 8.170309349 | D44: 6.86516955 | E44: 6.309365335 | F44: 7.721813683 | G44: 8.028832286 | H44: 8.611602394 | I44: 8.353640541 | J44: 8.335618679 | K44: 8.412809103 | L44: 9.633750021 | M44: 10.87286032 | N44: 10.20466566 | O44: 9.127267966 | P44: 9.521691766 | Q44: 9.030187031 | R44: 8.35262758 | S44: 8.358602016
A45: =1+A44 -> 2 | B45: =B7/B$18*100 -> 3.581894158 | C45: 3.626027022 | D45: 3.612371349 | E45: 3.405687433 | F45: 3.417494802 | G45: 3.337859477 | H45: 3.48358787 | I45: 3.302268484 | J45: 3.378458371 | K45: 3.325817738 | L45: 3.31847373 | M45: 3.323088747 | N45: 3.397680192 | O45: 3.175704398 | P45: 2.700857461 | Q45: 2.560535905 | R45: 2.536018954 | S45: 2.425256708
A46: =1+A45 -> 3 | B46: =B8/B$18*100 -> 12.74836348 | C46: 12.7220454 | D46: 12.643295 | E46: 12.25120884 | F46: 12.61420251 | G46: 13.36115194 | H46: 14.28844131 | I46: 14.97236063 | J46: 15.77554875 | K46: 15.91594849 | L46: 16.1608535 | M46: 15.66796071 | N46: 16.45873451 | O46: 15.33564538 | P46: 14.66341021 | Q46: 14.97216374 | R46: 14.91363795 | S46: 14.8858592
A47: 4 | B47: =B9/B$18*100 -> 2.858812011 | C47: 2.338948726 | D47: 2.67243066 | E47: 3.918548294 | F47: 3.291493517 | G47: 3.40043044 | H47: 3.039610223 | I47: 3.131938571 | J47: 4.596899499 | K47: 4.424773094 | L47: 5.154166053 | M47: 7.48598249 | N47: 6.174841631 | O47: 8.889590075 | P47: 12.08595023 | Q47: 11.17537718 | R47: 10.40696135 | S47: 10.03471671
A48: 5 | B48: =B10/B$18*100 -> 5.493579628 | C48: 6.08225491 | D48: 6.472791652 | E48: 5.796381609 | F48: 5.452487564 | G48: 5.378986647 | H48: 5.112867789 | I48: 4.56564161 | J48: 4.246237462 | K48: 3.663399219 | L48: 3.127409152 | M48: 2.683184358 | N48: 2.7356967 | O48: 2.572261496 | P48: 2.39747541 | Q48: 2.303205938 | R48: 2.371242026 | S48: 2.386153406
A49: 6 | B49: =B11/B$18*100 -> 0.1476441097 | C49: 0.1281365535 | D49: 0.1266599164 | E49: 0.1447612755 | F49: 0.1273151361 | G49: 0.1095086586 | H49: 0.09653243075 | I49: 0.05687604513 | J49: 0.04333549725 | K49: 0.0498459104 | L49: 0.05411902309 | M49: 0.07643521397 | N49: 0.06140636126 | O49: 0.06631789697 | P49: 0.0532549672 | Q49: 0.04495216814 | R49: 0.05350204434 | S49: 0.04993813463
A50: 7 | B50: =B12/B$18*100 -> 7.805597064 | C50: 7.869080753 | D50: 7.732308699 | E50: 7.808878832 | F50: 7.21612157 | G50: 7.294560831 | H50: 7.094110197 | I50: 7.716313712 | J50: 8.291845316 | K50: 9.24887058 | L50: 9.312939228 | M50: 9.513550478 | N50: 8.131994158 | O50: 8.456764487 | P50: 8.814984661 | Q50: 9.077802391 | R50: 9.243875589 | S50: 9.599556578
A51: 8 | B51: =B13/B$18*100 -> 11.7318299 | C51: 12.20031692 | D51: 12.3693992 | E51: 10.99283094 | F51: 10.75310517 | G51: 10.04766661 | H51: 10.11417094 | I51: 9.943189257 | J51: 10.56045944 | K51: 10.3323314 | L51: 9.785035261 | M51: 9.66642715 | N51: 9.748864107 | O51: 8.823027735 | P51: 8.479468358 | Q51: 9.113194874 | R51: 9.382662568 | S51: 9.640048736
A52: 9 | B52: =B14/B$18*100 -> 17.42594346 | C52: 16.95199718 | D52: 15.07352981 | E52: 16.0035427 | F52: 17.34755548 | G52: 17.19959777 | H52: 15.87764803 | I52: 15.94807695 | J52: 15.8332716 | K52: 16.20928287 | L52: 16.87289591 | M52: 15.47990756 | N52: 14.55746676 | O52: 15.2190255 | P52: 15.31187496 | Q52: 16.51661709 | R52: 17.31497152 | S52: 17.21238525
A53: 10 | B53: =B15/B$18*100 -> 24.99673579 | C53: 24.08422193 | D53: 26.43321676 | E53: 27.77410804 | F53: 26.85824065 | G53: 26.66509335 | H53: 27.14535765 | I53: 27.10767977 | J53: 24.21931931 | K53: 23.57021482 | L53: 21.13722937 | M53: 19.9408084 | N53: 23.49642028 | O53: 23.67478291 | P53: 21.57827295 | Q53: 20.86183114 | R53: 21.20111433 | S53: 21.07610632
A54: 11 | B54: =B16/B$18*100 -> 1.597140561 | C54: 1.545123461 | D54: 1.589925973 | E54: 1.450989692 | F54: 1.250782925 | G54: 1.361189493 | H54: 1.486063876 | I54: 1.474251806 | J54: 1.392753091 | K54: 1.537692931 | L54: 1.98495925 | M54: 1.93818441 | N54: 1.962474127 | O54: 1.470963647 | P54: 1.30119569 | Q54: 1.280224824 | R54: 1.174341856 | S54: 1.255952868
A55: 12 | B55: =B17/B$18*100 -> 3.983053986 | C55: 4.281537805 | D55: 4.408901431 | E55: 4.143697014 | F55: 3.949386986 | G55: 3.815122501 | H55: 3.650007288 | I55: 3.427762618 | J55: 3.326252989 | K55: 3.309013844 | L55: 3.458169499 | M55: 3.351610158 | N55: 3.069755517 | O55: 3.188648507 | P55: 3.091563338 | Q55: 3.063907713 | R55: 3.049044241 | S55: 3.075424074
A56: Total | B56: =B18/B$18*100 -> 100 | C56: 100 | D56: 100 | E56: 100 | F56: 100 | G56: 100 | H56: 100 | I56: 100 | J56: 100 | K56: 100 | L56: 100 | M56: 100 | N56: 100 | O56: 100 | P56: 100 | Q56: 100 | R56: 100 | S56: 100
A61: =IF($B$1="import","IMPORT ",IF($B$1="export","EXPORT ","TOTAL TRADE "))&"SHARES CURRENT SELECTION'S RELATIVE PROMINENCE COMPARED TO OVERALL BASKET" -> EXPORT SHARES CURRENT SELECTION'S RELATIVE PROMINENCE COMPARED TO OVERALL BASKET
A62: Sector | B62: 1997 | C62: 1998 | D62: 1999 | E62: 2000 | F62: 2001 | G62: 2002 | H62: 2003 | I62: 2004 | J62: 2005 | K62: 2006 | L62: 2007 | M62: 2008 | N62: 2009 | O62: 2010 | P62: 2011 | Q62: 2012 | R62: 2013 | S62: 2014
A63: 1 | B63: =B44-B25 -> -2.137610418 | C63: -0.8087319687 | D63: -1.381073142 | E63: -1.520533352 | F63: -0.7339824944 | G63: -0.6686790036 | H63: -0.6437984144 | I63: -0.1284729548 | J63: 0.4625530654 | K63: 0.7345432567 | L63: 1.111266832 | M63: 1.289185897 | N63: 0.1377636074 | O63: -0.6888251455 | P63: -0.6273849428 | Q63: -0.9413021352 | R63: -1.62813866 | S63: -1.795590049
A64: =1+A63 -> 2 | B64: =B45-B26 -> -0.2480981671 | C64: 0.04982086729 | D64: 0.05835878929 | E64: -0.09094875701 | F64: 0.0508383577 | G64: -0.08197716649 | H64: 0.0881761247 | I64: 0.03798789554 | J64: 0.1857805645 | K64: 0.3144686895 | L64: 0.3722778591 | M64: 0.5137250901 | N64: 0.416557345 | O64: 0.2269654626 | P64: -0.05452880647 | Q64: -0.01641309896 | R64: -0.04912233493 | S64: -0.1174780245
A65: =1+A64 -> 3 | B65: =B46-B27 -> 1.149262909 | C65: 1.03447506 | D65: 0.6410301109 | E65: -0.0146293194 | F65: -0.267598586 | G65: -0.323501487 | H65: -0.3265087554 | I65: -0.4051215723 | J65: 0.556040917 | K65: 1.002837763 | L65: 1.145630465 | M65: 0.5925918451 | N65: 0.04183246002 | O65: -0.8572118956 | P65: -0.5343739726 | Q65: 0.1624480709 | R65: 0.272172611 | S65: 0.4297426739
A66: 4 | B66: =B47-B28 -> 0.5974214025 | C66: 0.4998320838 | D66: 0.9231252699 | E66: 1.891318569 | F66: 1.179068178 | G66: 1.290836472 | H66: 0.6853475834 | I66: 0.4099693161 | J66: 1.273299852 | K66: 0.6493430697 | L66: 1.095929668 | M66: 1.141711321 | N66: 0.4754166176 | O66: 2.07618551 | P66: 2.832948288 | Q66: 1.900868436 | R66: 0.6211806279 | S66: 0.02187624448
A67: 5 | B67: =B48-B29 -> 2.624859882 | C67: 3.188764228 | D67: 3.684204912 | E67: 3.072032691 | F67: 2.84862267 | G67: 2.742282014 | H67: 2.61205604 | I67: 2.254594735 | J67: 2.10546484 | K67: 1.7579443 | L67: 1.470340593 | M67: 1.162372851 | N67: 1.16386696 | O67: 1.030128013 | P67: 0.888378552 | Q67: 0.8493777197 | R67: 0.8946710005 | S67: 0.9129972116
A68: 6 | B68: =B49-B30 -> 0.01379125693 | C68: 0.003114298485 | D68: 0.005561557715 | E68: 0.03368247266 | F68: 0.01705650817 | G68: 0.00816434484 | H68: 0.0006908580738 | I68: -0.02270560635 | J68: -0.03703204063 | K68: -0.03011993711 | L68: -0.02220471658 | M68: -0.003433068804 | N68: -0.02803165486 | O68: -0.0201474106 | P68: -0.03376235864 | Q68: -0.04124344896 | R68: -0.03457065814 | S68: -0.03934139456
A69: 7 | B69: =B50-B31 -> 1.046103896 | C69: 1.25709197 | D69: 1.277825126 | E69: 1.00780201 | F69: 0.5697049417 | G69: 0.6409191909 | H69: 0.08213908713 | I69: 0.3363531771 | J69: 0.1829251103 | K69: 0.1234404396 | L69: -0.423679634 | M69: -0.9199909197 | N69: -1.058589901 | O69: -1.586690224 | P69: -2.315594917 | Q69: -1.533066791 | R69: -0.9889028326 | S69: 0.1676438288
A70: 8 | B70: =B51-B32 -> 1.130645172 | C70: 2.026215444 | D70: 2.449634262 | E70: 0.4269880069 | F70: 0.8220640492 | G70: 0.4951991333 | H70: 0.8564198714 | I70: 0.04555022638 | J70: 0.92304085 | K70: 0.6613323599 | L70: 0.3978289313 | M70: 0.6601534123 | N70: 0.753699181 | O70: -0.362480772 | P70: -0.3110775008 | Q70: 0.1509069847 | R70: 0.5426420127 | S70: 0.6760149806
A71: 9 | B71: =B52-B33 -> -3.394706714 | C71: -6.190066431 | D71: -7.411593804 | E71: -3.749523586 | F71: -3.985059755 | G71: -5.284660716 | H71: -5.361218095 | I71: -4.982961894 | J71: -6.145117368 | K71: -6.174802489 | L71: -6.062881843 | M71: -5.626865527 | N71: -5.132043239 | O71: -3.65154408 | P71: -3.579357875 | Q71: -3.761852154 | R71: -3.077143478 | S71: -3.461487456
A72: 10 | B72: =B53-B34 -> -0.8099682851 | C72: -1.238980836 | D72: -0.6828230976 | E72: -1.162341469 | F72: 0.3213687744 | G72: 1.815117897 | H72: 2.520529687 | I72: 3.170531289 | J72: 1.440580388 | K72: 1.742600645 | L72: 1.338702814 | M72: 1.643530562 | N72: 4.231302015 | O72: 5.122370747 | P72: 4.602371955 | Q72: 4.190436991 | R72: 4.663764839 | S72: 4.594302986
A73: 11 | B73: =B54-B35 -> -0.9543480877 | C73: -1.041381013 | D73: -0.8785199564 | E73: -1.026055001 | F73: -1.432689501 | G73: -1.183839381 | H73: -1.022708198 | I73: -1.127077119 | J73: -1.303695058 | K73: -1.265026236 | L73: -0.9580283053 | M73: -0.9285192089 | N73: -1.162160549 | O73: -1.319475772 | P73: -1.303007228 | Q73: -1.395167927 | R73: -1.599367479 | S73: -1.697416007
A74: 12 | B74: =B55-B36 -> 0.9826471529 | C74: 1.219846298 | D74: 1.314269973 | E74: 1.132207735 | F74: 0.6106068576 | G74: 0.550138702 | H74: 0.5088742101 | I74: 0.4113525079 | J74: 0.3561588785 | K74: 0.4834381386 | L74: 0.5348173372 | M74: 0.4755377449 | N74: 0.160387158 | O74: 0.03072556651 | P74: 0.4353888062 | Q74: 0.4350073542 | R74: 0.3828143517 | S74: 0.3087350057
A75: Total | B75: =B56-B37 -> 0 | C75: 0 | D75: 0 | E75: 0 | F75: 0 | G75: 0 | H75: 0 | I75: 0 | J75: 0 | K75: 0 | L75: 0 | M75: 0 | N75: 0 | O75: 0 | P75: 0 | Q75: 0 | R75: 0 | S75: 0
A79: =IF($B$1="import","IMPORT ",IF($B$1="export","EXPORT ","TOTAL TRADE "))&"SHARES CURRENT SELECTION'S RELATIVE PROMINENCE COMPARED TO OVERALL BASKET -- VIZ" -> EXPORT SHARES CURRENT SELECTION'S RELATIVE PROMINENCE COMPARED TO OVERALL BASKET -- VIZ
A80: Sector | B80: 1997 | C80: 1998 | D80: 1999 | E80: 2000 | F80: 2001 | G80: 2002 | H80: 2003 | I80: 2004 | J80: 2005 | K80: 2006 | L80: 2007 | M80: 2008 | N80: 2009 | O80: 2010 | P80: 2011 | Q80: 2012 | R80: 2013 | S80: 2014
A81: 1 | B81: =IF(B44<(B25*0.5),"- - -",IF(B44<(B25*0.75),"- -",IF(B44<(B25*0.95),"-",IF(B44>(B25*1.5),"+++",IF(B44>(B25*1.125),"++",IF(B44>(B25*1.05),"+","~/-")))))) -> - | C81: =IF(C44<(C25*0.5),"- - -",IF(C44<(C25*0.75),"- -",IF(C44<(C25*0.95),"-",IF(C44>(C25*1.5),"+++",IF(C44>(C25*1.125),"++",IF(C44>(C25*1.05),"+","~/-")))))) -> - | D81: - | E81: - | F81: - | G81: - | H81: - | I81: ~/- | J81: + | K81: + | L81: ++ | M81: ++ | N81: ~/- | O81: - | P81: - | Q81: - | R81: - | S81: -
A82: =1+A81 -> 2 | B82: =IF(B45<(B26*0.5),"- - -",IF(B45<(B26*0.75),"- -",IF(B45<(B26*0.95),"-",IF(B45>(B26*1.5),"+++",IF(B45>(B26*1.125),"++",IF(B45>(B26*1.05),"+","~/-")))))) -> - | C82: ~/- | D82: ~/- | E82: ~/- | F82: ~/- | G82: ~/- | H82: ~/- | I82: ~/- | J82: + | K82: + | L82: ++ | M82: ++ | N82: ++ | O82: + | P82: ~/- | Q82: ~/- | R82: ~/- | S82: ~/-
A83: =1+A82 -> 3 | B83: + | C83: + | D83: + | E83: ~/- | F83: ~/- | G83: ~/- | H83: ~/- | I83: ~/- | J83: ~/- | K83: + | L83: + | M83: ~/- | N83: ~/- | O83: - | P83: ~/- | Q83: ~/- | R83: ~/- | S83: ~/-
A84: 4 | B84: ++ | C84: ++ | D84: +++ | E84: +++ | F84: +++ | G84: +++ | H84: ++ | I84: ++ | J84: ++ | K84: ++ | L84: ++ | M84: ++ | N84: + | O84: ++ | P84: ++ | Q84: ++ | R84: + | S84: ~/-
A85: 5 | B85: +++ | C85: +++ | D85: +++ | E85: +++ | F85: +++ | G85: +++ | H85: +++ | I85: +++ | J85: +++ | K85: +++ | L85: +++ | M85: +++ | N85: +++ | O85: +++ | P85: +++ | Q85: +++ | R85: +++ | S85: +++
A86: 6 | B86: + | C86: ~/- | D86: ~/- | E86: ++ | F86: ++ | G86: + | H86: ~/- | I86: - - | J86: - - | K86: - - | L86: - - | M86: ~/- | N86: - - | O86: - | P86: - - | Q86: - - | R86: - - | S86: - -
A87: 7 | B87: ++ | C87: ++ | D87: ++ | E87: ++ | F87: + | G87: + | H87: ~/- | I87: ~/- | J87: ~/- | K87: ~/- | L87: ~/- | M87: - | N87: - | O87: - | P87: - | Q87: - | R87: - | S87: ~/-
A88: 8 | B88: + | C88: ++ | D88: ++ | E88: ~/- | F88: + | G88: + | H88: + | I88: ~/- | J88: + | K88: + | L88: ~/- | M88: + | N88: + | O88: ~/- | P88: ~/- | Q88: ~/- | R88: + | S88: +
A89: 9 | B89: - | C89: - - | D89: - - | E89: - | F89: - | G89: - | H89: - - | I89: - | J89: - - | K89: - - | L89: - - | M89: - - | N89: - - | O89: - | P89: - | Q89: - | R89: - | S89: -
A90: 10 | B90: ~/- | C90: ~/- | D90: ~/- | E90: ~/- | F90: ~/- | G90: + | H90: + | I90: ++ | J90: + | K90: + | L90: + | M90: + | N90: ++ | O90: ++ | P90: ++ | Q90: ++ | R90: ++ | S90: ++
A91: 11 | B91: - - | C91: - - | D91: - - | E91: - - | F91: - - - | G91: - - | H91: - - | I91: - - | J91: - - | K91: - - | L91: - - | M91: - - | N91: - - | O91: - - | P91: - - - | Q91: - - - | R91: - - - | S91: - - -
A92: 12 | B92: ++ | C92: ++ | D92: ++ | E92: ++ | F92: ++ | G92: ++ | H92: ++ | I92: ++ | J92: + | K92: ++ | L92: ++ | M92: ++ | N92: + | O92: ~/- | P92: ++ | Q92: ++ | R92: ++ | S92: +
A93: Total
B96: 1 | C96: =B96+1 -> 2 | D96: =C96+1 -> 3 | E96: 4 | F96: 5 | G96: 6 | H96: 7 | I96: 8 | J96: 9 | K96: 10 | L96: 11 | M96: 12 | N96: 13 | O96: 14 | P96: 15 | Q96: 16 | R96: 17 | S96: 18
B97: =MID(CELL("address",B96),2,1) -> B | C97: =MID(CELL("address",C96),2,1) -> C | D97: D | E97: E | F97: F | G97: G | H97: H | I97: I | J97: J | K97: K | L97: L | M97: M | N97: N | O97: O | P97: P | Q97: Q | R97: R | S97: =MID(CELL("address",S96),2,1) -> S
C103: Country | D103: Mexico
A105: Country
A106: Canada
A107: Japan
A108: Mexico
A109: China
A110: Germany
A111: Taiwan
A112: United Kingdom
A113: Korea
A114: France
A115: Singapore
A116: Italy
A117: Malaysia
A118: Thailand
A119: Philippines
A120: Brazil
A121: Venezuela
A122: Ireland
A123: Saudi Arabia
A124: Nigeria
A125: India
A126: Russia
A127: Switzerland
A128: Netherlands
A129: Belgium
A130: Australia
Z138: 2 | AA138: 3 | AB138: 4 | AC138: 5 | AD138: 6 | AE138: 7 | AF138: 8 | AG138: 9 | AH138: 10 | AI138: 11 | AJ138: 12 | AK138: 13 | AL138: 14 | AM138: 15 | AN138: 16 | AO138: 17 | AP138: 18 | AQ138: 19 | AR138: 20
Z139: =MID(CELL("address",B138),2,1) -> B | AA139: =MID(CELL("address",C138),2,1) -> C | AB139: D | AC139: E | AD139: F | AE139: G | AF139: H | AG139: I | AH139: J | AI139: K | AJ139: L | AK139: M | AL139: N | AM139: O | AN139: P | AO139: Q | AP139: R | AQ139: S | AR139: T
A140: Type | B140: export
A141: Sector | B141: Agricultural products
A143: Sum of Value | B143: Column Labels | Z143: =HLOOKUP(MATCH(Z144,$A$5:$S$5),DB2_headerreferences,2,FALSE)&ROW($Y$145)&":"&HLOOKUP(MATCH(Z144,$A$5:$S$5),DB2_headerreferences,2,FALSE)&ROW($Y$384) -> Q145:Q384 | AA143: =HLOOKUP(MATCH(AA144,$A$5:$S$5),DB2_headerreferences,2,FALSE)&ROW($Y$145)&":"&HLOOKUP(MATCH(AA144,$A$5:$S$5),DB2_headerreferences,2,FALSE)&ROW($Y$384) -> R145:R384 | AB143: =HLOOKUP(MATCH(AB144,$A$5:$S$5),DB2_headerreferences,2,FALSE)&ROW($Y$145)&":"&HLOOKUP(MATCH(AB144,$A$5:$S$5),DB2_headerreferences,2,FALSE)&ROW($Y$384) -> S145:S384 | AE143: =HLOOKUP(MATCH(AE144,$A$5:$S$5),DB2_headerreferences,2,FALSE)&ROW($Y$145)&":"&HLOOKUP(MATCH(AE144,$A$5:$S$5),DB2_headerreferences,2,FALSE)&ROW($Y$384) -> Q145:Q384 | AF143: =HLOOKUP(MATCH(AF144,$A$5:$S$5),DB2_headerreferences,2,FALSE)&ROW($Y$145)&":"&HLOOKUP(MATCH(AF144,$A$5:$S$5),DB2_headerreferences,2,FALSE)&ROW($Y$384) -> R145:R384 | AG143: =HLOOKUP(MATCH(AG144,$A$5:$S$5),DB2_headerreferences,2,FALSE)&ROW($Y$145)&":"&HLOOKUP(MATCH(AG144,$A$5:$S$5),DB2_headerreferences,2,FALSE)&ROW($Y$384) -> S145:S384
A144: Row Labels | B144: 1997 | C144: 1998 | D144: 1999 | E144: 2000 | F144: 2001 | G144: 2002 | H144: 2003 | I144: 2004 | J144: 2005 | K144: 2006 | L144: 2007 | M144: 2008 | N144: 2009 | O144: 2010 | P144: 2011 | Q144: 2012 | R144: 2013 | S144: 2014 | T144: Grand Total | Z144: ='DB2'!C12 -> 2012 | AA144: ='DB2'!D12 -> 2013 | AB144: ='DB2'!E12 -> 2014 | AE144: =Z144 -> 2012 | AF144: =AA144 -> 2013 | AG144: =AB144 -> 2014
A145: Canada | B145: 8285553221 | C145: 8535079801 | D145: 8651863489 | E145: 9173062627 | F145: 9631128320 | G145: 10123693899 | H145: 11009844107 | I145: 11439288555 | J145: 12683261450 | K145: 14309270879 | L145: 16916287873 | M145: 19559001872 | N145: 18869045948 | O145: 20851885530 | P145: 23804232644 | Q145: 25429070046 | R145: 26568427588 | S145: 27257788345 | T145: 283097786194 | Y145: 1 | Z145: =IF(ISNUMBER(LARGE(INDIRECT(Z$143),$Y145)),LARGE(INDIRECT(Z$143),$Y145),0) -> 27200930266 | AA145: =IF(ISNUMBER(LARGE(INDIRECT(AA$143),$Y145)),LARGE(INDIRECT(AA$143),$Y145),0) -> 26839621254 | AB145: =IF(ISNUMBER(LARGE(INDIRECT(AB$143),$Y145)),LARGE(INDIRECT(AB$143),$Y145),0) -> 27257788345 | AD145: 1 | AE145: =IF(ISERROR(INDIRECT("A"&MATCH(Z145,INDIRECT(AE$143),0)+ROW($A$144))),"",INDIRECT("A"&MATCH(Z145,INDIRECT(AE$143),0)+ROW($A$144))) -> China | AF145: =IF(ISERROR(INDIRECT("A"&MATCH(AA145,INDIRECT(AF$143),0)+ROW($A$144))),"",INDIRECT("A"&MATCH(AA145,INDIRECT(AF$143),0)+ROW($A$144))) -> China | AG145: Canada
A146: China | B146: 1750715256 | C146: 1446408349 | D146: 974135942 | E146: 1926069765 | F146: 2117733704 | G146: 2162436912 | H146: 5185468135 | I146: 5923923571 | J146: 5684222668 | K146: 7298065364 | L146: 9006377269 | M146: 12833001712 | N146: 13796527466 | O146: 18309943952 | P146: 20161644439 | Q146: 27200930266 | R146: 26839621254 | S146: 26078486948 | T146: 188695712972 | Y146: =Y145+1 -> 2 | Z146: =IF(ISNUMBER(LARGE(INDIRECT(Z$143),$Y146)),LARGE(INDIRECT(Z$143),$Y146),0) -> 25429070046 | AA146: 26568427588 | AB146: 26078486948 | AD146: =AD145+1 -> 2 | AE146: =IF(ISERROR(INDIRECT("A"&MATCH(Z146,INDIRECT(AE$143),0)+ROW($A$144))),"",INDIRECT("A"&MATCH(Z146,INDIRECT(AE$143),0)+ROW($A$144))) -> Canada | AF146: Canada | AG146: China
A147: Mexico | B147: 5445740995 | C147: 6455368563 | D147: 5975720804 | E147: 7048878347 | F147: 7838341644 | G147: 7830569344 | H147: 8392645471 | I147: 9253769104 | J147: 10006819732 | K147: 11287220576 | L147: 13154043838 | M147: 16476579435 | N147: 13163781887 | O147: 14938110764 | P147: 18880442370 | Q147: 19496811406 | R147: 18883542711 | S147: 20087909041 | T147: 214616296032 | Y147: =Y146+1 -> 3 | Z147: 19496811406 | AA147: 18883542711 | AB147: 20087909041 | AD147: =AD146+1 -> 3 | AE147: Mexico | AF147: Mexico | AG147: Mexico
A148: Japan | B148: 13536398084 | C148: 11866964670 | D148: 12089538662 | E148: 12888767928 | F148: 11585980753 | G148: 10625745875 | H148: 11087467307 | I148: 10308826873 | J148: 9971877782 | K148: 10419503225 | L148: 11857316210 | M148: 14845473606 | N148: 12342991363 | O148: 13009752632 | P148: 15379663182 | Q148: 14720429497 | R148: 13392963100 | S148: 14401452395 | T148: 224331113144 | Y148: 4 | Z148: 14720429497 | AA148: 13392963100 | AB148: 14401452395 | AD148: 4 | AE148: Japan | AF148: Japan | AG148: Japan
A149: Korea | B149: 3238811601 | C149: 2402352362 | D149: 2768870889 | E149: 3033778231 | F149: 3109997442 | G149: 3117059436 | H149: 3371564553 | I149: 2901706731 | J149: 2663932476 | K149: 3295457603 | L149: 3918728338 | M149: 5882556460 | N149: 4213747180 | O149: 5641130536 | P149: 7403493712 | Q149: 6540036501 | R149: 5835165759 | S149: 7523819567 | T149: 76862209377 | Y149: 5 | Z149: 6540036501 | AA149: 5835165759 | AB149: 7523819567 | AD149: 5 | AE149: Korea | AF149: Korea | AG149: Korea
A150: Hong Kong | B150: 2027481554 | C150: 1757191401 | D150: 1473876591 | E150: 1559807715 | F150: 1466636386 | G150: 1325998422 | H150: 1348178482 | I150: 1192688341 | J150: 1103368065 | K150: 1254812773 | L150: 1389239129 | M150: 1904495817 | N150: 2238627622 | O150: 3035736188 | P150: 3630786719 | Q150: 3704381723 | R150: 4155025255 | S150: 4347036280 | T150: 38915368463 | Y150: 6 | Z150: 3704381723 | AA150: 4155025255 | AB150: 4347036280 | AD150: 6 | AE150: Hong Kong | AF150: Hong Kong | AG150: Hong Kong
A151: Taiwan | B151: 2810147676 | C151: 1967893642 | D151: 2100385235 | E151: 2219991582 | F151: 2164655742 | G151: 2115978846 | H151: 2189205919 | I151: 2177822206 | J151: 2393737958 | K151: 2551241693 | L151: 3171147903 | M151: 3501527083 | N151: 3061155087 | O151: 3280434120 | P151: 3708124371 | Q151: 3301188178 | R151: 3207430975 | S151: 3638952103 | T151: 49561020319 | Y151: 7 | Z151: 3301188178 | AA151: 3207430975 | AB151: 3638952103 | AD151: 7 | AE151: Taiwan | AF151: Taiwan | AG151: Taiwan
A152: Indonesia | B152: 801398514 | C152: 472193676 | D152: 564476034 | E152: 699368455 | F152: 930333781 | G152: 822295685 | H152: 989099297 | I152: 926924579 | J152: 954421870 | K152: 1105201696 | L152: 1535764228 | M152: 2227827222 | N152: 1790512367 | O152: 2228650838 | P152: 2806066722 | Q152: 2497001793 | R152: 2812027914 | S152: 2947319606 | T152: 27110884277 | Y152: 8 | Z152: 2497001793 | AA152: 2812027914 | AB152: 2947319606 | AD152: 8 | AE152: Indonesia | AF152: Indonesia | AG152: Indonesia
A153: Philippines | B153: 880776227 | C153: 715574816 | D153: 778451585 | E153: 892070432 | F153: 789769120 | G153: 774185599 | H153: 619436207 | I153: 694507077 | J153: 791211425 | K153: 876059684 | L153: 1088858536 | M153: 1718610826 | N153: 1287235731 | O153: 1631084059 | P153: 2100651774 | Q153: 2340853502 | R153: 2609554494 | S153: 2873470158 | T153: 23462361252 | Y153: 9 | Z153: 2424500920 | AA153: 2609554494 | AB153: 2873470158 | AD153: 9 | AE153: Germany | AF153: Philippines | AG153: Philippines
A154: Netherlands | B154: 2103851013 | C154: 1714495085 | D154: 1631438550 | E154: 1534009752 | F154: 1425786897 | G154: 1271971124 | H154: 1244332081 | I154: 1236431671 | J154: 1285442331 | K154: 1812355758 | L154: 1719762362 | M154: 2006449795 | N154: 1473013511 | O154: 1818010310 | P154: 2606630679 | Q154: 2195567894 | R154: 2322633790 | S154: 2848779181 | T154: 32250961784 | Y154: 10 | Z154: 2340853502 | AA154: 2606050948 | AB154: 2848779181 | AD154: 10 | AE154: Philippines | AF154: Germany | AG154: Netherlands
A155: Vietnam | B155: 41831943 | C155: 24199456 | D155: 35562917 | E155: 58183293 | F155: 87274822 | G155: 88799651 | H155: 104424757 | I155: 172049239 | J155: 201475296 | K155: 230216438 | L155: 512085904 | M155: 931585975 | N155: 974050644 | O155: 1396041289 | P155: 1768996323 | Q155: 1775989067 | R155: 2288858270 | S155: 2587253051 | T155: 13278878335 | Y155: 11 | Z155: 2195567894 | AA155: 2322633790 | AB155: 2587253051 | AD155: 11 | AE155: Netherlands | AF155: Netherlands | AG155: Vietnam
A156: Germany | B156: 1427903375 | C156: 1350883469 | D156: 1047403153 | E156: 1089380091 | F156: 1146635073 | G156: 1170036533 | H156: 1199244201 | I156: 1454778404 | J156: 1332454243 | K156: 1383988098 | L156: 1681659141 | M156: 2159784191 | N156: 1547853954 | O156: 1851712449 | P156: 1868432458 | Q156: 2424500920 | R156: 2606050948 | S156: 2521769168 | T156: 29264469869 | Y156: 12 | Z156: 2025656183 | AA156: 2288858270 | AB156: 2521769168 | AD156: 12 | AE156: Turkey | AF156: Vietnam | AG156: Germany
A157: Colombia | B157: 554946636 | C157: 590998408 | D157: 437218838 | E157: 413751592 | F157: 444320212 | G157: 513483599 | H157: 499009402 | I157: 580193770 | J157: 662197664 | K157: 852729559 | L157: 1207309007 | M157: 1658859433 | N157: 882757868 | O157: 807178379 | P157: 1096107763 | Q157: 1074425946 | R157: 1510271781 | S157: 2417185534 | T157: 16202945391 | Y157: 13 | Z157: 1922821688 | AA157: 2192527676 | AB157: 2417185534 | AD157: 13 | AE157: United Kingdom | AF157: Turkey | AG157: Colombia
A158: Turkey | B158: 886569121 | C158: 796121924 | D158: 578685738 | E158: 804810266 | F158: 707197935 | G158: 774290983 | H158: 992199918 | I158: 964687750 | J158: 1086597806 | K158: 1036202831 | L158: 1498690201 | M158: 1741814857 | N158: 1509369833 | O158: 2096884666 | P158: 2473521053 | Q158: 2025656183 | R158: 2192527676 | S158: 2169024711 | T158: 24334853452 | Y158: 14 | Z158: 1872977217 | AA158: 1967830701 | AB158: 2169024711 | AD158: 14 | AE158: Egypt | AF158: Brazil | AG158: Turkey
A159: Spain | B159: 1266662626 | C159: 1197787746 | D159: 826038219 | E159: 792780024 | F159: 813190786 | G159: 808797451 | H159: 987377891 | I159: 918515161 | J159: 841894230 | K159: 779733492 | L159: 1318062351 | M159: 1444321187 | N159: 919867304 | O159: 1210591637 | P159: 1372432328 | Q159: 1466075254 | R159: 1828588415 | S159: 2096626258 | T159: 20889342360 | Y159: 15 | Z159: 1775989067 | AA159: 1887124539 | AB159: 2096626258 | AD159: 15 | AE159: Vietnam | AF159: United Kingdom | AG159: Spain
A160: United Kingdom | B160: 1371764795 | C160: 1302648288 | D160: 1195592319 | E160: 1119658062 | F160: 1183623153 | G160: 1126318162 | H160: 1166553359 | I160: 1336969197 | J160: 1348430038 | K160: 1464901196 | L160: 1604098360 | M160: 1565917434 | N160: 1327850346 | O160: 1556314331 | P160: 1954776120 | Q160: 1922821688 | R160: 1887124539 | S160: 1974963805 | T160: 26410325192 | Y160: 16 | Z160: 1709945302 | AA160: 1828588415 | AB160: 1974963805 | AD160: 16 | AE160: Russia | AF160: Spain | AG160: United Kingdom
A161: Thailand | B161: 586415133 | C161: 450023297 | D161: 448395568 | E161: 539190924 | F161: 612567022 | G161: 642457953 | H161: 721993650 | I161: 723418428 | J161: 692506770 | K161: 721006765 | L161: 925961538 | M161: 1093906370 | N161: 1063533703 | O161: 1182572872 | P161: 1385402638 | Q161: 1530088991 | R161: 1497820280 | S161: 1755212357 | T161: 16572474259 | Y161: 17 | Z161: 1683042216 | AA161: 1655926276 | AB161: 1755212357 | AD161: 17 | AE161: Venezuela | AF161: =IF(ISERROR(INDIRECT("A"&MATCH(AA161,INDIRECT(AF$143),0)+ROW($A$144))),"",INDIRECT("A"&MATCH(AA161,INDIRECT(AF$143),0)+ROW($A$144))) -> Egypt | AG161: =IF(ISERROR(INDIRECT("A"&MATCH(AB161,INDIRECT(AG$143),0)+ROW($A$144))),"",INDIRECT("A"&MATCH(AB161,INDIRECT(AG$143),0)+ROW($A$144))) -> Thailand
A162: Egypt | B162: 1015298548 | C162: 978211477 | D162: 1093741312 | E162: 1061065269 | F162: 1032887125 | G162: 862390704 | H162: 1002199837 | I162: 940578094 | J162: 841527933 | K162: 1003976430 | L162: 1808877414 | M162: 2060183960 | N162: 1365015305 | O162: 2102550504 | P162: 2516262563 | Q162: 1872977217 | R162: 1655926276 | S162: 1753512599 | T162: 24967182567 | Y162: 18 | Z162: 1530088991 | AA162: 1574476087 | AB162: 1753512599 | AD162: 18 | AE162: Thailand | AF162: Australia | AG162: Egypt
A163: Australia | B163: 422789166 | C163: 397657202 | D163: 400548632 | E163: 420243591 | F163: 385404113 | G163: 415012125 | H163: 677218061 | I163: 486938488 | J163: 569200978 | K163: 645827052 | L163: 789599820 | M163: 976054556 | N163: 983840925 | O163: 1120261467 | P163: 1380226217 | Q163: 1494371630 | R163: 1574476087 | S163: 1695320592 | T163: 14834990702 | Y163: 19 | Z163: 1494371630 | AA163: 1536344594 | AB163: 1695320592 | AD163: 19 | AE163: Australia | AF163: Venezuela | AG163: Australia
A164: Brazil | B164: 568084282 | C164: 481709663 | D164: 204008138 | E164: 249347347 | F164: 224691420 | G164: 314503159 | H164: 372659544 | I164: 254660650 | J164: 207850553 | K164: 273375191 | L164: 406782176 | M164: 657136697 | N164: 359371312 | O164: 582655916 | P164: 1897205645 | Q164: 719929256 | R164: 1967830701 | S164: 1651386000 | T164: 11393187650 | Y164: 20 | Z164: 1466075254 | AA164: 1510271781 | AB164: 1651386000 | AD164: 20 | AE164: Spain | AF164: Colombia | AG164: Brazil
A165: Italy | B165: 837393278 | C165: 783977284 | D165: 597695677 | E165: 693301091 | F165: 726097516 | G165: 672186468 | H165: 681881004 | I165: 706442305 | J165: 790704105 | K165: 762383675 | L165: 937776437 | M165: 1038498310 | N165: 878444355 | O165: 943429818 | P165: 1152296248 | Q165: 1014251023 | R165: 1414843617 | S165: 1494249533 | T165: 16125851744 | Y165: 21 | Z165: 1188274496 | AA165: 1497820280 | AB165: 1494249533 | AD165: 21 | AE165: Saudi Arabia | AF165: Thailand | AG165: Italy
A166: United Arab Em | B166: 155381503 | C166: 234111135 | D166: 228575013 | E166: 280050912 | F166: 326161668 | G166: 330694418 | H166: 284302016 | I166: 361398453 | J166: 304277040 | K166: 367554812 | L166: 491521430 | M166: 603072485 | N166: 830366590 | O166: 937501385 | P166: 1171284647 | Q166: 1144928549 | R166: 1375924582 | S166: 1475591917 | T166: 10902698555 | Y166: 22 | Z166: 1159222269 | AA166: 1414843617 | AB166: 1475591917 | AD166: 22 | AE166: Dominican Rep | AF166: Italy | AG166: United Arab Em
A167: Dominican Rep | B167: 587878254 | C167: 558270102 | D167: 614230498 | E167: 561468872 | F167: 629587015 | G167: 598343985 | H167: 524265322 | I167: 542628228 | J167: 621040833 | K167: 718361223 | L167: 877297013 | M167: 1138897942 | N167: 935250429 | O167: 1105854730 | P167: 1288837760 | Q167: 1159222269 | R167: 1199148983 | S167: 1424611375 | T167: 15085194833 | Y167: 23 | Z167: 1144928549 | AA167: 1375924582 | AB167: 1424611375 | AD167: 23 | AE167: United Arab Em | AF167: United Arab Em | AG167: Dominican Rep
A168: Saudi Arabia | B168: 828588938 | C168: 703585525 | D168: 681271484 | E168: 749080819 | F168: 619346435 | G168: 468640867 | H168: 460281852 | I168: 489474126 | J168: 443177349 | K168: 503669063 | L168: 803136375 | M168: 909178063 | N168: 692725757 | O168: 838137401 | P168: 1311866650 | Q168: 1188274496 | R168: 1158803211 | S168: 1364670315 | T168: 14213908726 | Y168: 24 | Z168: 1104720893 | AA168: 1322368612 | AB168: 1364670315 | AD168: 24 | AE168: Nigeria | AF168: Russia | AG168: Saudi Arabia
A169: Venezuela | B169: 570577114 | C169: 511597752 | D169: 419019595 | E169: 415476502 | F169: 410350824 | G169: 343413799 | H169: 366807510 | I169: 388567421 | J169: 416255185 | K169: 396053756 | L169: 602706068 | M169: 1605774191 | N169: 952343490 | O169: 1104874578 | P169: 1224722941 | Q169: 1683042216 | R169: 1536344594 | S169: 1272314678 | T169: 14220242214 | Y169: 25 | Z169: 1074425946 | AA169: 1199148983 | AB169: 1272314678 | AD169: 25 | AE169: Colombia | AF169: Dominican Rep | AG169: Venezuela
A170: Peru | B170: 201603317 | C170: 363858584 | D170: 302242298 | E170: 171514087 | F170: 212166974 | G170: 214456539 | H170: 237298023 | I170: 302243345 | J170: 212523024 | K170: 204708372 | L170: 435878994 | M170: 425452018 | N170: 516023169 | O170: 759435604 | P170: 885519988 | Q170: 636676134 | R170: 786935638 | S170: 1230352189 | T170: 8098888297 | Y170: 26 | Z170: 1014251023 | AA170: 1158803211 | AB170: 1230352189 | AD170: 26 | AE170: Italy | AF170: Saudi Arabia | AG170: Peru
A171: India | B171: 172020931 | C171: 212543019 | D171: 171254591 | E171: 225956688 | F171: 359579319 | G171: 280733876 | H171: 323621175 | I171: 257239059 | J171: 299645668 | K171: 366147275 | L171: 470801118 | M171: 485129338 | N171: 678789231 | O171: 801866089 | P171: 742764127 | Q171: 879143263 | R171: 919610271 | S171: 1134372753 | T171: 8781217791 | Y171: 27 | Z171: 960390954 | AA171: 1114698195 | AB171: 1134372753 | AD171: 27 | AE171: Guatemala | AF171: Nigeria | AG171: India
A172: Guatemala | B172: 260438260 | C172: 310098299 | D172: 274943168 | E172: 253285745 | F172: 291115248 | G172: 333070551 | H172: 341053648 | I172: 384674119 | J172: 451750509 | K172: 582434846 | L172: 683686714 | M172: 830891244 | N172: 674922272 | O172: 794352072 | P172: 1016489352 | Q172: 960390954 | R172: 946278554 | S172: 1107440174 | T172: 10497315729 | Y172: 28 | Z172: 887517757 | AA172: 1032556120 | AB172: 1107440174 | AD172: 28 | AE172: Malaysia | AF172: Malaysia | AG172: Guatemala
A173: Malaysia | B173: 516530971 | C173: 297027784 | D173: 322315109 | E173: 311611065 | F173: 398107525 | G173: 379746597 | H173: 376743653 | I173: 385465887 | J173: 391655218 | K173: 416909138 | L173: 571666735 | M173: 614795551 | N173: 695656014 | O173: 720545555 | P173: 1002513287 | Q173: 887517757 | R173: 1032556120 | S173: 981866293 | T173: 10303230259 | Y173: 29 | Z173: 879143263 | AA173: 946278554 | AB173: 981866293 | AD173: 29 | AE173: India | AF173: Guatemala | AG173: Malaysia
A174: Russia | B174: 1490857029 | C174: 1018603483 | D174: 540265825 | E174: 867181888 | F174: 997982636 | G174: 626932634 | H174: 619036454 | I174: 832057967 | J174: 994738386 | K174: 884551273 | L174: 1369212649 | M174: 1869337603 | N174: 1455759455 | O174: 1182220195 | P174: 1292882612 | Q174: 1709945302 | R174: 1322368612 | S174: 951004168 | T174: 20024938171 | Y174: 30 | Z174: 731160027 | AA174: 923150784 | AB174: 951004168 | AD174: 30 | AE174: Singapore | AF174: Chile | AG174: Russia
A175: Chile | B175: 147453369 | C175: 143267596 | D175: 161128572 | E175: 118107759 | F175: 106897570 | G175: 120161924 | H175: 149374499 | I175: 117620164 | J175: 146483586 | K175: 312777593 | L175: 408892028 | M175: 466455901 | N175: 247952403 | O175: 428872328 | P175: 583346923 | Q175: 712817835 | R175: 923150784 | S175: 929417699 | T175: 6224178533 | Y175: 31 | Z175: 719929256 | AA175: 919610271 | AB175: 929417699 | AD175: 31 | AE175: Brazil | AF175: India | AG175: Chile
A176: Nigeria | B176: 115204766 | C176: 150161385 | D176: 172749637 | E176: 178795790 | F176: 245910562 | G176: 303549474 | H176: 324772156 | I176: 443258239 | J176: 552841653 | K176: 508549286 | L176: 727449260 | M176: 1055366766 | N176: 841970779 | O176: 962351748 | P176: 1356644631 | Q176: 1104720893 | R176: 1114698195 | S176: 881760424 | T176: 11040755644 | Y176: 32 | Z176: 712817835 | AA176: 887369740 | AB176: 881760424 | AD176: 32 | AE176: Chile | AF176: France | AG176: Nigeria
A177: France | B177: 636758144 | C177: 582293612 | D177: 451666516 | E177: 418790224 | F177: 460161951 | G177: 492002611 | H177: 517535565 | I177: 535686745 | J177: 588997881 | K177: 641771235 | L177: 702266289 | M177: 778476905 | N177: 582999158 | O177: 774483500 | P177: 798627397 | Q177: 701349490 | R177: 887369740 | S177: 865001332 | T177: 11416238295 | Y177: 33 | Z177: 701349490 | AA177: 786935638 | AB177: 865001332 | AD177: 33 | AE177: France | AF177: Peru | AG177: France
A178: Singapore | B178: 374221873 | C178: 309242042 | D178: 284736899 | E178: 308867017 | F178: 275961067 | G178: 285053738 | H178: 292340879 | I178: 293224267 | J178: 324368045 | K178: 316503128 | L178: 376209694 | M178: 496529049 | N178: 464825588 | O178: 513616120 | P178: 662084832 | Q178: 731160027 | R178: 784665318 | S178: 858461888 | T178: 7952071471 | Y178: 34 | Z178: 682461588 | AA178: 784665318 | AB178: 858461888 | AD178: 34 | AE178: Belgium | AF178: Singapore | AG178: Singapore
A179: Panama | B179: 214010879 | C179: 260524845 | D179: 204279691 | E179: 182086354 | F179: 191080770 | G179: 193419153 | H179: 204013237 | I179: 174592092 | J179: 207773425 | K179: 228222070 | L179: 335814081 | M179: 465682591 | N179: 390681891 | O179: 481252384 | P179: 559788625 | Q179: 568764670 | R179: 712479572 | S179: 813208066 | T179: 6387674396 | Y179: 35 | Z179: 664812534 | AA179: 712479572 | AB179: 813208066 | AD179: 35 | AE179: Morocco | AF179: Panama | AG179: Panama
A180: Belgium | B180: 1788145849 | C180: 1618342279 | D180: 951401278 | E180: 723635270 | F180: 728739193 | G180: 651891776 | H180: 706998928 | I180: 571144850 | J180: 585160323 | K180: 570723686 | L180: 629930589 | M180: 574585746 | N180: 560550080 | O180: 811621458 | P180: 730483740 | Q180: 682461588 | R180: 668014800 | S180: 755151948 | T180: 14308983381 | Y180: 36 | Z180: 640610108 | AA180: 668014800 | AB180: 755151948 | AD180: 36 | AE180: Israel | AF180: Belgium | AG180: Belgium
A181: Israel | B181: 612217098 | C181: 473378391 | D181: 539252462 | E181: 596042840 | F181: 516625306 | G181: 528861909 | H181: 493707835 | I181: 551817805 | J181: 334146855 | K181: 442951347 | L181: 630338855 | M181: 887085325 | N181: 484635959 | O181: 669222877 | P181: 906621251 | Q181: 640610108 | R181: 642089365 | S181: 706941899 | T181: 10656547487 | Y181: 37 | Z181: 636676134 | AA181: 642089365 | AB181: 706941899 | AD181: 37 | AE181: Peru | AF181: Israel | AG181: Israel
A182: Honduras | B182: 170656228 | C182: 191797233 | D182: 199780989 | E182: 206666148 | F182: 207658766 | G182: 192537914 | H182: 208307719 | I182: 227301359 | J182: 258637429 | K182: 355288299 | L182: 403412986 | M182: 521376876 | N182: 453236543 | O182: 465867661 | P182: 643925270 | Q182: 617212177 | R182: 578680709 | S182: 631406300 | T182: 6533750606 | Y182: 38 | Z182: 634670095 | AA182: 578680709 | AB182: 631406300 | AD182: 38 | AE182: Costa Rica | AF182: Honduras | AG182: Honduras
A183: Costa Rica | B183: 209175321 | C183: 222222630 | D183: 197913068 | E183: 195756833 | F183: 204897952 | G183: 234848956 | H183: 260648531 | I183: 300979335 | J183: 339654475 | K183: 360836700 | L183: 472043757 | M183: 625349973 | N183: 467682886 | O183: 501854575 | P183: 669842521 | Q183: 634670095 | R183: 494516578 | S183: 618720107 | T183: 7011614293 | Y183: 39 | Z183: 617212177 | AA183: 494516578 | AB183: 618720107 | AD183: 39 | AE183: Honduras | AF183: Costa Rica | AG183: Costa Rica
A184: El Salvador | B184: 233394423 | C184: 243459168 | D184: 200471727 | E184: 212603045 | F184: 234379097 | G184: 211000451 | H184: 237015464 | I184: 245339886 | J184: 237513474 | K184: 278416337 | L184: 345976605 | M184: 455657497 | N184: 379402924 | O184: 427733991 | P184: 604745558 | Q184: 510783985 | R184: 470444674 | S184: 561745653 | T184: 6090083959 | Y184: 40 | Z184: 568764670 | AA184: 480703321 | AB184: 561745653 | AD184: 40 | AE184: Panama | AF184: Switzerland | AG184: El Salvador
A185: New Zealand | B185: 128150912 | C185: 134013709 | D185: 114010260 | E185: 109933341 | F185: 118573618 | G185: 119458281 | H185: 154395015 | I185: 125294999 | J185: 161848122 | K185: 174729709 | L185: 226720817 | M185: 241975601 | N185: 257183368 | O185: 280521949 | P185: 342616144 | Q185: 416072158 | R185: 433714082 | S185: 493642398 | T185: 4032854483 | Y185: 41 | Z185: 510783985 | AA185: 477363945 | AB185: 493642398 | AD185: 41 | AE185: El Salvador | AF185: Jamaica | AG185: New Zealand
A186: Jamaica | B186: 206065835 | C186: 195980958 | D186: 189173295 | E186: 176082131 | F186: 185434928 | G186: 186601487 | H186: 191616239 | I186: 209814920 | J186: 209041527 | K186: 246456858 | L186: 313743907 | M186: 441730320 | N186: 359303227 | O186: 401567249 | P186: 472170947 | Q186: 498725487 | R186: 477363945 | S186: 469064418 | T186: 5429937678 | Y186: 42 | Z186: 498725487 | AA186: 470444674 | AB186: 469064418 | AD186: 42 | AE186: Jamaica | AF186: El Salvador | AG186: Jamaica
A187: Ecuador | B187: 190664389 | C187: 184485605 | D187: 110616232 | E187: 105782218 | F187: 112375994 | G187: 143894236 | H187: 109711949 | I187: 140286172 | J187: 122903613 | K187: 142468876 | L187: 231583212 | M187: 243760206 | N187: 226521642 | O187: 243644806 | P187: 340062398 | Q187: 471673799 | R187: 430236676 | S187: 446253373 | T187: 3996925396 | Y187: 43 | Z187: 471673799 | AA187: 444135760 | AB187: 446253373 | AD187: 43 | AE187: Ecuador | AF187: Morocco | AG187: Ecuador
A188: Trin & Tobago | B188: 116939818 | C188: 110205253 | D188: 103341497 | E188: 108098296 | F188: 115183143 | G188: 120419770 | H188: 118834298 | I188: 156711582 | J188: 150315974 | K188: 173421373 | L188: 224200018 | M188: 303925956 | N188: 282846790 | O188: 304601750 | P188: 333357255 | Q188: 362356513 | R188: 403007627 | S188: 419375107 | T188: 3907142020 | Y188: 44 | Z188: 456149549 | AA188: 433714082 | AB188: 419375107 | AD188: 44 | AE188: Cuba | AF188: New Zealand | AG188: Trin & Tobago
A189: Ireland | B189: 223298356 | C189: 264153865 | D189: 193107612 | E189: 275988779 | F189: 230946340 | G189: 198846569 | H189: 204779440 | I189: 232846626 | J189: 218368551 | K189: 262280256 | L189: 284154872 | M189: 362843156 | N189: 226599250 | O189: 294043817 | P189: 296753580 | Q189: 284662958 | R189: 405758634 | S189: 412651554 | T189: 4872084215 | Y189: 45 | Z189: 416072158 | AA189: 430236676 | AB189: 412651554 | AD189: 45 | AE189: New Zealand | AF189: Ecuador | AG189: Ireland
A190: Morocco | B190: 196728800 | C190: 159431657 | D190: 186376870 | E190: 171830432 | F190: 90099011 | G190: 123156538 | H190: 152100354 | I190: 175939990 | J190: 172210702 | K190: 301848984 | L190: 675093244 | M190: 530501113 | N190: 507891400 | O190: 773564565 | P190: 929827631 | Q190: 664812534 | R190: 444135760 | S190: 411944609 | T190: 6667494194 | Y190: 46 | Z190: 362356513 | AA190: 405758634 | AB190: 411944609 | AD190: 46 | AE190: Trin & Tobago | AF190: Ireland | AG190: Morocco
A191: Switzerland | B191: 530442363 | C191: 254820838 | D191: 455021971 | E191: 375379879 | F191: 568952272 | G191: 505110659 | H191: 273153197 | I191: 166488132 | J191: 176405641 | K191: 227509243 | L191: 254083395 | M191: 380762606 | N191: 337901966 | O191: 276392434 | P191: 353634889 | Q191: 321525626 | R191: 480703321 | S191: 394348886 | T191: 6332637318 | Y191: 47 | Z191: 352744457 | AA191: 403007627 | AB191: 394348886 | AD191: 47 | AE191: Haiti | AF191: Trin & Tobago | AG191: Switzerland
A192: Portugal | B192: 261632450 | C192: 176297989 | D192: 187480744 | E192: 152030824 | F192: 189556344 | G192: 239910806 | H192: 242711831 | I192: 193607912 | J192: 191038374 | K192: 178571307 | L192: 322660247 | M192: 323808901 | N192: 111036266 | O192: 151208468 | P192: 289362223 | Q192: 224939114 | R192: 151182951 | S192: 353509667 | T192: 3940546418 | Y192: 48 | Z192: 321525626 | AA192: 388054055 | AB192: 353509667 | AD192: 48 | AE192: Switzerland | AF192: Haiti | AG192: Portugal
A193: Haiti | B193: 201359013 | C193: 214991763 | D193: 217920086 | E193: 180174094 | F193: 176715091 | G193: 168973289 | H193: 189777758 | I193: 203274829 | J193: 198161753 | K193: 207984596 | L193: 243166607 | M193: 404655169 | N193: 322054875 | O193: 358603325 | P193: 322264267 | Q193: 352744457 | R193: 388054055 | S193: 351418554 | T193: 4702293581 | Y193: 49 | Z193: 302968537 | AA193: 369424889 | AB193: 351418554 | AD193: 49 | AE193: Pakistan | AF193: Pakistan | AG193: Haiti
A194: Bangladesh | B194: 120826219 | C194: 164715273 | D194: 123945900 | E194: 87447569 | F194: 141979505 | G194: 132755401 | H194: 92054003 | I194: 111733314 | J194: 82774381 | K194: 79639402 | L194: 200667301 | M194: 173700528 | N194: 168680643 | O194: 284584546 | P194: 436473815 | Q194: 184565390 | R194: 254106103 | S194: 338344686 | T194: 3178993979 | Y194: 50 | Z194: 284662958 | AA194: 365981245 | AB194: 338344686 | AD194: 50 | AE194: Ireland | AF194: Poland | AG194: Bangladesh
A195: Denmark | B195: 230316220 | C195: 206089120 | D195: 161464469 | E195: 153521031 | F195: 145083516 | G195: 137978746 | H195: 161371482 | I195: 152039050 | J195: 143114854 | K195: 165712439 | L195: 201830998 | M195: 235776023 | N195: 147032460 | O195: 175383607 | P195: 220796305 | Q195: 217420537 | R195: 353575148 | S195: 309966577 | T195: 3518472582 | Y195: 51 | Z195: 271410449 | AA195: 353575148 | AB195: 309966577 | AD195: 51 | AE195: Bahamas | AF195: Denmark | AG195: Denmark
A196: Angola | B196: 28283701 | C196: 28255302 | D196: 23083410 | E196: 54767434 | F196: 27960364 | G196: 46292387 | H196: 65324630 | I196: 57640359 | J196: 74710745 | K196: 80419862 | L196: 95858322 | M196: 142427870 | N196: 78665510 | O196: 172524088 | P196: 228453197 | Q196: 266227396 | R196: 268996082 | S196: 296905519 | T196: 2036796178 | Y196: 52 | Z196: 266227396 | AA196: 347496804 | AB196: 296905519 | AD196: 52 | AE196: Angola | AF196: Cuba | AG196: Angola
A197: Cuba | B197: 12681 | D197: 3730 | E197: 33721 | F197: 4030811 | G197: 138338397 | H197: 250263965 | I197: 378816210 | J197: 338258023 | K197: 327620209 | L197: 430495157 | M197: 690362869 | N197: 523367220 | O197: 347788152 | P197: 351084740 | Q197: 456149549 | R197: 347496804 | S197: 284900015 | T197: 4869022253 | Y197: 53 | Z197: 265751497 | AA197: 330487019 | AB197: 284900015 | AD197: 53 | AE197: South Africa | AF197: Ukraine | AG197: Cuba
A198: Bahamas | B198: 124052339 | C198: 122352138 | D198: 130183367 | E198: 137698362 | F198: 143811691 | G198: 140258516 | H198: 144854697 | I198: 156831354 | J198: 179353103 | K198: 201170385 | L198: 204493174 | M198: 214905645 | N198: 242785840 | O198: 242901120 | P198: 255525521 | Q198: 271410449 | R198: 262682020 | S198: 275661993 | T198: 3450931714 | Y198: 54 | Z198: 253507271 | AA198: 291931248 | AB198: 275661993 | AD198: 54 | AE198: Nicaragua | AF198: Algeria | AG198: Bahamas
A199: South Africa | B199: 232582781 | C199: 215736113 | D199: 191849867 | E199: 135455518 | F199: 101888876 | G199: 152506137 | H199: 150781232 | I199: 200697709 | J199: 179375108 | K199: 147878584 | L199: 326463533 | M199: 415220138 | N199: 176999287 | O199: 301491406 | P199: 364468395 | Q199: 265751497 | R199: 285381451 | S199: 250936856 | T199: 4095464488 | Y199: 55 | Z199: 233839575 | AA199: 285381451 | AB199: 250936856 | AD199: 55 | AE199: Tunisia | AF199: South Africa | AG199: South Africa
A200: Kuwait | B200: 89074454 | C200: 92003037 | D200: 102850743 | E200: 93810724 | F200: 93213452 | G200: 74568595 | H200: 155823510 | I200: 99301983 | J200: 97354219 | K200: 109939597 | L200: 142629326 | M200: 173335641 | N200: 143250684 | O200: 158033164 | P200: 218554586 | Q200: 204054159 | R200: 235879548 | S200: 246271861 | T200: 2529949283 | Y200: 56 | Z200: 224939114 | AA200: 268996082 | AB200: 246271861 | AD200: 56 | AE200: Portugal | AF200: Angola | AG200: Kuwait
A201: Tunisia | B201: 123380812 | C201: 85713027 | D201: 75567430 | E201: 90882549 | F201: 107735172 | G201: 95202437 | H201: 85065082 | I201: 160883485 | J201: 108204409 | K201: 176682732 | L201: 190594292 | M201: 183653009 | N201: 181132204 | O201: 267235328 | P201: 320313388 | Q201: 233839575 | R201: 175836840 | S201: 245497912 | T201: 2907419683 | Y201: 57 | Z201: 224674613 | AA201: 262682020 | AB201: 245497912 | AD201: 57 | AE201: Sweden | AF201: Bahamas | AG201: Tunisia
A202: Pakistan | B202: 441106177 | C202: 193726809 | D202: 87990641 | E202: 56631351 | F202: 134607390 | G202: 195223953 | H202: 233031475 | I202: 299039045 | J202: 224206441 | K202: 193745365 | L202: 352063046 | M202: 313835966 | N202: 307014934 | O202: 348471638 | P202: 498557208 | Q202: 302968537 | R202: 369424889 | S202: 242427258 | T202: 4794072123 | Y202: 58 | Z202: 218696240 | AA202: 256622068 | AB202: 242427258 | AD202: 58 | AE202: Ukraine | AF202: Jordan | AG202: Pakistan
A203: Jordan | B203: 149857932 | C203: 101196353 | D203: 99593014 | E203: 109693659 | F203: 144157290 | G203: 103545262 | H203: 95905095 | I203: 136419747 | J203: 94184562 | K203: 147135020 | L203: 133805273 | M203: 149258628 | N203: 223424392 | O203: 195395416 | P203: 385905939 | Q203: 218630724 | R203: 256622068 | S203: 228245256 | T203: 2972975630 | Y203: 59 | Z203: 218630724 | AA203: 254106103 | AB203: 228245256 | AD203: 59 | AE203: Jordan | AF203: Bangladesh | AG203: Jordan
A204: Algeria | B204: 315726461 | C204: 257730636 | D204: 221459964 | E204: 258325937 | F204: 230022143 | G204: 269874924 | H204: 201890949 | I204: 292170061 | J204: 189956402 | K204: 231666582 | L204: 520414442 | M204: 367805782 | N204: 172657709 | O204: 186449810 | P204: 171649847 | Q204: 218321380 | R204: 291931248 | S204: 228029412 | T204: 4626083689 | Y204: 60 | Z204: 218321380 | AA204: 244154077 | AB204: 228029412 | AD204: 60 | AE204: Algeria | AF204: Sweden | AG204: Algeria
A205: Nicaragua | B205: 68307768 | C205: 75839418 | D205: 83891947 | E205: 74278341 | F205: 102013505 | G205: 79864040 | H205: 98568079 | I205: 112162957 | J205: 124285063 | K205: 147152469 | L205: 183866151 | M205: 237312278 | N205: 182399690 | O205: 240096289 | P205: 263469660 | Q205: 253507271 | R205: 201622286 | S205: 220932036 | T205: 2749569248 | Y205: 61 | Z205: 217420537 | AA205: 235879548 | AB205: 220932036 | AD205: 61 | AE205: Denmark | AF205: Kuwait | AG205: Nicaragua
A206: Sweden | B206: 143107159 | C206: 130506637 | D206: 106785843 | E206: 98149505 | F206: 102510110 | G206: 90411512 | H206: 93753655 | I206: 93344071 | J206: 145335441 | K206: 138797072 | L206: 138829312 | M206: 144238463 | N206: 129556240 | O206: 147681285 | P206: 178413896 | Q206: 224674613 | R206: 244154077 | S206: 220351451 | T206: 2570600342 | Y206: 62 | Z206: 204054159 | AA206: 201622286 | AB206: 220351451 | AD206: 62 | AE206: Kuwait | AF206: Nicaragua | AG206: Sweden
A207: Iraq | B207: 81943734 | C207: 96148253 | D207: 9252330 | E207: 8494924 | F207: 7565498 | G207: 21000 | H207: 80812185 | I207: 67426046 | J207: 325604726 | K207: 455205916 | L207: 591943718 | M207: 893482273 | N207: 156145723 | O207: 288939444 | P207: 657758614 | Q207: 145815268 | R207: 153240115 | S207: 207546959 | T207: 4227346726 | Y207: 63 | Z207: 191114217 | AA207: 201377263 | AB207: 207546959 | AD207: 63 | AE207: Poland | AF207: Iran | AG207: Iraq
A208: Poland | B208: 152868725 | C208: 152627046 | D208: 99682148 | E208: 49325466 | F208: 79572240 | G208: 59157210 | H208: 58383655 | I208: 79984190 | J208: 79893534 | K208: 97298372 | L208: 99661010 | M208: 140711242 | N208: 155556897 | O208: 201824522 | P208: 170477679 | Q208: 191114217 | R208: 365981245 | S208: 195703422 | T208: 2429822820 | Y208: 64 | Z208: 184565390 | AA208: 183834035 | AB208: 195703422 | AD208: 64 | AE208: Bangladesh | AF208: Ghana | AG208: Poland
A209: Ukraine | B209: 120705247 | C209: 104506341 | D209: 35108088 | E209: 20427611 | F209: 19989327 | G209: 13973039 | H209: 19879049 | I209: 127828007 | J209: 119490104 | K209: 154619015 | L209: 280653420 | M209: 343681962 | N209: 174725036 | O209: 193463400 | P209: 173114320 | Q209: 218696240 | R209: 330487019 | S209: 162405331 | T209: 2613752556 | Y209: 65 | Z209: 178793937 | AA209: 179871109 | AB209: 162405331 | AD209: 65 | AE209: Ghana | AF209: Transshipment | AG209: Ukraine
A210: Greece | B210: 183089899 | C210: 151889941 | D210: 105607985 | E210: 92793512 | F210: 116873605 | G210: 113371878 | H210: 123433587 | I210: 125767881 | J210: 165382517 | K210: 146117677 | L210: 181641394 | M210: 174629948 | N210: 134995879 | O210: 149256118 | P210: 124199704 | Q210: 115797983 | R210: 145628203 | S210: 137578694 | T210: 2488056405 | Y210: 66 | Z210: =IF(ISNUMBER(LARGE(INDIRECT(Z$143),$Y210)),LARGE(INDIRECT(Z$143),$Y210),0) -> 157193731 | AA210: 175836840 | AB210: 137578694 | AD210: 66 | AE210: =IF(ISERROR(INDIRECT("A"&MATCH(Z210,INDIRECT(AE$143),0)+ROW($A$144))),"",INDIRECT("A"&MATCH(Z210,INDIRECT(AE$143),0)+ROW($A$144))) -> Lithuania | AF210: Tunisia | AG210: Greece
A211: Argentina | B211: 347165266 | C211: 198118081 | D211: 143739517 | E211: 134647262 | F211: 108924024 | G211: 44975885 | H211: 60055092 | I211: 59473480 | J211: 66067422 | K211: 73782393 | L211: 79831439 | M211: 110332816 | N211: 91387808 | O211: 122904001 | P211: 139868536 | Q211: 148198826 | R211: 139329685 | S211: 136372725 | T211: 2205174258 | Y211: =Y210+1 -> 67 | Z211: 149508680 | AA211: 173255177 | AB211: 136372725 | AD211: =AD210+1 -> 67 | AE211: Yemen | AF211: Libya | AG211: Argentina
A212: Sri Lanka | B212: 40727876 | C212: 62337799 | D212: 55519145 | E212: 54799179 | F212: 72011600 | G212: 30524899 | H212: 25159180 | I212: 15495432 | J212: 18874199 | K212: 15307047 | L212: 71678330 | M212: 66228047 | N212: 70469096 | O212: 40878698 | P212: 93533601 | Q212: 44310143 | R212: 127205900 | S212: 135664505 | T212: 1040724676 | Y212: 68 | Z212: 148198826 | AA212: 169011920 | AB212: 135664505 | AD212: 68 | AE212: Argentina | AF212: Norway | AG212: Sri Lanka
A213: Lithuania | B213: 23618297 | C213: 4048912 | D213: 4566238 | E213: 5554614 | F213: 19628433 | G213: 15469424 | H213: 27511210 | I213: 81026087 | J213: 111061859 | K213: 115213833 | L213: 143245744 | M213: 165182829 | N213: 119102499 | O213: 130465438 | P213: 128604386 | Q213: 157193731 | R213: 164087699 | S213: 134144282 | T213: 1549725515 | Y213: 69 | Z213: 147021993 | AA213: 164087699 | AB213: 134144282 | AD213: 69 | AE213: Iran | AF213: Lithuania | AG213: Lithuania
A214: Ghana | B214: 53531723 | C214: 47383600 | D214: 53619940 | E214: 39815098 | F214: 41895827 | G214: 48034864 | H214: 56193559 | I214: 77468720 | J214: 83169444 | K214: 58694255 | L214: 78124070 | M214: 80333648 | N214: 52068411 | O214: 71795328 | P214: 117336910 | Q214: 178793937 | R214: 183834035 | S214: 129443413 | T214: 1451536782 | Y214: 70 | Z214: 145815268 | AA214: 157569042 | AB214: 129443413 | AD214: 70 | AE214: Iraq | AF214: Yemen | AG214: Ghana
A215: Norway | B215: 95037913 | C215: 105590862 | D215: 94556210 | E215: 87393249 | F215: 99780016 | G215: 86510587 | H215: 93040028 | I215: 95679385 | J215: 113190458 | K215: 99591995 | L215: 128274679 | M215: 132703309 | N215: 92358062 | O215: 124115262 | P215: 111536687 | Q215: 112537875 | R215: 169011920 | S215: 128522042 | T215: 1969430539 | Y215: 71 | Z215: 145720578 | AA215: 153240115 | AB215: 128522042 | AD215: 71 | AE215: Finland | AF215: Iraq | AG215: Norway
A216: Finland | B216: 143470438 | C216: 92437011 | D216: 93240552 | E216: 73576795 | F216: 70018300 | G216: 51798156 | H216: 50276443 | I216: 49825968 | J216: 51121688 | K216: 45691178 | L216: 48263399 | M216: 53829970 | N216: 41518527 | O216: 64599822 | P216: 166283244 | Q216: 145720578 | R216: 114826184 | S216: 126842656 | T216: 1483340909 | Y216: 72 | Z216: 136847210 | AA216: 151182951 | AB216: 126842656 | AD216: 72 | AE216: Oman | AF216: Portugal | AG216: Finland
A217: Lebanon | B217: 278690889 | C217: 261536331 | D217: 165962277 | E217: 167710063 | F217: 159325351 | G217: 108414543 | H217: 109649521 | I217: 131981693 | J217: 112081564 | K217: 110764379 | L217: 131913096 | M217: 137883854 | N217: 130444128 | O217: 150039890 | P217: 151945055 | Q217: 113958330 | R217: 104929942 | S217: 113934372 | T217: 2641165278 | Y217: 73 | Z217: 130330899 | AA217: 145628203 | AB217: 113934372 | AD217: 73 | AE217: Georgia | AF217: Greece | AG217: Lebanon
A218: Barbados | B218: 44839868 | C218: 42125338 | D218: 45314787 | E218: 42305145 | F218: 49804930 | G218: 40524252 | H218: 40665122 | I218: 46105851 | J218: 52518449 | K218: 52335475 | L218: 62460686 | M218: 89745873 | N218: 83551006 | O218: 80279499 | P218: 95530952 | Q218: 94521158 | R218: 99711622 | S218: 107899702 | T218: 1170239715 | Y218: 74 | Z218: 125910247 | AA218: 139329685 | AB218: 107899702 | AD218: 74 | AE218: Libya | AF218: Argentina | AG218: Barbados
A219: Georgia | B219: 93812541 | C219: 90504470 | D219: 47477314 | E219: 56689587 | F219: 46192534 | G219: 36361499 | H219: 48065628 | I219: 81371172 | J219: 76050280 | K219: 45575470 | L219: 44693823 | M219: 78120468 | N219: 82121171 | O219: 97828110 | P219: 127985143 | Q219: 130330899 | R219: 111221652 | S219: 106414828 | T219: 1400816589 | Y219: 75 | Z219: 125232261 | AA219: 127205900 | AB219: 106414828 | AD219: 75 | AE219: Kazakhstan | AF219: Sri Lanka | AG219: Georgia
A220: Libya | E220: 17915500 | F220: 9008500 | G220: 18263813 | H220: 207883 | I220: 12690535 | J220: 3080940 | K220: 33782425 | L220: 75057921 | M220: 42868492 | N220: 41384677 | O220: 107689554 | P220: 195983912 | Q220: 125910247 | R220: 173255177 | S220: 104392925 | T220: 961492501 | Y220: 76 | Z220: 115797983 | AA220: 114826184 | AB220: 104392925 | AD220: 76 | AE220: Greece | AF220: Finland | AG220: Libya
A221: Bermuda | B221: 74488745 | C221: 76058843 | D221: 72222112 | E221: 70642706 | F221: 60900452 | G221: 60471975 | H221: 60443569 | I221: 62217772 | J221: 70274610 | K221: 86024879 | L221: 100099454 | M221: 115077450 | N221: 116033559 | O221: 105454694 | P221: 106325580 | Q221: 97270125 | R221: 97862378 | S221: 101831076 | T221: 1533699979 | Y221: 77 | Z221: 113958330 | AA221: 111221652 | AB221: 101831076 | AD221: 77 | AE221: Lebanon | AF221: Georgia | AG221: Bermuda
A222: Yemen | B222: 65230221 | C222: 76632684 | D222: 94944363 | E222: 106596382 | F222: 97229111 | G222: 105164335 | H222: 87763266 | I222: 136677517 | J222: 94220141 | K222: 122752458 | L222: 307343460 | M222: 185748739 | N222: 162424097 | O222: 121443479 | P222: 201712513 | Q222: 149508680 | R222: 157569042 | S222: 98373154 | T222: 2371333642 | Y222: 78 | Z222: 112537875 | AA222: 104929942 | AB222: 98373154 | AD222: 78 | AE222: Norway | AF222: Lebanon | AG222: Yemen
A223: Latvia | B223: 125715248 | C223: 116150305 | D223: 149085482 | E223: 80752750 | F223: 48704959 | G223: 37420043 | H223: 36411663 | I223: 20548602 | J223: 30542017 | K223: 35119249 | L223: 62073352 | M223: 96298601 | N223: 83941338 | O223: 82253452 | P223: 102855446 | Q223: 109918938 | R223: 72336262 | S223: 92231733 | T223: 1382359440 | Y223: 79 | Z223: 109918938 | AA223: 102015096 | AB223: 92231733 | AD223: 79 | AE223: Latvia | AF223: Djibouti | AG223: Latvia
A224: Qatar | B224: 14552130 | C224: 17011389 | D224: 15555048 | E224: 14705600 | F224: 15330432 | G224: 20024198 | H224: 17149035 | I224: 14861573 | J224: 17758984 | K224: 22106012 | L224: 26163950 | M224: 31049815 | N224: 37481081 | O224: 46284702 | P224: 61202236 | Q224: 70467262 | R224: 78507061 | S224: 87179634 | T224: 607390142 | Y224: 80 | Z224: 97512129 | AA224: 99711622 | AB224: 87179634 | AD224: 80 | AE224: Ethiopia | AF224: Barbados | AG224: Qatar
A225: Kenya | B225: 31922903 | C225: 60013121 | D225: 28167230 | E225: 27251800 | F225: 18798139 | G225: 42785385 | H225: 32956479 | I225: 36333610 | J225: 31107462 | K225: 75966200 | L225: 82060210 | M225: 93469042 | N225: 153167218 | O225: 78372260 | P225: 92830071 | Q225: 79600403 | R225: 78501706 | S225: 86883641 | T225: 1130186880 | Y225: 81 | Z225: 97270125 | AA225: 97862378 | AB225: 86883641 | AD225: 81 | AE225: Bermuda | AF225: =IF(ISERROR(INDIRECT("A"&MATCH(AA225,INDIRECT(AF$143),0)+ROW($A$144))),"",INDIRECT("A"&MATCH(AA225,INDIRECT(AF$143),0)+ROW($A$144))) -> Bermuda | AG225: =IF(ISERROR(INDIRECT("A"&MATCH(AB225,INDIRECT(AG$143),0)+ROW($A$144))),"",INDIRECT("A"&MATCH(AB225,INDIRECT(AG$143),0)+ROW($A$144))) -> Kenya
A226: Aruba | B226: 44370987 | C226: 33721536 | D226: 34201082 | E226: 31981724 | F226: 32725047 | G226: 32884605 | H226: 34503042 | I226: 34379626 | J226: 36050949 | K226: 43753274 | L226: 44930037 | M226: 54691641 | N226: 60007911 | O226: 64525198 | P226: 78715136 | Q226: 83556290 | R226: 81883163 | S226: 84790144 | T226: 911671392 | Y226: 82 | Z226: 94521158 | AA226: 81883163 | AB226: 84790144 | AD226: 82 | AE226: Barbados | AF226: Aruba | AG226: Aruba
A227: Uruguay | B227: 22270960 | C227: 19170854 | D227: 22068182 | E227: 22293192 | F227: 26862039 | G227: 20160083 | H227: 23619179 | I227: 16722291 | J227: 17495152 | K227: 22722984 | L227: 28642060 | M227: 31927482 | N227: 30403387 | O227: 36352163 | P227: 49466774 | Q227: 58864074 | R227: 80851705 | S227: 84775005 | T227: 614667566 | Y227: 83 | Z227: 88180493 | AA227: 80851705 | AB227: 84775005 | AD227: 83 | AE227: Romania | AF227: Uruguay | AG227: Uruguay
A228: Ethiopia | B228: 17761109 | C228: 29532981 | D228: 29521542 | E228: 113990158 | F228: 26274026 | G228: 10624156 | H228: 154581004 | I228: 115062951 | J228: 157045468 | K228: 59466466 | L228: 93176162 | M228: 165097558 | N228: 95454891 | O228: 153590190 | P228: 107093673 | Q228: 97512129 | R228: 67694712 | S228: 82418698 | T228: 1575897874 | Y228: 84 | Z228: 83556290 | AA228: 80479423 | AB228: 82418698 | AD228: 84 | AE228: Aruba | AF228: Kazakhstan | AG228: Ethiopia
A229: Iran | D229: 47679556 | E229: 14502169 | F229: 4782955 | G229: 23976616 | H229: 79563368 | I229: 51277424 | J229: 59278667 | K229: 27612649 | L229: 64198900 | M229: 592688621 | N229: 166266856 | O229: 83909734 | P229: 66280146 | Q229: 147021993 | R229: 201377263 | S229: 78746156 | T229: 1709163073 | Y229: 85 | Z229: 79600403 | AA229: 78507061 | AB229: 78746156 | AD229: 85 | AE229: Kenya | AF229: Qatar | AG229: Iran
A230: Bahrain | B230: 19397155 | C230: 28629492 | D230: 35497497 | E230: 19579403 | F230: 36241802 | G230: 34338468 | H230: 22835044 | I230: 22549607 | J230: 18555257 | K230: 19493756 | L230: 22975297 | M230: 58683706 | N230: 33411823 | O230: 44601301 | P230: 53940441 | Q230: 61065566 | R230: 78042870 | S230: 76209205 | T230: 686047690 | Y230: 86 | Z230: 78178593 | AA230: 78501706 | AB230: 76209205 | AD230: 86 | AE230: Congo (DROC) | AF230: Kenya | AG230: Bahrain
A231: Cayman Is | B231: 37154526 | C231: 45601182 | D231: 38271164 | E231: 40895121 | F231: 37681236 | G231: 32506521 | H231: 33019752 | I231: 33483146 | J231: 39370651 | K231: 52909080 | L231: 63767220 | M231: 67686799 | N231: 57997592 | O231: 59680251 | P231: 56229569 | Q231: 61970362 | R231: 68326634 | S231: 74227544 | T231: 900778350 | Y231: 87 | Z231: 70467262 | AA231: 78042870 | AB231: 74227544 | AD231: 87 | AE231: Qatar | AF231: Bahrain | AG231: Cayman Is
A232: Sint Maarten | P232: 44782377 | Q232: 62636900 | R232: 67431927 | S232: 74196204 | T232: 249047408 | Y232: 88 | Z232: 69675593 | AA232: 72336262 | AB232: 74196204 | AD232: 88 | AE232: Djibouti | AF232: Latvia | AG232: Sint Maarten
... 154 more rows

Sheet DB2_RAWSECTOR (hidden)
A1: Code | B1: Year | C1: Type | D1: Country | E1: Sector | F1: Order | G1: Value
A2: FP | B2: 2012 | C2: import | D2: Mauritania | E2: Forest products | F2: 2 | G2: 3246
A3: MM | B3: 1999 | C3: export | D3: South Africa | E3: Minerals and metals | F3: 7 | G3: 200194030 | L3: Afghanistan
A4: MS | B4: 2005 | C4: export | D4: Macao | E4: Miscellaneous manufactures | F4: 11 | G4: 14901732 | L4: Albania
A5: CH | B5: 1997 | C5: export | D5: Zimbabwe | E5: Chemicals and related products | F5: 3 | G5: 13079352 | L5: Algeria
A6: XX | B6: 2014 | C6: import | D6: Nauru | E6: Special provisions | F6: 12 | G6: 170842 | L6: Andorra
A7: AG | B7: 2005 | C7: export | D7: Dominica Is | E7: Agricultural products | F7: 1 | G7: 5983658 | L7: Angola
A8: CH | B8: 2004 | C8: export | D8: Taiwan | E8: Chemicals and related products | F8: 3 | G8: 3637234101 | L8: Anguilla
A9: TX | B9: 2004 | C9: export | D9: Maldive Is | E9: Textiles and apparel | F9: 5 | G9: 157926 | L9: Antigua Barbuda
A10: MT | B10: 1999 | C10: export | D10: Switzerland | E10: Machinery | F10: 8 | G10: 337725884.1 | L10: Argentina
A11: MT | B11: 2002 | C11: import | D11: Luxembourg | E11: Machinery | F11: 8 | G11: 63736563 | L11: Armenia
A12: CH | B12: 2003 | C12: export | D12: Tunisia | E12: Chemicals and related products | F12: 3 | G12: 7364754 | L12: Aruba
A13: TE | B13: 2011 | C13: export | D13: Cocos Is | E13: Transportation equipment | F13: 9 | G13: 9824 | L13: Australia
A14: TX | B14: 2008 | C14: import | D14: Albania | E14: Textiles and apparel | F14: 5 | G14: 1432098 | L14: Austria
A15: FW | B15: 2012 | C15: export | D15: Latvia | E15: Footwear | F15: 6 | G15: 498664 | L15: Azerbaijan
A16: TE | B16: 1998 | C16: export | D16: Mali | E16: Transportation equipment | F16: 9 | G16: 3374367.08 | L16: Bahamas
A17: EP | B17: 2006 | C17: export | D17: Namibia | E17: Energy-related products | F17: 4 | G17: 417186 | L17: Bahrain
A18: MT | B18: 2006 | C18: import | D18: Malta | E18: Machinery | F18: 8 | G18: 8351052 | L18: Bangladesh
A19: MT | B19: 2007 | C19: export | D19: St Vinc & Gren | E19: Machinery | F19: 8 | G19: 5544469.07 | L19: Barbados
A20: TE | B20: 2010 | C20: export | D20: Eritrea | E20: Transportation equipment | F20: 9 | G20: 997345 | L20: Belarus
A21: FP | B21: 2000 | C21: import | D21: Ecuador | E21: Forest products | F21: 2 | G21: 38842307 | L21: Belgium
A22: FP | B22: 2003 | C22: import | D22: France | E22: Forest products | F22: 2 | G22: 457567948 | L22: Belize
A23: FP | B23: 2007 | C23: import | D23: Bahrain | E23: Forest products | F23: 2 | G23: 26793 | L23: Benin
A24: MM | B24: 2010 | C24: export | D24: Honduras | E24: Minerals and metals | F24: 7 | G24: 67357007 | L24: Bermuda
A25: TX | B25: 2000 | C25: export | D25: Zambia | E25: Textiles and apparel | F25: 5 | G25: 928624 | L25: Bhutan
A26: CH | B26: 2001 | C26: export | D26: Slovak Republic | E26: Chemicals and related products | F26: 3 | G26: 7132229 | L26: Bolivia
A27: MM | B27: 2000 | C27: import | D27: Armenia | E27: Minerals and metals | F27: 7 | G27: 1419717 | L27: Bosnia-Hercegov
A28: AG | B28: 2006 | C28: export | D28: St Helena | E28: Agricultural products | F28: 1 | G28: 105445 | L28: Botswana
A29: EP | B29: 2001 | C29: export | D29: Macedonia | E29: Energy-related products | F29: 4 | G29: 44757 | L29: Br Virgin Is
A30: MM | B30: 2007 | C30: export | D30: El Salvador | E30: Minerals and metals | F30: 7 | G30: 50858775 | L30: Br Indian O Ter
A31: EL | B31: 1997 | C31: export | D31: Estonia | E31: Electronic products | F31: 10 | G31: 6618733 | L31: Brazil
A32: EL | B32: 2005 | C32: import | D32: Slovak Republic | E32: Electronic products | F32: 10 | G32: 40338299 | L32: Brunei
A33: MS | B33: 2003 | C33: export | D33: Turks & Caic Is | E33: Miscellaneous manufactures | F33: 11 | G33: 2011658.89 | L33: Bulgaria
A34: TX | B34: 2012 | C34: import | D34: Peru | E34: Textiles and apparel | F34: 5 | G34: 643945983 | L34: Burkina Faso
A35: CH | B35: 2006 | C35: export | D35: Morocco | E35: Chemicals and related products | F35: 3 | G35: 66095600 | L35: Burma (Myanmar)
A36: MS | B36: 2012 | C36: import | D36: Israel | E36: Miscellaneous manufactures | F36: 11 | G36: 372824727 | L36: Burundi
A37: AG | B37: 2007 | C37: import | D37: Egypt | E37: Agricultural products | F37: 1 | G37: 53930823 | L37: Cambodia
A38: MM | B38: 2004 | C38: export | D38: Bermuda | E38: Minerals and metals | F38: 7 | G38: 24957518 | L38: Cameroon
A39: FW | B39: 2001 | C39: import | D39: Trin & Tobago | E39: Footwear | F39: 6 | G39: 28521 | L39: Canada
A40: FW | B40: 2013 | C40: import | D40: Haiti | E40: Footwear | F40: 6 | G40: 1725280 | L40: Cape Verde
A41: XX | B41: 2000 | C41: export | D41: Haiti | E41: Special provisions | F41: 12 | G41: 54195671 | L41: Cayman Is
A42: EL | B42: 2000 | C42: import | D42: Bulgaria | E42: Electronic products | F42: 10 | G42: 5871730 | L42: Cen African Rep
A43: CH | B43: 2007 | C43: export | D43: St Pierre & Miq | E43: Chemicals and related products | F43: 3 | G43: 34358 | L43: Chad
A44: XX | B44: 2013 | C44: export | D44: San Marino | E44: Special provisions | F44: 12 | G44: 44658 | L44: Chile
A45: CH | B45: 2013 | C45: export | D45: United Arab Em | E45: Chemicals and related products | F45: 3 | G45: 1091658398 | L45: China
A46: FW | B46: 2002 | C46: export | D46: Burundi | E46: Footwear | F46: 6 | G46: 3340 | L46: Christmas Is
A47: FP | B47: 1999 | C47: export | D47: Costa Rica | E47: Forest products | F47: 2 | G47: 189309018 | L47: Cocos Is
A48: MS | B48: 2011 | C48: export | D48: St Lucia Is | E48: Miscellaneous manufactures | F48: 11 | G48: 15191927.22 | L48: Colombia
A49: XX | B49: 2001 | C49: import | D49: Venezuela | E49: Special provisions | F49: 12 | G49: 121039997 | L49: Comoros
A50: TX | B50: 1998 | C50: export | D50: Portugal | E50: Textiles and apparel | F50: 5 | G50: 25538935 | L50: Congo (DROC)
A51: MS | B51: 2000 | C51: export | D51: Br Virgin Is | E51: Miscellaneous manufactures | F51: 11 | G51: 3163632.05 | L51: Congo (ROC)
A52: MT | B52: 2010 | C52: export | D52: New Caledonia | E52: Machinery | F52: 8 | G52: 6582993.22 | L52: Cook Is
A53: AG | B53: 2014 | C53: import | D53: Falkland Is | E53: Agricultural products | F53: 1 | G53: 19482475 | L53: Costa Rica
A54: FP | B54: 1997 | C54: import | D54: Vatican City | E54: Forest products | F54: 2 | G54: 3745 | L54: Cote d`Ivoire
A55: EP | B55: 2012 | C55: export | D55: Austria | E55: Energy-related products | F55: 4 | G55: 260368166 | L55: Croatia
A56: TE | B56: 2013 | C56: export | D56: Belgium | E56: Transportation equipment | F56: 9 | G56: 2955422672 | L56: Cuba
A57: FW | B57: 1998 | C57: export | D57: Turks & Caic Is | E57: Footwear | F57: 6 | G57: 8085 | L57: Curacao
A58: MM | B58: 2005 | C58: export | D58: Dominican Rep | E58: Minerals and metals | F58: 7 | G58: 184684205 | L58: Cyprus
A59: MM | B59: 2007 | C59: export | D59: Georgia | E59: Minerals and metals | F59: 7 | G59: 7768387 | L59: Czech Republic
A60: TX | B60: 2012 | C60: export | D60: Jordan | E60: Textiles and apparel | F60: 5 | G60: 16195194 | L60: Denmark
A61: TE | B61: 2010 | C61: export | D61: Cape Verde | E61: Transportation equipment | F61: 9 | G61: 1740554.2 | L61: Djibouti
A62: AG | B62: 2009 | C62: import | D62: Mauritius | E62: Agricultural products | F62: 1 | G62: 34394772 | L62: Dominica Is
A63: AG | B63: 2007 | C63: import | D63: Iraq | E63: Agricultural products | F63: 1 | G63: 300465 | L63: Dominican Rep
A64: TE | B64: 2010 | C64: export | D64: Macedonia | E64: Transportation equipment | F64: 9 | G64: 1162271.1 | L64: Ecuador
A65: XX | B65: 2004 | C65: export | D65: Cayman Is | E65: Special provisions | F65: 12 | G65: 94318835 | L65: Egypt
A66: CH | B66: 2007 | C66: export | D66: Burundi | E66: Chemicals and related products | F66: 3 | G66: 128443 | L66: El Salvador
A67: MS | B67: 2007 | C67: export | D67: Cambodia | E67: Miscellaneous manufactures | F67: 11 | G67: 10093575 | L67: Eq Guinea
A68: EL | B68: 2014 | C68: import | D68: South Africa | E68: Electronic products | F68: 10 | G68: 72854794.05 | L68: Eritrea
A69: XX | B69: 2008 | C69: import | D69: Guatemala | E69: Special provisions | F69: 12 | G69: 46990193 | L69: Estonia
A70: EP | B70: 2009 | C70: export | D70: Montserrat Is | E70: Energy-related products | F70: 4 | G70: 42109 | L70: Ethiopia
A71: MS | B71: 2001 | C71: export | D71: Thailand | E71: Miscellaneous manufactures | F71: 11 | G71: 87938162.2 | L71: F St Micronesia
A72: EL | B72: 2003 | C72: import | D72: Panama | E72: Electronic products | F72: 10 | G72: 10545666 | L72: Falkland Is
A73: XX | B73: 2012 | C73: export | D73: Seychelles | E73: Special provisions | F73: 12 | G73: 241419 | L73: Faroe Islands
A74: XX | B74: 2012 | C74: export | D74: Gibraltar | E74: Special provisions | F74: 12 | G74: 1432652410 | L74: Fiji
A75: MT | B75: 2001 | C75: import | D75: Belgium | E75: Machinery | F75: 8 | G75: 534899764 | L75: Finland
A76: XX | B76: 2005 | C76: export | D76: Tonga | E76: Special provisions | F76: 12 | G76: 2009764 | L76: Fr Polynesia
A77: MS | B77: 2000 | C77: import | D77: Spain | E77: Miscellaneous manufactures | F77: 11 | G77: 375096467 | L77: Fr S & Ant land
A78: FP | B78: 2006 | C78: export | D78: Guatemala | E78: Forest products | F78: 2 | G78: 159316158 | L78: France
A79: XX | B79: 2007 | C79: export | D79: Cyprus | E79: Special provisions | F79: 12 | G79: 5221845 | L79: French Guiana
A80: EP | B80: 2014 | C80: import | D80: France | E80: Energy-related products | F80: 4 | G80: 1714379495 | L80: Gabon
A81: AG | B81: 2005 | C81: import | D81: Iceland | E81: Agricultural products | F81: 1 | G81: 156533444 | L81: Gambia
A82: FW | B82: 2009 | C82: import | D82: Lebanon | E82: Footwear | F82: 6 | G82: 70699 | L82: Gaza Strip
A83: MM | B83: 2009 | C83: export | D83: Ukraine | E83: Minerals and metals | F83: 7 | G83: 25153787 | L83: Georgia
A84: FW | B84: 2009 | C84: export | D84: Grenada Is | E84: Footwear | F84: 6 | G84: 462908 | L84: Germany
A85: TX | B85: 2002 | C85: import | D85: Botswana | E85: Textiles and apparel | F85: 5 | G85: 6352586 | L85: Ghana
A86: TE | B86: 2000 | C86: export | D86: Cen African Rep | E86: Transportation equipment | F86: 9 | G86: 72350.6 | L86: Gibraltar
A87: TX | B87: 2011 | C87: import | D87: New Caledonia | E87: Textiles and apparel | F87: 5 | G87: 159199 | L87: Greece
A88: EL | B88: 2009 | C88: export | D88: Bhutan | E88: Electronic products | F88: 10 | G88: 1557071 | L88: Greenland
A89: MS | B89: 2007 | C89: export | D89: Papua New Guin | E89: Miscellaneous manufactures | F89: 11 | G89: 1453085 | L89: Grenada Is
A90: AG | B90: 2012 | C90: import | D90: Curacao | E90: Agricultural products | F90: 1 | G90: 101810 | L90: Guadeloupe
A91: EP | B91: 2002 | C91: import | D91: Israel | E91: Energy-related products | F91: 4 | G91: 72934498 | L91: Guatemala
A92: FP | B92: 1999 | C92: export | D92: St Pierre & Miq | E92: Forest products | F92: 2 | G92: 60748 | L92: Guinea
A93: AG | B93: 1999 | C93: import | D93: Cote d`Ivoire | E93: Agricultural products | F93: 1 | G93: 293603260 | L93: Guinea-Bissau
A94: CH | B94: 2007 | C94: export | D94: Costa Rica | E94: Chemicals and related products | F94: 3 | G94: 591156381 | L94: Guyana
A95: MM | B95: 1997 | C95: import | D95: Tokelau Is | E95: Minerals and metals | F95: 7 | G95: 550535 | L95: Haiti
A96: MT | B96: 2013 | C96: export | D96: Mozambique | E96: Machinery | F96: 8 | G96: 29719521.15 | L96: Heard & McDn Is
A97: MT | B97: 2012 | C97: import | D97: Bermuda | E97: Machinery | F97: 8 | G97: 102290 | L97: Honduras
A98: CH | B98: 2012 | C98: export | D98: Afghanistan | E98: Chemicals and related products | F98: 3 | G98: 22025765 | L98: Hong Kong
A99: CH | B99: 2002 | C99: export | D99: Bhutan | E99: Chemicals and related products | F99: 3 | G99: 13226 | L99: Hungary
A100: EL | B100: 1999 | C100: export | D100: Cocos Is | E100: Electronic products | F100: 10 | G100: 96275 | L100: Iceland
A101: FP | B101: 2014 | C101: export | D101: Ghana | E101: Forest products | F101: 2 | G101: 28297104 | L101: India
A102: TE | B102: 2006 | C102: export | D102: Georgia | E102: Transportation equipment | F102: 9 | G102: 110714154.5 | L102: Indonesia
A103: XX | B103: 2011 | C103: import | D103: Argentina | E103: Special provisions | F103: 12 | G103: 106851317 | L103: Internat Org
A104: XX | B104: 2009 | C104: import | D104: Djibouti | E104: Special provisions | F104: 12 | G104: 1470666 | L104: Iran
A105: XX | B105: 2013 | C105: import | D105: Jamaica | E105: Special provisions | F105: 12 | G105: 39435078 | L105: Iraq
A106: TE | B106: 2007 | C106: import | D106: Yemen | E106: Transportation equipment | F106: 9 | G106: 150558 | L106: Ireland
A107: EP | B107: 1997 | C107: export | D107: Ecuador | E107: Energy-related products | F107: 4 | G107: 106244601 | L107: Israel
A108: FW | B108: 2000 | C108: export | D108: Jamaica | E108: Footwear | F108: 6 | G108: 2570346 | L108: Italy
A109: TX | B109: 2014 | C109: import | D109: Colombia | E109: Textiles and apparel | F109: 5 | G109: 283705684 | L109: Jamaica
A110: MS | B110: 2012 | C110: import | D110: Bangladesh | E110: Miscellaneous manufactures | F110: 11 | G110: 29372526 | L110: Japan
A111: XX | B111: 2014 | C111: import | D111: Tanzania | E111: Special provisions | F111: 12 | G111: 3878927 | L111: Jordan
A112: MM | B112: 2002 | C112: import | D112: Canada | E112: Minerals and metals | F112: 7 | G112: 17799373607 | L112: Kazakhstan
A113: TX | B113: 2003 | C113: export | D113: Singapore | E113: Textiles and apparel | F113: 5 | G113: 70339835 | L113: Kenya
A114: MS | B114: 2014 | C114: import | D114: Norway | E114: Miscellaneous manufactures | F114: 11 | G114: 174320796 | L114: Kiribati
A115: TE | B115: 2008 | C115: export | D115: Philippines | E115: Transportation equipment | F115: 9 | G115: 314617922.2 | L115: Korea
A116: FP | B116: 2009 | C116: export | D116: Germany | E116: Forest products | F116: 2 | G116: 774727945 | L116: Kosovo
A117: XX | B117: 2010 | C117: export | D117: China | E117: Special provisions | F117: 12 | G117: 1300915824 | L117: Kuwait
A118: XX | B118: 2010 | C118: export | D118: Tajikistan | E118: Special provisions | F118: 12 | G118: 42504734 | L118: Kyrgyzstan
A119: AG | B119: 2003 | C119: export | D119: Indonesia | E119: Agricultural products | F119: 1 | G119: 989099297 | L119: Laos
A120: XX | B120: 2007 | C120: export | D120: Mayotte | E120: Special provisions | F120: 12 | G120: 137 | L120: Latvia
A121: XX | B121: 2007 | C121: export | D121: Heard & McDn Is | E121: Special provisions | F121: 12 | G121: 85204 | L121: Lebanon
A122: CH | B122: 1998 | C122: import | D122: Bahamas | E122: Chemicals and related products | F122: 3 | G122: 59235330 | L122: Lesotho
A123: MM | B123: 1997 | C123: export | D123: Kazakhstan | E123: Minerals and metals | F123: 7 | G123: 4535634 | L123: Liberia
A124: EP | B124: 2003 | C124: export | D124: Finland | E124: Energy-related products | F124: 4 | G124: 46139005 | L124: Libya
A125: TX | B125: 1998 | C125: export | D125: Eq Guinea | E125: Textiles and apparel | F125: 5 | G125: 126153 | L125: Liechtenstein
A126: FW | B126: 2002 | C126: export | D126: Costa Rica | E126: Footwear | F126: 6 | G126: 19527350 | L126: Lithuania
A127: EL | B127: 2003 | C127: import | D127: Niger | E127: Electronic products | F127: 10 | G127: 481112 | L127: Luxembourg
A128: FP | B128: 2013 | C128: import | D128: Liberia | E128: Forest products | F128: 2 | G128: 42538 | L128: Macao
A129: MS | B129: 2001 | C129: export | D129: Armenia | E129: Miscellaneous manufactures | F129: 11 | G129: 2663127 | L129: Macedonia
A130: CH | B130: 2012 | C130: export | D130: Sierra Leone | E130: Chemicals and related products | F130: 3 | G130: 8388627 | L130: Madagascar
A131: TX | B131: 2006 | C131: import | D131: Syria | E131: Textiles and apparel | F131: 5 | G131: 7159527 | L131: Malawi
A132: EL | B132: 2007 | C132: export | D132: Grenada Is | E132: Electronic products | F132: 10 | G132: 11978153.56 | L132: Malaysia
A133: EL | B133: 2007 | C133: import | D133: Lebanon | E133: Electronic products | F133: 10 | G133: 771128 | L133: Maldive Is
A134: XX | B134: 2014 | C134: export | D134: Pitcairn Is | E134: Special provisions | F134: 12 | G134: 22274 | L134: Mali
A135: FW | B135: 2011 | C135: import | D135: Iceland | E135: Footwear | F135: 6 | G135: 664 | L135: Malta
A136: MM | B136: 2005 | C136: export | D136: Kyrgyzstan | E136: Minerals and metals | F136: 7 | G136: 248633 | L136: Marshall Is
A137: AG | B137: 1999 | C137: import | D137: Niue | E137: Agricultural products | F137: 1 | G137: 15600 | L137: Martinique
A138: AG | B138: 2004 | C138: export | D138: Ghana | E138: Agricultural products | F138: 1 | G138: 77468720 | L138: Mauritania
A139: FP | B139: 1998 | C139: export | D139: Uruguay | E139: Forest products | F139: 2 | G139: 19129418 | L139: Mauritius
A140: XX | B140: 2000 | C140: export | D140: Qatar | E140: Special provisions | F140: 12 | G140: 6601597 | L140: Mayotte
A141: EL | B141: 2010 | C141: export | D141: French Guiana | E141: Electronic products | F141: 10 | G141: 7255798.5 | L141: Mexico
A142: MS | B142: 2003 | C142: import | D142: Congo (DROC) | E142: Miscellaneous manufactures | F142: 11 | G142: 4544762 | L142: Moldova
A143: FP | B143: 2014 | C143: export | D143: Finland | E143: Forest products | F143: 2 | G143: 24910274 | L143: Monaco
A144: MM | B144: 2002 | C144: import | D144: Aruba | E144: Minerals and metals | F144: 7 | G144: 12317214 | L144: Mongolia
A145: EP | B145: 2000 | C145: export | D145: Vatican City | E145: Energy-related products | F145: 4 | G145: 12960 | L145: Montenegro
A146: MM | B146: 2001 | C146: import | D146: Br Virgin Is | E146: Minerals and metals | F146: 7 | G146: 452356 | L146: Montserrat Is
A147: MM | B147: 2002 | C147: export | D147: Netherlands Ant | E147: Minerals and metals | F147: 7 | G147: 42572443 | L147: Morocco
A148: EP | B148: 2004 | C148: export | D148: Indonesia | E148: Energy-related products | F148: 4 | G148: 54561515 | L148: Mozambique
A149: TX | B149: 2002 | C149: export | D149: Barbados | E149: Textiles and apparel | F149: 5 | G149: 4426172 | L149: Namibia
A150: FW | B150: 2011 | C150: export | D150: Dominica Is | E150: Footwear | F150: 6 | G150: 296093 | L150: Nauru
A151: TX | B151: 1997 | C151: export | D151: Czech Republic | E151: Textiles and apparel | F151: 5 | G151: 8076816 | L151: Nepal
A152: AG | B152: 2006 | C152: export | D152: Burma (Myanmar) | E152: Agricultural products | F152: 1 | G152: 1087754 | L152: Netherlands
A153: XX | B153: 1998 | C153: export | D153: Kuwait | E153: Special provisions | F153: 12 | G153: 42905528 | L153: Netherlands Ant
A154: EL | B154: 2005 | C154: import | D154: Br Indian O Ter | E154: Electronic products | F154: 10 | G154: 155922 | L154: New Caledonia
A155: MS | B155: 1998 | C155: import | D155: Chad | E155: Miscellaneous manufactures | F155: 11 | G155: 5863 | L155: New Zealand
A156: MT | B156: 2006 | C156: import | D156: Estonia | E156: Machinery | F156: 8 | G156: 11529406 | L156: Nicaragua
A157: XX | B157: 2014 | C157: import | D157: Italy | E157: Special provisions | F157: 12 | G157: 993031118 | L157: Niger
A158: AG | B158: 2006 | C158: import | D158: Martinique | E158: Agricultural products | F158: 1 | G158: 466054 | L158: Nigeria
A159: XX | B159: 2012 | C159: import | D159: Japan | E159: Special provisions | F159: 12 | G159: 3722704361 | L159: Niue
A160: CH | B160: 2001 | C160: export | D160: Br Indian O Ter | E160: Chemicals and related products | F160: 3 | G160: 105959 | L160: Norfolk Is
A161: EL | B161: 2012 | C161: import | D161: Nicaragua | E161: Electronic products | F161: 10 | G161: 1690718 | L161: North Korea
A162: TE | B162: 2002 | C162: export | D162: Angola | E162: Transportation equipment | F162: 9 | G162: 242130939.4 | L162: Norway
A163: EL | B163: 2000 | C163: export | D163: Anguilla | E163: Electronic products | F163: 10 | G163: 1329516 | L163: Oman
A164: MM | B164: 2000 | C164: import | D164: Thailand | E164: Minerals and metals | F164: 7 | G164: 1068541098 | L164: Pakistan
A165: AG | B165: 2002 | C165: export | D165: Moldova | E165: Agricultural products | F165: 1 | G165: 14362568 | L165: Palau
A166: CH | B166: 1999 | C166: import | D166: Bahrain | E166: Chemicals and related products | F166: 3 | G166: 19947720 | L166: Panama
A167: TX | B167: 1997 | C167: export | D167: Benin | E167: Textiles and apparel | F167: 5 | G167: 18501415 | L167: Papua New Guin
A168: FW | B168: 2004 | C168: export | D168: Algeria | E168: Footwear | F168: 6 | G168: 205355 | L168: Paraguay
A169: EL | B169: 1997 | C169: export | D169: Malta | E169: Electronic products | F169: 10 | G169: 76149997.88 | L169: Peru
A170: AG | B170: 2007 | C170: import | D170: Oman | E170: Agricultural products | F170: 1 | G170: 2613936 | L170: Philippines
A171: FP | B171: 2012 | C171: export | D171: Belarus | E171: Forest products | F171: 2 | G171: 678497 | L171: Pitcairn Is
A172: MM | B172: 2014 | C172: import | D172: Cocos Is | E172: Minerals and metals | F172: 7 | G172: 120822 | L172: Poland
A173: EP | B173: 2003 | C173: export | D173: Ghana | E173: Energy-related products | F173: 4 | G173: 991280 | L173: Portugal
A174: FP | B174: 2011 | C174: export | D174: Brunei | E174: Forest products | F174: 2 | G174: 103816 | L174: Qatar
A175: MS | B175: 2002 | C175: export | D175: Austria | E175: Miscellaneous manufactures | F175: 11 | G175: 45234340 | L175: Reunion
A176: AG | B176: 2004 | C176: export | D176: Finland | E176: Agricultural products | F176: 1 | G176: 49825968 | L176: Romania
A177: TX | B177: 2004 | C177: export | D177: Iran | E177: Textiles and apparel | F177: 5 | G177: 226952 | L177: Russia
A178: MM | B178: 2001 | C178: export | D178: Spain | E178: Minerals and metals | F178: 7 | G178: 155591012 | L178: Rwanda
A179: MM | B179: 1998 | C179: export | D179: Nicaragua | E179: Minerals and metals | F179: 7 | G179: 13270042 | L179: Samoa
A180: AG | B180: 2006 | C180: import | D180: Greece | E180: Agricultural products | F180: 1 | G180: 199200863 | L180: San Marino
A181: FP | B181: 1998 | C181: import | D181: Hong Kong | E181: Forest products | F181: 2 | G181: 333856191 | L181: Sao Tome & Prin
A182: CH | B182: 2011 | C182: export | D182: Samoa | E182: Chemicals and related products | F182: 3 | G182: 1036273 | L182: Saudi Arabia
A183: TE | B183: 2006 | C183: export | D183: El Salvador | E183: Transportation equipment | F183: 9 | G183: 121231093.1 | L183: Senegal
A184: AG | B184: 2004 | C184: import | D184: Falkland Is | E184: Agricultural products | F184: 1 | G184: 6632656 | L184: Serbia
A185: FW | B185: 2008 | C185: export | D185: Montserrat Is | E185: Footwear | F185: 6 | G185: 8438 | L185: Serbia pre-2009
A186: TE | B186: 2010 | C186: export | D186: Peru | E186: Transportation equipment | F186: 9 | G186: 1139422176 | L186: Serbia/Monteneg
A187: FP | B187: 2005 | C187: import | D187: Iceland | E187: Forest products | F187: 2 | G187: 2224204 | L187: Seychelles
A188: MM | B188: 2006 | C188: export | D188: Trin & Tobago | E188: Minerals and metals | F188: 7 | G188: 139690763 | L188: Sierra Leone
A189: TX | B189: 2009 | C189: export | D189: Macao | E189: Textiles and apparel | F189: 5 | G189: 4074918 | L189: Singapore
A190: MS | B190: 2008 | C190: import | D190: Liberia | E190: Miscellaneous manufactures | F190: 11 | G190: 77053 | L190: Sint Maarten
A191: TX | B191: 2001 | C191: import | D191: Austria | E191: Textiles and apparel | F191: 5 | G191: 45451029 | L191: Slovak Republic
A192: AG | B192: 2006 | C192: export | D192: Guatemala | E192: Agricultural products | F192: 1 | G192: 582434846 | L192: Slovenia
A193: MM | B193: 2000 | C193: import | D193: Botswana | E193: Minerals and metals | F193: 7 | G193: 1200814 | L193: Solomon Is
A194: EL | B194: 1999 | C194: import | D194: Bermuda | E194: Electronic products | F194: 10 | G194: 357039 | L194: Somalia
A195: CH | B195: 2001 | C195: import | D195: Angola | E195: Chemicals and related products | F195: 3 | G195: 0 | L195: South Africa
A196: MT | B196: 2002 | C196: import | D196: Cook Is | E196: Machinery | F196: 8 | G196: 7075 | L196: South Sudan
A197: MT | B197: 2006 | C197: import | D197: Senegal | E197: Machinery | F197: 8 | G197: 9600 | L197: Spain
A198: TE | B198: 2000 | C198: export | D198: Romania | E198: Transportation equipment | F198: 9 | G198: 50467770.36 | L198: Sri Lanka
A199: EP | B199: 2008 | C199: export | D199: Grenada Is | E199: Energy-related products | F199: 4 | G199: 4348919 | L199: St Helena
A200: MS | B200: 2000 | C200: import | D200: Guinea-Bissau | E200: Miscellaneous manufactures | F200: 11 | G200: 10942 | L200: St Kitts-Nevis
... 4300 more rows

Sheet DB3 (hidden)
C2: 14 | D2: =IF(OR(C6=1,ISBLANK(C6)),1,C6) -> 3 | E2: =18-D2 -> 15 | U2: AG | V2: Agricultural products | Z2: Largest dollar increase | AA2: $Δ+ | AB2: DT | AC2: DB3_change_dollaramount
E3: U.S. total exports to the world | U3: CH | V3: Chemicals and related products | Z3: Largest percent increase | AA3: %Δ+ | AB3: GV | AC3: DB3_change_percentage
D4: =VLOOKUP(C8,DB3_comparisongroup,2,FALSE) -> $Δ+ | E4: =IFERROR(FIND("ppt",D4),0) -> 0 | F4: =IF(IFERROR(FIND("percent",C8),0)>0,1,0) -> 0 | U4: EL | V4: Electronic products | Z4: Largest share of total increase | AA4: pptΔ+ | AB4: KR | AC4: DB3_change_percentagepoint
U5: EP | V5: Energy-related products | Z5: Largest dollar decrease | AA5: $Δ- | AB5: EN | AC5: DB3_change_dollaramount
B6: Select range of years for comparison (max 17): | C6: 3 | U6: FW | V6: Footwear | Z6: Largest percent decrease | AA6: %Δ- | AB6: HP | AC6: DB3_change_percentage
U7: FP | V7: Forest products | Z7: Largest share of total decrease | AA7: pptΔ- | AB7: LL | AC7: DB3_change_percentagepoint
B8: Choose a comparison type: | C8: Largest dollar increase | U8: MT | V8: Machinery
U9: MM | V9: Minerals and metals
B10: =IF(LEN(DB3_sectorcode)=0,"All sectors: ",VLOOKUP(DB3_sectorcode,DB3_sectortitles,2,FALSE)&": ")&DB3_tradetype&", "&C12 -> All sectors: U.S. total exports to the world, 2010-2013 | F10: ="Five (5) "&LOWER(DB3_comparison)& " digests in "&B10 -> Five (5) largest dollar increase digests in All sectors: U.S. total exports to the world, 2010-2013 | U10: MS | V10: Miscellaneous manufactures
U11: XX | V11: Special provisions
B12: Digest | C12: =(C2+1996)&"-"&(C2+DB3_yearscompared+1996) -> 2010-2013 | D12: =LEFT(C12,4) -> 2010 | E12: =RIGHT(C12,4) -> 2013 | U12: TX | V12: Textiles and apparel
C13: ="Change ("&VLOOKUP(DB3_comparison,DB3_comparisongroup,2,FALSE)&")" -> Change ($Δ+) | D13: =IF(E4=0,"Value ($1,000s)","Share of value (percent)") -> Value ($1,000s) | U13: TE | V13: Transportation equipment
A14: =OFFSET(INDIRECT("DB3_DIGESTSPREPPED!"&VLOOKUP(DB3_comparison,DB3_comparisongroup,3,FALSE)&6),ROW()-ROW($B$14),$C$2-1) -> EP005 | B14: =IFERROR(VLOOKUP(A14,DB3_digesttitles,2,FALSE)&" ("&A14&")","END") -> Petroleum products (EP005) | C14: =IFERROR(VLOOKUP($A14,INDIRECT(VLOOKUP(DB3_comparison,DB3_comparisongroup,4,FALSE)),$C$2+1,FALSE),"END") -> 59303789.07 | D14: =IFERROR(IF(DB3_calculationtype=0,GETPIVOTDATA("Value",DB3_DIGESTSPREPPED!$A$4,"Year",D$12,"Digest",$A14)/1000,VLOOKUP($A14,DB3_sharedata,(D$12-1996+1),FALSE)),"END") -> 61787786.88 | E14: =IFERROR(IF(DB3_calculationtype=0,GETPIVOTDATA("Value",DB3_DIGESTSPREPPED!$A$4,"Year",E$12,"Digest",$A14)/1000,VLOOKUP($A14,DB3_sharedata,(E$12-1996+1),FALSE)),"END") -> 121091576
A15: =OFFSET(INDIRECT("DB3_DIGESTSPREPPED!"&VLOOKUP(DB3_comparison,DB3_comparisongroup,3,FALSE)&6),ROW()-ROW($B$14),$C$2-1) -> TE013 | B15: =IFERROR(VLOOKUP(A15,DB3_digesttitles,2,FALSE)&" ("&A15&")","END") -> Aircraft, spacecraft, and related equipment (TE013) | C15: 34330986.11 | D15: =IFERROR(IF(DB3_calculationtype=0,GETPIVOTDATA("Value",DB3_DIGESTSPREPPED!$A$4,"Year",D$12,"Digest",$A15)/1000,VLOOKUP($A15,DB3_sharedata,(D$12-1996+1),FALSE)),"END") -> 79540944.36 | E15: =IFERROR(IF(DB3_calculationtype=0,GETPIVOTDATA("Value",DB3_DIGESTSPREPPED!$A$4,"Year",E$12,"Digest",$A15)/1000,VLOOKUP($A15,DB3_sharedata,(E$12-1996+1),FALSE)),"END") -> 113871930.5
A16: TE009 | B16: Motor vehicles (TE009) | C16: 21274032.15 | D16: =IFERROR(IF(DB3_calculationtype=0,GETPIVOTDATA("Value",DB3_DIGESTSPREPPED!$A$4,"Year",D$12,"Digest",$A16)/1000,VLOOKUP($A16,DB3_sharedata,(D$12-1996+1),FALSE)),"END") -> 52749464.57 | E16: =IFERROR(IF(DB3_calculationtype=0,GETPIVOTDATA("Value",DB3_DIGESTSPREPPED!$A$4,"Year",E$12,"Digest",$A16)/1000,VLOOKUP($A16,DB3_sharedata,(E$12-1996+1),FALSE)),"END") -> 74023496.71
A17: MM020 | B17: Precious metals and non-numismatic coins (MM020) | C17: 11674074.23 | D17: =IFERROR(IF(DB3_calculationtype=0,GETPIVOTDATA("Value",DB3_DIGESTSPREPPED!$A$4,"Year",D$12,"Digest",$A17)/1000,VLOOKUP($A17,DB3_sharedata,(D$12-1996+1),FALSE)),"END") -> 30044984.85 | E17: =IFERROR(IF(DB3_calculationtype=0,GETPIVOTDATA("Value",DB3_DIGESTSPREPPED!$A$4,"Year",E$12,"Digest",$A17)/1000,VLOOKUP($A17,DB3_sharedata,(E$12-1996+1),FALSE)),"END") -> 41719059.08
A18: TE010 | B18: Certain motor-vehicle parts (TE010) | C18: 10281925.23 | D18: =IFERROR(IF(DB3_calculationtype=0,GETPIVOTDATA("Value",DB3_DIGESTSPREPPED!$A$4,"Year",D$12,"Digest",$A18)/1000,VLOOKUP($A18,DB3_sharedata,(D$12-1996+1),FALSE)),"END") -> 35240217.23 | E18: =IFERROR(IF(DB3_calculationtype=0,GETPIVOTDATA("Value",DB3_DIGESTSPREPPED!$A$4,"Year",E$12,"Digest",$A18)/1000,VLOOKUP($A18,DB3_sharedata,(E$12-1996+1),FALSE)),"END") -> 45522142.46
A19: EL002 | B19: Telecommunications equipment (EL002) | C19: 8650070.394 | D19: =IFERROR(IF(DB3_calculationtype=0,GETPIVOTDATA("Value",DB3_DIGESTSPREPPED!$A$4,"Year",D$12,"Digest",$A19)/1000,VLOOKUP($A19,DB3_sharedata,(D$12-1996+1),FALSE)),"END") -> 27449366.38 | E19: =IFERROR(IF(DB3_calculationtype=0,GETPIVOTDATA("Value",DB3_DIGESTSPREPPED!$A$4,"Year",E$12,"Digest",$A19)/1000,VLOOKUP($A19,DB3_sharedata,(E$12-1996+1),FALSE)),"END") -> 36099436.77
A20: MM019 | B20: Natural and synthetic gemstones (MM019) | C20: 6037184.061 | D20: =IFERROR(IF(DB3_calculationtype=0,GETPIVOTDATA("Value",DB3_DIGESTSPREPPED!$A$4,"Year",D$12,"Digest",$A20)/1000,VLOOKUP($A20,DB3_sharedata,(D$12-1996+1),FALSE)),"END") -> 14914796.77 | E20: =IFERROR(IF(DB3_calculationtype=0,GETPIVOTDATA("Value",DB3_DIGESTSPREPPED!$A$4,"Year",E$12,"Digest",$A20)/1000,VLOOKUP($A20,DB3_sharedata,(E$12-1996+1),FALSE)),"END") -> 20951980.83
A21: EL025 | B21: Measuring, testing, and controlling instruments (EL025) | C21: 5588596.916 | D21: =IFERROR(IF(DB3_calculationtype=0,GETPIVOTDATA("Value",DB3_DIGESTSPREPPED!$A$4,"Year",D$12,"Digest",$A21)/1000,VLOOKUP($A21,DB3_sharedata,(D$12-1996+1),FALSE)),"END") -> 25602976.11 | E21: =IFERROR(IF(DB3_calculationtype=0,GETPIVOTDATA("Value",DB3_DIGESTSPREPPED!$A$4,"Year",E$12,"Digest",$A21)/1000,VLOOKUP($A21,DB3_sharedata,(E$12-1996+1),FALSE)),"END") -> 31191573.03
A22: EL022 | B22: Medical goods (EL022) | C22: 4950622.052 | D22: =IFERROR(IF(DB3_calculationtype=0,GETPIVOTDATA("Value",DB3_DIGESTSPREPPED!$A$4,"Year",D$12,"Digest",$A22)/1000,VLOOKUP($A22,DB3_sharedata,(D$12-1996+1),FALSE)),"END") -> 36053780.06 | E22: =IFERROR(IF(DB3_calculationtype=0,GETPIVOTDATA("Value",DB3_DIGESTSPREPPED!$A$4,"Year",E$12,"Digest",$A22)/1000,VLOOKUP($A22,DB3_sharedata,(E$12-1996+1),FALSE)),"END") -> 41004402.11
A23: AG013 | B23: Animal feeds (AG013) | C23: 4935115.113 | D23: =IFERROR(IF(DB3_calculationtype=0,GETPIVOTDATA("Value",DB3_DIGESTSPREPPED!$A$4,"Year",D$12,"Digest",$A23)/1000,VLOOKUP($A23,DB3_sharedata,(D$12-1996+1),FALSE)),"END") -> 9741220.809 | E23: =IFERROR(IF(DB3_calculationtype=0,GETPIVOTDATA("Value",DB3_DIGESTSPREPPED!$A$4,"Year",E$12,"Digest",$A23)/1000,VLOOKUP($A23,DB3_sharedata,(E$12-1996+1),FALSE)),"END") -> 14676335.92
A24: EP006 | B24: Natural gas and components (EP006) | C24: 4569831.68 | D24: =IFERROR(IF(DB3_calculationtype=0,GETPIVOTDATA("Value",DB3_DIGESTSPREPPED!$A$4,"Year",D$12,"Digest",$A24)/1000,VLOOKUP($A24,DB3_sharedata,(D$12-1996+1),FALSE)),"END") -> 8452179.899 | E24: =IFERROR(IF(DB3_calculationtype=0,GETPIVOTDATA("Value",DB3_DIGESTSPREPPED!$A$4,"Year",E$12,"Digest",$A24)/1000,VLOOKUP($A24,DB3_sharedata,(E$12-1996+1),FALSE)),"END") -> 13022011.58
A25: EL017 | B25: Computers, peripherals, and parts (EL017) | C25: 4460993.611 | D25: =IFERROR(IF(DB3_calculationtype=0,GETPIVOTDATA("Value",DB3_DIGESTSPREPPED!$A$4,"Year",D$12,"Digest",$A25)/1000,VLOOKUP($A25,DB3_sharedata,(D$12-1996+1),FALSE)),"END") -> 42055533.13 | E25: =IFERROR(IF(DB3_calculationtype=0,GETPIVOTDATA("Value",DB3_DIGESTSPREPPED!$A$4,"Year",E$12,"Digest",$A25)/1000,VLOOKUP($A25,DB3_sharedata,(E$12-1996+1),FALSE)),"END") -> 46516526.75
A26: CH033 | B26: Miscellaneous plastic products (CH033) | C26: 3953738.838 | D26: =IFERROR(IF(DB3_calculationtype=0,GETPIVOTDATA("Value",DB3_DIGESTSPREPPED!$A$4,"Year",D$12,"Digest",$A26)/1000,VLOOKUP($A26,DB3_sharedata,(D$12-1996+1),FALSE)),"END") -> 22494317.35 | E26: =IFERROR(IF(DB3_calculationtype=0,GETPIVOTDATA("Value",DB3_DIGESTSPREPPED!$A$4,"Year",E$12,"Digest",$A26)/1000,VLOOKUP($A26,DB3_sharedata,(E$12-1996+1),FALSE)),"END") -> 26448056.18
A27: MT020 | B27: Taps, cocks, valves, and similar devices (MT020) | C27: 3908669.886 | D27: =IFERROR(IF(DB3_calculationtype=0,GETPIVOTDATA("Value",DB3_DIGESTSPREPPED!$A$4,"Year",D$12,"Digest",$A27)/1000,VLOOKUP($A27,DB3_sharedata,(D$12-1996+1),FALSE)),"END") -> 7821514.699 | E27: =IFERROR(IF(DB3_calculationtype=0,GETPIVOTDATA("Value",DB3_DIGESTSPREPPED!$A$4,"Year",E$12,"Digest",$A27)/1000,VLOOKUP($A27,DB3_sharedata,(E$12-1996+1),FALSE)),"END") -> 11730184.59
A28: MS006 | B28: Precious jewelry and related articles (MS006) | C28: 3688022.432 | D28: =IFERROR(IF(DB3_calculationtype=0,GETPIVOTDATA("Value",DB3_DIGESTSPREPPED!$A$4,"Year",D$12,"Digest",$A28)/1000,VLOOKUP($A28,DB3_sharedata,(D$12-1996+1),FALSE)),"END") -> 6458288.045 | E28: =IFERROR(IF(DB3_calculationtype=0,GETPIVOTDATA("Value",DB3_DIGESTSPREPPED!$A$4,"Year",E$12,"Digest",$A28)/1000,VLOOKUP($A28,DB3_sharedata,(E$12-1996+1),FALSE)),"END") -> 10146310.48
A29: AG020 | B29: Edible nuts (AG020) | C29: 3637650.923 | D29: =IFERROR(IF(DB3_calculationtype=0,GETPIVOTDATA("Value",DB3_DIGESTSPREPPED!$A$4,"Year",D$12,"Digest",$A29)/1000,VLOOKUP($A29,DB3_sharedata,(D$12-1996+1),FALSE)),"END") -> 4800934.933 | E29: =IFERROR(IF(DB3_calculationtype=0,GETPIVOTDATA("Value",DB3_DIGESTSPREPPED!$A$4,"Year",E$12,"Digest",$A29)/1000,VLOOKUP($A29,DB3_sharedata,(E$12-1996+1),FALSE)),"END") -> 8438585.856
A30: EP004 | B30: Crude petroleum (EP004) | C30: 3372187.14 | D30: =IFERROR(IF(DB3_calculationtype=0,GETPIVOTDATA("Value",DB3_DIGESTSPREPPED!$A$4,"Year",D$12,"Digest",$A30)/1000,VLOOKUP($A30,DB3_sharedata,(D$12-1996+1),FALSE)),"END") -> 1730641.815 | E30: =IFERROR(IF(DB3_calculationtype=0,GETPIVOTDATA("Value",DB3_DIGESTSPREPPED!$A$4,"Year",E$12,"Digest",$A30)/1000,VLOOKUP($A30,DB3_sharedata,(E$12-1996+1),FALSE)),"END") -> 5102828.955
A31: TE002 | B31: Internal combustion piston engines, other than for aircraft (TE002) | C31: 3248772.457 | D31: =IFERROR(IF(DB3_calculationtype=0,GETPIVOTDATA("Value",DB3_DIGESTSPREPPED!$A$4,"Year",D$12,"Digest",$A31)/1000,VLOOKUP($A31,DB3_sharedata,(D$12-1996+1),FALSE)),"END") -> 16990137.97 | E31: =IFERROR(IF(DB3_calculationtype=0,GETPIVOTDATA("Value",DB3_DIGESTSPREPPED!$A$4,"Year",E$12,"Digest",$A31)/1000,VLOOKUP($A31,DB3_sharedata,(E$12-1996+1),FALSE)),"END") -> 20238910.42
A32: MT009 | B32: Farm and garden machinery and equipment (MT009) | C32: 3197612.667 | D32: =IFERROR(IF(DB3_calculationtype=0,GETPIVOTDATA("Value",DB3_DIGESTSPREPPED!$A$4,"Year",D$12,"Digest",$A32)/1000,VLOOKUP($A32,DB3_sharedata,(D$12-1996+1),FALSE)),"END") -> 9387266.416 | E32: =IFERROR(IF(DB3_calculationtype=0,GETPIVOTDATA("Value",DB3_DIGESTSPREPPED!$A$4,"Year",E$12,"Digest",$A32)/1000,VLOOKUP($A32,DB3_sharedata,(E$12-1996+1),FALSE)),"END") -> 12584879.08
A33: AG010 | B33: Dairy products (AG010) | C33: 2942386.39 | D33: =IFERROR(IF(DB3_calculationtype=0,GETPIVOTDATA("Value",DB3_DIGESTSPREPPED!$A$4,"Year",D$12,"Digest",$A33)/1000,VLOOKUP($A33,DB3_sharedata,(D$12-1996+1),FALSE)),"END") -> 3475208.691 | E33: =IFERROR(IF(DB3_calculationtype=0,GETPIVOTDATA("Value",DB3_DIGESTSPREPPED!$A$4,"Year",E$12,"Digest",$A33)/1000,VLOOKUP($A33,DB3_sharedata,(E$12-1996+1),FALSE)),"END") -> 6417595.081
A34: AG032 | B34: Oilseeds (AG032) | C34: 2910750.65 | D34: =IFERROR(IF(DB3_calculationtype=0,GETPIVOTDATA("Value",DB3_DIGESTSPREPPED!$A$4,"Year",D$12,"Digest",$A34)/1000,VLOOKUP($A34,DB3_sharedata,(D$12-1996+1),FALSE)),"END") -> 19014560.01 | E34: =IFERROR(IF(DB3_calculationtype=0,GETPIVOTDATA("Value",DB3_DIGESTSPREPPED!$A$4,"Year",E$12,"Digest",$A34)/1000,VLOOKUP($A34,DB3_sharedata,(E$12-1996+1),FALSE)),"END") -> 21925310.66
A35: CH006 | B35: Certain organic chemicals (CH006) | C35: 2805137.274 | D35: =IFERROR(IF(DB3_calculationtype=0,GETPIVOTDATA("Value",DB3_DIGESTSPREPPED!$A$4,"Year",D$12,"Digest",$A35)/1000,VLOOKUP($A35,DB3_sharedata,(D$12-1996+1),FALSE)),"END") -> 17903165 | E35: =IFERROR(IF(DB3_calculationtype=0,GETPIVOTDATA("Value",DB3_DIGESTSPREPPED!$A$4,"Year",E$12,"Digest",$A35)/1000,VLOOKUP($A35,DB3_sharedata,(E$12-1996+1),FALSE)),"END") -> 20708302.28
A36: MT030 | B36: Miscellaneous machinery (MT030) | C36: 2738933.457 | D36: =IFERROR(IF(DB3_calculationtype=0,GETPIVOTDATA("Value",DB3_DIGESTSPREPPED!$A$4,"Year",D$12,"Digest",$A36)/1000,VLOOKUP($A36,DB3_sharedata,(D$12-1996+1),FALSE)),"END") -> 9582747.84 | E36: =IFERROR(IF(DB3_calculationtype=0,GETPIVOTDATA("Value",DB3_DIGESTSPREPPED!$A$4,"Year",E$12,"Digest",$A36)/1000,VLOOKUP($A36,DB3_sharedata,(E$12-1996+1),FALSE)),"END") -> 12321681.3
A37: TE004 | B37: Construction and mining equipment (TE004) | C37: 2663995.699 | D37: =IFERROR(IF(DB3_calculationtype=0,GETPIVOTDATA("Value",DB3_DIGESTSPREPPED!$A$4,"Year",D$12,"Digest",$A37)/1000,VLOOKUP($A37,DB3_sharedata,(D$12-1996+1),FALSE)),"END") -> 23674802.8 | E37: =IFERROR(IF(DB3_calculationtype=0,GETPIVOTDATA("Value",DB3_DIGESTSPREPPED!$A$4,"Year",E$12,"Digest",$A37)/1000,VLOOKUP($A37,DB3_sharedata,(E$12-1996+1),FALSE)),"END") -> 26338798.5
A38: MT001 | B38: Pumps for liquids (MT001) | C38: 2608470.3 | D38: =IFERROR(IF(DB3_calculationtype=0,GETPIVOTDATA("Value",DB3_DIGESTSPREPPED!$A$4,"Year",D$12,"Digest",$A38)/1000,VLOOKUP($A38,DB3_sharedata,(D$12-1996+1),FALSE)),"END") -> 5504139.585 | E38: =IFERROR(IF(DB3_calculationtype=0,GETPIVOTDATA("Value",DB3_DIGESTSPREPPED!$A$4,"Year",E$12,"Digest",$A38)/1000,VLOOKUP($A38,DB3_sharedata,(E$12-1996+1),FALSE)),"END") -> 8112609.885
A39: MM031 | B39: Miscellaneous products of base metal (MM031) | C39: 2538732.589 | D39: =IFERROR(IF(DB3_calculationtype=0,GETPIVOTDATA("Value",DB3_DIGESTSPREPPED!$A$4,"Year",D$12,"Digest",$A39)/1000,VLOOKUP($A39,DB3_sharedata,(D$12-1996+1),FALSE)),"END") -> 7755014.288 | E39: =IFERROR(IF(DB3_calculationtype=0,GETPIVOTDATA("Value",DB3_DIGESTSPREPPED!$A$4,"Year",E$12,"Digest",$A39)/1000,VLOOKUP($A39,DB3_sharedata,(E$12-1996+1),FALSE)),"END") -> 10293746.88
A40: MT002 | B40: Air-conditioning equipment and parts (MT002) | C40: 2323174.959 | D40: =IFERROR(IF(DB3_calculationtype=0,GETPIVOTDATA("Value",DB3_DIGESTSPREPPED!$A$4,"Year",D$12,"Digest",$A40)/1000,VLOOKUP($A40,DB3_sharedata,(D$12-1996+1),FALSE)),"END") -> 8555852.646 | E40: =IFERROR(IF(DB3_calculationtype=0,GETPIVOTDATA("Value",DB3_DIGESTSPREPPED!$A$4,"Year",E$12,"Digest",$A40)/1000,VLOOKUP($A40,DB3_sharedata,(E$12-1996+1),FALSE)),"END") -> 10879027.61
A41: AG002 | B41: Cattle and beef (AG002) | C41: 2257766.953 | D41: =IFERROR(IF(DB3_calculationtype=0,GETPIVOTDATA("Value",DB3_DIGESTSPREPPED!$A$4,"Year",D$12,"Digest",$A41)/1000,VLOOKUP($A41,DB3_sharedata,(D$12-1996+1),FALSE)),"END") -> 3878082.929 | E41: =IFERROR(IF(DB3_calculationtype=0,GETPIVOTDATA("Value",DB3_DIGESTSPREPPED!$A$4,"Year",E$12,"Digest",$A41)/1000,VLOOKUP($A41,DB3_sharedata,(E$12-1996+1),FALSE)),"END") -> 6135849.882
A42: CH004 | B42: Organic commodity chemicals (CH004) | C42: 2230810.182 | D42: =IFERROR(IF(DB3_calculationtype=0,GETPIVOTDATA("Value",DB3_DIGESTSPREPPED!$A$4,"Year",D$12,"Digest",$A42)/1000,VLOOKUP($A42,DB3_sharedata,(D$12-1996+1),FALSE)),"END") -> 5049334.905 | E42: =IFERROR(IF(DB3_calculationtype=0,GETPIVOTDATA("Value",DB3_DIGESTSPREPPED!$A$4,"Year",E$12,"Digest",$A42)/1000,VLOOKUP($A42,DB3_sharedata,(E$12-1996+1),FALSE)),"END") -> 7280145.087
A43: MM025 | B43: Steel mill products (MM025) | C43: 2218678.453 | D43: =IFERROR(IF(DB3_calculationtype=0,GETPIVOTDATA("Value",DB3_DIGESTSPREPPED!$A$4,"Year",D$12,"Digest",$A43)/1000,VLOOKUP($A43,DB3_sharedata,(D$12-1996+1),FALSE)),"END") -> 14935236.59 | E43: =IFERROR(IF(DB3_calculationtype=0,GETPIVOTDATA("Value",DB3_DIGESTSPREPPED!$A$4,"Year",E$12,"Digest",$A43)/1000,VLOOKUP($A43,DB3_sharedata,(E$12-1996+1),FALSE)),"END") -> 17153915.04
A44: EL012 | B44: Circuit apparatus assemblies (EL012) | C44: 2117326.19 | D44: =IFERROR(IF(DB3_calculationtype=0,GETPIVOTDATA("Value",DB3_DIGESTSPREPPED!$A$4,"Year",D$12,"Digest",$A44)/1000,VLOOKUP($A44,DB3_sharedata,(D$12-1996+1),FALSE)),"END") -> 3197498.617 | E44: =IFERROR(IF(DB3_calculationtype=0,GETPIVOTDATA("Value",DB3_DIGESTSPREPPED!$A$4,"Year",E$12,"Digest",$A44)/1000,VLOOKUP($A44,DB3_sharedata,(E$12-1996+1),FALSE)),"END") -> 5314824.807
A45: AG036 | B45: Infant formulas, malt extracts, and other edible preparations (AG036) | C45: 1882830.041 | D45: =IFERROR(IF(DB3_calculationtype=0,GETPIVOTDATA("Value",DB3_DIGESTSPREPPED!$A$4,"Year",D$12,"Digest",$A45)/1000,VLOOKUP($A45,DB3_sharedata,(D$12-1996+1),FALSE)),"END") -> 4262484.531 | E45: =IFERROR(IF(DB3_calculationtype=0,GETPIVOTDATA("Value",DB3_DIGESTSPREPPED!$A$4,"Year",E$12,"Digest",$A45)/1000,VLOOKUP($A45,DB3_sharedata,(E$12-1996+1),FALSE)),"END") -> 6145314.572
A46: MT005 | B46: Centrifuges and filtering and purifying equipment (MT005) | C46: 1857881.601 | D46: =IFERROR(IF(DB3_calculationtype=0,GETPIVOTDATA("Value",DB3_DIGESTSPREPPED!$A$4,"Year",D$12,"Digest",$A46)/1000,VLOOKUP($A46,DB3_sharedata,(D$12-1996+1),FALSE)),"END") -> 5499231.249 | E46: =IFERROR(IF(DB3_calculationtype=0,GETPIVOTDATA("Value",DB3_DIGESTSPREPPED!$A$4,"Year",E$12,"Digest",$A46)/1000,VLOOKUP($A46,DB3_sharedata,(E$12-1996+1),FALSE)),"END") -> 7357112.85
A47: CH030 | B47: Other plastics in primary forms (CH030) | C47: 1850707.487 | D47: =IFERROR(IF(DB3_calculationtype=0,GETPIVOTDATA("Value",DB3_DIGESTSPREPPED!$A$4,"Year",D$12,"Digest",$A47)/1000,VLOOKUP($A47,DB3_sharedata,(D$12-1996+1),FALSE)),"END") -> 14840115.02 | E47: =IFERROR(IF(DB3_calculationtype=0,GETPIVOTDATA("Value",DB3_DIGESTSPREPPED!$A$4,"Year",E$12,"Digest",$A47)/1000,VLOOKUP($A47,DB3_sharedata,(E$12-1996+1),FALSE)),"END") -> 16690822.51
A48: XX098 | B48: CHAPTER 98 (EXPORTS VALID AT CHAPTER LEVEL ONLY) (XX098) | C48: 1741705.183 | D48: =IFERROR(IF(DB3_calculationtype=0,GETPIVOTDATA("Value",DB3_DIGESTSPREPPED!$A$4,"Year",D$12,"Digest",$A48)/1000,VLOOKUP($A48,DB3_sharedata,(D$12-1996+1),FALSE)),"END") -> 40373871.93 | E48: =IFERROR(IF(DB3_calculationtype=0,GETPIVOTDATA("Value",DB3_DIGESTSPREPPED!$A$4,"Year",E$12,"Digest",$A48)/1000,VLOOKUP($A48,DB3_sharedata,(E$12-1996+1),FALSE)),"END") -> 42115577.11
A49: CH019 | B49: Medicinal chemicals (CH019) | C49: 1723186.429 | D49: =IFERROR(IF(DB3_calculationtype=0,GETPIVOTDATA("Value",DB3_DIGESTSPREPPED!$A$4,"Year",D$12,"Digest",$A49)/1000,VLOOKUP($A49,DB3_sharedata,(D$12-1996+1),FALSE)),"END") -> 50138269.06 | E49: =IFERROR(IF(DB3_calculationtype=0,GETPIVOTDATA("Value",DB3_DIGESTSPREPPED!$A$4,"Year",E$12,"Digest",$A49)/1000,VLOOKUP($A49,DB3_sharedata,(E$12-1996+1),FALSE)),"END") -> 51861455.49
A50: MT029 | B50: Nonautomotive insulated electrical wire and related products (MT029) | C50: 1695782.878 | D50: =IFERROR(IF(DB3_calculationtype=0,GETPIVOTDATA("Value",DB3_DIGESTSPREPPED!$A$4,"Year",D$12,"Digest",$A50)/1000,VLOOKUP($A50,DB3_sharedata,(D$12-1996+1),FALSE)),"END") -> 5660768.602 | E50: =IFERROR(IF(DB3_calculationtype=0,GETPIVOTDATA("Value",DB3_DIGESTSPREPPED!$A$4,"Year",E$12,"Digest",$A50)/1000,VLOOKUP($A50,DB3_sharedata,(E$12-1996+1),FALSE)),"END") -> 7356551.48
A51: MM038 | B51: Aluminum mill products (MM038) | C51: 1665997.412 | D51: =IFERROR(IF(DB3_calculationtype=0,GETPIVOTDATA("Value",DB3_DIGESTSPREPPED!$A$4,"Year",D$12,"Digest",$A51)/1000,VLOOKUP($A51,DB3_sharedata,(D$12-1996+1),FALSE)),"END") -> 4470554.828 | E51: =IFERROR(IF(DB3_calculationtype=0,GETPIVOTDATA("Value",DB3_DIGESTSPREPPED!$A$4,"Year",E$12,"Digest",$A51)/1000,VLOOKUP($A51,DB3_sharedata,(E$12-1996+1),FALSE)),"END") -> 6136552.24
A52: CH021 | B52: Perfumes, cosmetics, and toiletries (CH021) | C52: 1582106.942 | D52: =IFERROR(IF(DB3_calculationtype=0,GETPIVOTDATA("Value",DB3_DIGESTSPREPPED!$A$4,"Year",D$12,"Digest",$A52)/1000,VLOOKUP($A52,DB3_sharedata,(D$12-1996+1),FALSE)),"END") -> 7192524.515 | E52: =IFERROR(IF(DB3_calculationtype=0,GETPIVOTDATA("Value",DB3_DIGESTSPREPPED!$A$4,"Year",E$12,"Digest",$A52)/1000,VLOOKUP($A52,DB3_sharedata,(E$12-1996+1),FALSE)),"END") -> 8774631.457
A53: CH023 | B53: Miscellaneous chemicals and specialties (CH023) | C53: 1466461.369 | D53: =IFERROR(IF(DB3_calculationtype=0,GETPIVOTDATA("Value",DB3_DIGESTSPREPPED!$A$4,"Year",D$12,"Digest",$A53)/1000,VLOOKUP($A53,DB3_sharedata,(D$12-1996+1),FALSE)),"END") -> 5990844.438 | E53: =IFERROR(IF(DB3_calculationtype=0,GETPIVOTDATA("Value",DB3_DIGESTSPREPPED!$A$4,"Year",E$12,"Digest",$A53)/1000,VLOOKUP($A53,DB3_sharedata,(E$12-1996+1),FALSE)),"END") -> 7457305.807
A54: EL011 | B54: Circuit apparatus not exceeding 1000V (EL011) | C54: 1461365.908 | D54: =IFERROR(IF(DB3_calculationtype=0,GETPIVOTDATA("Value",DB3_DIGESTSPREPPED!$A$4,"Year",D$12,"Digest",$A54)/1000,VLOOKUP($A54,DB3_sharedata,(D$12-1996+1),FALSE)),"END") -> 7969657.49 | E54: =IFERROR(IF(DB3_calculationtype=0,GETPIVOTDATA("Value",DB3_DIGESTSPREPPED!$A$4,"Year",E$12,"Digest",$A54)/1000,VLOOKUP($A54,DB3_sharedata,(E$12-1996+1),FALSE)),"END") -> 9431023.398
A55: MT004 | B55: Household appliances, including commercial applications (MT004) | C55: 1426912.229 | D55: =IFERROR(IF(DB3_calculationtype=0,GETPIVOTDATA("Value",DB3_DIGESTSPREPPED!$A$4,"Year",D$12,"Digest",$A55)/1000,VLOOKUP($A55,DB3_sharedata,(D$12-1996+1),FALSE)),"END") -> 7185404.9 | E55: =IFERROR(IF(DB3_calculationtype=0,GETPIVOTDATA("Value",DB3_DIGESTSPREPPED!$A$4,"Year",E$12,"Digest",$A55)/1000,VLOOKUP($A55,DB3_sharedata,(E$12-1996+1),FALSE)),"END") -> 8612317.129
A56: MM004 | B56: Copper ores and concentrates (MM004) | C56: 1382949.213 | D56: =IFERROR(IF(DB3_calculationtype=0,GETPIVOTDATA("Value",DB3_DIGESTSPREPPED!$A$4,"Year",D$12,"Digest",$A56)/1000,VLOOKUP($A56,DB3_sharedata,(D$12-1996+1),FALSE)),"END") -> 1218499.021 | E56: =IFERROR(IF(DB3_calculationtype=0,GETPIVOTDATA("Value",DB3_DIGESTSPREPPED!$A$4,"Year",E$12,"Digest",$A56)/1000,VLOOKUP($A56,DB3_sharedata,(E$12-1996+1),FALSE)),"END") -> 2601448.234
A57: TE012 | B57: Trailers, semi-trailers, and parts (TE012) | C57: 1382787.945 | D57: =IFERROR(IF(DB3_calculationtype=0,GETPIVOTDATA("Value",DB3_DIGESTSPREPPED!$A$4,"Year",D$12,"Digest",$A57)/1000,VLOOKUP($A57,DB3_sharedata,(D$12-1996+1),FALSE)),"END") -> 2526747.605 | E57: =IFERROR(IF(DB3_calculationtype=0,GETPIVOTDATA("Value",DB3_DIGESTSPREPPED!$A$4,"Year",E$12,"Digest",$A57)/1000,VLOOKUP($A57,DB3_sharedata,(E$12-1996+1),FALSE)),"END") -> 3909535.549
A58: CH032 | B58: Tires and tubes (CH032) | C58: 1382084.881 | D58: =IFERROR(IF(DB3_calculationtype=0,GETPIVOTDATA("Value",DB3_DIGESTSPREPPED!$A$4,"Year",D$12,"Digest",$A58)/1000,VLOOKUP($A58,DB3_sharedata,(D$12-1996+1),FALSE)),"END") -> 4785891.125 | E58: =IFERROR(IF(DB3_calculationtype=0,GETPIVOTDATA("Value",DB3_DIGESTSPREPPED!$A$4,"Year",E$12,"Digest",$A58)/1000,VLOOKUP($A58,DB3_sharedata,(E$12-1996+1),FALSE)),"END") -> 6167976.006
A59: TE008 | B59: Rail locomotive and rolling stock (TE008) | C59: 1372732.22 | D59: =IFERROR(IF(DB3_calculationtype=0,GETPIVOTDATA("Value",DB3_DIGESTSPREPPED!$A$4,"Year",D$12,"Digest",$A59)/1000,VLOOKUP($A59,DB3_sharedata,(D$12-1996+1),FALSE)),"END") -> 2502803.122 | E59: =IFERROR(IF(DB3_calculationtype=0,GETPIVOTDATA("Value",DB3_DIGESTSPREPPED!$A$4,"Year",E$12,"Digest",$A59)/1000,VLOOKUP($A59,DB3_sharedata,(E$12-1996+1),FALSE)),"END") -> 3875535.342
A60: EL005 | B60: Navigational instruments and remote control apparatus (EL005) | C60: 1345475.972 | D60: =IFERROR(IF(DB3_calculationtype=0,GETPIVOTDATA("Value",DB3_DIGESTSPREPPED!$A$4,"Year",D$12,"Digest",$A60)/1000,VLOOKUP($A60,DB3_sharedata,(D$12-1996+1),FALSE)),"END") -> 3492410.162 | E60: =IFERROR(IF(DB3_calculationtype=0,GETPIVOTDATA("Value",DB3_DIGESTSPREPPED!$A$4,"Year",E$12,"Digest",$A60)/1000,VLOOKUP($A60,DB3_sharedata,(E$12-1996+1),FALSE)),"END") -> 4837886.134
A61: AG005 | B61: Poultry (AG005) | C61: 1314120.927 | D61: =IFERROR(IF(DB3_calculationtype=0,GETPIVOTDATA("Value",DB3_DIGESTSPREPPED!$A$4,"Year",D$12,"Digest",$A61)/1000,VLOOKUP($A61,DB3_sharedata,(D$12-1996+1),FALSE)),"END") -> 4291880.821 | E61: =IFERROR(IF(DB3_calculationtype=0,GETPIVOTDATA("Value",DB3_DIGESTSPREPPED!$A$4,"Year",E$12,"Digest",$A61)/1000,VLOOKUP($A61,DB3_sharedata,(E$12-1996+1),FALSE)),"END") -> 5606001.748
A62: TE015 | B62: Motors and engines, except internal combustion, aircraft, or electric (TE015) | C62: 1304395.937 | D62: =IFERROR(IF(DB3_calculationtype=0,GETPIVOTDATA("Value",DB3_DIGESTSPREPPED!$A$4,"Year",D$12,"Digest",$A62)/1000,VLOOKUP($A62,DB3_sharedata,(D$12-1996+1),FALSE)),"END") -> 1927348.966 | E62: =IFERROR(IF(DB3_calculationtype=0,GETPIVOTDATA("Value",DB3_DIGESTSPREPPED!$A$4,"Year",E$12,"Digest",$A62)/1000,VLOOKUP($A62,DB3_sharedata,(E$12-1996+1),FALSE)),"END") -> 3231744.903
A63: MS017 | B63: Works of art and miscellaneous manufactured goods (MS017) | C63: 1290293.862 | D63: =IFERROR(IF(DB3_calculationtype=0,GETPIVOTDATA("Value",DB3_DIGESTSPREPPED!$A$4,"Year",D$12,"Digest",$A63)/1000,VLOOKUP($A63,DB3_sharedata,(D$12-1996+1),FALSE)),"END") -> 7198831.356 | E63: =IFERROR(IF(DB3_calculationtype=0,GETPIVOTDATA("Value",DB3_DIGESTSPREPPED!$A$4,"Year",E$12,"Digest",$A63)/1000,VLOOKUP($A63,DB3_sharedata,(E$12-1996+1),FALSE)),"END") -> 8489125.218
A64: MS009 | B64: Furniture (MS009) | C64: 1279821.251 | D64: =IFERROR(IF(DB3_calculationtype=0,GETPIVOTDATA("Value",DB3_DIGESTSPREPPED!$A$4,"Year",D$12,"Digest",$A64)/1000,VLOOKUP($A64,DB3_sharedata,(D$12-1996+1),FALSE)),"END") -> 4438994.738 | E64: =IFERROR(IF(DB3_calculationtype=0,GETPIVOTDATA("Value",DB3_DIGESTSPREPPED!$A$4,"Year",E$12,"Digest",$A64)/1000,VLOOKUP($A64,DB3_sharedata,(E$12-1996+1),FALSE)),"END") -> 5718815.989
A65: TX005 | B65: Apparel (TX005) | C65: 1181875.444 | D65: =IFERROR(IF(DB3_calculationtype=0,GETPIVOTDATA("Value",DB3_DIGESTSPREPPED!$A$4,"Year",D$12,"Digest",$A65)/1000,VLOOKUP($A65,DB3_sharedata,(D$12-1996+1),FALSE)),"END") -> 4704529.731 | E65: =IFERROR(IF(DB3_calculationtype=0,GETPIVOTDATA("Value",DB3_DIGESTSPREPPED!$A$4,"Year",E$12,"Digest",$A65)/1000,VLOOKUP($A65,DB3_sharedata,(E$12-1996+1),FALSE)),"END") -> 5886405.175
A66: EP003 | B66: Coal, coke, and related chemical products (EP003) | C66: 1166289.272 | D66: =IFERROR(IF(DB3_calculationtype=0,GETPIVOTDATA("Value",DB3_DIGESTSPREPPED!$A$4,"Year",D$12,"Digest",$A66)/1000,VLOOKUP($A66,DB3_sharedata,(D$12-1996+1),FALSE)),"END") -> 12611576.94 | E66: =IFERROR(IF(DB3_calculationtype=0,GETPIVOTDATA("Value",DB3_DIGESTSPREPPED!$A$4,"Year",E$12,"Digest",$A66)/1000,VLOOKUP($A66,DB3_sharedata,(E$12-1996+1),FALSE)),"END") -> 13777866.21
A67: AG003 | B67: Swine and pork (AG003) | C67: 1117578.249 | D67: =IFERROR(IF(DB3_calculationtype=0,GETPIVOTDATA("Value",DB3_DIGESTSPREPPED!$A$4,"Year",D$12,"Digest",$A67)/1000,VLOOKUP($A67,DB3_sharedata,(D$12-1996+1),FALSE)),"END") -> 4004293.126 | E67: =IFERROR(IF(DB3_calculationtype=0,GETPIVOTDATA("Value",DB3_DIGESTSPREPPED!$A$4,"Year",E$12,"Digest",$A67)/1000,VLOOKUP($A67,DB3_sharedata,(E$12-1996+1),FALSE)),"END") -> 5121871.375
A68: MM032 | B68: Industrial fasteners of base metal (MM032) | C68: 1097804.806 | D68: =IFERROR(IF(DB3_calculationtype=0,GETPIVOTDATA("Value",DB3_DIGESTSPREPPED!$A$4,"Year",D$12,"Digest",$A68)/1000,VLOOKUP($A68,DB3_sharedata,(D$12-1996+1),FALSE)),"END") -> 2736250.264 | E68: =IFERROR(IF(DB3_calculationtype=0,GETPIVOTDATA("Value",DB3_DIGESTSPREPPED!$A$4,"Year",E$12,"Digest",$A68)/1000,VLOOKUP($A68,DB3_sharedata,(E$12-1996+1),FALSE)),"END") -> 3834055.07
A69: MT023 | B69: Electric motors, generators, and related equipment (MT023) | C69: 1094675.521 | D69: =IFERROR(IF(DB3_calculationtype=0,GETPIVOTDATA("Value",DB3_DIGESTSPREPPED!$A$4,"Year",D$12,"Digest",$A69)/1000,VLOOKUP($A69,DB3_sharedata,(D$12-1996+1),FALSE)),"END") -> 8653318.748 | E69: =IFERROR(IF(DB3_calculationtype=0,GETPIVOTDATA("Value",DB3_DIGESTSPREPPED!$A$4,"Year",E$12,"Digest",$A69)/1000,VLOOKUP($A69,DB3_sharedata,(E$12-1996+1),FALSE)),"END") -> 9747994.27
A70: CH017 | B70: Pesticide products and formulations (CH017) | C70: 1061584.533 | D70: =IFERROR(IF(DB3_calculationtype=0,GETPIVOTDATA("Value",DB3_DIGESTSPREPPED!$A$4,"Year",D$12,"Digest",$A70)/1000,VLOOKUP($A70,DB3_sharedata,(D$12-1996+1),FALSE)),"END") -> 5036264.18 | E70: =IFERROR(IF(DB3_calculationtype=0,GETPIVOTDATA("Value",DB3_DIGESTSPREPPED!$A$4,"Year",E$12,"Digest",$A70)/1000,VLOOKUP($A70,DB3_sharedata,(E$12-1996+1),FALSE)),"END") -> 6097848.713
A71: TE007 | B71: Ignition, starting, lighting, and other electrical equipment (TE007) | C71: 1058434.114 | D71: =IFERROR(IF(DB3_calculationtype=0,GETPIVOTDATA("Value",DB3_DIGESTSPREPPED!$A$4,"Year",D$12,"Digest",$A71)/1000,VLOOKUP($A71,DB3_sharedata,(D$12-1996+1),FALSE)),"END") -> 3069218.123 | E71: =IFERROR(IF(DB3_calculationtype=0,GETPIVOTDATA("Value",DB3_DIGESTSPREPPED!$A$4,"Year",E$12,"Digest",$A71)/1000,VLOOKUP($A71,DB3_sharedata,(E$12-1996+1),FALSE)),"END") -> 4127652.237
A72: CH034 | B72: Miscellaneous rubber products (CH034) | C72: 1018438.831 | D72: =IFERROR(IF(DB3_calculationtype=0,GETPIVOTDATA("Value",DB3_DIGESTSPREPPED!$A$4,"Year",D$12,"Digest",$A72)/1000,VLOOKUP($A72,DB3_sharedata,(D$12-1996+1),FALSE)),"END") -> 3448405.324 | E72: =IFERROR(IF(DB3_calculationtype=0,GETPIVOTDATA("Value",DB3_DIGESTSPREPPED!$A$4,"Year",E$12,"Digest",$A72)/1000,VLOOKUP($A72,DB3_sharedata,(E$12-1996+1),FALSE)),"END") -> 4466844.155
A73: TE003 | B73: Forklift trucks and similar industrial vehicles (TE003) | C73: 1014532.685 | D73: =IFERROR(IF(DB3_calculationtype=0,GETPIVOTDATA("Value",DB3_DIGESTSPREPPED!$A$4,"Year",D$12,"Digest",$A73)/1000,VLOOKUP($A73,DB3_sharedata,(D$12-1996+1),FALSE)),"END") -> 2278282.162 | E73: =IFERROR(IF(DB3_calculationtype=0,GETPIVOTDATA("Value",DB3_DIGESTSPREPPED!$A$4,"Year",E$12,"Digest",$A73)/1000,VLOOKUP($A73,DB3_sharedata,(E$12-1996+1),FALSE)),"END") -> 3292814.847
A74: MM036 | B74: Copper and related articles (MM036) | C74: 1003451.633 | D74: =IFERROR(IF(DB3_calculationtype=0,GETPIVOTDATA("Value",DB3_DIGESTSPREPPED!$A$4,"Year",D$12,"Digest",$A74)/1000,VLOOKUP($A74,DB3_sharedata,(D$12-1996+1),FALSE)),"END") -> 7467570.396 | E74: =IFERROR(IF(DB3_calculationtype=0,GETPIVOTDATA("Value",DB3_DIGESTSPREPPED!$A$4,"Year",E$12,"Digest",$A74)/1000,VLOOKUP($A74,DB3_sharedata,(E$12-1996+1),FALSE)),"END") -> 8471022.029
A75: AG034 | B75: Pasta, cereals, and other bakery goods (AG034) | C75: 969727.412 | D75: =IFERROR(IF(DB3_calculationtype=0,GETPIVOTDATA("Value",DB3_DIGESTSPREPPED!$A$4,"Year",D$12,"Digest",$A75)/1000,VLOOKUP($A75,DB3_sharedata,(D$12-1996+1),FALSE)),"END") -> 2730674.168 | E75: =IFERROR(IF(DB3_calculationtype=0,GETPIVOTDATA("Value",DB3_DIGESTSPREPPED!$A$4,"Year",E$12,"Digest",$A75)/1000,VLOOKUP($A75,DB3_sharedata,(E$12-1996+1),FALSE)),"END") -> 3700401.58
A76: MT024 | B76: Electrical transformers, static converters, and inductors (MT024) | C76: 968863.5619 | D76: =IFERROR(IF(DB3_calculationtype=0,GETPIVOTDATA("Value",DB3_DIGESTSPREPPED!$A$4,"Year",D$12,"Digest",$A76)/1000,VLOOKUP($A76,DB3_sharedata,(D$12-1996+1),FALSE)),"END") -> 4159544.21 | E76: =IFERROR(IF(DB3_calculationtype=0,GETPIVOTDATA("Value",DB3_DIGESTSPREPPED!$A$4,"Year",E$12,"Digest",$A76)/1000,VLOOKUP($A76,DB3_sharedata,(E$12-1996+1),FALSE)),"END") -> 5128407.772
A77: MM041 | B77: Certain base metals and chemical elements (MM041) | C77: 968600.62 | D77: =IFERROR(IF(DB3_calculationtype=0,GETPIVOTDATA("Value",DB3_DIGESTSPREPPED!$A$4,"Year",D$12,"Digest",$A77)/1000,VLOOKUP($A77,DB3_sharedata,(D$12-1996+1),FALSE)),"END") -> 3558029.857 | E77: =IFERROR(IF(DB3_calculationtype=0,GETPIVOTDATA("Value",DB3_DIGESTSPREPPED!$A$4,"Year",E$12,"Digest",$A77)/1000,VLOOKUP($A77,DB3_sharedata,(E$12-1996+1),FALSE)),"END") -> 4526630.477
A78: =OFFSET(INDIRECT("DB3_DIGESTSPREPPED!"&VLOOKUP(DB3_comparison,DB3_comparisongroup,3,FALSE)&6),ROW()-ROW($B$14),$C$2-1) -> CH025 | B78: =IFERROR(VLOOKUP(A78,DB3_digesttitles,2,FALSE)&" ("&A78&")","END") -> Polyethylene resins in primary forms (CH025) | C78: =IFERROR(VLOOKUP($A78,INDIRECT(VLOOKUP(DB3_comparison,DB3_comparisongroup,4,FALSE)),$C$2+1,FALSE),"END") -> 941480.169 | D78: =IFERROR(IF(DB3_calculationtype=0,GETPIVOTDATA("Value",DB3_DIGESTSPREPPED!$A$4,"Year",D$12,"Digest",$A78)/1000,VLOOKUP($A78,DB3_sharedata,(D$12-1996+1),FALSE)),"END") -> 7074675.05 | E78: =IFERROR(IF(DB3_calculationtype=0,GETPIVOTDATA("Value",DB3_DIGESTSPREPPED!$A$4,"Year",E$12,"Digest",$A78)/1000,VLOOKUP($A78,DB3_sharedata,(E$12-1996+1),FALSE)),"END") -> 8016155.219
A79: MT021 | B79: Mechanical power transmission equipment (MT021) | C79: 908498.924 | D79: =IFERROR(IF(DB3_calculationtype=0,GETPIVOTDATA("Value",DB3_DIGESTSPREPPED!$A$4,"Year",D$12,"Digest",$A79)/1000,VLOOKUP($A79,DB3_sharedata,(D$12-1996+1),FALSE)),"END") -> 2542036.493 | E79: =IFERROR(IF(DB3_calculationtype=0,GETPIVOTDATA("Value",DB3_DIGESTSPREPPED!$A$4,"Year",E$12,"Digest",$A79)/1000,VLOOKUP($A79,DB3_sharedata,(E$12-1996+1),FALSE)),"END") -> 3450535.417
A80: FP011 | B80: Industrial papers and paperboards (FP011) | C80: 878331.185 | D80: =IFERROR(IF(DB3_calculationtype=0,GETPIVOTDATA("Value",DB3_DIGESTSPREPPED!$A$4,"Year",D$12,"Digest",$A80)/1000,VLOOKUP($A80,DB3_sharedata,(D$12-1996+1),FALSE)),"END") -> 8691517.921 | E80: =IFERROR(IF(DB3_calculationtype=0,GETPIVOTDATA("Value",DB3_DIGESTSPREPPED!$A$4,"Year",E$12,"Digest",$A80)/1000,VLOOKUP($A80,DB3_sharedata,(E$12-1996+1),FALSE)),"END") -> 9569849.106
A81: TE006 | B81: Primary cells and batteries and electric storage batteries (TE006) | C81: 877905.784 | D81: =IFERROR(IF(DB3_calculationtype=0,GETPIVOTDATA("Value",DB3_DIGESTSPREPPED!$A$4,"Year",D$12,"Digest",$A81)/1000,VLOOKUP($A81,DB3_sharedata,(D$12-1996+1),FALSE)),"END") -> 3167699.984 | E81: =IFERROR(IF(DB3_calculationtype=0,GETPIVOTDATA("Value",DB3_DIGESTSPREPPED!$A$4,"Year",E$12,"Digest",$A81)/1000,VLOOKUP($A81,DB3_sharedata,(E$12-1996+1),FALSE)),"END") -> 4045605.768
A82: AG019 | B82: Prepared or preserved vegetables, mushrooms, and olives (AG019) | C82: 876143.911 | D82: =IFERROR(IF(DB3_calculationtype=0,GETPIVOTDATA("Value",DB3_DIGESTSPREPPED!$A$4,"Year",D$12,"Digest",$A82)/1000,VLOOKUP($A82,DB3_sharedata,(D$12-1996+1),FALSE)),"END") -> 2640070.145 | E82: =IFERROR(IF(DB3_calculationtype=0,GETPIVOTDATA("Value",DB3_DIGESTSPREPPED!$A$4,"Year",E$12,"Digest",$A82)/1000,VLOOKUP($A82,DB3_sharedata,(E$12-1996+1),FALSE)),"END") -> 3516214.056
A83: FP002 | B83: Lumber (FP002) | C83: 864627.332 | D83: =IFERROR(IF(DB3_calculationtype=0,GETPIVOTDATA("Value",DB3_DIGESTSPREPPED!$A$4,"Year",D$12,"Digest",$A83)/1000,VLOOKUP($A83,DB3_sharedata,(D$12-1996+1),FALSE)),"END") -> 2337842.147 | E83: =IFERROR(IF(DB3_calculationtype=0,GETPIVOTDATA("Value",DB3_DIGESTSPREPPED!$A$4,"Year",E$12,"Digest",$A83)/1000,VLOOKUP($A83,DB3_sharedata,(E$12-1996+1),FALSE)),"END") -> 3202469.479
A84: CH022 | B84: Soaps, detergents, and surface-active agents (CH022) | C84: 862272.961 | D84: =IFERROR(IF(DB3_calculationtype=0,GETPIVOTDATA("Value",DB3_DIGESTSPREPPED!$A$4,"Year",D$12,"Digest",$A84)/1000,VLOOKUP($A84,DB3_sharedata,(D$12-1996+1),FALSE)),"END") -> 5197848.235 | E84: =IFERROR(IF(DB3_calculationtype=0,GETPIVOTDATA("Value",DB3_DIGESTSPREPPED!$A$4,"Year",E$12,"Digest",$A84)/1000,VLOOKUP($A84,DB3_sharedata,(E$12-1996+1),FALSE)),"END") -> 6060121.196
A85: FP001 | B85: Logs and rough wood products (FP001) | C85: 858532.318 | D85: =IFERROR(IF(DB3_calculationtype=0,GETPIVOTDATA("Value",DB3_DIGESTSPREPPED!$A$4,"Year",D$12,"Digest",$A85)/1000,VLOOKUP($A85,DB3_sharedata,(D$12-1996+1),FALSE)),"END") -> 2278532.87 | E85: =IFERROR(IF(DB3_calculationtype=0,GETPIVOTDATA("Value",DB3_DIGESTSPREPPED!$A$4,"Year",E$12,"Digest",$A85)/1000,VLOOKUP($A85,DB3_sharedata,(E$12-1996+1),FALSE)),"END") -> 3137065.188
A86: AG046 | B86: Hides, skins, and leather (AG046) | C86: 852671.4759 | D86: =IFERROR(IF(DB3_calculationtype=0,GETPIVOTDATA("Value",DB3_DIGESTSPREPPED!$A$4,"Year",D$12,"Digest",$A86)/1000,VLOOKUP($A86,DB3_sharedata,(D$12-1996+1),FALSE)),"END") -> 2906126.289 | E86: =IFERROR(IF(DB3_calculationtype=0,GETPIVOTDATA("Value",DB3_DIGESTSPREPPED!$A$4,"Year",E$12,"Digest",$A86)/1000,VLOOKUP($A86,DB3_sharedata,(E$12-1996+1),FALSE)),"END") -> 3758797.765
A87: EL016 | B87: Miscellaneous electrical equipment (EL016) | C87: 831750.452 | D87: =IFERROR(IF(DB3_calculationtype=0,GETPIVOTDATA("Value",DB3_DIGESTSPREPPED!$A$4,"Year",D$12,"Digest",$A87)/1000,VLOOKUP($A87,DB3_sharedata,(D$12-1996+1),FALSE)),"END") -> 2691070.14 | E87: =IFERROR(IF(DB3_calculationtype=0,GETPIVOTDATA("Value",DB3_DIGESTSPREPPED!$A$4,"Year",E$12,"Digest",$A87)/1000,VLOOKUP($A87,DB3_sharedata,(E$12-1996+1),FALSE)),"END") -> 3522820.592
A88: CH007 | B88: Miscellaneous inorganic chemicals (CH007) | C88: 810534.9705 | D88: =IFERROR(IF(DB3_calculationtype=0,GETPIVOTDATA("Value",DB3_DIGESTSPREPPED!$A$4,"Year",D$12,"Digest",$A88)/1000,VLOOKUP($A88,DB3_sharedata,(D$12-1996+1),FALSE)),"END") -> 12047679.38 | E88: =IFERROR(IF(DB3_calculationtype=0,GETPIVOTDATA("Value",DB3_DIGESTSPREPPED!$A$4,"Year",E$12,"Digest",$A88)/1000,VLOOKUP($A88,DB3_sharedata,(E$12-1996+1),FALSE)),"END") -> 12858214.35
A89: MM042 | B89: Nonpowered handtools (MM042) | C89: 785188.023 | D89: =IFERROR(IF(DB3_calculationtype=0,GETPIVOTDATA("Value",DB3_DIGESTSPREPPED!$A$4,"Year",D$12,"Digest",$A89)/1000,VLOOKUP($A89,DB3_sharedata,(D$12-1996+1),FALSE)),"END") -> 3961922.597 | E89: =IFERROR(IF(DB3_calculationtype=0,GETPIVOTDATA("Value",DB3_DIGESTSPREPPED!$A$4,"Year",E$12,"Digest",$A89)/1000,VLOOKUP($A89,DB3_sharedata,(E$12-1996+1),FALSE)),"END") -> 4747110.62
A90: TE001 | B90: Aircraft engines and gas turbines (TE001) | C90: 766697.33 | D90: =IFERROR(IF(DB3_calculationtype=0,GETPIVOTDATA("Value",DB3_DIGESTSPREPPED!$A$4,"Year",D$12,"Digest",$A90)/1000,VLOOKUP($A90,DB3_sharedata,(D$12-1996+1),FALSE)),"END") -> 9449168.751 | E90: =IFERROR(IF(DB3_calculationtype=0,GETPIVOTDATA("Value",DB3_DIGESTSPREPPED!$A$4,"Year",E$12,"Digest",$A90)/1000,VLOOKUP($A90,DB3_sharedata,(E$12-1996+1),FALSE)),"END") -> 10215866.08
A91: TX001 | B91: Fibers and yarns, except raw cotton and raw wool (TX001) | C91: 760197.732 | D91: =IFERROR(IF(DB3_calculationtype=0,GETPIVOTDATA("Value",DB3_DIGESTSPREPPED!$A$4,"Year",D$12,"Digest",$A91)/1000,VLOOKUP($A91,DB3_sharedata,(D$12-1996+1),FALSE)),"END") -> 4566640.943 | E91: =IFERROR(IF(DB3_calculationtype=0,GETPIVOTDATA("Value",DB3_DIGESTSPREPPED!$A$4,"Year",E$12,"Digest",$A91)/1000,VLOOKUP($A91,DB3_sharedata,(E$12-1996+1),FALSE)),"END") -> 5326838.675
A92: CH009 | B92: Chlor-alkali chemicals (CH009) | C92: 756690.786 | D92: =IFERROR(IF(DB3_calculationtype=0,GETPIVOTDATA("Value",DB3_DIGESTSPREPPED!$A$4,"Year",D$12,"Digest",$A92)/1000,VLOOKUP($A92,DB3_sharedata,(D$12-1996+1),FALSE)),"END") -> 1600741.7 | E92: =IFERROR(IF(DB3_calculationtype=0,GETPIVOTDATA("Value",DB3_DIGESTSPREPPED!$A$4,"Year",E$12,"Digest",$A92)/1000,VLOOKUP($A92,DB3_sharedata,(E$12-1996+1),FALSE)),"END") -> 2357432.486
A93: MM009 | B93: Cement, stone, and related products (MM009) | C93: 752191.318 | D93: =IFERROR(IF(DB3_calculationtype=0,GETPIVOTDATA("Value",DB3_DIGESTSPREPPED!$A$4,"Year",D$12,"Digest",$A93)/1000,VLOOKUP($A93,DB3_sharedata,(D$12-1996+1),FALSE)),"END") -> 2833843.357 | E93: =IFERROR(IF(DB3_calculationtype=0,GETPIVOTDATA("Value",DB3_DIGESTSPREPPED!$A$4,"Year",E$12,"Digest",$A93)/1000,VLOOKUP($A93,DB3_sharedata,(E$12-1996+1),FALSE)),"END") -> 3586034.675
A94: TX002 | B94: Fabrics (TX002) | C94: 743842.059 | D94: =IFERROR(IF(DB3_calculationtype=0,GETPIVOTDATA("Value",DB3_DIGESTSPREPPED!$A$4,"Year",D$12,"Digest",$A94)/1000,VLOOKUP($A94,DB3_sharedata,(D$12-1996+1),FALSE)),"END") -> 6163461.432 | E94: =IFERROR(IF(DB3_calculationtype=0,GETPIVOTDATA("Value",DB3_DIGESTSPREPPED!$A$4,"Year",E$12,"Digest",$A94)/1000,VLOOKUP($A94,DB3_sharedata,(E$12-1996+1),FALSE)),"END") -> 6907303.491
A95: MT015 | B95: Metal cutting machine tools (MT015) | C95: 726733.6366 | D95: =IFERROR(IF(DB3_calculationtype=0,GETPIVOTDATA("Value",DB3_DIGESTSPREPPED!$A$4,"Year",D$12,"Digest",$A95)/1000,VLOOKUP($A95,DB3_sharedata,(D$12-1996+1),FALSE)),"END") -> 2231892.225 | E95: =IFERROR(IF(DB3_calculationtype=0,GETPIVOTDATA("Value",DB3_DIGESTSPREPPED!$A$4,"Year",E$12,"Digest",$A95)/1000,VLOOKUP($A95,DB3_sharedata,(E$12-1996+1),FALSE)),"END") -> 2958625.862
A96: EL013 | B96: Parts of circuit apparatus (EL013) | C96: 719592.787 | D96: =IFERROR(IF(DB3_calculationtype=0,GETPIVOTDATA("Value",DB3_DIGESTSPREPPED!$A$4,"Year",D$12,"Digest",$A96)/1000,VLOOKUP($A96,DB3_sharedata,(D$12-1996+1),FALSE)),"END") -> 2959771.311 | E96: =IFERROR(IF(DB3_calculationtype=0,GETPIVOTDATA("Value",DB3_DIGESTSPREPPED!$A$4,"Year",E$12,"Digest",$A96)/1000,VLOOKUP($A96,DB3_sharedata,(E$12-1996+1),FALSE)),"END") -> 3679364.098
A97: AG006 | B97: Fresh or frozen fish (AG006) | C97: 696619.674 | D97: =IFERROR(IF(DB3_calculationtype=0,GETPIVOTDATA("Value",DB3_DIGESTSPREPPED!$A$4,"Year",D$12,"Digest",$A97)/1000,VLOOKUP($A97,DB3_sharedata,(D$12-1996+1),FALSE)),"END") -> 2799689.635 | E97: =IFERROR(IF(DB3_calculationtype=0,GETPIVOTDATA("Value",DB3_DIGESTSPREPPED!$A$4,"Year",E$12,"Digest",$A97)/1000,VLOOKUP($A97,DB3_sharedata,(E$12-1996+1),FALSE)),"END") -> 3496309.309
A98: AG050 | B98: Ethyl alcohol for nonbeverage purposes (AG050) | C98: 680061.151 | D98: =IFERROR(IF(DB3_calculationtype=0,GETPIVOTDATA("Value",DB3_DIGESTSPREPPED!$A$4,"Year",D$12,"Digest",$A98)/1000,VLOOKUP($A98,DB3_sharedata,(D$12-1996+1),FALSE)),"END") -> 874645.08 | E98: =IFERROR(IF(DB3_calculationtype=0,GETPIVOTDATA("Value",DB3_DIGESTSPREPPED!$A$4,"Year",E$12,"Digest",$A98)/1000,VLOOKUP($A98,DB3_sharedata,(E$12-1996+1),FALSE)),"END") -> 1554706.231
A99: TX006 | B99: Miscellaneous textile products (TX006) | C99: 652499.1291 | D99: =IFERROR(IF(DB3_calculationtype=0,GETPIVOTDATA("Value",DB3_DIGESTSPREPPED!$A$4,"Year",D$12,"Digest",$A99)/1000,VLOOKUP($A99,DB3_sharedata,(D$12-1996+1),FALSE)),"END") -> 2767112.089 | E99: =IFERROR(IF(DB3_calculationtype=0,GETPIVOTDATA("Value",DB3_DIGESTSPREPPED!$A$4,"Year",E$12,"Digest",$A99)/1000,VLOOKUP($A99,DB3_sharedata,(E$12-1996+1),FALSE)),"END") -> 3419611.218
A100: TE005 | B100: Ball and rollers bearings (TE005) | C100: 651439.433 | D100: =IFERROR(IF(DB3_calculationtype=0,GETPIVOTDATA("Value",DB3_DIGESTSPREPPED!$A$4,"Year",D$12,"Digest",$A100)/1000,VLOOKUP($A100,DB3_sharedata,(D$12-1996+1),FALSE)),"END") -> 2516472.394 | E100: =IFERROR(IF(DB3_calculationtype=0,GETPIVOTDATA("Value",DB3_DIGESTSPREPPED!$A$4,"Year",E$12,"Digest",$A100)/1000,VLOOKUP($A100,DB3_sharedata,(E$12-1996+1),FALSE)),"END") -> 3167911.827
A101: MS019 | B101: Arms, ammunition, and armored vehicles (MS019) | C101: 636902.673 | D101: =IFERROR(IF(DB3_calculationtype=0,GETPIVOTDATA("Value",DB3_DIGESTSPREPPED!$A$4,"Year",D$12,"Digest",$A101)/1000,VLOOKUP($A101,DB3_sharedata,(D$12-1996+1),FALSE)),"END") -> 5045903.895 | E101: =IFERROR(IF(DB3_calculationtype=0,GETPIVOTDATA("Value",DB3_DIGESTSPREPPED!$A$4,"Year",E$12,"Digest",$A101)/1000,VLOOKUP($A101,DB3_sharedata,(E$12-1996+1),FALSE)),"END") -> 5682806.568
A102: MT003 | B102: Industrial thermal-processing equipment and furnaces (MT003) | C102: 626657.025 | D102: =IFERROR(IF(DB3_calculationtype=0,GETPIVOTDATA("Value",DB3_DIGESTSPREPPED!$A$4,"Year",D$12,"Digest",$A102)/1000,VLOOKUP($A102,DB3_sharedata,(D$12-1996+1),FALSE)),"END") -> 4197003.765 | E102: =IFERROR(IF(DB3_calculationtype=0,GETPIVOTDATA("Value",DB3_DIGESTSPREPPED!$A$4,"Year",E$12,"Digest",$A102)/1000,VLOOKUP($A102,DB3_sharedata,(E$12-1996+1),FALSE)),"END") -> 4823660.79
A103: AG037 | B103: Cocoa, chocolate, and confectionery (AG037) | C103: 617544.019 | D103: =IFERROR(IF(DB3_calculationtype=0,GETPIVOTDATA("Value",DB3_DIGESTSPREPPED!$A$4,"Year",D$12,"Digest",$A103)/1000,VLOOKUP($A103,DB3_sharedata,(D$12-1996+1),FALSE)),"END") -> 1767961.694 | E103: =IFERROR(IF(DB3_calculationtype=0,GETPIVOTDATA("Value",DB3_DIGESTSPREPPED!$A$4,"Year",E$12,"Digest",$A103)/1000,VLOOKUP($A103,DB3_sharedata,(E$12-1996+1),FALSE)),"END") -> 2385505.713
A104: TE011 | B104: Powersport vehicles (TE011) | C104: 565600.114 | D104: =IFERROR(IF(DB3_calculationtype=0,GETPIVOTDATA("Value",DB3_DIGESTSPREPPED!$A$4,"Year",D$12,"Digest",$A104)/1000,VLOOKUP($A104,DB3_sharedata,(D$12-1996+1),FALSE)),"END") -> 2958824.061 | E104: =IFERROR(IF(DB3_calculationtype=0,GETPIVOTDATA("Value",DB3_DIGESTSPREPPED!$A$4,"Year",E$12,"Digest",$A104)/1000,VLOOKUP($A104,DB3_sharedata,(E$12-1996+1),FALSE)),"END") -> 3524424.175
A105: AG024 | B105: Other fresh fruit (AG024) | C105: 531580.7052 | D105: =IFERROR(IF(DB3_calculationtype=0,GETPIVOTDATA("Value",DB3_DIGESTSPREPPED!$A$4,"Year",D$12,"Digest",$A105)/1000,VLOOKUP($A105,DB3_sharedata,(D$12-1996+1),FALSE)),"END") -> 1929338.266 | E105: =IFERROR(IF(DB3_calculationtype=0,GETPIVOTDATA("Value",DB3_DIGESTSPREPPED!$A$4,"Year",E$12,"Digest",$A105)/1000,VLOOKUP($A105,DB3_sharedata,(E$12-1996+1),FALSE)),"END") -> 2460918.971
A106: AG042 | B106: Distilled spirits (AG042) | C106: 529312.093 | D106: =IFERROR(IF(DB3_calculationtype=0,GETPIVOTDATA("Value",DB3_DIGESTSPREPPED!$A$4,"Year",D$12,"Digest",$A106)/1000,VLOOKUP($A106,DB3_sharedata,(D$12-1996+1),FALSE)),"END") -> 1417287.76 | E106: =IFERROR(IF(DB3_calculationtype=0,GETPIVOTDATA("Value",DB3_DIGESTSPREPPED!$A$4,"Year",E$12,"Digest",$A106)/1000,VLOOKUP($A106,DB3_sharedata,(E$12-1996+1),FALSE)),"END") -> 1946599.853
A107: AG001 | B107: Certain miscellaneous animals and meats (AG001) | C107: 528603.7849 | D107: =IFERROR(IF(DB3_calculationtype=0,GETPIVOTDATA("Value",DB3_DIGESTSPREPPED!$A$4,"Year",D$12,"Digest",$A107)/1000,VLOOKUP($A107,DB3_sharedata,(D$12-1996+1),FALSE)),"END") -> 2536772.828 | E107: =IFERROR(IF(DB3_calculationtype=0,GETPIVOTDATA("Value",DB3_DIGESTSPREPPED!$A$4,"Year",E$12,"Digest",$A107)/1000,VLOOKUP($A107,DB3_sharedata,(E$12-1996+1),FALSE)),"END") -> 3065376.613
A108: MM030 | B108: Wire products of base metal (MM030) | C108: 528587.318 | D108: =IFERROR(IF(DB3_calculationtype=0,GETPIVOTDATA("Value",DB3_DIGESTSPREPPED!$A$4,"Year",D$12,"Digest",$A108)/1000,VLOOKUP($A108,DB3_sharedata,(D$12-1996+1),FALSE)),"END") -> 1494068.905 | E108: =IFERROR(IF(DB3_calculationtype=0,GETPIVOTDATA("Value",DB3_DIGESTSPREPPED!$A$4,"Year",E$12,"Digest",$A108)/1000,VLOOKUP($A108,DB3_sharedata,(E$12-1996+1),FALSE)),"END") -> 2022656.223
A109: CH010 | B109: Fertilizers (CH010) | C109: 493332.295 | D109: =IFERROR(IF(DB3_calculationtype=0,GETPIVOTDATA("Value",DB3_DIGESTSPREPPED!$A$4,"Year",D$12,"Digest",$A109)/1000,VLOOKUP($A109,DB3_sharedata,(D$12-1996+1),FALSE)),"END") -> 4952298.004 | E109: =IFERROR(IF(DB3_calculationtype=0,GETPIVOTDATA("Value",DB3_DIGESTSPREPPED!$A$4,"Year",E$12,"Digest",$A109)/1000,VLOOKUP($A109,DB3_sharedata,(E$12-1996+1),FALSE)),"END") -> 5445630.299
A110: AG015 | B110: Seeds (AG015) | C110: 486766.4521 | D110: =IFERROR(IF(DB3_calculationtype=0,GETPIVOTDATA("Value",DB3_DIGESTSPREPPED!$A$4,"Year",D$12,"Digest",$A110)/1000,VLOOKUP($A110,DB3_sharedata,(D$12-1996+1),FALSE)),"END") -> 1470308.787 | E110: =IFERROR(IF(DB3_calculationtype=0,GETPIVOTDATA("Value",DB3_DIGESTSPREPPED!$A$4,"Year",E$12,"Digest",$A110)/1000,VLOOKUP($A110,DB3_sharedata,(E$12-1996+1),FALSE)),"END") -> 1957075.239
A111: CH020 | B111: Essential oils and other flavoring materials (CH020) | C111: 481994.1874 | D111: =IFERROR(IF(DB3_calculationtype=0,GETPIVOTDATA("Value",DB3_DIGESTSPREPPED!$A$4,"Year",D$12,"Digest",$A111)/1000,VLOOKUP($A111,DB3_sharedata,(D$12-1996+1),FALSE)),"END") -> 2087748.563 | E111: =IFERROR(IF(DB3_calculationtype=0,GETPIVOTDATA("Value",DB3_DIGESTSPREPPED!$A$4,"Year",E$12,"Digest",$A111)/1000,VLOOKUP($A111,DB3_sharedata,(E$12-1996+1),FALSE)),"END") -> 2569742.75
A112: MM026 | B112: Steel pipe and tube fittings and certain cast products (MM026) | C112: 474260.145 | D112: =IFERROR(IF(DB3_calculationtype=0,GETPIVOTDATA("Value",DB3_DIGESTSPREPPED!$A$4,"Year",D$12,"Digest",$A112)/1000,VLOOKUP($A112,DB3_sharedata,(D$12-1996+1),FALSE)),"END") -> 1699037.786 | E112: =IFERROR(IF(DB3_calculationtype=0,GETPIVOTDATA("Value",DB3_DIGESTSPREPPED!$A$4,"Year",E$12,"Digest",$A112)/1000,VLOOKUP($A112,DB3_sharedata,(E$12-1996+1),FALSE)),"END") -> 2173297.931
A113: AG041 | B113: Wine and certain other fermented beverages (AG041) | C113: 472570.62 | D113: =IFERROR(IF(DB3_calculationtype=0,GETPIVOTDATA("Value",DB3_DIGESTSPREPPED!$A$4,"Year",D$12,"Digest",$A113)/1000,VLOOKUP($A113,DB3_sharedata,(D$12-1996+1),FALSE)),"END") -> 1145527.143 | E113: =IFERROR(IF(DB3_calculationtype=0,GETPIVOTDATA("Value",DB3_DIGESTSPREPPED!$A$4,"Year",E$12,"Digest",$A113)/1000,VLOOKUP($A113,DB3_sharedata,(E$12-1996+1),FALSE)),"END") -> 1618097.763
A114: AG035 | B114: Sauces, condiments, and soups (AG035) | C114: 466715.444 | D114: =IFERROR(IF(DB3_calculationtype=0,GETPIVOTDATA("Value",DB3_DIGESTSPREPPED!$A$4,"Year",D$12,"Digest",$A114)/1000,VLOOKUP($A114,DB3_sharedata,(D$12-1996+1),FALSE)),"END") -> 1301374.742 | E114: =IFERROR(IF(DB3_calculationtype=0,GETPIVOTDATA("Value",DB3_DIGESTSPREPPED!$A$4,"Year",E$12,"Digest",$A114)/1000,VLOOKUP($A114,DB3_sharedata,(E$12-1996+1),FALSE)),"END") -> 1768090.186
A115: MS011 | B115: Lamps and lighting fittings (MS011) | C115: 449030.299 | D115: =IFERROR(IF(DB3_calculationtype=0,GETPIVOTDATA("Value",DB3_DIGESTSPREPPED!$A$4,"Year",D$12,"Digest",$A115)/1000,VLOOKUP($A115,DB3_sharedata,(D$12-1996+1),FALSE)),"END") -> 1309304.852 | E115: =IFERROR(IF(DB3_calculationtype=0,GETPIVOTDATA("Value",DB3_DIGESTSPREPPED!$A$4,"Year",E$12,"Digest",$A115)/1000,VLOOKUP($A115,DB3_sharedata,(E$12-1996+1),FALSE)),"END") -> 1758335.151
A116: EL020 | B116: Optical goods, including ophthalmic goods (EL020) | C116: 436977.874 | D116: =IFERROR(IF(DB3_calculationtype=0,GETPIVOTDATA("Value",DB3_DIGESTSPREPPED!$A$4,"Year",D$12,"Digest",$A116)/1000,VLOOKUP($A116,DB3_sharedata,(D$12-1996+1),FALSE)),"END") -> 6698820.063 | E116: =IFERROR(IF(DB3_calculationtype=0,GETPIVOTDATA("Value",DB3_DIGESTSPREPPED!$A$4,"Year",E$12,"Digest",$A116)/1000,VLOOKUP($A116,DB3_sharedata,(E$12-1996+1),FALSE)),"END") -> 7135797.937
A117: AG023 | B117: Deciduous fruit (AG023) | C117: 435596.466 | D117: =IFERROR(IF(DB3_calculationtype=0,GETPIVOTDATA("Value",DB3_DIGESTSPREPPED!$A$4,"Year",D$12,"Digest",$A117)/1000,VLOOKUP($A117,DB3_sharedata,(D$12-1996+1),FALSE)),"END") -> 1622303.038 | E117: =IFERROR(IF(DB3_calculationtype=0,GETPIVOTDATA("Value",DB3_DIGESTSPREPPED!$A$4,"Year",E$12,"Digest",$A117)/1000,VLOOKUP($A117,DB3_sharedata,(E$12-1996+1),FALSE)),"END") -> 2057899.504
A118: AG018 | B118: Fresh, chilled, or frozen vegetables (AG018) | C118: 419390.7241 | D118: =IFERROR(IF(DB3_calculationtype=0,GETPIVOTDATA("Value",DB3_DIGESTSPREPPED!$A$4,"Year",D$12,"Digest",$A118)/1000,VLOOKUP($A118,DB3_sharedata,(D$12-1996+1),FALSE)),"END") -> 2767130.448 | E118: =IFERROR(IF(DB3_calculationtype=0,GETPIVOTDATA("Value",DB3_DIGESTSPREPPED!$A$4,"Year",E$12,"Digest",$A118)/1000,VLOOKUP($A118,DB3_sharedata,(E$12-1996+1),FALSE)),"END") -> 3186521.172
A119: AG039 | B119: Nonalcoholic beverages, excluding fruit and vegetable juices (AG039) | C119: 418235.063 | D119: =IFERROR(IF(DB3_calculationtype=0,GETPIVOTDATA("Value",DB3_DIGESTSPREPPED!$A$4,"Year",D$12,"Digest",$A119)/1000,VLOOKUP($A119,DB3_sharedata,(D$12-1996+1),FALSE)),"END") -> 896257.269 | E119: =IFERROR(IF(DB3_calculationtype=0,GETPIVOTDATA("Value",DB3_DIGESTSPREPPED!$A$4,"Year",E$12,"Digest",$A119)/1000,VLOOKUP($A119,DB3_sharedata,(E$12-1996+1),FALSE)),"END") -> 1314492.332
A120: AG047 | B120: Furskins (AG047) | C120: 403484.5431 | D120: =IFERROR(IF(DB3_calculationtype=0,GETPIVOTDATA("Value",DB3_DIGESTSPREPPED!$A$4,"Year",D$12,"Digest",$A120)/1000,VLOOKUP($A120,DB3_sharedata,(D$12-1996+1),FALSE)),"END") -> 267547.4465 | E120: =IFERROR(IF(DB3_calculationtype=0,GETPIVOTDATA("Value",DB3_DIGESTSPREPPED!$A$4,"Year",E$12,"Digest",$A120)/1000,VLOOKUP($A120,DB3_sharedata,(E$12-1996+1),FALSE)),"END") -> 671031.9896
A121: FP015 | B121: Miscellaneous paper products (FP015) | C121: 400398.461 | D121: =IFERROR(IF(DB3_calculationtype=0,GETPIVOTDATA("Value",DB3_DIGESTSPREPPED!$A$4,"Year",D$12,"Digest",$A121)/1000,VLOOKUP($A121,DB3_sharedata,(D$12-1996+1),FALSE)),"END") -> 2043759.909 | E121: =IFERROR(IF(DB3_calculationtype=0,GETPIVOTDATA("Value",DB3_DIGESTSPREPPED!$A$4,"Year",E$12,"Digest",$A121)/1000,VLOOKUP($A121,DB3_sharedata,(E$12-1996+1),FALSE)),"END") -> 2444158.37
A122: MM003 | B122: Iron ores and concentrates (MM003) | C122: 391499.204 | D122: =IFERROR(IF(DB3_calculationtype=0,GETPIVOTDATA("Value",DB3_DIGESTSPREPPED!$A$4,"Year",D$12,"Digest",$A122)/1000,VLOOKUP($A122,DB3_sharedata,(D$12-1996+1),FALSE)),"END") -> 1091602.538 | E122: =IFERROR(IF(DB3_calculationtype=0,GETPIVOTDATA("Value",DB3_DIGESTSPREPPED!$A$4,"Year",E$12,"Digest",$A122)/1000,VLOOKUP($A122,DB3_sharedata,(E$12-1996+1),FALSE)),"END") -> 1483101.742
A123: AG009 | B123: Shellfish (AG009) | C123: 375611.641 | D123: =IFERROR(IF(DB3_calculationtype=0,GETPIVOTDATA("Value",DB3_DIGESTSPREPPED!$A$4,"Year",D$12,"Digest",$A123)/1000,VLOOKUP($A123,DB3_sharedata,(D$12-1996+1),FALSE)),"END") -> 1269109.799 | E123: =IFERROR(IF(DB3_calculationtype=0,GETPIVOTDATA("Value",DB3_DIGESTSPREPPED!$A$4,"Year",E$12,"Digest",$A123)/1000,VLOOKUP($A123,DB3_sharedata,(E$12-1996+1),FALSE)),"END") -> 1644721.44
A124: MT031 | B124: Molds and molding machinery (MT031) | C124: 369760.817 | D124: =IFERROR(IF(DB3_calculationtype=0,GETPIVOTDATA("Value",DB3_DIGESTSPREPPED!$A$4,"Year",D$12,"Digest",$A124)/1000,VLOOKUP($A124,DB3_sharedata,(D$12-1996+1),FALSE)),"END") -> 2061311.166 | E124: =IFERROR(IF(DB3_calculationtype=0,GETPIVOTDATA("Value",DB3_DIGESTSPREPPED!$A$4,"Year",E$12,"Digest",$A124)/1000,VLOOKUP($A124,DB3_sharedata,(E$12-1996+1),FALSE)),"END") -> 2431071.983
A125: AG028 | B125: Coffee and tea (AG028) | C125: 365717.742 | D125: =IFERROR(IF(DB3_calculationtype=0,GETPIVOTDATA("Value",DB3_DIGESTSPREPPED!$A$4,"Year",D$12,"Digest",$A125)/1000,VLOOKUP($A125,DB3_sharedata,(D$12-1996+1),FALSE)),"END") -> 1119509.276 | E125: =IFERROR(IF(DB3_calculationtype=0,GETPIVOTDATA("Value",DB3_DIGESTSPREPPED!$A$4,"Year",E$12,"Digest",$A125)/1000,VLOOKUP($A125,DB3_sharedata,(E$12-1996+1),FALSE)),"END") -> 1485227.018
A126: MM028 | B126: Metal construction components (MM028) | C126: 348422.557 | D126: =IFERROR(IF(DB3_calculationtype=0,GETPIVOTDATA("Value",DB3_DIGESTSPREPPED!$A$4,"Year",D$12,"Digest",$A126)/1000,VLOOKUP($A126,DB3_sharedata,(D$12-1996+1),FALSE)),"END") -> 1261190.075 | E126: =IFERROR(IF(DB3_calculationtype=0,GETPIVOTDATA("Value",DB3_DIGESTSPREPPED!$A$4,"Year",E$12,"Digest",$A126)/1000,VLOOKUP($A126,DB3_sharedata,(E$12-1996+1),FALSE)),"END") -> 1609612.632
A127: MM037 | B127: Unwrought aluminum (MM037) | C127: 336648.532 | D127: =IFERROR(IF(DB3_calculationtype=0,GETPIVOTDATA("Value",DB3_DIGESTSPREPPED!$A$4,"Year",D$12,"Digest",$A127)/1000,VLOOKUP($A127,DB3_sharedata,(D$12-1996+1),FALSE)),"END") -> 4107082.201 | E127: =IFERROR(IF(DB3_calculationtype=0,GETPIVOTDATA("Value",DB3_DIGESTSPREPPED!$A$4,"Year",E$12,"Digest",$A127)/1000,VLOOKUP($A127,DB3_sharedata,(E$12-1996+1),FALSE)),"END") -> 4443730.733
A128: MM014 | B128: Flat glass (MM014) | C128: 333710.72 | D128: =IFERROR(IF(DB3_calculationtype=0,GETPIVOTDATA("Value",DB3_DIGESTSPREPPED!$A$4,"Year",D$12,"Digest",$A128)/1000,VLOOKUP($A128,DB3_sharedata,(D$12-1996+1),FALSE)),"END") -> 2375527.84 | E128: =IFERROR(IF(DB3_calculationtype=0,GETPIVOTDATA("Value",DB3_DIGESTSPREPPED!$A$4,"Year",E$12,"Digest",$A128)/1000,VLOOKUP($A128,DB3_sharedata,(E$12-1996+1),FALSE)),"END") -> 2709238.56
A129: MM029 | B129: Metallic containers (MM029) | C129: 331134.045 | D129: =IFERROR(IF(DB3_calculationtype=0,GETPIVOTDATA("Value",DB3_DIGESTSPREPPED!$A$4,"Year",D$12,"Digest",$A129)/1000,VLOOKUP($A129,DB3_sharedata,(D$12-1996+1),FALSE)),"END") -> 1520829.053 | E129: =IFERROR(IF(DB3_calculationtype=0,GETPIVOTDATA("Value",DB3_DIGESTSPREPPED!$A$4,"Year",E$12,"Digest",$A129)/1000,VLOOKUP($A129,DB3_sharedata,(E$12-1996+1),FALSE)),"END") -> 1851963.098
A130: MM027 | B130: Fabricated structurals (MM027) | C130: 329158.945 | D130: =IFERROR(IF(DB3_calculationtype=0,GETPIVOTDATA("Value",DB3_DIGESTSPREPPED!$A$4,"Year",D$12,"Digest",$A130)/1000,VLOOKUP($A130,DB3_sharedata,(D$12-1996+1),FALSE)),"END") -> 551004.894 | E130: =IFERROR(IF(DB3_calculationtype=0,GETPIVOTDATA("Value",DB3_DIGESTSPREPPED!$A$4,"Year",E$12,"Digest",$A130)/1000,VLOOKUP($A130,DB3_sharedata,(E$12-1996+1),FALSE)),"END") -> 880163.839
A131: MS001 | B131: Luggage, handbags, and flat goods (MS001) | C131: 325372.554 | D131: =IFERROR(IF(DB3_calculationtype=0,GETPIVOTDATA("Value",DB3_DIGESTSPREPPED!$A$4,"Year",D$12,"Digest",$A131)/1000,VLOOKUP($A131,DB3_sharedata,(D$12-1996+1),FALSE)),"END") -> 847926.9 | E131: =IFERROR(IF(DB3_calculationtype=0,GETPIVOTDATA("Value",DB3_DIGESTSPREPPED!$A$4,"Year",E$12,"Digest",$A131)/1000,VLOOKUP($A131,DB3_sharedata,(E$12-1996+1),FALSE)),"END") -> 1173299.454
A132: EL023 | B132: Watches and clocks (EL023) | C132: 312730.161 | D132: =IFERROR(IF(DB3_calculationtype=0,GETPIVOTDATA("Value",DB3_DIGESTSPREPPED!$A$4,"Year",D$12,"Digest",$A132)/1000,VLOOKUP($A132,DB3_sharedata,(D$12-1996+1),FALSE)),"END") -> 918042.799 | E132: =IFERROR(IF(DB3_calculationtype=0,GETPIVOTDATA("Value",DB3_DIGESTSPREPPED!$A$4,"Year",E$12,"Digest",$A132)/1000,VLOOKUP($A132,DB3_sharedata,(E$12-1996+1),FALSE)),"END") -> 1230772.96
A133: MS012 | B133: Prefabricated buildings (MS012) | C133: 291092.271 | D133: =IFERROR(IF(DB3_calculationtype=0,GETPIVOTDATA("Value",DB3_DIGESTSPREPPED!$A$4,"Year",D$12,"Digest",$A133)/1000,VLOOKUP($A133,DB3_sharedata,(D$12-1996+1),FALSE)),"END") -> 871867.069 | E133: =IFERROR(IF(DB3_calculationtype=0,GETPIVOTDATA("Value",DB3_DIGESTSPREPPED!$A$4,"Year",E$12,"Digest",$A133)/1000,VLOOKUP($A133,DB3_sharedata,(E$12-1996+1),FALSE)),"END") -> 1162959.34
A134: CH031 | B134: Synthetic rubber (CH031) | C134: 290277.419 | D134: =IFERROR(IF(DB3_calculationtype=0,GETPIVOTDATA("Value",DB3_DIGESTSPREPPED!$A$4,"Year",D$12,"Digest",$A134)/1000,VLOOKUP($A134,DB3_sharedata,(D$12-1996+1),FALSE)),"END") -> 3804232.329 | E134: =IFERROR(IF(DB3_calculationtype=0,GETPIVOTDATA("Value",DB3_DIGESTSPREPPED!$A$4,"Year",E$12,"Digest",$A134)/1000,VLOOKUP($A134,DB3_sharedata,(E$12-1996+1),FALSE)),"END") -> 4094509.748
A135: FW001 | B135: Footwear (FW001) | C135: 285735.901 | D135: =IFERROR(IF(DB3_calculationtype=0,GETPIVOTDATA("Value",DB3_DIGESTSPREPPED!$A$4,"Year",D$12,"Digest",$A135)/1000,VLOOKUP($A135,DB3_sharedata,(D$12-1996+1),FALSE)),"END") -> 1105454.224 | E135: =IFERROR(IF(DB3_calculationtype=0,GETPIVOTDATA("Value",DB3_DIGESTSPREPPED!$A$4,"Year",E$12,"Digest",$A135)/1000,VLOOKUP($A135,DB3_sharedata,(E$12-1996+1),FALSE)),"END") -> 1391190.125
A136: MT008 | B136: Mineral processing machinery (MT008) | C136: 285656.87 | D136: =IFERROR(IF(DB3_calculationtype=0,GETPIVOTDATA("Value",DB3_DIGESTSPREPPED!$A$4,"Year",D$12,"Digest",$A136)/1000,VLOOKUP($A136,DB3_sharedata,(D$12-1996+1),FALSE)),"END") -> 1567113.08 | E136: =IFERROR(IF(DB3_calculationtype=0,GETPIVOTDATA("Value",DB3_DIGESTSPREPPED!$A$4,"Year",E$12,"Digest",$A136)/1000,VLOOKUP($A136,DB3_sharedata,(E$12-1996+1),FALSE)),"END") -> 1852769.95
A137: CH011 | B137: Paints, inks, and related items, and certain components thereof (CH011) | C137: 282810.348 | D137: =IFERROR(IF(DB3_calculationtype=0,GETPIVOTDATA("Value",DB3_DIGESTSPREPPED!$A$4,"Year",D$12,"Digest",$A137)/1000,VLOOKUP($A137,DB3_sharedata,(D$12-1996+1),FALSE)),"END") -> 7148280.549 | E137: =IFERROR(IF(DB3_calculationtype=0,GETPIVOTDATA("Value",DB3_DIGESTSPREPPED!$A$4,"Year",E$12,"Digest",$A137)/1000,VLOOKUP($A137,DB3_sharedata,(E$12-1996+1),FALSE)),"END") -> 7431090.897
A138: AG012 | B138: Sugar and other sweeteners (AG012) | C138: 281728.191 | D138: =IFERROR(IF(DB3_calculationtype=0,GETPIVOTDATA("Value",DB3_DIGESTSPREPPED!$A$4,"Year",D$12,"Digest",$A138)/1000,VLOOKUP($A138,DB3_sharedata,(D$12-1996+1),FALSE)),"END") -> 1127099.419 | E138: =IFERROR(IF(DB3_calculationtype=0,GETPIVOTDATA("Value",DB3_DIGESTSPREPPED!$A$4,"Year",E$12,"Digest",$A138)/1000,VLOOKUP($A138,DB3_sharedata,(E$12-1996+1),FALSE)),"END") -> 1408827.61
A139: AG011 | B139: Eggs (AG011) | C139: 259759.811 | D139: =IFERROR(IF(DB3_calculationtype=0,GETPIVOTDATA("Value",DB3_DIGESTSPREPPED!$A$4,"Year",D$12,"Digest",$A139)/1000,VLOOKUP($A139,DB3_sharedata,(D$12-1996+1),FALSE)),"END") -> 361596.809 | E139: =IFERROR(IF(DB3_calculationtype=0,GETPIVOTDATA("Value",DB3_DIGESTSPREPPED!$A$4,"Year",E$12,"Digest",$A139)/1000,VLOOKUP($A139,DB3_sharedata,(E$12-1996+1),FALSE)),"END") -> 621356.62
A140: EL019 | B140: Optical fibers, optical fiber bundles and cables (EL019) | C140: 244094.905 | D140: =IFERROR(IF(DB3_calculationtype=0,GETPIVOTDATA("Value",DB3_DIGESTSPREPPED!$A$4,"Year",D$12,"Digest",$A140)/1000,VLOOKUP($A140,DB3_sharedata,(D$12-1996+1),FALSE)),"END") -> 1147171.511 | E140: =IFERROR(IF(DB3_calculationtype=0,GETPIVOTDATA("Value",DB3_DIGESTSPREPPED!$A$4,"Year",E$12,"Digest",$A140)/1000,VLOOKUP($A140,DB3_sharedata,(E$12-1996+1),FALSE)),"END") -> 1391266.416
A141: CH008 | B141: Inorganic acids (CH008) | C141: 235093.225 | D141: =IFERROR(IF(DB3_calculationtype=0,GETPIVOTDATA("Value",DB3_DIGESTSPREPPED!$A$4,"Year",D$12,"Digest",$A141)/1000,VLOOKUP($A141,DB3_sharedata,(D$12-1996+1),FALSE)),"END") -> 662611.602 | E141: =IFERROR(IF(DB3_calculationtype=0,GETPIVOTDATA("Value",DB3_DIGESTSPREPPED!$A$4,"Year",E$12,"Digest",$A141)/1000,VLOOKUP($A141,DB3_sharedata,(E$12-1996+1),FALSE)),"END") -> 897704.827
A142: =OFFSET(INDIRECT("DB3_DIGESTSPREPPED!"&VLOOKUP(DB3_comparison,DB3_comparisongroup,3,FALSE)&6),ROW()-ROW($B$14),$C$2-1) -> MS014 | B142: =IFERROR(VLOOKUP(A142,DB3_digesttitles,2,FALSE)&" ("&A142&")","END") -> Sporting goods (MS014) | C142: =IFERROR(VLOOKUP($A142,INDIRECT(VLOOKUP(DB3_comparison,DB3_comparisongroup,4,FALSE)),$C$2+1,FALSE),"END") -> 230693.147 | D142: =IFERROR(IF(DB3_calculationtype=0,GETPIVOTDATA("Value",DB3_DIGESTSPREPPED!$A$4,"Year",D$12,"Digest",$A142)/1000,VLOOKUP($A142,DB3_sharedata,(D$12-1996+1),FALSE)),"END") -> 1959028.62 | E142: =IFERROR(IF(DB3_calculationtype=0,GETPIVOTDATA("Value",DB3_DIGESTSPREPPED!$A$4,"Year",E$12,"Digest",$A142)/1000,VLOOKUP($A142,DB3_sharedata,(E$12-1996+1),FALSE)),"END") -> 2189721.767
A143: CH027 | B143: Polyvinyl chloride resins in primary forms (CH027) | C143: 224621.723 | D143: =IFERROR(IF(DB3_calculationtype=0,GETPIVOTDATA("Value",DB3_DIGESTSPREPPED!$A$4,"Year",D$12,"Digest",$A143)/1000,VLOOKUP($A143,DB3_sharedata,(D$12-1996+1),FALSE)),"END") -> 3163527.087 | E143: =IFERROR(IF(DB3_calculationtype=0,GETPIVOTDATA("Value",DB3_DIGESTSPREPPED!$A$4,"Year",E$12,"Digest",$A143)/1000,VLOOKUP($A143,DB3_sharedata,(E$12-1996+1),FALSE)),"END") -> 3388148.81
A144: MT010 | B144: Industrial food-processing and related machinery (MT010) | C144: 220210.781 | D144: =IFERROR(IF(DB3_calculationtype=0,GETPIVOTDATA("Value",DB3_DIGESTSPREPPED!$A$4,"Year",D$12,"Digest",$A144)/1000,VLOOKUP($A144,DB3_sharedata,(D$12-1996+1),FALSE)),"END") -> 933610.669 | E144: =IFERROR(IF(DB3_calculationtype=0,GETPIVOTDATA("Value",DB3_DIGESTSPREPPED!$A$4,"Year",E$12,"Digest",$A144)/1000,VLOOKUP($A144,DB3_sharedata,(E$12-1996+1),FALSE)),"END") -> 1153821.45
A145: MT028 | B145: Welding and soldering equipment (MT028) | C145: 218836.281 | D145: =IFERROR(IF(DB3_calculationtype=0,GETPIVOTDATA("Value",DB3_DIGESTSPREPPED!$A$4,"Year",D$12,"Digest",$A145)/1000,VLOOKUP($A145,DB3_sharedata,(D$12-1996+1),FALSE)),"END") -> 1157543.267 | E145: =IFERROR(IF(DB3_calculationtype=0,GETPIVOTDATA("Value",DB3_DIGESTSPREPPED!$A$4,"Year",E$12,"Digest",$A145)/1000,VLOOKUP($A145,DB3_sharedata,(E$12-1996+1),FALSE)),"END") -> 1376379.548
A146: MM045 | B146: Certain builders' hardware (MM045) | C146: 214003.865 | D146: =IFERROR(IF(DB3_calculationtype=0,GETPIVOTDATA("Value",DB3_DIGESTSPREPPED!$A$4,"Year",D$12,"Digest",$A146)/1000,VLOOKUP($A146,DB3_sharedata,(D$12-1996+1),FALSE)),"END") -> 1254923.697 | E146: =IFERROR(IF(DB3_calculationtype=0,GETPIVOTDATA("Value",DB3_DIGESTSPREPPED!$A$4,"Year",E$12,"Digest",$A146)/1000,VLOOKUP($A146,DB3_sharedata,(E$12-1996+1),FALSE)),"END") -> 1468927.562
A147: FP013 | B147: Printing and writing papers (FP013) | C147: 198688.265 | D147: =IFERROR(IF(DB3_calculationtype=0,GETPIVOTDATA("Value",DB3_DIGESTSPREPPED!$A$4,"Year",D$12,"Digest",$A147)/1000,VLOOKUP($A147,DB3_sharedata,(D$12-1996+1),FALSE)),"END") -> 1320351.241 | E147: =IFERROR(IF(DB3_calculationtype=0,GETPIVOTDATA("Value",DB3_DIGESTSPREPPED!$A$4,"Year",E$12,"Digest",$A147)/1000,VLOOKUP($A147,DB3_sharedata,(E$12-1996+1),FALSE)),"END") -> 1519039.506
A148: FP010 | B148: Paper boxes and bags (FP010) | C148: 193636.006 | D148: =IFERROR(IF(DB3_calculationtype=0,GETPIVOTDATA("Value",DB3_DIGESTSPREPPED!$A$4,"Year",D$12,"Digest",$A148)/1000,VLOOKUP($A148,DB3_sharedata,(D$12-1996+1),FALSE)),"END") -> 1705797.088 | E148: =IFERROR(IF(DB3_calculationtype=0,GETPIVOTDATA("Value",DB3_DIGESTSPREPPED!$A$4,"Year",E$12,"Digest",$A148)/1000,VLOOKUP($A148,DB3_sharedata,(E$12-1996+1),FALSE)),"END") -> 1899433.094
A149: MM010 | B149: Industrial ceramics (MM010) | C149: 191104.472 | D149: =IFERROR(IF(DB3_calculationtype=0,GETPIVOTDATA("Value",DB3_DIGESTSPREPPED!$A$4,"Year",D$12,"Digest",$A149)/1000,VLOOKUP($A149,DB3_sharedata,(D$12-1996+1),FALSE)),"END") -> 1227428.306 | E149: =IFERROR(IF(DB3_calculationtype=0,GETPIVOTDATA("Value",DB3_DIGESTSPREPPED!$A$4,"Year",E$12,"Digest",$A149)/1000,VLOOKUP($A149,DB3_sharedata,(E$12-1996+1),FALSE)),"END") -> 1418532.778
A150: AG021 | B150: Tropical fruit (AG021) | C150: 180675.8729 | D150: =IFERROR(IF(DB3_calculationtype=0,GETPIVOTDATA("Value",DB3_DIGESTSPREPPED!$A$4,"Year",D$12,"Digest",$A150)/1000,VLOOKUP($A150,DB3_sharedata,(D$12-1996+1),FALSE)),"END") -> 635523.132 | E150: =IFERROR(IF(DB3_calculationtype=0,GETPIVOTDATA("Value",DB3_DIGESTSPREPPED!$A$4,"Year",E$12,"Digest",$A150)/1000,VLOOKUP($A150,DB3_sharedata,(E$12-1996+1),FALSE)),"END") -> 816199.0049
A151: AG027 | B151: Prepared or preserved fruit (AG027) | C151: 176647.7528 | D151: =IFERROR(IF(DB3_calculationtype=0,GETPIVOTDATA("Value",DB3_DIGESTSPREPPED!$A$4,"Year",D$12,"Digest",$A151)/1000,VLOOKUP($A151,DB3_sharedata,(D$12-1996+1),FALSE)),"END") -> 436378.41 | E151: =IFERROR(IF(DB3_calculationtype=0,GETPIVOTDATA("Value",DB3_DIGESTSPREPPED!$A$4,"Year",E$12,"Digest",$A151)/1000,VLOOKUP($A151,DB3_sharedata,(E$12-1996+1),FALSE)),"END") -> 613026.1628
A152: MT025 | B152: Portable electric handtools (MT025) | C152: 168064.085 | D152: =IFERROR(IF(DB3_calculationtype=0,GETPIVOTDATA("Value",DB3_DIGESTSPREPPED!$A$4,"Year",D$12,"Digest",$A152)/1000,VLOOKUP($A152,DB3_sharedata,(D$12-1996+1),FALSE)),"END") -> 300276.335 | E152: =IFERROR(IF(DB3_calculationtype=0,GETPIVOTDATA("Value",DB3_DIGESTSPREPPED!$A$4,"Year",E$12,"Digest",$A152)/1000,VLOOKUP($A152,DB3_sharedata,(E$12-1996+1),FALSE)),"END") -> 468340.42
A153: MT022 | B153: Boilers, turbines, and related machinery (MT022) | C153: 156164.811 | D153: =IFERROR(IF(DB3_calculationtype=0,GETPIVOTDATA("Value",DB3_DIGESTSPREPPED!$A$4,"Year",D$12,"Digest",$A153)/1000,VLOOKUP($A153,DB3_sharedata,(D$12-1996+1),FALSE)),"END") -> 1744377.109 | E153: =IFERROR(IF(DB3_calculationtype=0,GETPIVOTDATA("Value",DB3_DIGESTSPREPPED!$A$4,"Year",E$12,"Digest",$A153)/1000,VLOOKUP($A153,DB3_sharedata,(E$12-1996+1),FALSE)),"END") -> 1900541.92
A154: AG022 | B154: Citrus fruit (AG022) | C154: 155013.2322 | D154: =IFERROR(IF(DB3_calculationtype=0,GETPIVOTDATA("Value",DB3_DIGESTSPREPPED!$A$4,"Year",D$12,"Digest",$A154)/1000,VLOOKUP($A154,DB3_sharedata,(D$12-1996+1),FALSE)),"END") -> 1023314.359 | E154: =IFERROR(IF(DB3_calculationtype=0,GETPIVOTDATA("Value",DB3_DIGESTSPREPPED!$A$4,"Year",E$12,"Digest",$A154)/1000,VLOOKUP($A154,DB3_sharedata,(E$12-1996+1),FALSE)),"END") -> 1178327.592
A155: EL007 | B155: Electric sound and visual signaling apparatus (EL007) | C155: 151971.654 | D155: =IFERROR(IF(DB3_calculationtype=0,GETPIVOTDATA("Value",DB3_DIGESTSPREPPED!$A$4,"Year",D$12,"Digest",$A155)/1000,VLOOKUP($A155,DB3_sharedata,(D$12-1996+1),FALSE)),"END") -> 1815448.414 | E155: =IFERROR(IF(DB3_calculationtype=0,GETPIVOTDATA("Value",DB3_DIGESTSPREPPED!$A$4,"Year",E$12,"Digest",$A155)/1000,VLOOKUP($A155,DB3_sharedata,(E$12-1996+1),FALSE)),"END") -> 1967420.068
A156: TX004 | B156: Home furnishings (TX004) | C156: 150358.734 | D156: =IFERROR(IF(DB3_calculationtype=0,GETPIVOTDATA("Value",DB3_DIGESTSPREPPED!$A$4,"Year",D$12,"Digest",$A156)/1000,VLOOKUP($A156,DB3_sharedata,(D$12-1996+1),FALSE)),"END") -> 508067.027 | E156: =IFERROR(IF(DB3_calculationtype=0,GETPIVOTDATA("Value",DB3_DIGESTSPREPPED!$A$4,"Year",E$12,"Digest",$A156)/1000,VLOOKUP($A156,DB3_sharedata,(E$12-1996+1),FALSE)),"END") -> 658425.761
A157: CH018 | B157: Adhesives and glues (CH018) | C157: 148224.369 | D157: =IFERROR(IF(DB3_calculationtype=0,GETPIVOTDATA("Value",DB3_DIGESTSPREPPED!$A$4,"Year",D$12,"Digest",$A157)/1000,VLOOKUP($A157,DB3_sharedata,(D$12-1996+1),FALSE)),"END") -> 1317008.945 | E157: =IFERROR(IF(DB3_calculationtype=0,GETPIVOTDATA("Value",DB3_DIGESTSPREPPED!$A$4,"Year",E$12,"Digest",$A157)/1000,VLOOKUP($A157,DB3_sharedata,(E$12-1996+1),FALSE)),"END") -> 1465233.314
A158: MT017 | B158: Metal forming machine tools (MT017) | C158: 142986.818 | D158: =IFERROR(IF(DB3_calculationtype=0,GETPIVOTDATA("Value",DB3_DIGESTSPREPPED!$A$4,"Year",D$12,"Digest",$A158)/1000,VLOOKUP($A158,DB3_sharedata,(D$12-1996+1),FALSE)),"END") -> 1290496.435 | E158: =IFERROR(IF(DB3_calculationtype=0,GETPIVOTDATA("Value",DB3_DIGESTSPREPPED!$A$4,"Year",E$12,"Digest",$A158)/1000,VLOOKUP($A158,DB3_sharedata,(E$12-1996+1),FALSE)),"END") -> 1433483.253
A159: EL010 | B159: Circuit apparatus exceeding 1000V (EL010) | C159: 142863.379 | D159: =IFERROR(IF(DB3_calculationtype=0,GETPIVOTDATA("Value",DB3_DIGESTSPREPPED!$A$4,"Year",D$12,"Digest",$A159)/1000,VLOOKUP($A159,DB3_sharedata,(D$12-1996+1),FALSE)),"END") -> 736429.307 | E159: =IFERROR(IF(DB3_calculationtype=0,GETPIVOTDATA("Value",DB3_DIGESTSPREPPED!$A$4,"Year",E$12,"Digest",$A159)/1000,VLOOKUP($A159,DB3_sharedata,(E$12-1996+1),FALSE)),"END") -> 879292.686
A160: AG040 | B160: Malt beverages (AG040) | C160: 139398.764 | D160: =IFERROR(IF(DB3_calculationtype=0,GETPIVOTDATA("Value",DB3_DIGESTSPREPPED!$A$4,"Year",D$12,"Digest",$A160)/1000,VLOOKUP($A160,DB3_sharedata,(D$12-1996+1),FALSE)),"END") -> 381074.697 | E160: =IFERROR(IF(DB3_calculationtype=0,GETPIVOTDATA("Value",DB3_DIGESTSPREPPED!$A$4,"Year",E$12,"Digest",$A160)/1000,VLOOKUP($A160,DB3_sharedata,(E$12-1996+1),FALSE)),"END") -> 520473.461
A161: CH028 | B161: Styrene polymers in primary forms (CH028) | C161: 125486.858 | D161: =IFERROR(IF(DB3_calculationtype=0,GETPIVOTDATA("Value",DB3_DIGESTSPREPPED!$A$4,"Year",D$12,"Digest",$A161)/1000,VLOOKUP($A161,DB3_sharedata,(D$12-1996+1),FALSE)),"END") -> 1353056.005 | E161: =IFERROR(IF(DB3_calculationtype=0,GETPIVOTDATA("Value",DB3_DIGESTSPREPPED!$A$4,"Year",E$12,"Digest",$A161)/1000,VLOOKUP($A161,DB3_sharedata,(E$12-1996+1),FALSE)),"END") -> 1478542.863
A162: MS003 | B162: Musical instruments and accessories (MS003) | C162: 121751.421 | D162: =IFERROR(IF(DB3_calculationtype=0,GETPIVOTDATA("Value",DB3_DIGESTSPREPPED!$A$4,"Year",D$12,"Digest",$A162)/1000,VLOOKUP($A162,DB3_sharedata,(D$12-1996+1),FALSE)),"END") -> 707512.077 | E162: =IFERROR(IF(DB3_calculationtype=0,GETPIVOTDATA("Value",DB3_DIGESTSPREPPED!$A$4,"Year",E$12,"Digest",$A162)/1000,VLOOKUP($A162,DB3_sharedata,(E$12-1996+1),FALSE)),"END") -> 829263.498
A163: MM008 | B163: Precious metal ores and concentrates (MM008) | C163: 120814.911 | D163: =IFERROR(IF(DB3_calculationtype=0,GETPIVOTDATA("Value",DB3_DIGESTSPREPPED!$A$4,"Year",D$12,"Digest",$A163)/1000,VLOOKUP($A163,DB3_sharedata,(D$12-1996+1),FALSE)),"END") -> 250416.96 | E163: =IFERROR(IF(DB3_calculationtype=0,GETPIVOTDATA("Value",DB3_DIGESTSPREPPED!$A$4,"Year",E$12,"Digest",$A163)/1000,VLOOKUP($A163,DB3_sharedata,(E$12-1996+1),FALSE)),"END") -> 371231.871
A164: TX003 | B164: Carpets and rugs (TX003) | C164: 118945.336 | D164: =IFERROR(IF(DB3_calculationtype=0,GETPIVOTDATA("Value",DB3_DIGESTSPREPPED!$A$4,"Year",D$12,"Digest",$A164)/1000,VLOOKUP($A164,DB3_sharedata,(D$12-1996+1),FALSE)),"END") -> 1006280.928 | E164: =IFERROR(IF(DB3_calculationtype=0,GETPIVOTDATA("Value",DB3_DIGESTSPREPPED!$A$4,"Year",E$12,"Digest",$A164)/1000,VLOOKUP($A164,DB3_sharedata,(E$12-1996+1),FALSE)),"END") -> 1125226.264
A165: CH026 | B165: Polypropylene resins in primary forms (CH026) | C165: 113972.228 | D165: =IFERROR(IF(DB3_calculationtype=0,GETPIVOTDATA("Value",DB3_DIGESTSPREPPED!$A$4,"Year",D$12,"Digest",$A165)/1000,VLOOKUP($A165,DB3_sharedata,(D$12-1996+1),FALSE)),"END") -> 3092600.85 | E165: =IFERROR(IF(DB3_calculationtype=0,GETPIVOTDATA("Value",DB3_DIGESTSPREPPED!$A$4,"Year",E$12,"Digest",$A165)/1000,VLOOKUP($A165,DB3_sharedata,(E$12-1996+1),FALSE)),"END") -> 3206573.078
A166: MM018 | B166: Fiberglass insulation products (MM018) | C166: 113171.301 | D166: =IFERROR(IF(DB3_calculationtype=0,GETPIVOTDATA("Value",DB3_DIGESTSPREPPED!$A$4,"Year",D$12,"Digest",$A166)/1000,VLOOKUP($A166,DB3_sharedata,(D$12-1996+1),FALSE)),"END") -> 127598.137 | E166: =IFERROR(IF(DB3_calculationtype=0,GETPIVOTDATA("Value",DB3_DIGESTSPREPPED!$A$4,"Year",E$12,"Digest",$A166)/1000,VLOOKUP($A166,DB3_sharedata,(E$12-1996+1),FALSE)),"END") -> 240769.438
A167: AG044 | B167: Cigars and certain other manufactured tobacco (AG044) | C167: 111405.019 | D167: =IFERROR(IF(DB3_calculationtype=0,GETPIVOTDATA("Value",DB3_DIGESTSPREPPED!$A$4,"Year",D$12,"Digest",$A167)/1000,VLOOKUP($A167,DB3_sharedata,(D$12-1996+1),FALSE)),"END") -> 91448.453 | E167: =IFERROR(IF(DB3_calculationtype=0,GETPIVOTDATA("Value",DB3_DIGESTSPREPPED!$A$4,"Year",E$12,"Digest",$A167)/1000,VLOOKUP($A167,DB3_sharedata,(E$12-1996+1),FALSE)),"END") -> 202853.472
A168: AG038 | B168: Fruit and vegetable juices (AG038) | C168: 109122.703 | D168: =IFERROR(IF(DB3_calculationtype=0,GETPIVOTDATA("Value",DB3_DIGESTSPREPPED!$A$4,"Year",D$12,"Digest",$A168)/1000,VLOOKUP($A168,DB3_sharedata,(D$12-1996+1),FALSE)),"END") -> 1224032.733 | E168: =IFERROR(IF(DB3_calculationtype=0,GETPIVOTDATA("Value",DB3_DIGESTSPREPPED!$A$4,"Year",E$12,"Digest",$A168)/1000,VLOOKUP($A168,DB3_sharedata,(E$12-1996+1),FALSE)),"END") -> 1333155.436
A169: MT011 | B169: Pulp, paper, and paperboard machinery (MT011) | C169: 105398.4219 | D169: =IFERROR(IF(DB3_calculationtype=0,GETPIVOTDATA("Value",DB3_DIGESTSPREPPED!$A$4,"Year",D$12,"Digest",$A169)/1000,VLOOKUP($A169,DB3_sharedata,(D$12-1996+1),FALSE)),"END") -> 703658.369 | E169: =IFERROR(IF(DB3_calculationtype=0,GETPIVOTDATA("Value",DB3_DIGESTSPREPPED!$A$4,"Year",E$12,"Digest",$A169)/1000,VLOOKUP($A169,DB3_sharedata,(E$12-1996+1),FALSE)),"END") -> 809056.7909
A170: AG026 | B170: Frozen fruit (AG026) | C170: 96642.836 | D170: =IFERROR(IF(DB3_calculationtype=0,GETPIVOTDATA("Value",DB3_DIGESTSPREPPED!$A$4,"Year",D$12,"Digest",$A170)/1000,VLOOKUP($A170,DB3_sharedata,(D$12-1996+1),FALSE)),"END") -> 169768.604 | E170: =IFERROR(IF(DB3_calculationtype=0,GETPIVOTDATA("Value",DB3_DIGESTSPREPPED!$A$4,"Year",E$12,"Digest",$A170)/1000,VLOOKUP($A170,DB3_sharedata,(E$12-1996+1),FALSE)),"END") -> 266411.44
A171: MM024 | B171: Abrasive and ferrous products (MM024) | C171: 91597.054 | D171: =IFERROR(IF(DB3_calculationtype=0,GETPIVOTDATA("Value",DB3_DIGESTSPREPPED!$A$4,"Year",D$12,"Digest",$A171)/1000,VLOOKUP($A171,DB3_sharedata,(D$12-1996+1),FALSE)),"END") -> 896307.893 | E171: =IFERROR(IF(DB3_calculationtype=0,GETPIVOTDATA("Value",DB3_DIGESTSPREPPED!$A$4,"Year",E$12,"Digest",$A171)/1000,VLOOKUP($A171,DB3_sharedata,(E$12-1996+1),FALSE)),"END") -> 987904.947
A172: AG045 | B172: Cigarettes (AG045) | C172: 89329.331 | D172: =IFERROR(IF(DB3_calculationtype=0,GETPIVOTDATA("Value",DB3_DIGESTSPREPPED!$A$4,"Year",D$12,"Digest",$A172)/1000,VLOOKUP($A172,DB3_sharedata,(D$12-1996+1),FALSE)),"END") -> 404317.405 | E172: =IFERROR(IF(DB3_calculationtype=0,GETPIVOTDATA("Value",DB3_DIGESTSPREPPED!$A$4,"Year",E$12,"Digest",$A172)/1000,VLOOKUP($A172,DB3_sharedata,(E$12-1996+1),FALSE)),"END") -> 493646.736
A173: FP004 | B173: Wood veneer and wood panels (FP004) | C173: 76613.342 | D173: =IFERROR(IF(DB3_calculationtype=0,GETPIVOTDATA("Value",DB3_DIGESTSPREPPED!$A$4,"Year",D$12,"Digest",$A173)/1000,VLOOKUP($A173,DB3_sharedata,(D$12-1996+1),FALSE)),"END") -> 1147985.193 | E173: =IFERROR(IF(DB3_calculationtype=0,GETPIVOTDATA("Value",DB3_DIGESTSPREPPED!$A$4,"Year",E$12,"Digest",$A173)/1000,VLOOKUP($A173,DB3_sharedata,(E$12-1996+1),FALSE)),"END") -> 1224598.535
A174: AG025 | B174: Dried fruit other than tropical (AG025) | C174: 75582.632 | D174: =IFERROR(IF(DB3_calculationtype=0,GETPIVOTDATA("Value",DB3_DIGESTSPREPPED!$A$4,"Year",D$12,"Digest",$A174)/1000,VLOOKUP($A174,DB3_sharedata,(D$12-1996+1),FALSE)),"END") -> 620571.877 | E174: =IFERROR(IF(DB3_calculationtype=0,GETPIVOTDATA("Value",DB3_DIGESTSPREPPED!$A$4,"Year",E$12,"Digest",$A174)/1000,VLOOKUP($A174,DB3_sharedata,(E$12-1996+1),FALSE)),"END") -> 696154.509
A175: CH029 | B175: Saturated polyester resins (CH029) | C175: 74697.631 | D175: =IFERROR(IF(DB3_calculationtype=0,GETPIVOTDATA("Value",DB3_DIGESTSPREPPED!$A$4,"Year",D$12,"Digest",$A175)/1000,VLOOKUP($A175,DB3_sharedata,(D$12-1996+1),FALSE)),"END") -> 1379565.818 | E175: =IFERROR(IF(DB3_calculationtype=0,GETPIVOTDATA("Value",DB3_DIGESTSPREPPED!$A$4,"Year",E$12,"Digest",$A175)/1000,VLOOKUP($A175,DB3_sharedata,(E$12-1996+1),FALSE)),"END") -> 1454263.449
A176: AG017 | B176: Miscellaneous vegetable substances (AG017) | C176: 73617.5208 | D176: =IFERROR(IF(DB3_calculationtype=0,GETPIVOTDATA("Value",DB3_DIGESTSPREPPED!$A$4,"Year",D$12,"Digest",$A176)/1000,VLOOKUP($A176,DB3_sharedata,(D$12-1996+1),FALSE)),"END") -> 917485.9742 | E176: =IFERROR(IF(DB3_calculationtype=0,GETPIVOTDATA("Value",DB3_DIGESTSPREPPED!$A$4,"Year",E$12,"Digest",$A176)/1000,VLOOKUP($A176,DB3_sharedata,(E$12-1996+1),FALSE)),"END") -> 991103.495
A177: MT006 | B177: Wrapping, packaging, and can-sealing machinery (MT006) | C177: 72223.993 | D177: =IFERROR(IF(DB3_calculationtype=0,GETPIVOTDATA("Value",DB3_DIGESTSPREPPED!$A$4,"Year",D$12,"Digest",$A177)/1000,VLOOKUP($A177,DB3_sharedata,(D$12-1996+1),FALSE)),"END") -> 878787.256 | E177: =IFERROR(IF(DB3_calculationtype=0,GETPIVOTDATA("Value",DB3_DIGESTSPREPPED!$A$4,"Year",E$12,"Digest",$A177)/1000,VLOOKUP($A177,DB3_sharedata,(E$12-1996+1),FALSE)),"END") -> 951011.249
A178: CH013 | B178: Synthetic dyes and azoic couplers (CH013) | C178: 71395.13115 | D178: =IFERROR(IF(DB3_calculationtype=0,GETPIVOTDATA("Value",DB3_DIGESTSPREPPED!$A$4,"Year",D$12,"Digest",$A178)/1000,VLOOKUP($A178,DB3_sharedata,(D$12-1996+1),FALSE)),"END") -> 416474.6968 | E178: =IFERROR(IF(DB3_calculationtype=0,GETPIVOTDATA("Value",DB3_DIGESTSPREPPED!$A$4,"Year",E$12,"Digest",$A178)/1000,VLOOKUP($A178,DB3_sharedata,(E$12-1996+1),FALSE)),"END") -> 487869.828
A179: FP003 | B179: Moldings, millwork, and joinery (FP003) | C179: 69992.731 | D179: =IFERROR(IF(DB3_calculationtype=0,GETPIVOTDATA("Value",DB3_DIGESTSPREPPED!$A$4,"Year",D$12,"Digest",$A179)/1000,VLOOKUP($A179,DB3_sharedata,(D$12-1996+1),FALSE)),"END") -> 711969.0755 | E179: =IFERROR(IF(DB3_calculationtype=0,GETPIVOTDATA("Value",DB3_DIGESTSPREPPED!$A$4,"Year",E$12,"Digest",$A179)/1000,VLOOKUP($A179,DB3_sharedata,(E$12-1996+1),FALSE)),"END") -> 781961.8065
A180: CH001 | B180: Major primary olefins (CH001) | C180: 69915.397 | D180: =IFERROR(IF(DB3_calculationtype=0,GETPIVOTDATA("Value",DB3_DIGESTSPREPPED!$A$4,"Year",D$12,"Digest",$A180)/1000,VLOOKUP($A180,DB3_sharedata,(D$12-1996+1),FALSE)),"END") -> 589639.555 | E180: =IFERROR(IF(DB3_calculationtype=0,GETPIVOTDATA("Value",DB3_DIGESTSPREPPED!$A$4,"Year",E$12,"Digest",$A180)/1000,VLOOKUP($A180,DB3_sharedata,(E$12-1996+1),FALSE)),"END") -> 659554.952
A181: MS002 | B181: Certain other leather goods (MS002) | C181: 68701.684 | D181: =IFERROR(IF(DB3_calculationtype=0,GETPIVOTDATA("Value",DB3_DIGESTSPREPPED!$A$4,"Year",D$12,"Digest",$A181)/1000,VLOOKUP($A181,DB3_sharedata,(D$12-1996+1),FALSE)),"END") -> 170631.068 | E181: =IFERROR(IF(DB3_calculationtype=0,GETPIVOTDATA("Value",DB3_DIGESTSPREPPED!$A$4,"Year",E$12,"Digest",$A181)/1000,VLOOKUP($A181,DB3_sharedata,(E$12-1996+1),FALSE)),"END") -> 239332.752
A182: AG030 | B182: Cereals (AG030) | C182: 68279.42177 | D182: =IFERROR(IF(DB3_calculationtype=0,GETPIVOTDATA("Value",DB3_DIGESTSPREPPED!$A$4,"Year",D$12,"Digest",$A182)/1000,VLOOKUP($A182,DB3_sharedata,(D$12-1996+1),FALSE)),"END") -> 19899416.77 | E182: =IFERROR(IF(DB3_calculationtype=0,GETPIVOTDATA("Value",DB3_DIGESTSPREPPED!$A$4,"Year",E$12,"Digest",$A182)/1000,VLOOKUP($A182,DB3_sharedata,(E$12-1996+1),FALSE)),"END") -> 19967696.19
A183: MS010 | B183: Writing instruments and related articles (MS010) | C183: 65712.597 | D183: =IFERROR(IF(DB3_calculationtype=0,GETPIVOTDATA("Value",DB3_DIGESTSPREPPED!$A$4,"Year",D$12,"Digest",$A183)/1000,VLOOKUP($A183,DB3_sharedata,(D$12-1996+1),FALSE)),"END") -> 220819.301 | E183: =IFERROR(IF(DB3_calculationtype=0,GETPIVOTDATA("Value",DB3_DIGESTSPREPPED!$A$4,"Year",E$12,"Digest",$A183)/1000,VLOOKUP($A183,DB3_sharedata,(E$12-1996+1),FALSE)),"END") -> 286531.898
A184: MS008 | B184: Bicycles and certain parts (MS008) | C184: 60570.756 | D184: =IFERROR(IF(DB3_calculationtype=0,GETPIVOTDATA("Value",DB3_DIGESTSPREPPED!$A$4,"Year",D$12,"Digest",$A184)/1000,VLOOKUP($A184,DB3_sharedata,(D$12-1996+1),FALSE)),"END") -> 408883.23 | E184: =IFERROR(IF(DB3_calculationtype=0,GETPIVOTDATA("Value",DB3_DIGESTSPREPPED!$A$4,"Year",E$12,"Digest",$A184)/1000,VLOOKUP($A184,DB3_sharedata,(E$12-1996+1),FALSE)),"END") -> 469453.986
A185: MM033 | B185: Cooking and kitchen ware (MM033) | C185: 60476.51 | D185: =IFERROR(IF(DB3_calculationtype=0,GETPIVOTDATA("Value",DB3_DIGESTSPREPPED!$A$4,"Year",D$12,"Digest",$A185)/1000,VLOOKUP($A185,DB3_sharedata,(D$12-1996+1),FALSE)),"END") -> 311550.227 | E185: =IFERROR(IF(DB3_calculationtype=0,GETPIVOTDATA("Value",DB3_DIGESTSPREPPED!$A$4,"Year",E$12,"Digest",$A185)/1000,VLOOKUP($A185,DB3_sharedata,(E$12-1996+1),FALSE)),"END") -> 372026.737
A186: AG008 | B186: Cured and other fish (AG008) | C186: 59233.776 | D186: =IFERROR(IF(DB3_calculationtype=0,GETPIVOTDATA("Value",DB3_DIGESTSPREPPED!$A$4,"Year",D$12,"Digest",$A186)/1000,VLOOKUP($A186,DB3_sharedata,(D$12-1996+1),FALSE)),"END") -> 249292.385 | E186: =IFERROR(IF(DB3_calculationtype=0,GETPIVOTDATA("Value",DB3_DIGESTSPREPPED!$A$4,"Year",E$12,"Digest",$A186)/1000,VLOOKUP($A186,DB3_sharedata,(E$12-1996+1),FALSE)),"END") -> 308526.161
A187: TE014 | B187: Ships, tugs, pleasure boats, and similar vessels (TE014) | C187: 58957.362 | D187: =IFERROR(IF(DB3_calculationtype=0,GETPIVOTDATA("Value",DB3_DIGESTSPREPPED!$A$4,"Year",D$12,"Digest",$A187)/1000,VLOOKUP($A187,DB3_sharedata,(D$12-1996+1),FALSE)),"END") -> 2667066.984 | E187: =IFERROR(IF(DB3_calculationtype=0,GETPIVOTDATA("Value",DB3_DIGESTSPREPPED!$A$4,"Year",E$12,"Digest",$A187)/1000,VLOOKUP($A187,DB3_sharedata,(E$12-1996+1),FALSE)),"END") -> 2726024.346
A188: MT016 | B188: Machine tool accessories (MT016) | C188: 57076.751 | D188: =IFERROR(IF(DB3_calculationtype=0,GETPIVOTDATA("Value",DB3_DIGESTSPREPPED!$A$4,"Year",D$12,"Digest",$A188)/1000,VLOOKUP($A188,DB3_sharedata,(D$12-1996+1),FALSE)),"END") -> 459018.526 | E188: =IFERROR(IF(DB3_calculationtype=0,GETPIVOTDATA("Value",DB3_DIGESTSPREPPED!$A$4,"Year",E$12,"Digest",$A188)/1000,VLOOKUP($A188,DB3_sharedata,(E$12-1996+1),FALSE)),"END") -> 516095.277
A189: MT007 | B189: Scales and weighing machinery (MT007) | C189: 57006.306 | D189: =IFERROR(IF(DB3_calculationtype=0,GETPIVOTDATA("Value",DB3_DIGESTSPREPPED!$A$4,"Year",D$12,"Digest",$A189)/1000,VLOOKUP($A189,DB3_sharedata,(D$12-1996+1),FALSE)),"END") -> 255656.474 | E189: =IFERROR(IF(DB3_calculationtype=0,GETPIVOTDATA("Value",DB3_DIGESTSPREPPED!$A$4,"Year",E$12,"Digest",$A189)/1000,VLOOKUP($A189,DB3_sharedata,(E$12-1996+1),FALSE)),"END") -> 312662.78
A190: MS016 | B190: Brooms, brushes, and hair grooming articles (MS016) | C190: 53528.655 | D190: =IFERROR(IF(DB3_calculationtype=0,GETPIVOTDATA("Value",DB3_DIGESTSPREPPED!$A$4,"Year",D$12,"Digest",$A190)/1000,VLOOKUP($A190,DB3_sharedata,(D$12-1996+1),FALSE)),"END") -> 376046.745 | E190: =IFERROR(IF(DB3_calculationtype=0,GETPIVOTDATA("Value",DB3_DIGESTSPREPPED!$A$4,"Year",E$12,"Digest",$A190)/1000,VLOOKUP($A190,DB3_sharedata,(E$12-1996+1),FALSE)),"END") -> 429575.4
A191: AG029 | B191: Spices (AG029) | C191: 53147.681 | D191: =IFERROR(IF(DB3_calculationtype=0,GETPIVOTDATA("Value",DB3_DIGESTSPREPPED!$A$4,"Year",D$12,"Digest",$A191)/1000,VLOOKUP($A191,DB3_sharedata,(D$12-1996+1),FALSE)),"END") -> 143992.818 | E191: =IFERROR(IF(DB3_calculationtype=0,GETPIVOTDATA("Value",DB3_DIGESTSPREPPED!$A$4,"Year",E$12,"Digest",$A191)/1000,VLOOKUP($A191,DB3_sharedata,(E$12-1996+1),FALSE)),"END") -> 197140.499
A192: CH035 | B192: Gelatin (CH035) | C192: 50536.675 | D192: =IFERROR(IF(DB3_calculationtype=0,GETPIVOTDATA("Value",DB3_DIGESTSPREPPED!$A$4,"Year",D$12,"Digest",$A192)/1000,VLOOKUP($A192,DB3_sharedata,(D$12-1996+1),FALSE)),"END") -> 67725.826 | E192: =IFERROR(IF(DB3_calculationtype=0,GETPIVOTDATA("Value",DB3_DIGESTSPREPPED!$A$4,"Year",E$12,"Digest",$A192)/1000,VLOOKUP($A192,DB3_sharedata,(E$12-1996+1),FALSE)),"END") -> 118262.501
A193: AG007 | B193: Canned fish (AG007) | C193: 49501.421 | D193: =IFERROR(IF(DB3_calculationtype=0,GETPIVOTDATA("Value",DB3_DIGESTSPREPPED!$A$4,"Year",D$12,"Digest",$A193)/1000,VLOOKUP($A193,DB3_sharedata,(D$12-1996+1),FALSE)),"END") -> 237759.012 | E193: =IFERROR(IF(DB3_calculationtype=0,GETPIVOTDATA("Value",DB3_DIGESTSPREPPED!$A$4,"Year",E$12,"Digest",$A193)/1000,VLOOKUP($A193,DB3_sharedata,(E$12-1996+1),FALSE)),"END") -> 287260.433
A194: MS007 | B194: Costume jewelry and related articles (MS007) | C194: 47450.234 | D194: =IFERROR(IF(DB3_calculationtype=0,GETPIVOTDATA("Value",DB3_DIGESTSPREPPED!$A$4,"Year",D$12,"Digest",$A194)/1000,VLOOKUP($A194,DB3_sharedata,(D$12-1996+1),FALSE)),"END") -> 251317.299 | E194: =IFERROR(IF(DB3_calculationtype=0,GETPIVOTDATA("Value",DB3_DIGESTSPREPPED!$A$4,"Year",E$12,"Digest",$A194)/1000,VLOOKUP($A194,DB3_sharedata,(E$12-1996+1),FALSE)),"END") -> 298767.533
A195: AG014 | B195: Live plants (AG014) | C195: 46693.959 | D195: =IFERROR(IF(DB3_calculationtype=0,GETPIVOTDATA("Value",DB3_DIGESTSPREPPED!$A$4,"Year",D$12,"Digest",$A195)/1000,VLOOKUP($A195,DB3_sharedata,(D$12-1996+1),FALSE)),"END") -> 206052.971 | E195: =IFERROR(IF(DB3_calculationtype=0,GETPIVOTDATA("Value",DB3_DIGESTSPREPPED!$A$4,"Year",E$12,"Digest",$A195)/1000,VLOOKUP($A195,DB3_sharedata,(E$12-1996+1),FALSE)),"END") -> 252746.93
A196: FP005 | B196: Wooden containers (FP005) | C196: 39151.981 | D196: =IFERROR(IF(DB3_calculationtype=0,GETPIVOTDATA("Value",DB3_DIGESTSPREPPED!$A$4,"Year",D$12,"Digest",$A196)/1000,VLOOKUP($A196,DB3_sharedata,(D$12-1996+1),FALSE)),"END") -> 285698.479 | E196: =IFERROR(IF(DB3_calculationtype=0,GETPIVOTDATA("Value",DB3_DIGESTSPREPPED!$A$4,"Year",E$12,"Digest",$A196)/1000,VLOOKUP($A196,DB3_sharedata,(E$12-1996+1),FALSE)),"END") -> 324850.46
A197: AG043 | B197: Unmanufactured tobacco (AG043) | C197: 37856.109 | D197: =IFERROR(IF(DB3_calculationtype=0,GETPIVOTDATA("Value",DB3_DIGESTSPREPPED!$A$4,"Year",D$12,"Digest",$A197)/1000,VLOOKUP($A197,DB3_sharedata,(D$12-1996+1),FALSE)),"END") -> 1175335.785 | E197: =IFERROR(IF(DB3_calculationtype=0,GETPIVOTDATA("Value",DB3_DIGESTSPREPPED!$A$4,"Year",E$12,"Digest",$A197)/1000,VLOOKUP($A197,DB3_sharedata,(E$12-1996+1),FALSE)),"END") -> 1213191.894
A198: MS015 | B198: Smokers' articles (MS015) | C198: 35240.716 | D198: =IFERROR(IF(DB3_calculationtype=0,GETPIVOTDATA("Value",DB3_DIGESTSPREPPED!$A$4,"Year",D$12,"Digest",$A198)/1000,VLOOKUP($A198,DB3_sharedata,(D$12-1996+1),FALSE)),"END") -> 98639.347 | E198: =IFERROR(IF(DB3_calculationtype=0,GETPIVOTDATA("Value",DB3_DIGESTSPREPPED!$A$4,"Year",E$12,"Digest",$A198)/1000,VLOOKUP($A198,DB3_sharedata,(E$12-1996+1),FALSE)),"END") -> 133880.063
A199: AG031 | B199: Milled grains, malts, and starches (AG031) | C199: 35223.883 | D199: =IFERROR(IF(DB3_calculationtype=0,GETPIVOTDATA("Value",DB3_DIGESTSPREPPED!$A$4,"Year",D$12,"Digest",$A199)/1000,VLOOKUP($A199,DB3_sharedata,(D$12-1996+1),FALSE)),"END") -> 742762.358 | E199: =IFERROR(IF(DB3_calculationtype=0,GETPIVOTDATA("Value",DB3_DIGESTSPREPPED!$A$4,"Year",E$12,"Digest",$A199)/1000,VLOOKUP($A199,DB3_sharedata,(E$12-1996+1),FALSE)),"END") -> 777986.241
A200: CH024 | B200: Explosives, propellant powders, and related items (CH024) | C200: 31900.808 | D200: =IFERROR(IF(DB3_calculationtype=0,GETPIVOTDATA("Value",DB3_DIGESTSPREPPED!$A$4,"Year",D$12,"Digest",$A200)/1000,VLOOKUP($A200,DB3_sharedata,(D$12-1996+1),FALSE)),"END") -> 788384.4 | E200: =IFERROR(IF(DB3_calculationtype=0,GETPIVOTDATA("Value",DB3_DIGESTSPREPPED!$A$4,"Year",E$12,"Digest",$A200)/1000,VLOOKUP($A200,DB3_sharedata,(E$12-1996+1),FALSE)),"END") -> 820285.208
A201: MT027 | B201: Electric lamps (bulbs) and portable electric lights (MT027) | C201: 27424.0099 | D201: =IFERROR(IF(DB3_calculationtype=0,GETPIVOTDATA("Value",DB3_DIGESTSPREPPED!$A$4,"Year",D$12,"Digest",$A201)/1000,VLOOKUP($A201,DB3_sharedata,(D$12-1996+1),FALSE)),"END") -> 942304.8776 | E201: =IFERROR(IF(DB3_calculationtype=0,GETPIVOTDATA("Value",DB3_DIGESTSPREPPED!$A$4,"Year",E$12,"Digest",$A201)/1000,VLOOKUP($A201,DB3_sharedata,(E$12-1996+1),FALSE)),"END") -> 969728.8875
... 64 more rows

Sheet DB3_DIGESTSPREPPED (hidden)
A1: Type | B1: export | W1: =MATCH("Grand Total",A1:A260,0)-1 -> 257 | BL1: Period | BM1: CompYrs | BN1: CompPeriods | CF1: Period | CG1: CompYrs | CH1: CompPeriods | CZ1: Period | DA1: CompYrs | DB1: CompPeriods | DT1: Period | DU1: CompYrs | DV1: CompPeriods | EN1: Period | EO1: CompYrs | EP1: CompPeriods | FH1: Period | FI1: CompYrs | FJ1: CompPeriods | GB1: Period | GC1: CompYrs | GD1: CompPeriods | GV1: Period | GW1: CompYrs | GX1: CompPeriods | HP1: Period | HQ1: CompYrs | HR1: CompPeriods | IJ1: Period | IK1: CompYrs | IL1: CompPeriods | JD1: Period | JE1: CompYrs | JF1: CompPeriods | JX1: Period | JY1: CompYrs | JZ1: CompPeriods | KR1: Period | KS1: CompYrs | KT1: CompPeriods | LL1: Period | LM1: CompYrs | LN1: CompPeriods
A2: Sector | B2: (All) | W2: B | X2: C | Y2: D | Z2: E | AA2: F | AB2: G | AC2: H | AD2: I | AE2: J | AF2: K | AG2: L | AH2: M | AI2: N | AJ2: O | AK2: P | AL2: Q | AM2: R | AN2: S | AR2: =MID(CELL("address",W5),2,1)&"6:"&MID(CELL("address",W5),2,1)&$W$1 -> W6:W257 | AS2: =MID(CELL("address",X5),2,1)&"6:"&MID(CELL("address",X5),2,1)&$W$1 -> X6:X257 | AT2: Y6:Y257 | AU2: Z6:Z257 | AV2: =MID(CELL("address",AA5),2,2)&"6:"&MID(CELL("address",AA5),2,2)&$W$1 -> AA6:AA257 | AW2: =MID(CELL("address",AB5),2,2)&"6:"&MID(CELL("address",AB5),2,2)&$W$1 -> AB6:AB257 | AX2: AC6:AC257 | AY2: AD6:AD257 | AZ2: AE6:AE257 | BA2: AF6:AF257 | BB2: AG6:AG257 | BC2: AH6:AH257 | BD2: AI6:AI257 | BE2: AJ6:AJ257 | BF2: AK6:AK257 | BG2: AL6:AL257 | BH2: AM6:AM257 | BI2: AN6:AN257 | BL2: 18 | BM2: =DB3_yearscompared -> 3 | BN2: =BL2-BM2 -> 15 | CF2: =BL2 -> 18 | CG2: =BM2 -> 3 | CH2: =BN2 -> 15 | CZ2: =CF2 -> 18 | DA2: =CG2 -> 3 | DB2: =CH2 -> 15 | DT2: =CZ2 -> 18 | DU2: =DA2 -> 3 | DV2: =DB2 -> 15 | EN2: =DT2 -> 18 | EO2: =DU2 -> 3 | EP2: =DV2 -> 15 | FH2: =DT2 -> 18 | FI2: =DU2 -> 3 | FJ2: =DV2 -> 15 | GB2: =FH2 -> 18 | GC2: =FI2 -> 3 | GD2: =FJ2 -> 15 | GV2: =GB2 -> 18 | GW2: =GC2 -> 3 | GX2: =GD2 -> 15 | HP2: =GV2 -> 18 | HQ2: =GW2 -> 3 | HR2: =GX2 -> 15 | IJ2: =GV2 -> 18 | IK2: =GW2 -> 3 | IL2: =GX2 -> 15 | JD2: =HP2 -> 18 | JE2: =HQ2 -> 3 | JF2: =HR2 -> 15 | JX2: =JD2 -> 18 | JY2: =JE2 -> 3 | JZ2: =JF2 -> 15 | KR2: =JX2 -> 18 | KS2: =JY2 -> 3 | KT2: =JZ2 -> 15 | LL2: =KR2 -> 18 | LM2: =KS2 -> 3 | LN2: =KT2 -> 15
W3: =W$2&"6:"&W$2&$W$1 -> B6:B257 | X3: =X$2&"6:"&X$2&$W$1 -> C6:C257 | Y3: D6:D257 | Z3: E6:E257 | AA3: F6:F257 | AB3: G6:G257 | AC3: H6:H257 | AD3: I6:I257 | AE3: J6:J257 | AF3: K6:K257 | AG3: L6:L257 | AH3: M6:M257 | AI3: N6:N257 | AJ3: O6:O257 | AK3: P6:P257 | AL3: Q6:Q257 | AM3: R6:R257 | AN3: S6:S257 | AR3: 1 | AS3: =AR3+1 -> 2 | AT3: =AS3+1 -> 3 | AU3: 4 | AV3: 5 | AW3: 6 | AX3: 7 | AY3: 8 | AZ3: 9 | BA3: 10 | BB3: 11 | BC3: 12 | BD3: 13 | BE3: 14 | BF3: 15 | BG3: 16 | BH3: 17 | BI3: 18 | BL3: 1 | BM3: =BL3+1 -> 2 | BN3: =BM3+1 -> 3 | BO3: 4 | BP3: 5 | BQ3: 6 | BR3: 7 | BS3: 8 | BT3: 9 | BU3: 10 | BV3: 11 | BW3: 12 | BX3: 13 | BY3: 14 | BZ3: 15 | CA3: 16 | CB3: 17 | CF3: 1 | CG3: =CF3+1 -> 2 | CH3: =CG3+1 -> 3 | CI3: 4 | CJ3: 5 | CK3: 6 | CL3: 7 | CM3: 8 | CN3: 9 | CO3: 10 | CP3: 11 | CQ3: 12 | CR3: 13 | CS3: 14 | CT3: 15 | CU3: 16 | CV3: 17 | CZ3: 1 | DA3: =CZ3+1 -> 2 | DB3: =DA3+1 -> 3 | DC3: 4 | DD3: 5 | DE3: 6 | DF3: 7 | DG3: 8 | DH3: 9 | DI3: 10 | DJ3: 11 | DK3: 12 | DL3: 13 | DM3: 14 | DN3: 15 | DO3: 16 | DP3: 17 | DT3: 1 | DU3: =DT3+1 -> 2 | DV3: =DU3+1 -> 3 | DW3: =DV3+1 -> 4 | DX3: 5 | DY3: 6 | DZ3: 7 | EA3: 8 | EB3: 9 | EC3: 10 | ED3: 11 | EE3: 12 | EF3: 13 | EG3: 14 | EH3: 15 | EI3: 16 | EJ3: 17 | EN3: 1 | EO3: =EN3+1 -> 2 | EP3: =EO3+1 -> 3 | EQ3: =EP3+1 -> 4 | ER3: =EQ3+1 -> 5 | ES3: =ER3+1 -> 6 | ET3: =ES3+1 -> 7 | EU3: =ET3+1 -> 8 | EV3: =EU3+1 -> 9 | EW3: =EV3+1 -> 10 | EX3: =EW3+1 -> 11 | EY3: =EX3+1 -> 12 | EZ3: =EY3+1 -> 13 | FA3: =EZ3+1 -> 14 | FB3: =FA3+1 -> 15 | FC3: =FB3+1 -> 16 | FD3: =FC3+1 -> 17 | FH3: 1 | FI3: =FH3+1 -> 2 | FJ3: =FI3+1 -> 3 | FK3: 4 | FL3: 5 | FM3: 6 | FN3: 7 | FO3: 8 | FP3: 9 | FQ3: 10 | FR3: 11 | FS3: 12 | FT3: 13 | FU3: 14 | FV3: 15 | FW3: 16 | FX3: 17 | GB3: 1 | GC3: =GB3+1 -> 2 | GD3: =GC3+1 -> 3 | GE3: 4 | GF3: 5 | GG3: 6 | GH3: 7 | GI3: 8 | GJ3: 9 | GK3: 10 | GL3: 11 | GM3: 12 | GN3: 13 | GO3: 14 | GP3: 15 | GQ3: 16 | GR3: 17 | GV3: 1 | GW3: =GV3+1 -> 2 | GX3: =GW3+1 -> 3 | GY3: =GX3+1 -> 4 | GZ3: 5 | HA3: 6 | HB3: 7 | HC3: 8 | HD3: 9 | HE3: 10 | HF3: 11 | HG3: 12 | HH3: 13 | HI3: 14 | HJ3: 15 | HK3: 16 | HL3: 17 | HP3: 1 | HQ3: =HP3+1 -> 2 | HR3: =HQ3+1 -> 3 | HS3: =HR3+1 -> 4 | HT3: =HS3+1 -> 5 | HU3: =HT3+1 -> 6 | HV3: =HU3+1 -> 7 | HW3: =HV3+1 -> 8 | HX3: =HW3+1 -> 9 | HY3: =HX3+1 -> 10 | HZ3: =HY3+1 -> 11 | IA3: =HZ3+1 -> 12 | IB3: =IA3+1 -> 13 | IC3: =IB3+1 -> 14 | ID3: =IC3+1 -> 15 | IE3: =ID3+1 -> 16 | IF3: =IE3+1 -> 17 | IJ3: 1 | IK3: =IJ3+1 -> 2 | IL3: =IK3+1 -> 3 | IM3: =IL3+1 -> 4 | IN3: =IM3+1 -> 5 | IO3: =IN3+1 -> 6 | IP3: =IO3+1 -> 7 | IQ3: =IP3+1 -> 8 | IR3: =IQ3+1 -> 9 | IS3: =IR3+1 -> 10 | IT3: =IS3+1 -> 11 | IU3: =IT3+1 -> 12 | IV3: =IU3+1 -> 13 | IW3: =IV3+1 -> 14 | IX3: =IW3+1 -> 15 | IY3: =IX3+1 -> 16 | IZ3: =IY3+1 -> 17 | JA3: 18 | JC3: =OFFSET($II6,0,) -> AG001 | JD3: 1 | JE3: =JD3+1 -> 2 | JF3: =JE3+1 -> 3 | JG3: =JF3+1 -> 4 | JH3: =JG3+1 -> 5 | JI3: =JH3+1 -> 6 | JJ3: =JI3+1 -> 7 | JK3: =JJ3+1 -> 8 | JL3: =JK3+1 -> 9 | JM3: =JL3+1 -> 10 | JN3: =JM3+1 -> 11 | JO3: =JN3+1 -> 12 | JP3: =JO3+1 -> 13 | JQ3: =JP3+1 -> 14 | JR3: =JQ3+1 -> 15 | JS3: =JR3+1 -> 16 | JT3: =JS3+1 -> 17 | JX3: 1 | JY3: =JX3+1 -> 2 | JZ3: =JY3+1 -> 3 | KA3: =JZ3+1 -> 4 | KB3: =KA3+1 -> 5 | KC3: =KB3+1 -> 6 | KD3: =KC3+1 -> 7 | KE3: =KD3+1 -> 8 | KF3: =KE3+1 -> 9 | KG3: =KF3+1 -> 10 | KH3: =KG3+1 -> 11 | KI3: =KH3+1 -> 12 | KJ3: =KI3+1 -> 13 | KK3: =KJ3+1 -> 14 | KL3: =KK3+1 -> 15 | KM3: =KL3+1 -> 16 | KN3: =KM3+1 -> 17 | KR3: 1 | KS3: =KR3+1 -> 2 | KT3: =KS3+1 -> 3 | KU3: =KT3+1 -> 4 | KV3: =KU3+1 -> 5 | KW3: =KV3+1 -> 6 | KX3: =KW3+1 -> 7 | KY3: =KX3+1 -> 8 | KZ3: =KY3+1 -> 9 | LA3: =KZ3+1 -> 10 | LB3: =LA3+1 -> 11 | LC3: =LB3+1 -> 12 | LD3: =LC3+1 -> 13 | LE3: =LD3+1 -> 14 | LF3: =LE3+1 -> 15 | LG3: =LF3+1 -> 16 | LH3: =LG3+1 -> 17 | LL3: 1 | LM3: =LL3+1 -> 2 | LN3: =LM3+1 -> 3 | LO3: =LN3+1 -> 4 | LP3: =LO3+1 -> 5 | LQ3: =LP3+1 -> 6 | LR3: =LQ3+1 -> 7 | LS3: =LR3+1 -> 8 | LT3: =LS3+1 -> 9 | LU3: =LT3+1 -> 10 | LV3: =LU3+1 -> 11 | LW3: =LV3+1 -> 12 | LX3: =LW3+1 -> 13 | LY3: =LX3+1 -> 14 | LZ3: =LY3+1 -> 15 | MA3: =LZ3+1 -> 16 | MB3: =MA3+1 -> 17
A4: Sum of Value | B4: Column Labels | CZ4: =MID(CELL("address",CF7),2,2)&"6:"&MID(CELL("address",CF7),2,2)&$W$1 -> CF6:CF257 | DA4: =MID(CELL("address",CG7),2,2)&"6:"&MID(CELL("address",CG7),2,2)&$W$1 -> CG6:CG257 | DB4: CH6:CH257 | DC4: CI6:CI257 | DD4: CJ6:CJ257 | DE4: CK6:CK257 | DF4: CL6:CL257 | DG4: CM6:CM257 | DH4: CN6:CN257 | DI4: CO6:CO257 | DJ4: CP6:CP257 | DK4: CQ6:CQ257 | DL4: CR6:CR257 | DM4: CS6:CS257 | DN4: CT6:CT257 | DO4: CU6:CU257 | DP4: CV6:CV257 | GB4: =MID(CELL("address",FH7),2,2)&"6:"&MID(CELL("address",FH7),2,2)&$W$1 -> FH6:FH257 | GC4: =MID(CELL("address",FI7),2,2)&"6:"&MID(CELL("address",FI7),2,2)&$W$1 -> FI6:FI257 | GD4: FJ6:FJ257 | GE4: FK6:FK257 | GF4: FL6:FL257 | GG4: FM6:FM257 | GH4: FN6:FN257 | GI4: FO6:FO257 | GJ4: FP6:FP257 | GK4: FQ6:FQ257 | GL4: FR6:FR257 | GM4: FS6:FS257 | GN4: FT6:FT257 | GO4: FU6:FU257 | GP4: FV6:FV257 | GQ4: FW6:FW257 | GR4: FX6:FX257 | JX4: =MID(CELL("address",JD7),2,2)&"6:"&MID(CELL("address",JD7),2,2)&$W$1 -> JD6:JD257 | JY4: =MID(CELL("address",JE7),2,2)&"6:"&MID(CELL("address",JE7),2,2)&$W$1 -> JE6:JE257 | JZ4: =MID(CELL("address",JF7),2,2)&"6:"&MID(CELL("address",JF7),2,2)&$W$1 -> JF6:JF257 | KA4: =MID(CELL("address",JG7),2,2)&"6:"&MID(CELL("address",JG7),2,2)&$W$1 -> JG6:JG257 | KB4: =MID(CELL("address",JH7),2,2)&"6:"&MID(CELL("address",JH7),2,2)&$W$1 -> JH6:JH257 | KC4: =MID(CELL("address",JI7),2,2)&"6:"&MID(CELL("address",JI7),2,2)&$W$1 -> JI6:JI257 | KD4: =MID(CELL("address",JJ7),2,2)&"6:"&MID(CELL("address",JJ7),2,2)&$W$1 -> JJ6:JJ257 | KE4: =MID(CELL("address",JK7),2,2)&"6:"&MID(CELL("address",JK7),2,2)&$W$1 -> JK6:JK257 | KF4: =MID(CELL("address",JL7),2,2)&"6:"&MID(CELL("address",JL7),2,2)&$W$1 -> JL6:JL257 | KG4: =MID(CELL("address",JM7),2,2)&"6:"&MID(CELL("address",JM7),2,2)&$W$1 -> JM6:JM257 | KH4: =MID(CELL("address",JN7),2,2)&"6:"&MID(CELL("address",JN7),2,2)&$W$1 -> JN6:JN257 | KI4: =MID(CELL("address",JO7),2,2)&"6:"&MID(CELL("address",JO7),2,2)&$W$1 -> JO6:JO257 | KJ4: =MID(CELL("address",JP7),2,2)&"6:"&MID(CELL("address",JP7),2,2)&$W$1 -> JP6:JP257 | KK4: =MID(CELL("address",JQ7),2,2)&"6:"&MID(CELL("address",JQ7),2,2)&$W$1 -> JQ6:JQ257 | KL4: =MID(CELL("address",JR7),2,2)&"6:"&MID(CELL("address",JR7),2,2)&$W$1 -> JR6:JR257 | KM4: =MID(CELL("address",JS7),2,2)&"6:"&MID(CELL("address",JS7),2,2)&$W$1 -> JS6:JS257 | KN4: =MID(CELL("address",JT7),2,2)&"6:"&MID(CELL("address",JT7),2,2)&$W$1 -> JT6:JT257
A5: Row Labels | B5: 1997 | C5: 1998 | D5: 1999 | E5: 2000 | F5: 2001 | G5: 2002 | H5: 2003 | I5: 2004 | J5: 2005 | K5: 2006 | L5: 2007 | M5: 2008 | N5: 2009 | O5: 2010 | P5: 2011 | Q5: 2012 | R5: 2013 | S5: 2014 | T5: Grand Total | W5: ="Rank"&B5 -> Rank1997 | X5: ="Rank"&C5 -> Rank1998 | Y5: ="Rank"&D5 -> Rank1999 | Z5: ="Rank"&E5 -> Rank2000 | AA5: ="Rank"&F5 -> Rank2001 | AB5: ="Rank"&G5 -> Rank2002 | AC5: ="Rank"&H5 -> Rank2003 | AD5: ="Rank"&I5 -> Rank2004 | AE5: ="Rank"&J5 -> Rank2005 | AF5: ="Rank"&K5 -> Rank2006 | AG5: ="Rank"&L5 -> Rank2007 | AH5: ="Rank"&M5 -> Rank2008 | AI5: ="Rank"&N5 -> Rank2009 | AJ5: ="Rank"&O5 -> Rank2010 | AK5: ="Rank"&P5 -> Rank2011 | AL5: ="Rank"&Q5 -> Rank2012 | AM5: ="Rank"&R5 -> Rank2013 | AN5: ="Rank"&S5 -> Rank2014 | AR5: ="DigestRank"&B5 -> DigestRank1997 | AS5: DigestRank1998 | AT5: DigestRank1999 | AU5: DigestRank2000 | AV5: DigestRank2001 | AW5: DigestRank2002 | AX5: DigestRank2003 | AY5: DigestRank2004 | AZ5: DigestRank2005 | BA5: DigestRank2006 | BB5: DigestRank2007 | BC5: DigestRank2008 | BD5: DigestRank2009 | BE5: DigestRank2010 | BF5: DigestRank2011 | BG5: DigestRank2012 | BH5: DigestRank2013 | BI5: DigestRank2014 | BL5: =IF(BL$3<=$BN$2,"RankChange"&B5&"-"&B5+$BM$2,"END") -> RankChange1997-2000 | BM5: =IF(BM4<=$BN$2,"RankChange"&C5&"-"&C5+$BM$2,"END") -> RankChange1998-2001 | BN5: RankChange1999-2002 | BO5: RankChange2000-2003 | BP5: RankChange2001-2004 | BQ5: RankChange2002-2005 | BR5: RankChange2003-2006 | BS5: RankChange2004-2007 | BT5: RankChange2005-2008 | BU5: RankChange2006-2009 | BV5: RankChange2007-2010 | BW5: RankChange2008-2011 | BX5: RankChange2009-2012 | BY5: RankChange2010-2013 | BZ5: RankChange2011-2014 | CA5: RankChange2012-2015 | CB5: RankChange2013-2016 | CF5: =IF(CF$3<=$CH$2,"$Change"&B5&"-"&B5+$CG$2,"END") -> $Change1997-2000 | CG5: $Change1998-2001 | CH5: $Change1999-2002 | CI5: $Change2000-2003 | CJ5: $Change2001-2004 | CK5: $Change2002-2005 | CL5: $Change2003-2006 | CM5: $Change2004-2007 | CN5: $Change2005-2008 | CO5: $Change2006-2009 | CP5: $Change2007-2010 | CQ5: $Change2008-2011 | CR5: $Change2009-2012 | CS5: $Change2010-2013 | CT5: $Change2011-2014 | CU5: END | CV5: END | CZ5: =IF(CZ$3<=$DB$2,"Rank$Change"&B5&"-"&B5+$DA$2,"END") -> Rank$Change1997-2000 | DA5: Rank$Change1998-2001 | DB5: Rank$Change1999-2002 | DC5: Rank$Change2000-2003 | DD5: Rank$Change2001-2004 | DE5: Rank$Change2002-2005 | DF5: Rank$Change2003-2006 | DG5: Rank$Change2004-2007 | DH5: Rank$Change2005-2008 | DI5: Rank$Change2006-2009 | DJ5: Rank$Change2007-2010 | DK5: Rank$Change2008-2011 | DL5: Rank$Change2009-2012 | DM5: Rank$Change2010-2013 | DN5: Rank$Change2011-2014 | DO5: END | DP5: END | DT5: =IF(DT$3<=$DV$2,"RankLabel$Change"&B5&"-"&B5+$DU$2,"END") -> RankLabel$Change1997-2000 | DU5: RankLabel$Change1998-2001 | DV5: RankLabel$Change1999-2002 | DW5: RankLabel$Change2000-2003 | DX5: RankLabel$Change2001-2004 | DY5: RankLabel$Change2002-2005 | DZ5: RankLabel$Change2003-2006 | EA5: RankLabel$Change2004-2007 | EB5: RankLabel$Change2005-2008 | EC5: RankLabel$Change2006-2009 | ED5: RankLabel$Change2007-2010 | EE5: RankLabel$Change2008-2011 | EF5: RankLabel$Change2009-2012 | EG5: RankLabel$Change2010-2013 | EH5: RankLabel$Change2011-2014 | EI5: END | EJ5: END | EN5: =IF(EN$3<=$EP$2,"RankLabelDesc$Change"&B5&"-"&B5+$EO$2,"END") -> RankLabelDesc$Change1997-2000 | EO5: =IF(EO$3<=$EP$2,"RankLabelDesc$Change"&C5&"-"&C5+$EO$2,"END") -> RankLabelDesc$Change1998-2001 | EP5: RankLabelDesc$Change1999-2002 | EQ5: RankLabelDesc$Change2000-2003 | ER5: RankLabelDesc$Change2001-2004 | ES5: RankLabelDesc$Change2002-2005 | ET5: RankLabelDesc$Change2003-2006 | EU5: RankLabelDesc$Change2004-2007 | EV5: RankLabelDesc$Change2005-2008 | EW5: RankLabelDesc$Change2006-2009 | EX5: RankLabelDesc$Change2007-2010 | EY5: RankLabelDesc$Change2008-2011 | EZ5: RankLabelDesc$Change2009-2012 | FA5: RankLabelDesc$Change2010-2013 | FB5: RankLabelDesc$Change2011-2014 | FC5: END | FD5: END | FH5: =IF(FH$3<=$FJ$2,"%$Change"&B5&"-"&B5+$FI$2,"END") -> %$Change1997-2000 | FI5: %$Change1998-2001 | FJ5: %$Change1999-2002 | FK5: %$Change2000-2003 | FL5: %$Change2001-2004 | FM5: %$Change2002-2005 | FN5: %$Change2003-2006 | FO5: %$Change2004-2007 | FP5: %$Change2005-2008 | FQ5: %$Change2006-2009 | FR5: %$Change2007-2010 | FS5: %$Change2008-2011 | FT5: %$Change2009-2012 | FU5: %$Change2010-2013 | FV5: %$Change2011-2014 | FW5: END | FX5: END | GB5: =IF(GB$3<=$GD$2,"Rank%$Change"&B5&"-"&B5+$GC$2,"END") -> Rank%$Change1997-2000 | GC5: Rank%$Change1998-2001 | GD5: Rank%$Change1999-2002 | GE5: Rank%$Change2000-2003 | GF5: Rank%$Change2001-2004 | GG5: Rank%$Change2002-2005 | GH5: Rank%$Change2003-2006 | GI5: Rank%$Change2004-2007 | GJ5: Rank%$Change2005-2008 | GK5: Rank%$Change2006-2009 | GL5: Rank%$Change2007-2010 | GM5: Rank%$Change2008-2011 | GN5: Rank%$Change2009-2012 | GO5: Rank%$Change2010-2013 | GP5: Rank%$Change2011-2014 | GQ5: END | GR5: END | GV5: =IF(GV$3<=$GX$2,"RankLabel%$Change"&B5&"-"&B5+$GW$2,"END") -> RankLabel%$Change1997-2000 | GW5: RankLabel%$Change1998-2001 | GX5: RankLabel%$Change1999-2002 | GY5: RankLabel%$Change2000-2003 | GZ5: RankLabel%$Change2001-2004 | HA5: RankLabel%$Change2002-2005 | HB5: RankLabel%$Change2003-2006 | HC5: RankLabel%$Change2004-2007 | HD5: RankLabel%$Change2005-2008 | HE5: RankLabel%$Change2006-2009 | HF5: RankLabel%$Change2007-2010 | HG5: RankLabel%$Change2008-2011 | HH5: RankLabel%$Change2009-2012 | HI5: RankLabel%$Change2010-2013 | HJ5: RankLabel%$Change2011-2014 | HK5: END | HL5: END | HP5: =IF(HP$3<=$HR$2,"RankLabel%$ChangeDesc"&B5&"-"&B5+$HQ$2,"END") -> RankLabel%$ChangeDesc1997-2000 | HQ5: =IF(HQ$3<=$HR$2,"RankLabel%$ChangeDesc"&C5&"-"&C5+$HQ$2,"END") -> RankLabel%$ChangeDesc1998-2001 | HR5: RankLabel%$ChangeDesc1999-2002 | HS5: RankLabel%$ChangeDesc2000-2003 | HT5: RankLabel%$ChangeDesc2001-2004 | HU5: RankLabel%$ChangeDesc2002-2005 | HV5: RankLabel%$ChangeDesc2003-2006 | HW5: RankLabel%$ChangeDesc2004-2007 | HX5: RankLabel%$ChangeDesc2005-2008 | HY5: RankLabel%$ChangeDesc2006-2009 | HZ5: RankLabel%$ChangeDesc2007-2010 | IA5: RankLabel%$ChangeDesc2008-2011 | IB5: RankLabel%$ChangeDesc2009-2012 | IC5: RankLabel%$ChangeDesc2010-2013 | ID5: RankLabel%$ChangeDesc2011-2014 | IE5: END | IF5: END | IJ5: =IF(IJ$3<=$IJ$2,"Share of total "&B5,"END") -> Share of total 1997 | IK5: =IF(IK$3<=$IJ$2,"Share of total "&C5,"END") -> Share of total 1998 | IL5: Share of total 1999 | IM5: Share of total 2000 | IN5: Share of total 2001 | IO5: Share of total 2002 | IP5: Share of total 2003 | IQ5: Share of total 2004 | IR5: Share of total 2005 | IS5: Share of total 2006 | IT5: Share of total 2007 | IU5: Share of total 2008 | IV5: Share of total 2009 | IW5: Share of total 2010 | IX5: Share of total 2011 | IY5: Share of total 2012 | IZ5: Share of total 2013 | JA5: Share of total 2014 | JD5: =IF(JD$3<=$JF$2,"pptChange"&B5&"-"&B5+$JE$2,"END") -> pptChange1997-2000 | JE5: =IF(JE$3<=$JF$2,"pptChange"&C5&"-"&C5+$JE$2,"END") -> pptChange1998-2001 | JF5: pptChange1999-2002 | JG5: pptChange2000-2003 | JH5: pptChange2001-2004 | JI5: pptChange2002-2005 | JJ5: pptChange2003-2006 | JK5: pptChange2004-2007 | JL5: pptChange2005-2008 | JM5: pptChange2006-2009 | JN5: pptChange2007-2010 | JO5: pptChange2008-2011 | JP5: pptChange2009-2012 | JQ5: pptChange2010-2013 | JR5: pptChange2011-2014 | JS5: END | JT5: END | JX5: =IF(JX$3<=$JZ$2,"RankpptChange"&B5&"-"&B55+$JY$2,"END") -> RankpptChange1997-122828388 | JY5: =IF(JY$3<=$JZ$2,"RankpptChange"&C5&"-"&C55+$JY$2,"END") -> RankpptChange1998-58183568 | JZ5: RankpptChange1999-58080669 | KA5: RankpptChange2000-92239838 | KB5: RankpptChange2001-126983884 | KC5: RankpptChange2002-71861114 | KD5: RankpptChange2003-104483639 | KE5: RankpptChange2004-83359098 | KF5: RankpptChange2005-110043141 | KG5: RankpptChange2006-78840278 | KH5: RankpptChange2007-366829627 | KI5: RankpptChange2008-375461928 | KJ5: RankpptChange2009-250441289 | KK5: RankpptChange2010-874645083 | KL5: RankpptChange2011-3265190502 | KM5: END | KN5: END | KR5: =IF(KR$3<=$KT$2,"RankLabelppChange"&B5&"-"&B5+$KS$2,"END") -> RankLabelppChange1997-2000 | KS5: =IF(KS$3<=$KT$2,"RankLabelppChange"&C5&"-"&C5+$KS$2,"END") -> RankLabelppChange1998-2001 | KT5: RankLabelppChange1999-2002 | KU5: RankLabelppChange2000-2003 | KV5: RankLabelppChange2001-2004 | KW5: RankLabelppChange2002-2005 | KX5: RankLabelppChange2003-2006 | KY5: RankLabelppChange2004-2007 | KZ5: RankLabelppChange2005-2008 | LA5: RankLabelppChange2006-2009 | LB5: RankLabelppChange2007-2010 | LC5: RankLabelppChange2008-2011 | LD5: RankLabelppChange2009-2012 | LE5: RankLabelppChange2010-2013 | LF5: RankLabelppChange2011-2014 | LG5: END | LH5: =IFERROR(IF(KM5="END","END",INDIRECT("JW"&(MATCH($DS5,KN$6:KN$260,0))+5)),"END") -> END | LL5: =IF(LL$3<=$LN$2,"RankLabelpptChangeDesc"&B5&"-"&B5+$LM$2,"END") -> RankLabelpptChangeDesc1997-2000 | LM5: =IF(LM$3<=$LN$2,"RankLabelpptChangeDesc"&C5&"-"&C5+$LM$2,"END") -> RankLabelpptChangeDesc1998-2001 | LN5: RankLabelpptChangeDesc1999-2002 | LO5: RankLabelpptChangeDesc2000-2003 | LP5: RankLabelpptChangeDesc2001-2004 | LQ5: RankLabelpptChangeDesc2002-2005 | LR5: RankLabelpptChangeDesc2003-2006 | LS5: RankLabelpptChangeDesc2004-2007 | LT5: RankLabelpptChangeDesc2005-2008 | LU5: RankLabelpptChangeDesc2006-2009 | LV5: RankLabelpptChangeDesc2007-2010 | LW5: RankLabelpptChangeDesc2008-2011 | LX5: RankLabelpptChangeDesc2009-2012 | LY5: RankLabelpptChangeDesc2010-2013 | LZ5: RankLabelpptChangeDesc2011-2014 | MA5: END | MB5: END
A6: AG001 | B6: 1298212658 | C6: 1294734445 | D6: 1152167288 | E6: 1473434156 | F6: 1696816510 | G6: 1532080513 | H6: 1840900723 | I6: 1510234278 | J6: 1875259838 | K6: 2103669632 | L6: 2205891044 | M6: 2551344823 | N6: 2333578625 | O6: 2536772828 | P6: 2963868304 | Q6: 2864236672 | R6: 3065376613 | S6: 3421338640 | T6: 3.771991759e+10 | W6: =IFERROR(RANK(B6,INDIRECT(W$3)),"END") -> 105 | X6: =IFERROR(RANK(C6,INDIRECT(X$3)),"END") -> 104 | Y6: 112 | Z6: 100 | AA6: 93 | AB6: 98 | AC6: 85 | AD6: 108 | AE6: 104 | AF6: 104 | AG6: 102 | AH6: 101 | AI6: 91 | AJ6: 100 | AK6: 102 | AL6: 105 | AM6: 107 | AN6: 99 | AQ6: 1 | AR6: =IF(W6="END","END",INDIRECT("A"&MATCH($AQ6,INDIRECT(AR$2),0)+5)) -> EL017 | AS6: =IF(X6="END","END",INDIRECT("A"&MATCH($AQ6,INDIRECT(AS$2),0)+5)) -> TE013 | AT6: TE013 | AU6: EL015 | AV6: EL017 | AW6: TE013 | AX6: EL015 | AY6: EL015 | AZ6: TE013 | BA6: TE013 | BB6: TE013 | BC6: TE013 | BD6: TE013 | BE6: TE013 | BF6: EP005 | BG6: EP005 | BH6: EP005 | BI6: TE013 | BK6: =A6 -> AG001 | BL6: =IFERROR(IF(BL$3<=$BN$2,MATCH($A6,OFFSET($BI$5:$BI$257,0,-($BN$2+$BM$2-BL$3)),0)-MATCH($A6,OFFSET($BI$5:$BI$257,0,-($BN$2-BL$3)),0),"END"),"END") -> 5 | BM6: 11 | BN6: 14 | BO6: 15 | BP6: -15 | BQ6: -6 | BR6: -19 | BS6: 6 | BT6: 3 | BU6: 13 | BV6: =IFERROR(IF(BV$3<=$BN$2,MATCH($A6,OFFSET($BI$5:$BI$257,0,-($BN$2+$BM$2-BV$3)),0)-MATCH($A6,OFFSET($BI$5:$BI$257,0,-($BN$2-BV$3)),0),"END"),"END") -> 2 | BW6: -1 | BX6: -14 | BY6: -7 | BZ6: 3 | CA6: END | CB6: END | CE6: =A6 -> AG001 | CF6: =IF((CF$3+$CG$2-1)<$CF$2,IFERROR((OFFSET($S6,0,-($CH$2-CF$3))-OFFSET($S6,0,-($CH$2+$CG$2-CF$3)))/1000,"END"),"END") -> 175221.498 | CG6: =IF((CG$3+$CG$2-1)<$CF$2,IFERROR((OFFSET($S6,0,-($CH$2-CG$3))-OFFSET($S6,0,-($CH$2+$CG$2-CG$3)))/1000,"END"),"END") -> 402082.065 | CH6: 379913.225 | CI6: 367466.567 | CJ6: -186582.232 | CK6: 343179.325 | CL6: 262768.909 | CM6: 695656.7661 | CN6: 676084.9847 | CO6: 229908.9932 | CP6: 330881.784 | CQ6: 412523.4818 | CR6: 530658.0468 | CS6: 528603.7849 | CT6: 457470.3355 | CU6: END | CV6: END | CY6: =A6 -> AG001 | CZ6: =IFERROR(RANK(CF6,INDIRECT(CZ$4)),"END") -> 79 | DA6: =IFERROR(RANK(CG6,INDIRECT(DA$4)),"END") -> 44 | DB6: 31 | DC6: 24 | DD6: 229 | DE6: 110 | DF6: 140 | DG6: 93 | DH6: 93 | DI6: 61 | DJ6: 77 | DK6: 87 | DL6: 122 | DM6: 94 | DN6: 69 | DO6: END | DP6: END | DS6: 1 | DT6: =IFERROR(IF(W6="END","END",INDIRECT("CY"&(MATCH($DS6,CZ$6:CZ$260,0))+5)),"END") -> EL015 | DU6: =IFERROR(IF(X6="END","END",INDIRECT("CY"&(MATCH($DS6,DA$6:DA$260,0))+5)),"END") -> EL015 | DV6: =IFERROR(IF(Y6="END","END",INDIRECT("CY"&(MATCH($DS6,DB$6:DB$260,0))+5)),"END") -> CH019 | DW6: =IFERROR(IF(Z6="END","END",INDIRECT("CY"&(MATCH($DS6,DC$6:DC$260,0))+5)),"END") -> CH019 | DX6: =IFERROR(IF(AA6="END","END",INDIRECT("CY"&(MATCH($DS6,DD$6:DD$260,0))+5)),"END") -> TE009 | DY6: =IFERROR(IF(AB6="END","END",INDIRECT("CY"&(MATCH($DS6,DE$6:DE$260,0))+5)),"END") -> TE009 | DZ6: =IFERROR(IF(AC6="END","END",INDIRECT("CY"&(MATCH($DS6,DF$6:DF$260,0))+5)),"END") -> TE013 | EA6: =IFERROR(IF(AD6="END","END",INDIRECT("CY"&(MATCH($DS6,DG$6:DG$260,0))+5)),"END") -> TE013 | EB6: =IFERROR(IF(AE6="END","END",INDIRECT("CY"&(MATCH($DS6,DH$6:DH$260,0))+5)),"END") -> EP005 | EC6: =IFERROR(IF(AF6="END","END",INDIRECT("CY"&(MATCH($DS6,DI$6:DI$260,0))+5)),"END") -> TE013 | ED6: =IFERROR(IF(AG6="END","END",INDIRECT("CY"&(MATCH($DS6,DJ$6:DJ$260,0))+5)),"END") -> EP005 | EE6: =IFERROR(IF(AH6="END","END",INDIRECT("CY"&(MATCH($DS6,DK$6:DK$260,0))+5)),"END") -> EP005 | EF6: =IFERROR(IF(AI6="END","END",INDIRECT("CY"&(MATCH($DS6,DL$6:DL$260,0))+5)),"END") -> EP005 | EG6: =IFERROR(IF(AJ6="END","END",INDIRECT("CY"&(MATCH($DS6,DM$6:DM$260,0))+5)),"END") -> EP005 | EH6: =IFERROR(IF(AK6="END","END",INDIRECT("CY"&(MATCH($DS6,DN$6:DN$260,0))+5)),"END") -> TE013 | EI6: =IFERROR(IF(AL6="END","END",INDIRECT("CY"&(MATCH($DS6,DO$6:DO$260,0))+5)),"END") -> END | EJ6: =IFERROR(IF(AM6="END","END",INDIRECT("CY"&(MATCH($DS6,DP$6:DP$260,0))+5)),"END") -> END | EM6: =MATCH("END",DT6:DT257,0)-1 ->  | EN6: =IFERROR(IF(W6="END","END",INDIRECT("CY"&(MATCH($EM6,CZ$6:CZ$260,0))+5)),"END") -> END | EO6: =IFERROR(IF(X6="END","END",INDIRECT("CY"&(MATCH($EM6,DA$6:DA$260,0))+5)),"END") -> END | EP6: END | EQ6: END | ER6: END | ES6: END | ET6: END | EU6: END | EV6: END | EW6: END | EX6: END | EY6: END | EZ6: END | FA6: END | FB6: END | FC6: END | FD6: END | FG6: =A6 -> AG001 | FH6: =IF(AND(B6>0,ISNUMBER(CF6)),(CF6*1000)/B6*100,"END") -> 13.49713369 | FI6: 31.05517634 | FJ6: 32.97379026 | FK6: 24.93946306 | FL6: -10.99601701 | FM6: 22.39956204 | FN6: 14.27393154 | FO6: 46.06283782 | FP6: 36.05286963 | FQ6: 10.92894957 | FR6: 14.99991511 | FS6: 16.16886429 | FT6: 22.74009716 | FU6: 20.8376477 | FV6: 15.43490765 | FW6: END | FX6: END | GA6: =A6 -> AG001 | GB6: =IFERROR(RANK(FH6,INDIRECT(GB$4)),"END") -> 90 | GC6: =IFERROR(RANK(FI6,INDIRECT(GC$4)),"END") -> 34 | GD6: 20 | GE6: 31 | GF6: 219 | GG6: 150 | GH6: 211 | GI6: 93 | GJ6: 131 | GK6: 96 | GL6: 104 | GM6: 115 | GN6: 188 | GO6: 111 | GP6: 87 | GQ6: END | GR6: END | GU6: 1 | GV6: =IFERROR(IF(W6="END","END",INDIRECT("CY"&(MATCH($DS6,GB$6:GB$260,0))+5)),"END") -> EP001 | GW6: =IFERROR(IF(X6="END","END",INDIRECT("CY"&(MATCH($DS6,GC$6:GC$260,0))+5)),"END") -> MM008 | GX6: =IFERROR(IF(Y6="END","END",INDIRECT("CY"&(MATCH($DS6,GD$6:GD$260,0))+5)),"END") -> MM005 | GY6: =IFERROR(IF(Z6="END","END",INDIRECT("CY"&(MATCH($DS6,GE$6:GE$260,0))+5)),"END") -> CH003 | GZ6: =IFERROR(IF(AA6="END","END",INDIRECT("CY"&(MATCH($DS6,GF$6:GF$260,0))+5)),"END") -> CH003 | HA6: =IFERROR(IF(AB6="END","END",INDIRECT("CY"&(MATCH($DS6,GG$6:GG$260,0))+5)),"END") -> MM007 | HB6: =IFERROR(IF(AC6="END","END",INDIRECT("CY"&(MATCH($DS6,GH$6:GH$260,0))+5)),"END") -> MM004 | HC6: =IFERROR(IF(AD6="END","END",INDIRECT("CY"&(MATCH($DS6,GI$6:GI$260,0))+5)),"END") -> MM004 | HD6: =IFERROR(IF(AE6="END","END",INDIRECT("CY"&(MATCH($DS6,GJ$6:GJ$260,0))+5)),"END") -> MM008 | HE6: =IFERROR(IF(AF6="END","END",INDIRECT("CY"&(MATCH($DS6,GK$6:GK$260,0))+5)),"END") -> MM008 | HF6: =IFERROR(IF(AG6="END","END",INDIRECT("CY"&(MATCH($DS6,GL$6:GL$260,0))+5)),"END") -> MM008 | HG6: =IFERROR(IF(AH6="END","END",INDIRECT("CY"&(MATCH($DS6,GM$6:GM$260,0))+5)),"END") -> AG050 | HH6: =IFERROR(IF(AI6="END","END",INDIRECT("CY"&(MATCH($DS6,GN$6:GN$260,0))+5)),"END") -> AG050 | HI6: =IFERROR(IF(AJ6="END","END",INDIRECT("CY"&(MATCH($DS6,GO$6:GO$260,0))+5)),"END") -> EP004 | HJ6: =IFERROR(IF(AK6="END","END",INDIRECT("CY"&(MATCH($DS6,GP$6:GP$260,0))+5)),"END") -> EP004 | HK6: =IFERROR(IF(AL6="END","END",INDIRECT("CY"&(MATCH($DS6,GQ$6:GQ$260,0))+5)),"END") -> END | HL6: =IFERROR(IF(AM6="END","END",INDIRECT("CY"&(MATCH($DS6,GR$6:GR$260,0))+5)),"END") -> END | HO6: =MATCH("END",GV6:GV257,0)-1 -> 251 | HP6: =IFERROR(IF(W6="END","END",INDIRECT("FG"&(MATCH($HO6,GB$6:GB$260,0))+5)),"END") -> AG004 | HQ6: =IFERROR(IF(X6="END","END",INDIRECT("FG"&(MATCH($HO6,GC$6:GC$260,0))+5)),"END") -> EP004 | HR6: EP004 | HS6: EL019 | HT6: AG002 | HU6: AG044 | HV6: AG044 | HW6: EL014 | HX6: EL014 | HY6: AG045 | HZ6: TE001 | IA6: EP001 | IB6: EP001 | IC6: AG016 | ID6: EP002 | IE6: END | IF6: END | II6: =IF(OR(II5="Grand total",II5="END"),"END",A6) -> AG001 | IJ6: =IF(OR($II6="Grand total",$II6="END"),"END",IF(IJ$5="END","END",IFERROR(B6/MAX(B$6:B$265)*100,"END"))) -> 0.1888040193 | IK6: =IF(OR($II6="Grand total",$II6="END"),"END",IF(IK$5="END","END",IFERROR(C6/MAX(C$6:C$265)*100,"END"))) -> 0.190269426 | IL6: =IF(OR($II6="Grand total",$II6="END"),"END",IF(IL$5="END","END",IFERROR(D6/MAX(D$6:D$265)*100,"END"))) -> 0.1663009521 | IM6: =IF(OR($II6="Grand total",$II6="END"),"END",IF(IM$5="END","END",IFERROR(E6/MAX(E$6:E$265)*100,"END"))) -> 0.1888004853 | IN6: =IF(OR($II6="Grand total",$II6="END"),"END",IF(IN$5="END","END",IFERROR(F6/MAX(F$6:F$265)*100,"END"))) -> 0.2321144156 | IO6: =IF(OR($II6="Grand total",$II6="END"),"END",IF(IO$5="END","END",IFERROR(G6/MAX(G$6:G$265)*100,"END"))) -> 0.2209973863 | IP6: =IF(OR($II6="Grand total",$II6="END"),"END",IF(IP$5="END","END",IFERROR(H6/MAX(H$6:H$265)*100,"END"))) -> 0.2543582836 | IQ6: =IF(OR($II6="Grand total",$II6="END"),"END",IF(IQ$5="END","END",IFERROR(I6/MAX(I$6:I$265)*100,"END"))) -> 0.1849536067 | IR6: =IF(OR($II6="Grand total",$II6="END"),"END",IF(IR$5="END","END",IFERROR(J6/MAX(J$6:J$265)*100,"END"))) -> 0.2073531276 | IS6: =IF(OR($II6="Grand total",$II6="END"),"END",IF(IS$5="END","END",IFERROR(K6/MAX(K$6:K$265)*100,"END"))) -> 0.2028331375 | IT6: =IF(OR($II6="Grand total",$II6="END"),"END",IF(IT$5="END","END",IFERROR(L6/MAX(L$6:L$265)*100,"END"))) -> 0.1897200748 | IU6: =IF(OR($II6="Grand total",$II6="END"),"END",IF(IU$5="END","END",IFERROR(M6/MAX(M$6:M$265)*100,"END"))) -> 0.1962368176 | IV6: =IF(OR($II6="Grand total",$II6="END"),"END",IF(IV$5="END","END",IFERROR(N6/MAX(N$6:N$265)*100,"END"))) -> 0.2207879673 | IW6: =IF(OR($II6="Grand total",$II6="END"),"END",IF(IW$5="END","END",IFERROR(O6/MAX(O$6:O$265)*100,"END"))) -> 0.1984187477 | IX6: =IF(OR($II6="Grand total",$II6="END"),"END",IF(IX$5="END","END",IFERROR(P6/MAX(P$6:P$265)*100,"END"))) -> 0.1999226172 | IY6: =IF(OR($II6="Grand total",$II6="END"),"END",IF(IY$5="END","END",IFERROR(Q6/MAX(Q$6:Q$265)*100,"END"))) -> 0.1853031405 | IZ6: =IF(OR($II6="Grand total",$II6="END"),"END",IF(IZ$5="END","END",IFERROR(R6/MAX(R$6:R$265)*100,"END"))) -> 0.1940611837 | JA6: 0.2107458546 | JC6: =II6 -> AG001 | JD6: =IF((JD$3-1)<$JF$2,IFERROR(-OFFSET($II6,0,JD$3)+OFFSET($II6,0,JD$3+$JE$2),"END"),"END") -> -3.53406238e-06 | JE6: =IF((JE$3-1)<$JF$2,IFERROR(-OFFSET($II6,0,JE$3)+OFFSET($II6,0,JE$3+$JE$2),"END"),"END") -> 0.04184498955 | JF6: 0.05469643426 | JG6: 0.06555779839 | JH6: -0.04716080887 | JI6: -0.01364425878 | JJ6: -0.05152514615 | JK6: 0.004766468104 | JL6: -0.01111630999 | JM6: 0.0179548298 | JN6: 0.008698672931 | JO6: 0.003685799636 | JP6: -0.03548482679 | JQ6: -0.004357564039 | JR6: 0.0108232374 | JS6: END | JT6: END | JW6: =JC6 -> AG001 | JX6: =IFERROR(RANK(JD6,INDIRECT(JX$4)),"END") -> 91 | JY6: =IFERROR(RANK(JE6,INDIRECT(JY$4)),"END") -> 32 | JZ6: 31 | KA6: 31 | KB6: 216 | KC6: 180 | KD6: 224 | KE6: 85 | KF6: 167 | KG6: 65 | KH6: 82 | KI6: 101 | KJ6: 207 | KK6: 140 | KL6: 64 | KM6: END | KN6: END | KQ6: 1 | KR6: =IFERROR(IF(JW6="END","END",INDIRECT("JW"&(MATCH($DS6,JX$6:JX$260,0))+5)),"END") -> EL015 | KS6: CH019 | KT6: CH019 | KU6: CH019 | KV6: TE009 | KW6: EP005 | KX6: EP005 | KY6: TE013 | KZ6: EP005 | LA6: TE013 | LB6: EP005 | LC6: EP005 | LD6: EP005 | LE6: EP005 | LF6: TE013 | LG6: END | LH6: END | LK6: =MATCH("END",KR6:KR257,0)-1 ->  | LL6: =IFERROR(IF($LK6="END","END",INDIRECT("JC"&(MATCH($HO6,JX$6:JX$260,0))+5)),"END") -> END | LM6: =IFERROR(IF($LK6="END","END",INDIRECT("JC"&(MATCH($HO6,JY$6:JY$260,0))+5)),"END") -> END | LN6: END | LO6: END | LP6: END | LQ6: END | LR6: END | LS6: END | LT6: END | LU6: END | LV6: END | LW6: END | LX6: END | LY6: END | LZ6: END | MA6: END | MB6: END
A7: AG002 | B7: 3050778396 | C7: 2866867685 | D7: 3310140706 | E7: 4004779439 | F7: 3388747242 | G7: 2999838412 | H7: 3537828251 | I7: 628251680 | J7: 1053235777 | K7: 1664055836 | L7: 2164238159 | M7: 3093640379 | N7: 2821191322 | O7: 3878082929 | P7: 5230417018 | Q7: 5656070118 | R7: 6135849882 | S7: 6880103256 | T7: 6.236411649e+10 | W7: =IFERROR(RANK(B7,INDIRECT(W$3)),"END") -> 47 | X7: 51 | Y7: 42 | Z7: 45 | AA7: 46 | AB7: 50 | AC7: 45 | AD7: 167 | AE7: 137 | AF7: 117 | AG7: 105 | AH7: 85 | AI7: 77 | AJ7: 76 | AK7: 65 | AL7: 61 | AM7: 59 | AN7: 54 | AQ7: =AQ6+1 -> 2 | AR7: =IF(W7="END","END",INDIRECT("A"&MATCH($AQ7,INDIRECT(AR$2),0)+5)) -> TE013 | AS7: EL017 | AT7: EL017 | AU7: EL017 | AV7: EL015 | AW7: EL015 | AX7: EL017 | AY7: EL017 | AZ7: EL015 | BA7: EL015 | BB7: TE009 | BC7: TE009 | BD7: CH019 | BE7: EP005 | BF7: TE013 | BG7: TE013 | BH7: TE013 | BI7: EP005 | BK7: =A7 -> AG002 | BL7: 2 | BM7: 5 | BN7: -8 | BO7: 0 | BP7: -121 | BQ7: -87 | BR7: -72 | BS7: 62 | BT7: 52 | BU7: 40 | BV7: 29 | BW7: 20 | BX7: 16 | BY7: 17 | BZ7: 11 | CA7: END | CB7: END | CE7: =A7 -> AG002 | CF7: =IF((CF$3+$CG$2-1)<$CF$2,IFERROR((OFFSET($S7,0,-($CH$2-CF$3))-OFFSET($S7,0,-($CH$2+$CG$2-CF$3)))/1000,"END"),"END") -> 954001.043 | CG7: 521879.557 | CH7: -310302.294 | CI7: -466951.188 | CJ7: -2760495.562 | CK7: -1946602.635 | CL7: -1873772.415 | CM7: 1535986.479 | CN7: 2040404.602 | CO7: 1157135.486 | CP7: 1713844.77 | CQ7: 2136776.639 | CR7: 2834878.796 | CS7: 2257766.953 | CT7: 1649686.238 | CU7: END | CV7: END | CY7: =A7 -> AG002 | CZ7: =IFERROR(RANK(CF7,INDIRECT(CZ$4)),"END") -> 28 | DA7: 40 | DB7: 224 | DC7: 211 | DD7: 250 | DE7: 252 | DF7: 252 | DG7: 56 | DH7: 43 | DI7: 18 | DJ7: 19 | DK7: 24 | DL7: 39 | DM7: 28 | DN7: 27 | DO7: END | DP7: END | DS7: =DS6+1 -> 2 | DT7: =IFERROR(IF(W7="END","END",INDIRECT("CY"&(MATCH($DS7,CZ$6:CZ$260,0))+5)),"END") -> EL017 | DU7: CH019 | DV7: TE009 | DW7: TE009 | DX7: CH019 | DY7: CH019 | DZ7: EP005 | EA7: TE009 | EB7: TE013 | EC7: EP005 | ED7: CH019 | EE7: TE013 | EF7: TE009 | EG7: TE013 | EH7: EP005 | EI7: END | EJ7: END | EM7: =IF(AND(EM6<>1,EM6<>"END"),EM6-1,"END") ->  | EN7: =IFERROR(IF(W7="END","END",INDIRECT("CY"&(MATCH($EM7,CZ$6:CZ$260,0))+5)),"END") -> END | EO7: END | EP7: END | EQ7: END | ER7: END | ES7: END | ET7: END | EU7: END | EV7: END | EW7: END | EX7: END | EY7: END | EZ7: END | FA7: END | FB7: END | FC7: END | FD7: END | FG7: =A7 -> AG002 | FH7: =IF(AND(B7>0,ISNUMBER(CF7)),(CF7*1000)/B7*100,"END") -> 31.27074206 | FI7: =IF(AND(C7>0,ISNUMBER(CG7)),(CG7*1000)/C7*100,"END") -> 18.20382432 | FJ7: =IF(AND(D7>0,ISNUMBER(CH7)),(CH7*1000)/D7*100,"END") -> -9.374293166 | FK7: =IF(AND(E7>0,ISNUMBER(CI7)),(CI7*1000)/E7*100,"END") -> -11.65984782 | FL7: =IF(AND(F7>0,ISNUMBER(CJ7)),(CJ7*1000)/F7*100,"END") -> -81.46065094 | FM7: =IF(AND(G7>0,ISNUMBER(CK7)),(CK7*1000)/G7*100,"END") -> -64.89024966 | FN7: =IF(AND(H7>0,ISNUMBER(CL7)),(CL7*1000)/H7*100,"END") -> -52.9639169 | FO7: =IF(AND(I7>0,ISNUMBER(CM7)),(CM7*1000)/I7*100,"END") -> 244.485853 | FP7: =IF(AND(J7>0,ISNUMBER(CN7)),(CN7*1000)/J7*100,"END") -> 193.72724 | FQ7: =IF(AND(K7>0,ISNUMBER(CO7)),(CO7*1000)/K7*100,"END") -> 69.53705887 | FR7: =IF(AND(L7>0,ISNUMBER(CP7)),(CP7*1000)/L7*100,"END") -> 79.18928711 | FS7: =IF(AND(M7>0,ISNUMBER(CQ7)),(CQ7*1000)/M7*100,"END") -> 69.06997509 | FT7: =IF(AND(N7>0,ISNUMBER(CR7)),(CR7*1000)/N7*100,"END") -> 100.4851664 | FU7: =IF(AND(O7>0,ISNUMBER(CS7)),(CS7*1000)/O7*100,"END") -> 58.2186352 | FV7: =IF(AND(P7>0,ISNUMBER(CT7)),(CT7*1000)/P7*100,"END") -> 31.54024302 | FW7: =IF(AND(Q7>0,ISNUMBER(CU7)),(CU7*1000)/Q7*100,"END") -> END | FX7: =IF(AND(R7>0,ISNUMBER(CV7)),(CV7*1000)/R7*100,"END") -> END | GA7: =A7 -> AG002 | GB7: =IFERROR(RANK(FH7,INDIRECT(GB$4)),"END") -> 39 | GC7: 69 | GD7: 181 | GE7: 175 | GF7: 251 | GG7: 250 | GH7: 249 | GI7: 5 | GJ7: 9 | GK7: 8 | GL7: 11 | GM7: 11 | GN7: 15 | GO7: 15 | GP7: 28 | GQ7: END | GR7: END | GU7: =GU6+1 -> 2 | GV7: =IFERROR(IF(W7="END","END",INDIRECT("CY"&(MATCH($DS7,GB$6:GB$260,0))+5)),"END") -> EL019 | GW7: EP001 | GX7: EP006 | GY7: MM005 | GZ7: CH001 | HA7: EP004 | HB7: MM007 | HC7: AG050 | HD7: MM004 | HE7: AG050 | HF7: MM002 | HG7: MM002 | HH7: MM003 | HI7: AG047 | HJ7: MS005 | HK7: END | HL7: END | HO7: =IF(AND(HO6<>1,HO6<>"END"),HO6-1,"END") -> 250 | HP7: =IFERROR(IF(W7="END","END",INDIRECT("FG"&(MATCH($HO7,GB$6:GB$260,0))+5)),"END") -> CH003 | HQ7: =IFERROR(IF(X7="END","END",INDIRECT("FG"&(MATCH($HO7,GC$6:GC$260,0))+5)),"END") -> MM021 | HR7: =IFERROR(IF(Y7="END","END",INDIRECT("FG"&(MATCH($HO7,GD$6:GD$260,0))+5)),"END") -> EL019 | HS7: =IFERROR(IF(Z7="END","END",INDIRECT("FG"&(MATCH($HO7,GE$6:GE$260,0))+5)),"END") -> EP004 | HT7: =IFERROR(IF(AA7="END","END",INDIRECT("FG"&(MATCH($HO7,GF$6:GF$260,0))+5)),"END") -> EL019 | HU7: =IFERROR(IF(AB7="END","END",INDIRECT("FG"&(MATCH($HO7,GG$6:GG$260,0))+5)),"END") -> AG002 | HV7: =IFERROR(IF(AC7="END","END",INDIRECT("FG"&(MATCH($HO7,GH$6:GH$260,0))+5)),"END") -> EL014 | HW7: =IFERROR(IF(AD7="END","END",INDIRECT("FG"&(MATCH($HO7,GI$6:GI$260,0))+5)),"END") -> AG044 | HX7: =IFERROR(IF(AE7="END","END",INDIRECT("FG"&(MATCH($HO7,GJ$6:GJ$260,0))+5)),"END") -> AG045 | HY7: =IFERROR(IF(AF7="END","END",INDIRECT("FG"&(MATCH($HO7,GK$6:GK$260,0))+5)),"END") -> TE001 | HZ7: =IFERROR(IF(AG7="END","END",INDIRECT("FG"&(MATCH($HO7,GL$6:GL$260,0))+5)),"END") -> AG045 | IA7: =IFERROR(IF(AH7="END","END",INDIRECT("FG"&(MATCH($HO7,GM$6:GM$260,0))+5)),"END") -> TE001 | IB7: =IFERROR(IF(AI7="END","END",INDIRECT("FG"&(MATCH($HO7,GN$6:GN$260,0))+5)),"END") -> AG016 | IC7: =IFERROR(IF(AJ7="END","END",INDIRECT("FG"&(MATCH($HO7,GO$6:GO$260,0))+5)),"END") -> EP001 | ID7: =IFERROR(IF(AK7="END","END",INDIRECT("FG"&(MATCH($HO7,GP$6:GP$260,0))+5)),"END") -> AG016 | IE7: =IFERROR(IF(AL7="END","END",INDIRECT("FG"&(MATCH($HO7,GQ$6:GQ$260,0))+5)),"END") -> END | IF7: =IFERROR(IF(AM7="END","END",INDIRECT("FG"&(MATCH($HO7,GR$6:GR$260,0))+5)),"END") -> END | II7: =IF(OR(II6="Grand total",II6="END"),"END",A7) -> AG002 | IJ7: 0.4436863403 | IK7: 0.4213043617 | IL7: 0.4777774518 | IM7: 0.5131578485 | IN7: 0.4635604858 | IO7: 0.4327164551 | IP7: 0.4888237103 | IQ7: 0.07693999257 | IR7: 0.1164594516 | IS7: 0.1604461371 | IT7: 0.1861376728 | IU7: 0.237947508 | IV7: 0.2669226958 | IW7: 0.3033319932 | IX7: 0.3528087458 | IY7: 0.3659221202 | IZ7: 0.3884450237 | JA7: 0.4237970552 | JC7: =II7 -> AG002 | JD7: =IF((JD$3-1)<$JF$2,IFERROR(-OFFSET($II7,0,JD$3)+OFFSET($II7,0,JD$3+$JE$2),"END"),"END") -> 0.06947150817 | JE7: 0.04225612406 | JF7: -0.04506099674 | JG7: -0.02433413818 | JH7: -0.3866204932 | JI7: -0.3162570035 | JJ7: -0.3283775732 | JK7: 0.1091976802 | JL7: 0.1214880564 | JM7: 0.1064765587 | JN7: 0.1171943204 | JO7: 0.1148612378 | JP7: 0.09899942443 | JQ7: 0.08511303046 | JR7: 0.07098830938 | JS7: END | JT7: END | JW7: =JC7 -> AG002 | JX7: =IFERROR(RANK(JD7,INDIRECT(JX$4)),"END") -> 24 | JY7: =IFERROR(RANK(JE7,INDIRECT(JY$4)),"END") -> 31 | JZ7: =IFERROR(RANK(JF7,INDIRECT(JZ$4)),"END") -> 224 | KA7: =IFERROR(RANK(JG7,INDIRECT(KA$4)),"END") -> 212 | KB7: =IFERROR(RANK(JH7,INDIRECT(KB$4)),"END") -> 249 | KC7: =IFERROR(RANK(JI7,INDIRECT(KC$4)),"END") -> 247 | KD7: =IFERROR(RANK(JJ7,INDIRECT(KD$4)),"END") -> 248 | KE7: =IFERROR(RANK(JK7,INDIRECT(KE$4)),"END") -> 17 | KF7: =IFERROR(RANK(JL7,INDIRECT(KF$4)),"END") -> 18 | KG7: =IFERROR(RANK(JM7,INDIRECT(KG$4)),"END") -> 17 | KH7: =IFERROR(RANK(JN7,INDIRECT(KH$4)),"END") -> 10 | KI7: =IFERROR(RANK(JO7,INDIRECT(KI$4)),"END") -> 11 | KJ7: =IFERROR(RANK(JP7,INDIRECT(KJ$4)),"END") -> 14 | KK7: =IFERROR(RANK(JQ7,INDIRECT(KK$4)),"END") -> 16 | KL7: =IFERROR(RANK(JR7,INDIRECT(KL$4)),"END") -> 23 | KM7: =IFERROR(RANK(JS7,INDIRECT(KM$4)),"END") -> END | KN7: =IFERROR(RANK(JT7,INDIRECT(KN$4)),"END") -> END | KQ7: =KQ6+1 -> 2 | KR7: =IFERROR(IF(JW7="END","END",INDIRECT("JW"&(MATCH($DS7,JX$6:JX$260,0))+5)),"END") -> MT019 | KS7: EL015 | KT7: TE009 | KU7: TE009 | KV7: CH019 | KW7: TE009 | KX7: TE013 | KY7: EP005 | KZ7: MM020 | LA7: EP005 | LB7: CH019 | LC7: MM020 | LD7: TE009 | LE7: TE013 | LF7: EP004 | LG7: END | LH7: END | LK7: =IF(AND(LK6<>1,LK6<>"END"),LK6-1,"END") ->  | LL7: =IFERROR(IF($LK7="END","END",INDIRECT("JC"&(MATCH($HO7,JX$6:JX$260,0))+5)),"END") -> END | LM7: END | LN7: END | LO7: END | LP7: END | LQ7: END | LR7: END | LS7: END | LT7: END | LU7: END | LV7: END | LW7: END | LX7: END | LY7: END | LZ7: END | MA7: END | MB7: END
